{"text_format":"1","workbook":"xlsx","n_sheets":29,"sheets":["HIDDEN-PROJ TYPES","HIDDEN Criteria","HIDDEN Tables","HIDDEN Lists","HIDDEN VLookup","INSTRUCTIONS","CHANGE LOG","TITLE SHEET","PROJECT OVERVIEW","LOCUS MAP","FACILITY PHOTOS","ALTERNATIVES","FACILITY INFO","CONTROLLING CRITERIA","DESIGN & TARGET SPEED","PED","BIKE","TRANSIT","RAMP","DESIGN LOADING","LANE WIDTH","SHOULDER WIDTH","HORIZONTAL CURVE","SUPERELEVATION","SSD","MAX GRADE","CROSS SLOPE","VERTICAL CLEARANCE","ESRI_MAPINFO_SHEET"],"not_rendered":{"charts":0,"images":2,"macros":1,"external_links":0,"defined_names":49,"comments":2,"pivot_tables":0},"unopened":[],"bounds":{"document_bytes":16777216,"sheet_cells":100000,"rows_first":2000,"rows_last":500,"rows_between":2000,"halvings":0,"cell_chars":16384,"cell_head_chars":4096},"cells_cut":0,"cells_raw":0,"read":"whole","date_system":"1900"}

{"sheet":"HIDDEN-PROJ TYPES","index":0,"n_rows":79,"n_cols":19,"rows_kept":79,"cut":false,"hidden":true,"merged":[]}
["Current Workbook Status","Exemption Flags","Pedestrian Facilities","Bicycle Facilities","Transit Accommodation","Ramp Length","Design Speed","Design Loading Structural Capacity","Lane Width","Shoulder Width","Horizontal Curve Radius","Superelevation Rate","Stopping Sight Distance","Maximum Grade","Cross Slope","Vertical Clearance","Exempt from Entire Workbook (14) or FHWA (10)"]
[null,"Bridge Maintenance",1,1,1,1,1,1,1,1,1,1,1,1,1,1,14,null,"NOTE: Number indicates design exemptions"]
[null,"Bridge Maintenance - Deck Repairs",1,1,1,1,1,1,1,1,1,1,1,1,1,1,14,null,"\"0\" indicates criterion is NOT exempted"]
[null,"Bridge Maintenance - Joints",1,1,1,1,1,1,1,1,1,1,1,1,1,1,14,null,"\"1\" indicates criterion IS exempted"]
[null,"Catch Basin Cleaning",1,1,1,1,1,1,1,1,1,1,1,1,1,1,14,null,"\"10\" in last column indicates exemption from all FHWA criteria"]
[null,"Contract Highway Maintenance",1,1,1,1,1,1,1,1,1,1,1,1,1,1,14,null,"\"14\" in last column indicates exemption from entire workbook"]
[null,"Crack Sealing",1,1,1,1,1,1,1,1,1,1,1,1,1,1,14]
[null,"Culvert Maintenance",1,1,1,1,1,1,1,1,1,1,1,1,1,1,14,null,"NOTE: Top section is maintenance project types"]
[null,"Dam Maintenance",1,1,1,1,1,1,1,1,1,1,1,1,1,1,14]
[null,"Drainage",1,1,1,1,1,1,1,1,1,1,1,1,1,1,14]
[null,"Drawbridge Maintenance",1,1,1,1,1,1,1,1,1,1,1,1,1,1,14]
[null,"Guard Rail & Fencing",1,1,1,1,1,1,1,1,1,1,1,1,1,1,14]
[null,"Highway Sweeping",1,1,1,1,1,1,1,1,1,1,1,1,1,1,14]
[null,"Impact Attenuators",1,1,1,1,1,1,1,1,1,1,1,1,1,1,14]
[null,"Mowing and Spraying",1,1,1,1,1,1,1,1,1,1,1,1,1,1,14]
[null,"Painting Structural",1,1,1,1,1,1,1,1,1,1,1,1,1,1,14]
[null,"Pavement Maintenance",1,1,1,1,1,1,1,1,1,1,1,1,1,1,14,"NEW"]
[null,"Pavement Marking",1,0,1,1,1,1,1,1,1,1,1,1,1,1,null,"ONLY MAINTENANCE PROJ WITHOUT ENTIRE EXEMPTION"]
[null,"Pump Station Maintenance",1,1,1,1,1,1,1,1,1,1,1,1,1,1,14]
[null,"Sidewalk Maintenance",1,1,1,1,1,1,1,1,1,1,1,1,1,1,14,"NEW"]
[null,"Tree Trimming",1,1,1,1,1,1,1,1,1,1,1,1,1,1,14]
[null,"Accessibility Improvements",0,0,0,0,0,0,0,0,0,0,0,0,0,0,0,"NEW//ASSUMED NO EXEMPTIONS"]
[null,"Asbestos Removal",1,1,1,1,1,1,1,1,1,1,1,1,1,1,14]
[null,"Bike Facility Construction",1,0,0,0,0,0,0,0,0,0,0,0,0,0]
[null,"Bridge Deck Replacement",0,0,0,0,0,0,0,0,0,0,0,0,0,0,0,"NEW//ASSUMED NO EXEMPTIONS"]
[null,"Bridge Preservation",1,1,1,1,1,1,1,1,1,1,1,1,1,1,14]
[null,"Bridge Rehabilitation",0,0,0,0,0,0,0,0,0,0,0,0,0,0,0,"ASSUMED NO EXEMPTIONS"]
[null,"Bridge Replacement",0,0,0,0,0,0,0,0,0,0,0,0,0,0,0,"ASSUMED NO EXEMPTIONS"]
[null,"Bridge Superstructure Replacement",0,0,0,0,0,0,0,0,0,0,0,0,0,0,0,"NEW//ASSUMED NO EXEMPTIONS"]
[null,"Culvert Rehabilitation",0,0,0,0,0,0,0,0,0,0,0,0,0,0,0,"ASSUMED NO EXEMPTIONS"]
[null,"Culvert Replacement",0,0,0,0,0,0,0,0,0,0,0,0,0,0,0,"ASSUMED NO EXEMPTIONS"]
[null,"Dam Reconstruction/Rehab",0,0,0,0,0,0,0,0,0,0,0,0,0,0,0,"ASSUMED NO EXEMPTIONS"]
[null,"Dam Replacement",0,0,0,0,0,0,0,0,0,0,0,0,0,0,0,"ASSUMED NO EXEMPTIONS"]
[null,"Demolition",1,1,1,1,1,1,1,1,1,1,1,1,1,1,14]
[null,"Dredging",1,1,1,1,1,1,1,1,1,1,1,1,1,1,14]
[null,"Drilling & Boring",1,1,1,1,1,1,1,1,1,1,1,1,1,1,14]
[null,"Electrical",1,1,1,1,1,1,1,1,1,1,1,1,1,1,14]
[null,"Embankment and Ledge Stabilization",0,0,0,0,0,0,0,0,0,0,0,0,0,0,0,"NEW//ASSUMED NO EXEMPTIONS"]
[null,"Habitat Enhancement",1,1,1,1,1,1,1,1,1,1,1,1,1,1,14,"NEW"]
[null,"Highway Relocation",0,0,0,0,0,0,0,0,0,0,0,0,0,0,0,"ASSUMED NO EXEMPTIONS"]
[null,"Roadway Additional Capacity",0,0,0,0,0,0,0,0,0,0,0,0,0,0,0,"ASSUMED NO EXEMPTIONS"]
[null,"Roadway Minor Widening",0,0,0,0,0,0,0,0,0,0,0,0,0,0,0,"ASSUMED NO EXEMPTIONS"]
[null,"Roadway Modernization",0,0,0,0,0,0,0,0,0,0,0,0,0,0,0,"ASSUMED NO EXEMPTIONS"]
[null,"Intelligent Transportation Sys",1,1,1,1,1,1,1,1,1,1,1,1,1,1,14]
[null,"Intersection Reconstruction",0,0,0,0,0,0,0,0,0,0,0,0,0,0,0,"NEW//ASSUMED NO EXEMPTIONS"]
[null,"Landscaping",1,1,1,1,1,1,1,1,1,1,1,1,1,1,14]
[null,"Lighting",1,1,1,1,1,1,1,1,1,1,1,1,1,1,14]
[null,"Limited Access Pavement Preservation",1,1,0,0,0,0,0,0,0,0,0,0,0,0,null,"NEW"]
[null,"Limited Access Pavement Rehabilitation",1,1,0,0,0,0,0,0,0,0,0,0,0,0,null,"NEW"]
[null,"Marine Construction",1,1,1,1,1,1,1,1,1,1,1,1,1,1,14]
[null,"New Bridge",0,0,0,0,0,0,0,0,0,0,0,0,0,0,0,"ASSUMED NO EXEMPTIONS"]
[null,"New Road",0,0,0,0,0,0,0,0,0,0,0,0,0,0,0,"ASSUMED NO EXEMPTIONS"]
[null,"New Culvert",0,0,0,0,0,0,0,0,0,0,0,0,0,0,0,"ASSUMED NO EXEMPTIONS"]
[null,"New Dam",0,0,0,0,0,0,0,0,0,0,0,0,0,0,0,"ASSEMED NO EXEMPTIONS"]
[null,"New Pump Station",1,1,1,1,1,1,1,1,1,1,1,1,1,1,14]
[null,"New Waterway",1,1,1,1,1,1,1,1,1,1,1,1,1,1,14]
[null,"Pavement Preservation",0,0,0,1,1,1,1,1,1,1,1,1,1,1,10,"NEW"]
[null,"Pavement Reconstruction",0,0,0,0,0,0,0,0,0,0,0,0,0,0,0,"NEW//ASSUMED NO EXEMPTIONS"]
[null,"Pavement Rehabilitation",0,0,0,0,0,0,0,0,0,0,0,0,0,0,0,"NEW//ASSUMED NO EXEMPTIONS"]
[null,"Process/Recycle/Trnsprt Soils",1,1,1,1,1,1,1,1,1,1,1,1,1,1,14]
[null,"Pump Station Reconstruction/Rehab",1,1,1,1,1,1,1,1,1,1,1,1,1,1,14]
[null,"Salt Marsh and Wetlands Restoration",1,1,1,1,1,1,1,1,1,1,1,1,1,1,14]
[null,"Sewer and Water",1,1,1,1,1,1,1,1,1,1,1,1,1,1,14]
[null,"Shared Use Path Construction",0,0,0,0,0,0,0,0,0,0,0,0,0,0,0,"NEW//ASSUMED NO EXEMPTIONS"]
[null,"Shared Use Path Modernization",0,0,0,0,0,0,0,0,0,0,0,0,0,0,0,"NEW//ASSUMED NO EXEMPTIONS"]
[null,"Shared Use Path Preservation",0,0,0,0,0,0,0,0,0,0,0,0,0,0,0,"NEW//ASSUMED NO EXEMPTIONS"]
[null,"Sidewalk Construction",0,1,0,0,0,0,0,0,0,0,0,0,0,0]
[null,"Sign Installation/Upgrading",1,1,1,1,1,1,1,1,1,1,1,1,1,1,14]
[null,"Speed Management Countermeasures",0,0,0,0,0,0,0,0,0,0,0,0,0,0,0,"NEW//ASSUMED NO EXEMPTIONS"]
[null,"Stormwater Infrastructure Improvement",1,1,1,1,1,1,1,1,1,1,1,1,1,1,14,"NEW"]
[null,"Structural Signing",1,1,1,1,1,1,1,1,1,1,1,1,1,1,14]
[null,"Targeted Modernization - Multiple Locations",0,0,0,0,0,0,0,0,0,0,0,0,0,0,0,"NEW//ASSUMED NO EXEMPTIONS"]
[null,"Traffic Signal Upgrades",1,1,1,1,1,1,1,1,1,1,1,1,1,1,14]
[null,"Tunnels",1,1,1,1,1,1,1,1,1,1,1,1,1,1,14]
[null,"Underground Tank Removal Replace",1,1,1,1,1,1,1,1,1,1,1,1,1,1,14]
[null,"Utilities",1,1,1,1,1,1,1,1,1,1,1,1,1,1,14]
[null,"Vertical Construction (Ch 149)",1,1,1,1,1,1,1,1,1,1,1,1,1,1,14]
[null,"Waterway Maintenance",1,1,1,1,1,1,1,1,1,1,1,1,1,1,14]
[null,"Waterway Reconstruction/Rehab",1,1,1,1,1,1,1,1,1,1,1,1,1,1,14]

{"sheet":"HIDDEN Criteria","index":1,"n_rows":33,"n_cols":61,"rows_kept":33,"cut":false,"hidden":true,"merged":[]}
["COLUMN:",1,2,3,4,5,6,7,8,9,10,11,12,13,14,15,16,17,18,19,20,21,22,23,24,25,26,27,28,29,30,31,32,33,34,35,36,37,38,39,40,41,42,43,44,45,46,47,48,49,50,51,52,53,54,55,56,57,58,59,60]
[null,"Street name","SPEEDA4","SPEEDA5","PEDA4","PEDA5","BIKEA4","BIKEA5","TRANSITA4","TRANSITA5","RAMPA4","RAMPA5","LOADA4","LOADA5","LANEA4","LANEA5","SHOULDERA4","SHOULDERA5","HORIZONTALA4","HORIZONTALA5","SUPERELEVAIONA4","SUPERELEVATIONA5","SSDA4","SSDA5","GRADEA4","GRADEA5","SLOPEA4","SLOPEA5","CLEARANCEA4","CLEARANCEA5","SPEEDJ206","INFOJ15","EXEMPTIONAH13","SPEED_NOTMET","PED_NOTMET","BIKE_NOTMET","TRANSIT_NOTMET","RAMP_NOTMET","LOAD_NOTMET","LANE_NOTMET","SHOULDER_NOTMET","HORIZONTAL_NOTMET","SUPERELEVATION_NOTMET","SSD_NOTMET","GRADE_NOTMET","SLOPE_NOTMET","CLEARANCE_NOTMET","SPEED_NONCONTROL","PED_NONCONTROL","BIKE_NONCONTROL","TRANSIT_NONCONTROL","RAMP_NONCONTROL","LOAD_NONCONTROL","LANE_NONCONTROL","SHOULDER_NONCONTROL","HORIZONTAL_NONCONTROL","SUPERELEVATION_NONCONTROL","SSD_NONCONTROL","GRADE_NONCONTROL","SLOPE_NONCONTROL","CLEARANCE_NONCONTROL"]
["STREET:","Please select a facility:"]
[1,{"$f":"IFERROR(INDIRECT(\"'FACILITY INFO'!H9\"), \"\")","v":"Street Road (Route X) - Segment X"},{"$f":"IFERROR(INDIRECT(\"'DESIGN & TARGET SPEED'!A4\"), \"\")","v":""},{"$f":"IFERROR(INDIRECT(\"'DESIGN & TARGET SPEED'!A5\"), \"\")","v":"PLEASE FILL OUT ALL FIELDS MARKED WITH *"},{"$f":"IFERROR(INDIRECT(\"'PED'!A4\"), \"\")","v":""},{"$f":"IFERROR(INDIRECT(\"'PED'!A5\"), \"\")","v":"PLEASE FILL OUT ALL FIELDS MARKED WITH *"},{"$f":"IFERROR(INDIRECT(\"'BIKE'!A4\"), \"\")","v":""},{"$f":"IFERROR(INDIRECT(\"'BIKE'!A5\"), \"\")","v":"PLEASE FILL OUT ALL FIELDS MARKED WITH *"},{"$f":"IFERROR(INDIRECT(\"'TRANSIT'!A4\"), \"\")","v":""},{"$f":"IFERROR(INDIRECT(\"'TRANSIT'!A5\"), \"\")","v":"PLEASE FILL OUT ALL FIELDS MARKED WITH *"},{"$f":"IFERROR(INDIRECT(\"'RAMP'!A4\"), \"\")","v":""},{"$f":"IFERROR(INDIRECT(\"'RAMP'!A5\"), \"\")","v":"PLEASE FILL OUT ALL FIELDS MARKED WITH *"},{"$f":"IFERROR(INDIRECT(\"'DESIGN LOADING'!A4\"), \"\")","v":""},{"$f":"IFERROR(INDIRECT(\"'DESIGN LOADING'!A5\"), \"\")","v":"PLEASE FILL OUT ALL FIELDS MARKED WITH *"},{"$f":"IFERROR(INDIRECT(\"'LANE WIDTH'!A4\"), \"\")","v":""},{"$f":"IFERROR(INDIRECT(\"'LANE WIDTH'!A5\"), \"\")","v":"PLEASE FILL OUT ALL FIELDS MARKED WITH *"},{"$f":"IFERROR(INDIRECT(\"'SHOULDER WIDTH'!A4\"), \"\")","v":""},{"$f":"IFERROR(INDIRECT(\"'SHOULDER WIDTH'!A5\"), \"\")","v":"PLEASE FILL OUT ALL FIELDS MARKED WITH *"},{"$f":"IFERROR(INDIRECT(\"'HORIZONTAL CURVE'!A4\"), \"\")","v":"Criterion is non-controlling."},{"$f":"IFERROR(INDIRECT(\"'HORIZONTAL CURVE'!A5\"), \"\")","v":"PLEASE FILL OUT ALL FIELDS MARKED WITH *"},{"$f":"IFERROR(INDIRECT(\"'SUPERELEVATION'!A4\"), \"\")","v":"Criterion is non-controlling."},{"$f":"IFERROR(INDIRECT(\"'SUPERELEVATION'!A5\"), \"\")","v":"PLEASE FILL OUT ALL FIELDS MARKED WITH *"},{"$f":"IFERROR(INDIRECT(\"'SSD'!A4\"), \"\")","v":"Criterion is non-controlling."},{"$f":"IFERROR(INDIRECT(\"'SSD'!A5\"), \"\")","v":"PLEASE FILL OUT ALL FIELDS MARKED WITH *"},{"$f":"IFERROR(INDIRECT(\"'MAX GRADE'!A4\"), \"\")","v":"Criterion is non-controlling."},{"$f":"IFERROR(INDIRECT(\"'MAX GRADE'!A5\"), \"\")","v":"PLEASE FILL OUT ALL FIELDS MARKED WITH *"},{"$f":"IFERROR(INDIRECT(\"'CROSS SLOPE'!A4\"), \"\")","v":"Criterion is non-controlling."},{"$f":"IFERROR(INDIRECT(\"'CROSS SLOPE'!A5\"), \"\")","v":"PLEASE FILL OUT ALL FIELDS MARKED WITH *"},{"$f":"IFERROR(INDIRECT(\"'VERTICAL CLEARANCE'!A4\"), \"\")","v":"Criterion is non-controlling."},{"$f":"IFERROR(INDIRECT(\"'VERTICAL CLEARANCE'!A5\"), \"\")","v":"PLEASE FILL OUT ALL FIELDS MARKED WITH *"},{"$f":"IFERROR(INDIRECT(\"'DESIGN & TARGET SPEED'!j206\"), \"\")","v":0},{"$f":"IFERROR(INDIRECT(\"'FACILITY INFO'!J15\"), \"\")","v":0},{"$f":"IFERROR(INDIRECT(\"'CONTROLLING CRITERIA'!AH13\"), \"\")","v":true},{"$f":"IF(INDIRECT(\"'DESIGN & TARGET SPEED'!AE206\")=\"Standard not met.\",TRUE, FALSE)","v":false},{"$f":"IF(OR(INDIRECT(\"'PED'!AF64\")=\"Standard not met.\", INDIRECT(\"'PED'!AF49\")=\"Standard not met.\",INDIRECT(\"'PED'!AF12\")=\"Standard not met.\",INDIRECT(\"'PED'!AF36\")=\"Standard not met.\"),TRUE,FALSE)","v":false},{"$f":"IF(OR(INDIRECT(\"'BIKE'!AF34\")=\"Standard not met.\",INDIRECT(\"'BIKE'!AF23\")=\"Standard not met.\",INDIRECT(\"'BIKE'!AF46\")=\"Standard not met.\"),TRUE, FALSE)","v":false},{"$f":"IF(OR(INDIRECT(\"'TRANSIT'!AF20\")=\"Standard not met.\", INDIRECT(\"'TRANSIT'!AF25\")=\"Standard not met.\", INDIRECT(\"'TRANSIT'!AF37\")=\"Standard not met.\", INDIRECT(\"'TRANSIT'!AF50\")=\"Standard not met.\"),TRUE,FALSE)","v":false},{"$f":"IF(INDIRECT(\"'RAMP'!AF16\")=\"Standard not met.\",TRUE, FALSE)","v":false},{"$f":"IF(INDIRECT(\"'DESIGN LOADING'!AF22\")=\"Standard not met.\",TRUE, FALSE)","v":false},{"$f":"IF(INDIRECT(\"'LANE WIDTH'!AF20\")=\"Standard not met.\",TRUE,\"FALSE\")","v":"FALSE"},{"$f":"IF(OR(INDIRECT(\"'SHOULDER WIDTH'!AF25\")=\"Standard not met.\",INDIRECT(\"'SHOULDER WIDTH'!AF8\")=\"Standard not met.\"),TRUE,FALSE)","v":false},{"$f":"IF(INDIRECT(\"'HORIZONTAL CURVE'!AF22\")=\"Standard not met.\",TRUE, FALSE)","v":false},{"$f":"IF(INDIRECT(\"'SUPERELEVATION'!AF23\")=\"Standard not met.\",TRUE, FALSE)","v":false},{"$f":"IF(OR(INDIRECT(\"'SSD'!AF21\")=\"Standard not met.\",INDIRECT(\"'SSD'!AF8\")=\"Standard not met.\"),TRUE, FALSE)","v":false},{"$f":"IF(INDIRECT(\"'MAX GRADE'!AF21\")=\"Standard not met.\",TRUE, FALSE)","v":false},{"$f":"IF(INDIRECT(\"'CROSS SLOPE'!AF22\")=\"Standard not met.\",TRUE, FALSE)","v":false},{"$f":"IF(INDIRECT(\"'VERTICAL CLEARANCE'!AF29\")=\"Standard not met.\",TRUE,FALSE)","v":false},{"$f":"IF(INDIRECT(\"'DESIGN & TARGET SPEED'!AH6\")=TRUE, TRUE, FALSE)","v":false},{"$f":"IF(OR(INDIRECT(\"'PED'!AH6\")=TRUE,INDIRECT(\"'PED'!AH19\")=TRUE), TRUE, FALSE)","v":false},{"$f":"IF(INDIRECT(\"'BIKE'!AH6\")=TRUE, TRUE, FALSE)","v":false},{"$f":"IF(INDIRECT(\"'TRANSIT'!AH6\")=TRUE, TRUE, FALSE)","v":false},{"$f":"IF(INDIRECT(\"'RAMP'!AH6\")=TRUE, TRUE, FALSE)","v":false},{"$f":"IF(INDIRECT(\"'DESIGN LOADING'!AH6\")=TRUE, TRUE, FALSE)","v":false},{"$f":"IF(INDIRECT(\"'LANE WIDTH'!AH6\")=TRUE, TRUE, FALSE)","v":false},{"$f":"IF(INDIRECT(\"'SHOULDER WIDTH'!AH6\")=TRUE, TRUE, FALSE)","v":false},{"$f":"IF(INDIRECT(\"'HORIZONTAL CURVE'!AH7\")=TRUE, TRUE, FALSE)","v":true},{"$f":"IF(INDIRECT(\"'SUPERELEVATION'!AH7\")=TRUE, TRUE, FALSE)","v":true},{"$f":"IF(INDIRECT(\"'SSD'!AH7\")=TRUE, TRUE, FALSE)","v":true},{"$f":"IF(INDIRECT(\"'MAX GRADE'!AH7\")=TRUE, TRUE, FALSE)","v":true},{"$f":"IF(INDIRECT(\"'CROSS SLOPE'!AH7\")=TRUE, TRUE, FALSE)","v":true},{"$f":"IF(AND(INDIRECT(\"'VERTICAL CLEARANCE'!AH7\")=TRUE,INDIRECT(\"'VERTICAL CLEARANCE'!AH16\")=TRUE), TRUE, FALSE)","v":true}]
[2,{"$f":"IFERROR(INDIRECT(\"'FACILITY INFO (2)'!H9\"), \"\")","v":""},{"$f":"IFERROR(INDIRECT(\"'DESIGN & TARGET SPEED (2)'!A4\"), \"\")","v":""},{"$f":"IFERROR(INDIRECT(\"'DESIGN & TARGET SPEED (2)'!A5\"), \"\")","v":""},{"$f":"IFERROR(INDIRECT(\"'PED (2)'!A4\"), \"\")","v":""},{"$f":"IFERROR(INDIRECT(\"'PED (2)'!A5\"), \"\")","v":""},{"$f":"IFERROR(INDIRECT(\"'BIKE (2)'!A4\"), \"\")","v":""},{"$f":"IFERROR(INDIRECT(\"'BIKE (2)'!A5\"), \"\")","v":""},{"$f":"IFERROR(INDIRECT(\"'TRANSIT (2)'!A4\"), \"\")","v":""},{"$f":"IFERROR(INDIRECT(\"'TRANSIT (2)'!A5\"), \"\")","v":""},{"$f":"IFERROR(INDIRECT(\"'RAMP (2)'!A4\"), \"\")","v":""},{"$f":"IFERROR(INDIRECT(\"'RAMP (2)'!A5\"), \"\")","v":""},{"$f":"IFERROR(INDIRECT(\"'DESIGN LOADING (2)'!A4\"), \"\")","v":""},{"$f":"IFERROR(INDIRECT(\"'DESIGN LOADING (2)'!A5\"), \"\")","v":""},{"$f":"IFERROR(INDIRECT(\"'LANE WIDTH (2)'!A4\"), \"\")","v":""},{"$f":"IFERROR(INDIRECT(\"'LANE WIDTH (2)'!A5\"), \"\")","v":""},{"$f":"IFERROR(INDIRECT(\"'SHOULDER WIDTH (2)'!A4\"), \"\")","v":""},{"$f":"IFERROR(INDIRECT(\"'SHOULDER WIDTH (2)'!A5\"), \"\")","v":""},{"$f":"IFERROR(INDIRECT(\"'HORIZONTAL CURVE (2)'!A4\"), \"\")","v":""},{"$f":"IFERROR(INDIRECT(\"'HORIZONTAL CURVE (2)'!A5\"), \"\")","v":""},{"$f":"IFERROR(INDIRECT(\"'SUPERELEVATION (2)'!A4\"), \"\")","v":""},{"$f":"IFERROR(INDIRECT(\"'SUPERELEVATION (2)'!A5\"), \"\")","v":""},{"$f":"IFERROR(INDIRECT(\"'SSD (2)'!A4\"), \"\")","v":""},{"$f":"IFERROR(INDIRECT(\"'SSD (2)'!A5\"), \"\")","v":""},{"$f":"IFERROR(INDIRECT(\"'MAX GRADE (2)'!A4\"), \"\")","v":""},{"$f":"IFERROR(INDIRECT(\"'MAX GRADE (2)'!A5\"), \"\")","v":""},{"$f":"IFERROR(INDIRECT(\"'CROSS SLOPE (2)'!A4\"), \"\")","v":""},{"$f":"IFERROR(INDIRECT(\"'CROSS SLOPE (2)'!A5\"), \"\")","v":""},{"$f":"IFERROR(INDIRECT(\"'VERTICAL CLEARANCE (2)'!A4\"), \"\")","v":""},{"$f":"IFERROR(INDIRECT(\"'VERTICAL CLEARANCE (2)'!A5\"), \"\")","v":""},{"$f":"IFERROR(INDIRECT(\"'DESIGN & TARGET SPEED (2)'!j206\"), \"\")","v":""},{"$f":"IFERROR(INDIRECT(\"'FACILITY INFO (2)'!J15\"), \"\")","v":""},{"$f":"IFERROR(INDIRECT(\"'CONTROLLING CRITERIA (2)'!AH13\"), \"\")","v":""},{"$f":"IF(INDIRECT(\"'DESIGN & TARGET SPEED (2)'!AE206\")=\"Standard not met.\",TRUE, FALSE)","v":{"$error":"#REF!"}},{"$f":"IF(OR(INDIRECT(\"'PED (2)'!AF64\")=\"Standard not met.\", INDIRECT(\"'PED (2)'!AF49\")=\"Standard not met.\",INDIRECT(\"'PED (2)'!AF12\")=\"Standard not met.\",INDIRECT(\"'PED (2)'!AF36\")=\"Standard not met.\"),TRUE,FALSE)","v":{"$error":"#REF!"}},{"$f":"IF(OR(INDIRECT(\"'BIKE (2)'!AF34\")=\"Standard not met.\",INDIRECT(\"'BIKE (2)'!AF23\")=\"Standard not met.\",INDIRECT(\"'BIKE (2)'!AF46\")=\"Standard not met.\"),TRUE, FALSE)","v":{"$error":"#REF!"}},{"$f":"IF(OR(INDIRECT(\"'TRANSIT (2)'!AF20\")=\"Standard not met.\", INDIRECT(\"'TRANSIT (2)'!AF25\")=\"Standard not met.\", INDIRECT(\"'TRANSIT (2)'!AF37\")=\"Standard not met.\", INDIRECT(\"'TRANSIT (2)'!AF50\")=\"Standard not met.\"),TRUE,FALSE)","v":{"$error":"#REF!"}},{"$f":"IF(INDIRECT(\"'RAMP (2)'!AF16\")=\"Standard not met.\",TRUE, FALSE)","v":{"$error":"#REF!"}},{"$f":"IF(INDIRECT(\"'DESIGN LOADING (2)'!AF22\")=\"Standard not met.\",TRUE, FALSE)","v":{"$error":"#REF!"}},{"$f":"IF(INDIRECT(\"'LANE WIDTH (2)'!AF20\")=\"Standard not met.\",TRUE,\"FALSE\")","v":{"$error":"#REF!"}},{"$f":"IF(OR(INDIRECT(\"'SHOULDER WIDTH (2)'!AF25\")=\"Standard not met.\",INDIRECT(\"'SHOULDER WIDTH (2)'!AF8\")=\"Standard not met.\"),TRUE,FALSE)","v":{"$error":"#REF!"}},{"$f":"IF(INDIRECT(\"'HORIZONTAL CURVE (2)'!AF22\")=\"Standard not met.\",TRUE, FALSE)","v":{"$error":"#REF!"}},{"$f":"IF(INDIRECT(\"'SUPERELEVATION (2)'!AF23\")=\"Standard not met.\",TRUE, FALSE)","v":{"$error":"#REF!"}},{"$f":"IF(OR(INDIRECT(\"'SSD (2)'!AF21\")=\"Standard not met.\",INDIRECT(\"'SSD (2)'!AF8\")=\"Standard not met.\"),TRUE, FALSE)","v":{"$error":"#REF!"}},{"$f":"IF(INDIRECT(\"'MAX GRADE (2)'!AF21\")=\"Standard not met.\",TRUE, FALSE)","v":{"$error":"#REF!"}},{"$f":"IF(INDIRECT(\"'CROSS SLOPE (2)'!AF22\")=\"Standard not met.\",TRUE, FALSE)","v":{"$error":"#REF!"}},{"$f":"IF(INDIRECT(\"'VERTICAL CLEARANCE (2)'!AF29\")=\"Standard not met.\",TRUE,FALSE)","v":{"$error":"#REF!"}},{"$f":"IF(INDIRECT(\"'DESIGN & TARGET SPEED (2)'!AH6\")=TRUE, TRUE, FALSE)","v":{"$error":"#REF!"}},{"$f":"IF(OR(INDIRECT(\"'PED (2)'!AH6\")=TRUE,INDIRECT(\"'PED (2)'!AH19\")=TRUE), TRUE, FALSE)","v":{"$error":"#REF!"}},{"$f":"IF(INDIRECT(\"'BIKE (2)'!AH6\")=TRUE, TRUE, FALSE)","v":{"$error":"#REF!"}},{"$f":"IF(INDIRECT(\"'TRANSIT (2)'!AH6\")=TRUE, TRUE, FALSE)","v":{"$error":"#REF!"}},{"$f":"IF(INDIRECT(\"'RAMP (2)'!AH6\")=TRUE, TRUE, FALSE)","v":{"$error":"#REF!"}},{"$f":"IF(INDIRECT(\"'DESIGN LOADING (2)'!AH6\")=TRUE, TRUE, FALSE)","v":{"$error":"#REF!"}},{"$f":"IF(INDIRECT(\"'LANE WIDTH (2)'!AH6\")=TRUE, TRUE, FALSE)","v":{"$error":"#REF!"}},{"$f":"IF(INDIRECT(\"'SHOULDER WIDTH (2)'!AH6\")=TRUE, TRUE, FALSE)","v":{"$error":"#REF!"}},{"$f":"IF(INDIRECT(\"'HORIZONTAL CURVE (2)'!AH7\")=TRUE, TRUE, FALSE)","v":{"$error":"#REF!"}},{"$f":"IF(INDIRECT(\"'SUPERELEVATION (2)'!AH7\")=TRUE, TRUE, FALSE)","v":{"$error":"#REF!"}},{"$f":"IF(INDIRECT(\"'SSD (2)'!AH7\")=TRUE, TRUE, FALSE)","v":{"$error":"#REF!"}},{"$f":"IF(INDIRECT(\"'MAX GRADE (2)'!AH7\")=TRUE, TRUE, FALSE)","v":{"$error":"#REF!"}},{"$f":"IF(INDIRECT(\"'CROSS SLOPE (2)'!AH7\")=TRUE, TRUE, FALSE)","v":{"$error":"#REF!"}},{"$f":"IF(AND(INDIRECT(\"'VERTICAL CLEARANCE (2)'!AH7\")=TRUE,INDIRECT(\"'VERTICAL CLEARANCE (2)'!AH16\")=TRUE), TRUE, FALSE)","v":{"$error":"#REF!"}}]
[3,{"$f":"IFERROR(INDIRECT(\"'FACILITY INFO (3)'!H9\"), \"\")","v":""},{"$f":"IFERROR(INDIRECT(\"'DESIGN & TARGET SPEED (3)'!A4\"), \"\")","v":""},{"$f":"IFERROR(INDIRECT(\"'DESIGN & TARGET SPEED (3)'!A5\"), \"\")","v":""},{"$f":"IFERROR(INDIRECT(\"'PED (3)'!A4\"), \"\")","v":""},{"$f":"IFERROR(INDIRECT(\"'PED (3)'!A5\"), \"\")","v":""},{"$f":"IFERROR(INDIRECT(\"'BIKE (3)'!A4\"), \"\")","v":""},{"$f":"IFERROR(INDIRECT(\"'BIKE (3)'!A5\"), \"\")","v":""},{"$f":"IFERROR(INDIRECT(\"'TRANSIT (3)'!A4\"), \"\")","v":""},{"$f":"IFERROR(INDIRECT(\"'TRANSIT (3)'!A5\"), \"\")","v":""},{"$f":"IFERROR(INDIRECT(\"'RAMP (3)'!A4\"), \"\")","v":""},{"$f":"IFERROR(INDIRECT(\"'RAMP (3)'!A5\"), \"\")","v":""},{"$f":"IFERROR(INDIRECT(\"'DESIGN LOADING (3)'!A4\"), \"\")","v":""},{"$f":"IFERROR(INDIRECT(\"'DESIGN LOADING (3)'!A5\"), \"\")","v":""},{"$f":"IFERROR(INDIRECT(\"'LANE WIDTH (3)'!A4\"), \"\")","v":""},{"$f":"IFERROR(INDIRECT(\"'LANE WIDTH (3)'!A5\"), \"\")","v":""},{"$f":"IFERROR(INDIRECT(\"'SHOULDER WIDTH (3)'!A4\"), \"\")","v":""},{"$f":"IFERROR(INDIRECT(\"'SHOULDER WIDTH (3)'!A5\"), \"\")","v":""},{"$f":"IFERROR(INDIRECT(\"'HORIZONTAL CURVE (3)'!A4\"), \"\")","v":""},{"$f":"IFERROR(INDIRECT(\"'HORIZONTAL CURVE (3)'!A5\"), \"\")","v":""},{"$f":"IFERROR(INDIRECT(\"'SUPERELEVATION (3)'!A4\"), \"\")","v":""},{"$f":"IFERROR(INDIRECT(\"'SUPERELEVATION (3)'!A5\"), \"\")","v":""},{"$f":"IFERROR(INDIRECT(\"'SSD (3)'!A4\"), \"\")","v":""},{"$f":"IFERROR(INDIRECT(\"'SSD (3)'!A5\"), \"\")","v":""},{"$f":"IFERROR(INDIRECT(\"'MAX GRADE (3)'!A4\"), \"\")","v":""},{"$f":"IFERROR(INDIRECT(\"'MAX GRADE (3)'!A5\"), \"\")","v":""},{"$f":"IFERROR(INDIRECT(\"'CROSS SLOPE (3)'!A4\"), \"\")","v":""},{"$f":"IFERROR(INDIRECT(\"'CROSS SLOPE (3)'!A5\"), \"\")","v":""},{"$f":"IFERROR(INDIRECT(\"'VERTICAL CLEARANCE (3)'!A4\"), \"\")","v":""},{"$f":"IFERROR(INDIRECT(\"'VERTICAL CLEARANCE (3)'!A5\"), \"\")","v":""},{"$f":"IFERROR(INDIRECT(\"'DESIGN & TARGET SPEED (3)'!J206\"), \"\")","v":""},{"$f":"IFERROR(INDIRECT(\"'FACILITY INFO (3)'!J15\"), \"\")","v":""},{"$f":"IFERROR(INDIRECT(\"'CONTROLLING CRITERIA (3)'!AH13\"), \"\")","v":""},{"$f":"IF(INDIRECT(\"'DESIGN & TARGET SPEED (3)'!AE206\")=\"Standard not met.\",TRUE, FALSE)","v":{"$error":"#REF!"}},{"$f":"IF(OR(INDIRECT(\"'PED (3)'!AF64\")=\"Standard not met.\", INDIRECT(\"'PED (3)'!AF49\")=\"Standard not met.\",INDIRECT(\"'PED (3)'!AF12\")=\"Standard not met.\",INDIRECT(\"'PED (3)'!AF36\")=\"Standard not met.\"),TRUE,FALSE)","v":{"$error":"#REF!"}},{"$f":"IF(OR(INDIRECT(\"'BIKE (3)'!AF34\")=\"Standard not met.\",INDIRECT(\"'BIKE (3)'!AF23\")=\"Standard not met.\",INDIRECT(\"'BIKE (3)'!AF46\")=\"Standard not met.\"),TRUE, FALSE)","v":{"$error":"#REF!"}},{"$f":"IF(OR(INDIRECT(\"'TRANSIT (3)'!AF20\")=\"Standard not met.\", INDIRECT(\"'TRANSIT (3)'!AF25\")=\"Standard not met.\", INDIRECT(\"'TRANSIT (3)'!AF37\")=\"Standard not met.\", INDIRECT(\"'TRANSIT (3)'!AF50\")=\"Standard not met.\"),TRUE,FALSE)","v":{"$error":"#REF!"}},{"$f":"IF(INDIRECT(\"'RAMP (3)'!AF16\")=\"Standard not met.\",TRUE, FALSE)","v":{"$error":"#REF!"}},{"$f":"IF(INDIRECT(\"'DESIGN LOADING (3)'!AF22\")=\"Standard not met.\",TRUE, FALSE)","v":{"$error":"#REF!"}},{"$f":"IF(INDIRECT(\"'LANE WIDTH (3)'!AF20\")=\"Standard not met.\",TRUE,\"FALSE\")","v":{"$error":"#REF!"}},{"$f":"IF(OR(INDIRECT(\"'SHOULDER WIDTH (3)'!AF25\")=\"Standard not met.\",INDIRECT(\"'SHOULDER WIDTH (3)'!AF8\")=\"Standard not met.\"),TRUE,FALSE)","v":{"$error":"#REF!"}},{"$f":"IF(INDIRECT(\"'HORIZONTAL CURVE (3)'!AF22\")=\"Standard not met.\",TRUE, FALSE)","v":{"$error":"#REF!"}},{"$f":"IF(INDIRECT(\"'SUPERELEVATION (3)'!AF23\")=\"Standard not met.\",TRUE, FALSE)","v":{"$error":"#REF!"}},{"$f":"IF(OR(INDIRECT(\"'SSD (3)'!AF21\")=\"Standard not met.\",INDIRECT(\"'SSD (3)'!AF8\")=\"Standard not met.\"),TRUE, FALSE)","v":{"$error":"#REF!"}},{"$f":"IF(INDIRECT(\"'MAX GRADE (3)'!AF21\")=\"Standard not met.\",TRUE, FALSE)","v":{"$error":"#REF!"}},{"$f":"IF(INDIRECT(\"'CROSS SLOPE (3)'!AF22\")=\"Standard not met.\",TRUE, FALSE)","v":{"$error":"#REF!"}},{"$f":"IF(INDIRECT(\"'VERTICAL CLEARANCE (3)'!AF29\")=\"Standard not met.\",TRUE,FALSE)","v":{"$error":"#REF!"}},{"$f":"IF(INDIRECT(\"'DESIGN & TARGET SPEED (3)'!AH6\")=TRUE, TRUE, FALSE)","v":{"$error":"#REF!"}},{"$f":"IF(OR(INDIRECT(\"'PED (3)'!AH6\")=TRUE,INDIRECT(\"'PED (3)'!AH19\")=TRUE), TRUE, FALSE)","v":{"$error":"#REF!"}},{"$f":"IF(INDIRECT(\"'BIKE (3)'!AH6\")=TRUE, TRUE, FALSE)","v":{"$error":"#REF!"}},{"$f":"IF(INDIRECT(\"'TRANSIT (3)'!AH6\")=TRUE, TRUE, FALSE)","v":{"$error":"#REF!"}},{"$f":"IF(INDIRECT(\"'RAMP (3)'!AH6\")=TRUE, TRUE, FALSE)","v":{"$error":"#REF!"}},{"$f":"IF(INDIRECT(\"'DESIGN LOADING (3)'!AH6\")=TRUE, TRUE, FALSE)","v":{"$error":"#REF!"}},{"$f":"IF(INDIRECT(\"'LANE WIDTH (3)'!AH6\")=TRUE, TRUE, FALSE)","v":{"$error":"#REF!"}},{"$f":"IF(INDIRECT(\"'SHOULDER WIDTH (3)'!AH6\")=TRUE, TRUE, FALSE)","v":{"$error":"#REF!"}},{"$f":"IF(INDIRECT(\"'HORIZONTAL CURVE (3)'!AH7\")=TRUE, TRUE, FALSE)","v":{"$error":"#REF!"}},{"$f":"IF(INDIRECT(\"'SUPERELEVATION (3)'!AH7\")=TRUE, TRUE, FALSE)","v":{"$error":"#REF!"}},{"$f":"IF(INDIRECT(\"'SSD (3)'!AH7\")=TRUE, TRUE, FALSE)","v":{"$error":"#REF!"}},{"$f":"IF(INDIRECT(\"'MAX GRADE (3)'!AH7\")=TRUE, TRUE, FALSE)","v":{"$error":"#REF!"}},{"$f":"IF(INDIRECT(\"'CROSS SLOPE (3)'!AH7\")=TRUE, TRUE, FALSE)","v":{"$error":"#REF!"}},{"$f":"IF(AND(INDIRECT(\"'VERTICAL CLEARANCE (3)'!AH7\")=TRUE,INDIRECT(\"'VERTICAL CLEARANCE (3)'!AH16\")=TRUE), TRUE, FALSE)","v":{"$error":"#REF!"}}]
[4,{"$f":"IFERROR(INDIRECT(\"'FACILITY INFO (4)'!H9\"), \"\")","v":""},{"$f":"IFERROR(INDIRECT(\"'DESIGN & TARGET SPEED (4)'!A4\"), \"\")","v":""},{"$f":"IFERROR(INDIRECT(\"'DESIGN & TARGET SPEED (4)'!A5\"), \"\")","v":""},{"$f":"IFERROR(INDIRECT(\"'PED (4)'!A4\"), \"\")","v":""},{"$f":"IFERROR(INDIRECT(\"'PED (4)'!A5\"), \"\")","v":""},{"$f":"IFERROR(INDIRECT(\"'BIKE (4)'!A4\"), \"\")","v":""},{"$f":"IFERROR(INDIRECT(\"'BIKE (4)'!A5\"), \"\")","v":""},{"$f":"IFERROR(INDIRECT(\"'TRANSIT (4)'!A4\"), \"\")","v":""},{"$f":"IFERROR(INDIRECT(\"'TRANSIT (4)'!A5\"), \"\")","v":""},{"$f":"IFERROR(INDIRECT(\"'RAMP (4)'!A4\"), \"\")","v":""},{"$f":"IFERROR(INDIRECT(\"'RAMP (4)'!A5\"), \"\")","v":""},{"$f":"IFERROR(INDIRECT(\"'DESIGN LOADING (4)'!A4\"), \"\")","v":""},{"$f":"IFERROR(INDIRECT(\"'DESIGN LOADING (4)'!A5\"), \"\")","v":""},{"$f":"IFERROR(INDIRECT(\"'LANE WIDTH (4)'!A4\"), \"\")","v":""},{"$f":"IFERROR(INDIRECT(\"'LANE WIDTH (4)'!A5\"), \"\")","v":""},{"$f":"IFERROR(INDIRECT(\"'SHOULDER WIDTH (4)'!A4\"), \"\")","v":""},{"$f":"IFERROR(INDIRECT(\"'SHOULDER WIDTH (4)'!A5\"), \"\")","v":""},{"$f":"IFERROR(INDIRECT(\"'HORIZONTAL CURVE (4)'!A4\"), \"\")","v":""},{"$f":"IFERROR(INDIRECT(\"'HORIZONTAL CURVE (4)'!A5\"), \"\")","v":""},{"$f":"IFERROR(INDIRECT(\"'SUPERELEVATION (4)'!A4\"), \"\")","v":""},{"$f":"IFERROR(INDIRECT(\"'SUPERELEVATION (4)'!A5\"), \"\")","v":""},{"$f":"IFERROR(INDIRECT(\"'SSD (4)'!A4\"), \"\")","v":""},{"$f":"IFERROR(INDIRECT(\"'SSD (4)'!A5\"), \"\")","v":""},{"$f":"IFERROR(INDIRECT(\"'MAX GRADE (4)'!A4\"), \"\")","v":""},{"$f":"IFERROR(INDIRECT(\"'MAX GRADE (4)'!A5\"), \"\")","v":""},{"$f":"IFERROR(INDIRECT(\"'CROSS SLOPE (4)'!A4\"), \"\")","v":""},{"$f":"IFERROR(INDIRECT(\"'CROSS SLOPE (4)'!A5\"), \"\")","v":""},{"$f":"IFERROR(INDIRECT(\"'VERTICAL CLEARANCE (4)'!A4\"), \"\")","v":""},{"$f":"IFERROR(INDIRECT(\"'VERTICAL CLEARANCE (4)'!A5\"), \"\")","v":""},{"$f":"IFERROR(INDIRECT(\"'DESIGN & TARGET SPEED (4)'!J206\"), \"\")","v":""},{"$f":"IFERROR(INDIRECT(\"'FACILITY INFO (4)'!J15\"), \"\")","v":""},{"$f":"IFERROR(INDIRECT(\"'CONTROLLING CRITERIA (4)'!AH13\"), \"\")","v":""},{"$f":"IF(INDIRECT(\"'DESIGN & TARGET SPEED (4)'!AE206\")=\"Standard not met.\",TRUE, FALSE)","v":{"$error":"#REF!"}},{"$f":"IF(OR(INDIRECT(\"'PED (4)'!AF64\")=\"Standard not met.\", INDIRECT(\"'PED (4)'!AF49\")=\"Standard not met.\",INDIRECT(\"'PED (4)'!AF12\")=\"Standard not met.\",INDIRECT(\"'PED (4)'!AF36\")=\"Standard not met.\"),TRUE,FALSE)","v":{"$error":"#REF!"}},{"$f":"IF(OR(INDIRECT(\"'BIKE (4)'!AF34\")=\"Standard not met.\",INDIRECT(\"'BIKE (4)'!AF23\")=\"Standard not met.\",INDIRECT(\"'BIKE (4)'!AF46\")=\"Standard not met.\"),TRUE, FALSE)","v":{"$error":"#REF!"}},{"$f":"IF(OR(INDIRECT(\"'TRANSIT (4)'!AF20\")=\"Standard not met.\", INDIRECT(\"'TRANSIT (4)'!AF25\")=\"Standard not met.\", INDIRECT(\"'TRANSIT (4)'!AF37\")=\"Standard not met.\", INDIRECT(\"'TRANSIT (4)'!AF50\")=\"Standard not met.\"),TRUE,FALSE)","v":{"$error":"#REF!"}},{"$f":"IF(INDIRECT(\"'RAMP (4)'!AF16\")=\"Standard not met.\",TRUE, FALSE)","v":{"$error":"#REF!"}},{"$f":"IF(INDIRECT(\"'DESIGN LOADING (4)'!AF22\")=\"Standard not met.\",TRUE, FALSE)","v":{"$error":"#REF!"}},{"$f":"IF(INDIRECT(\"'LANE WIDTH (4)'!AF20\")=\"Standard not met.\",TRUE,\"FALSE\")","v":{"$error":"#REF!"}},{"$f":"IF(OR(INDIRECT(\"'SHOULDER WIDTH (4)'!AF25\")=\"Standard not met.\",INDIRECT(\"'SHOULDER WIDTH (4)'!AF8\")=\"Standard not met.\"),TRUE,FALSE)","v":{"$error":"#REF!"}},{"$f":"IF(INDIRECT(\"'HORIZONTAL CURVE (4)'!AF22\")=\"Standard not met.\",TRUE, FALSE)","v":{"$error":"#REF!"}},{"$f":"IF(INDIRECT(\"'SUPERELEVATION (4)'!AF23\")=\"Standard not met.\",TRUE, FALSE)","v":{"$error":"#REF!"}},{"$f":"IF(OR(INDIRECT(\"'SSD (4)'!AF21\")=\"Standard not met.\",INDIRECT(\"'SSD (4)'!AF8\")=\"Standard not met.\"),TRUE, FALSE)","v":{"$error":"#REF!"}},{"$f":"IF(INDIRECT(\"'MAX GRADE (4)'!AF21\")=\"Standard not met.\",TRUE, FALSE)","v":{"$error":"#REF!"}},{"$f":"IF(INDIRECT(\"'CROSS SLOPE (4)'!AF22\")=\"Standard not met.\",TRUE, FALSE)","v":{"$error":"#REF!"}},{"$f":"IF(INDIRECT(\"'VERTICAL CLEARANCE (4)'!AF29\")=\"Standard not met.\",TRUE,FALSE)","v":{"$error":"#REF!"}},{"$f":"IF(INDIRECT(\"'DESIGN & TARGET SPEED (4)'!AH6\")=TRUE, TRUE, FALSE)","v":{"$error":"#REF!"}},{"$f":"IF(OR(INDIRECT(\"'PED (4)'!AH6\")=TRUE,INDIRECT(\"'PED (4)'!AH19\")=TRUE), TRUE, FALSE)","v":{"$error":"#REF!"}},{"$f":"IF(INDIRECT(\"'BIKE (4)'!AH6\")=TRUE, TRUE, FALSE)","v":{"$error":"#REF!"}},{"$f":"IF(INDIRECT(\"'TRANSIT (4)'!AH6\")=TRUE, TRUE, FALSE)","v":{"$error":"#REF!"}},{"$f":"IF(INDIRECT(\"'RAMP (4)'!AH6\")=TRUE, TRUE, FALSE)","v":{"$error":"#REF!"}},{"$f":"IF(INDIRECT(\"'DESIGN LOADING (4)'!AH6\")=TRUE, TRUE, FALSE)","v":{"$error":"#REF!"}},{"$f":"IF(INDIRECT(\"'LANE WIDTH (4)'!AH6\")=TRUE, TRUE, FALSE)","v":{"$error":"#REF!"}},{"$f":"IF(INDIRECT(\"'SHOULDER WIDTH (4)'!AH6\")=TRUE, TRUE, FALSE)","v":{"$error":"#REF!"}},{"$f":"IF(INDIRECT(\"'HORIZONTAL CURVE (4)'!AH7\")=TRUE, TRUE, FALSE)","v":{"$error":"#REF!"}},{"$f":"IF(INDIRECT(\"'SUPERELEVATION (4)'!AH7\")=TRUE, TRUE, FALSE)","v":{"$error":"#REF!"}},{"$f":"IF(INDIRECT(\"'SSD (4)'!AH7\")=TRUE, TRUE, FALSE)","v":{"$error":"#REF!"}},{"$f":"IF(INDIRECT(\"'MAX GRADE (4)'!AH7\")=TRUE, TRUE, FALSE)","v":{"$error":"#REF!"}},{"$f":"IF(INDIRECT(\"'CROSS SLOPE (4)'!AH7\")=TRUE, TRUE, FALSE)","v":{"$error":"#REF!"}},{"$f":"IF(AND(INDIRECT(\"'VERTICAL CLEARANCE (4)'!AH7\")=TRUE,INDIRECT(\"'VERTICAL CLEARANCE'!AH16\")=TRUE), TRUE, FALSE)","v":{"$error":"#REF!"}}]
[5,{"$f":"IFERROR(INDIRECT(\"'FACILITY INFO (5)'!H9\"), \"\")","v":""},{"$f":"IFERROR(INDIRECT(\"'DESIGN & TARGET SPEED (5)'!A4\"), \"\")","v":""},{"$f":"IFERROR(INDIRECT(\"'DESIGN & TARGET SPEED (5)'!A5\"), \"\")","v":""},{"$f":"IFERROR(INDIRECT(\"'PED (5)'!A4\"), \"\")","v":""},{"$f":"IFERROR(INDIRECT(\"'PED (5)'!A5\"), \"\")","v":""},{"$f":"IFERROR(INDIRECT(\"'BIKE (5)'!A4\"), \"\")","v":""},{"$f":"IFERROR(INDIRECT(\"'BIKE (5)'!A5\"), \"\")","v":""},{"$f":"IFERROR(INDIRECT(\"'TRANSIT (5)'!A4\"), \"\")","v":""},{"$f":"IFERROR(INDIRECT(\"'TRANSIT (5)'!A5\"), \"\")","v":""},{"$f":"IFERROR(INDIRECT(\"'RAMP (5)'!A4\"), \"\")","v":""},{"$f":"IFERROR(INDIRECT(\"'RAMP (5)'!A5\"), \"\")","v":""},{"$f":"IFERROR(INDIRECT(\"'DESIGN LOADING (5)'!A4\"), \"\")","v":""},{"$f":"IFERROR(INDIRECT(\"'DESIGN LOADING (5)'!A5\"), \"\")","v":""},{"$f":"IFERROR(INDIRECT(\"'LANE WIDTH (5)'!A4\"), \"\")","v":""},{"$f":"IFERROR(INDIRECT(\"'LANE WIDTH (5)'!A5\"), \"\")","v":""},{"$f":"IFERROR(INDIRECT(\"'SHOULDER WIDTH (5)'!A4\"), \"\")","v":""},{"$f":"IFERROR(INDIRECT(\"'SHOULDER WIDTH (5)'!A5\"), \"\")","v":""},{"$f":"IFERROR(INDIRECT(\"'HORIZONTAL CURVE (5)'!A4\"), \"\")","v":""},{"$f":"IFERROR(INDIRECT(\"'HORIZONTAL CURVE (5)'!A5\"), \"\")","v":""},{"$f":"IFERROR(INDIRECT(\"'SUPERELEVATION (5)'!A4\"), \"\")","v":""},{"$f":"IFERROR(INDIRECT(\"'SUPERELEVATION (5)'!A5\"), \"\")","v":""},{"$f":"IFERROR(INDIRECT(\"'SSD (5)'!A4\"), \"\")","v":""},{"$f":"IFERROR(INDIRECT(\"'SSD (5)'!A5\"), \"\")","v":""},{"$f":"IFERROR(INDIRECT(\"'MAX GRADE (5)'!A4\"), \"\")","v":""},{"$f":"IFERROR(INDIRECT(\"'MAX GRADE (5)'!A5\"), \"\")","v":""},{"$f":"IFERROR(INDIRECT(\"'CROSS SLOPE (5)'!A4\"), \"\")","v":""},{"$f":"IFERROR(INDIRECT(\"'CROSS SLOPE (5)'!A5\"), \"\")","v":""},{"$f":"IFERROR(INDIRECT(\"'VERTICAL CLEARANCE (5)'!A4\"), \"\")","v":""},{"$f":"IFERROR(INDIRECT(\"'VERTICAL CLEARANCE (5)'!A5\"), \"\")","v":""},{"$f":"IFERROR(INDIRECT(\"'DESIGN & TARGET SPEED (5)'!J206\"), \"\")","v":""},{"$f":"IFERROR(INDIRECT(\"'FACILITY INFO (5)'!J15\"), \"\")","v":""},{"$f":"IFERROR(INDIRECT(\"'CONTROLLING CRITERIA (5)'!AH13\"), \"\")","v":""},{"$f":"IF(INDIRECT(\"'DESIGN & TARGET SPEED (5)'!AE206\")=\"Standard not met.\",TRUE, FALSE)","v":{"$error":"#REF!"}},{"$f":"IF(OR(INDIRECT(\"'PED (5)'!AF64\")=\"Standard not met.\", INDIRECT(\"'PED (5)'!AF49\")=\"Standard not met.\",INDIRECT(\"'PED (5)'!AF12\")=\"Standard not met.\",INDIRECT(\"'PED (5)'!AF36\")=\"Standard not met.\"),TRUE,FALSE)","v":{"$error":"#REF!"}},{"$f":"IF(OR(INDIRECT(\"'BIKE (5)'!AF34\")=\"Standard not met.\",INDIRECT(\"'BIKE (5)'!AF23\")=\"Standard not met.\",INDIRECT(\"'BIKE (5)'!AF46\")=\"Standard not met.\"),TRUE, FALSE)","v":{"$error":"#REF!"}},{"$f":"IF(OR(INDIRECT(\"'TRANSIT (5)'!AF20\")=\"Standard not met.\", INDIRECT(\"'TRANSIT (5)'!AF25\")=\"Standard not met.\", INDIRECT(\"'TRANSIT (5)'!AF37\")=\"Standard not met.\", INDIRECT(\"'TRANSIT (5)'!AF50\")=\"Standard not met.\"),TRUE,FALSE)","v":{"$error":"#REF!"}},{"$f":"IF(INDIRECT(\"'RAMP (5)'!AF16\")=\"Standard not met.\",TRUE, FALSE)","v":{"$error":"#REF!"}},{"$f":"IF(INDIRECT(\"'DESIGN LOADING (5)'!AF22\")=\"Standard not met.\",TRUE, FALSE)","v":{"$error":"#REF!"}},{"$f":"IF(INDIRECT(\"'LANE WIDTH (5)'!AF20\")=\"Standard not met.\",TRUE,\"FALSE\")","v":{"$error":"#REF!"}},{"$f":"IF(OR(INDIRECT(\"'SHOULDER WIDTH (5)'!AF25\")=\"Standard not met.\",INDIRECT(\"'SHOULDER WIDTH (5)'!AF8\")=\"Standard not met.\"),TRUE,FALSE)","v":{"$error":"#REF!"}},{"$f":"IF(INDIRECT(\"'HORIZONTAL CURVE (5)'!AF22\")=\"Standard not met.\",TRUE, FALSE)","v":{"$error":"#REF!"}},{"$f":"IF(INDIRECT(\"'SUPERELEVATION (5)'!AF23\")=\"Standard not met.\",TRUE, FALSE)","v":{"$error":"#REF!"}},{"$f":"IF(OR(INDIRECT(\"'SSD (5)'!AF21\")=\"Standard not met.\",INDIRECT(\"'SSD (5)'!AF8\")=\"Standard not met.\"),TRUE, FALSE)","v":{"$error":"#REF!"}},{"$f":"IF(INDIRECT(\"'MAX GRADE (5)'!AF21\")=\"Standard not met.\",TRUE, FALSE)","v":{"$error":"#REF!"}},{"$f":"IF(INDIRECT(\"'CROSS SLOPE (5)'!AF22\")=\"Standard not met.\",TRUE, FALSE)","v":{"$error":"#REF!"}},{"$f":"IF(INDIRECT(\"'VERTICAL CLEARANCE (5)'!AF29\")=\"Standard not met.\",TRUE,FALSE)","v":{"$error":"#REF!"}},{"$f":"IF(INDIRECT(\"'DESIGN & TARGET SPEED (5)'!AH6\")=TRUE, TRUE, FALSE)","v":{"$error":"#REF!"}},{"$f":"IF(OR(INDIRECT(\"'PED (5)'!AH6\")=TRUE,INDIRECT(\"'PED (5)'!AH19\")=TRUE), TRUE, FALSE)","v":{"$error":"#REF!"}},{"$f":"IF(INDIRECT(\"'BIKE (5)'!AH6\")=TRUE, TRUE, FALSE)","v":{"$error":"#REF!"}},{"$f":"IF(INDIRECT(\"'TRANSIT (5)'!AH6\")=TRUE, TRUE, FALSE)","v":{"$error":"#REF!"}},{"$f":"IF(INDIRECT(\"'RAMP (5)'!AH6\")=TRUE, TRUE, FALSE)","v":{"$error":"#REF!"}},{"$f":"IF(INDIRECT(\"'DESIGN LOADING (5)'!AH6\")=TRUE, TRUE, FALSE)","v":{"$error":"#REF!"}},{"$f":"IF(INDIRECT(\"'LANE WIDTH (5)'!AH6\")=TRUE, TRUE, FALSE)","v":{"$error":"#REF!"}},{"$f":"IF(INDIRECT(\"'SHOULDER WIDTH (5)'!AH6\")=TRUE, TRUE, FALSE)","v":{"$error":"#REF!"}},{"$f":"IF(INDIRECT(\"'HORIZONTAL CURVE (5)'!AH7\")=TRUE, TRUE, FALSE)","v":{"$error":"#REF!"}},{"$f":"IF(INDIRECT(\"'SUPERELEVATION (5)'!AH7\")=TRUE, TRUE, FALSE)","v":{"$error":"#REF!"}},{"$f":"IF(INDIRECT(\"'SSD (5)'!AH7\")=TRUE, TRUE, FALSE)","v":{"$error":"#REF!"}},{"$f":"IF(INDIRECT(\"'MAX GRADE (5)'!AH7\")=TRUE, TRUE, FALSE)","v":{"$error":"#REF!"}},{"$f":"IF(INDIRECT(\"'CROSS SLOPE (5)'!AH7\")=TRUE, TRUE, FALSE)","v":{"$error":"#REF!"}},{"$f":"IF(AND(INDIRECT(\"'VERTICAL CLEARANCE (5)'!AH7\")=TRUE,INDIRECT(\"'VERTICAL CLEARANCE'!AH16\")=TRUE), TRUE, FALSE)","v":{"$error":"#REF!"}}]
[6,{"$f":"IFERROR(INDIRECT(\"'FACILITY INFO (6)'!H9\"), \"\")","v":""},{"$f":"IFERROR(INDIRECT(\"'DESIGN & TARGET SPEED (6)'!A4\"), \"\")","v":""},{"$f":"IFERROR(INDIRECT(\"'DESIGN & TARGET SPEED (6)'!A5\"), \"\")","v":""},{"$f":"IFERROR(INDIRECT(\"'PED (6)'!A4\"), \"\")","v":""},{"$f":"IFERROR(INDIRECT(\"'PED (6)'!A5\"), \"\")","v":""},{"$f":"IFERROR(INDIRECT(\"'BIKE (6)'!A4\"), \"\")","v":""},{"$f":"IFERROR(INDIRECT(\"'BIKE (6)'!A5\"), \"\")","v":""},{"$f":"IFERROR(INDIRECT(\"'TRANSIT (6)'!A4\"), \"\")","v":""},{"$f":"IFERROR(INDIRECT(\"'TRANSIT (6)'!A5\"), \"\")","v":""},{"$f":"IFERROR(INDIRECT(\"'RAMP (6)'!A4\"), \"\")","v":""},{"$f":"IFERROR(INDIRECT(\"'RAMP (6)'!A5\"), \"\")","v":""},{"$f":"IFERROR(INDIRECT(\"'DESIGN LOADING (6)'!A4\"), \"\")","v":""},{"$f":"IFERROR(INDIRECT(\"'DESIGN LOADING (6)'!A5\"), \"\")","v":""},{"$f":"IFERROR(INDIRECT(\"'LANE WIDTH (6)'!A4\"), \"\")","v":""},{"$f":"IFERROR(INDIRECT(\"'LANE WIDTH (6)'!A5\"), \"\")","v":""},{"$f":"IFERROR(INDIRECT(\"'SHOULDER WIDTH (6)'!A4\"), \"\")","v":""},{"$f":"IFERROR(INDIRECT(\"'SHOULDER WIDTH (6)'!A5\"), \"\")","v":""},{"$f":"IFERROR(INDIRECT(\"'HORIZONTAL CURVE (6)'!A4\"), \"\")","v":""},{"$f":"IFERROR(INDIRECT(\"'HORIZONTAL CURVE (6)'!A5\"), \"\")","v":""},{"$f":"IFERROR(INDIRECT(\"'SUPERELEVATION (6)'!A4\"), \"\")","v":""},{"$f":"IFERROR(INDIRECT(\"'SUPERELEVATION (6)'!A5\"), \"\")","v":""},{"$f":"IFERROR(INDIRECT(\"'SSD (6)'!A4\"), \"\")","v":""},{"$f":"IFERROR(INDIRECT(\"'SSD (6)'!A5\"), \"\")","v":""},{"$f":"IFERROR(INDIRECT(\"'MAX GRADE (6)'!A4\"), \"\")","v":""},{"$f":"IFERROR(INDIRECT(\"'MAX GRADE (6)'!A5\"), \"\")","v":""},{"$f":"IFERROR(INDIRECT(\"'CROSS SLOPE (6)'!A4\"), \"\")","v":""},{"$f":"IFERROR(INDIRECT(\"'CROSS SLOPE (6)'!A5\"), \"\")","v":""},{"$f":"IFERROR(INDIRECT(\"'VERTICAL CLEARANCE (6)'!A4\"), \"\")","v":""},{"$f":"IFERROR(INDIRECT(\"'VERTICAL CLEARANCE (6)'!A5\"), \"\")","v":""},{"$f":"IFERROR(INDIRECT(\"'DESIGN & TARGET SPEED (6)'!J206\"), \"\")","v":""},{"$f":"IFERROR(INDIRECT(\"'FACILITY INFO (6)'!J15\"), \"\")","v":""},{"$f":"IFERROR(INDIRECT(\"'CONTROLLING CRITERIA (6)'!AH13\"), \"\")","v":""}]
[7,{"$f":"IFERROR(INDIRECT(\"'FACILITY INFO (7)'!H9\"), \"\")","v":""},{"$f":"IFERROR(INDIRECT(\"'DESIGN & TARGET SPEED (7)'!A4\"), \"\")","v":""},{"$f":"IFERROR(INDIRECT(\"'DESIGN & TARGET SPEED (7)'!A5\"), \"\")","v":""},{"$f":"IFERROR(INDIRECT(\"'PED (7)'!A4\"), \"\")","v":""},{"$f":"IFERROR(INDIRECT(\"'PED (7)'!A5\"), \"\")","v":""},{"$f":"IFERROR(INDIRECT(\"'BIKE (7)'!A4\"), \"\")","v":""},{"$f":"IFERROR(INDIRECT(\"'BIKE (7)'!A5\"), \"\")","v":""},{"$f":"IFERROR(INDIRECT(\"'TRANSIT (7)'!A4\"), \"\")","v":""},{"$f":"IFERROR(INDIRECT(\"'TRANSIT (7)'!A5\"), \"\")","v":""},{"$f":"IFERROR(INDIRECT(\"'RAMP (7)'!A4\"), \"\")","v":""},{"$f":"IFERROR(INDIRECT(\"'RAMP (7)'!A5\"), \"\")","v":""},{"$f":"IFERROR(INDIRECT(\"'DESIGN LOADING (7)'!A4\"), \"\")","v":""},{"$f":"IFERROR(INDIRECT(\"'DESIGN LOADING (7)'!A5\"), \"\")","v":""},{"$f":"IFERROR(INDIRECT(\"'LANE WIDTH (7)'!A4\"), \"\")","v":""},{"$f":"IFERROR(INDIRECT(\"'LANE WIDTH (7)'!A5\"), \"\")","v":""},{"$f":"IFERROR(INDIRECT(\"'SHOULDER WIDTH (7)'!A4\"), \"\")","v":""},{"$f":"IFERROR(INDIRECT(\"'SHOULDER WIDTH (7)'!A5\"), \"\")","v":""},{"$f":"IFERROR(INDIRECT(\"'HORIZONTAL CURVE (7)'!A4\"), \"\")","v":""},{"$f":"IFERROR(INDIRECT(\"'HORIZONTAL CURVE (7)'!A5\"), \"\")","v":""},{"$f":"IFERROR(INDIRECT(\"'SUPERELEVATION (7)'!A4\"), \"\")","v":""},{"$f":"IFERROR(INDIRECT(\"'SUPERELEVATION (7)'!A5\"), \"\")","v":""},{"$f":"IFERROR(INDIRECT(\"'SSD (7)'!A4\"), \"\")","v":""},{"$f":"IFERROR(INDIRECT(\"'SSD (7)'!A5\"), \"\")","v":""},{"$f":"IFERROR(INDIRECT(\"'MAX GRADE (7)'!A4\"), \"\")","v":""},{"$f":"IFERROR(INDIRECT(\"'MAX GRADE (7)'!A5\"), \"\")","v":""},{"$f":"IFERROR(INDIRECT(\"'CROSS SLOPE (7)'!A4\"), \"\")","v":""},{"$f":"IFERROR(INDIRECT(\"'CROSS SLOPE (7)'!A5\"), \"\")","v":""},{"$f":"IFERROR(INDIRECT(\"'VERTICAL CLEARANCE (7)'!A4\"), \"\")","v":""},{"$f":"IFERROR(INDIRECT(\"'VERTICAL CLEARANCE (7)'!A5\"), \"\")","v":""},{"$f":"IFERROR(INDIRECT(\"'DESIGN & TARGET SPEED (7)'!J206\"), \"\")","v":""},{"$f":"IFERROR(INDIRECT(\"'FACILITY INFO (7)'!J15\"), \"\")","v":""},{"$f":"IFERROR(INDIRECT(\"'CONTROLLING CRITERIA (7)'!AH13\"), \"\")","v":""}]
[8,{"$f":"IFERROR(INDIRECT(\"'FACILITY INFO (8)'!H9\"), \"\")","v":""},{"$f":"IFERROR(INDIRECT(\"'DESIGN & TARGET SPEED (8)'!A4\"), \"\")","v":""},{"$f":"IFERROR(INDIRECT(\"'DESIGN & TARGET SPEED (8)'!A5\"), \"\")","v":""},{"$f":"IFERROR(INDIRECT(\"'PED (8)'!A4\"), \"\")","v":""},{"$f":"IFERROR(INDIRECT(\"'PED (8)'!A5\"), \"\")","v":""},{"$f":"IFERROR(INDIRECT(\"'BIKE (8)'!A4\"), \"\")","v":""},{"$f":"IFERROR(INDIRECT(\"'BIKE (8)'!A5\"), \"\")","v":""},{"$f":"IFERROR(INDIRECT(\"'TRANSIT (8)'!A4\"), \"\")","v":""},{"$f":"IFERROR(INDIRECT(\"'TRANSIT (8)'!A5\"), \"\")","v":""},{"$f":"IFERROR(INDIRECT(\"'RAMP (8)'!A4\"), \"\")","v":""},{"$f":"IFERROR(INDIRECT(\"'RAMP (8)'!A5\"), \"\")","v":""},{"$f":"IFERROR(INDIRECT(\"'DESIGN LOADING (8)'!A4\"), \"\")","v":""},{"$f":"IFERROR(INDIRECT(\"'DESIGN LOADING (8)'!A5\"), \"\")","v":""},{"$f":"IFERROR(INDIRECT(\"'LANE WIDTH (8)'!A4\"), \"\")","v":""},{"$f":"IFERROR(INDIRECT(\"'LANE WIDTH (8)'!A5\"), \"\")","v":""},{"$f":"IFERROR(INDIRECT(\"'SHOULDER WIDTH (8)'!A4\"), \"\")","v":""},{"$f":"IFERROR(INDIRECT(\"'SHOULDER WIDTH (8)'!A5\"), \"\")","v":""},{"$f":"IFERROR(INDIRECT(\"'HORIZONTAL CURVE (8)'!A4\"), \"\")","v":""},{"$f":"IFERROR(INDIRECT(\"'HORIZONTAL CURVE (8)'!A5\"), \"\")","v":""},{"$f":"IFERROR(INDIRECT(\"'SUPERELEVATION (8)'!A4\"), \"\")","v":""},{"$f":"IFERROR(INDIRECT(\"'SUPERELEVATION (8)'!A5\"), \"\")","v":""},{"$f":"IFERROR(INDIRECT(\"'SSD (8)'!A4\"), \"\")","v":""},{"$f":"IFERROR(INDIRECT(\"'SSD (8)'!A5\"), \"\")","v":""},{"$f":"IFERROR(INDIRECT(\"'MAX GRADE (8)'!A4\"), \"\")","v":""},{"$f":"IFERROR(INDIRECT(\"'MAX GRADE (8)'!A5\"), \"\")","v":""},{"$f":"IFERROR(INDIRECT(\"'CROSS SLOPE (8)'!A4\"), \"\")","v":""},{"$f":"IFERROR(INDIRECT(\"'CROSS SLOPE (8)'!A5\"), \"\")","v":""},{"$f":"IFERROR(INDIRECT(\"'VERTICAL CLEARANCE (8)'!A4\"), \"\")","v":""},{"$f":"IFERROR(INDIRECT(\"'VERTICAL CLEARANCE (8)'!A5\"), \"\")","v":""},{"$f":"IFERROR(INDIRECT(\"'DESIGN & TARGET SPEED (8)'!J206\"), \"\")","v":""},{"$f":"IFERROR(INDIRECT(\"'FACILITY INFO (8)'!J15\"), \"\")","v":""},{"$f":"IFERROR(INDIRECT(\"'CONTROLLING CRITERIA (8)'!AH13\"), \"\")","v":""}]
[9,{"$f":"IFERROR(INDIRECT(\"'FACILITY INFO (9)'!H9\"), \"\")","v":""},{"$f":"IFERROR(INDIRECT(\"'DESIGN & TARGET SPEED (9)'!A4\"), \"\")","v":""},{"$f":"IFERROR(INDIRECT(\"'DESIGN & TARGET SPEED (9)'!A5\"), \"\")","v":""},{"$f":"IFERROR(INDIRECT(\"'PED (9)'!A4\"), \"\")","v":""},{"$f":"IFERROR(INDIRECT(\"'PED (9)'!A5\"), \"\")","v":""},{"$f":"IFERROR(INDIRECT(\"'BIKE (9)'!A4\"), \"\")","v":""},{"$f":"IFERROR(INDIRECT(\"'BIKE (9)'!A5\"), \"\")","v":""},{"$f":"IFERROR(INDIRECT(\"'TRANSIT (9)'!A4\"), \"\")","v":""},{"$f":"IFERROR(INDIRECT(\"'TRANSIT (9)'!A5\"), \"\")","v":""},{"$f":"IFERROR(INDIRECT(\"'RAMP (9)'!A4\"), \"\")","v":""},{"$f":"IFERROR(INDIRECT(\"'RAMP (9)'!A5\"), \"\")","v":""},{"$f":"IFERROR(INDIRECT(\"'DESIGN LOADING (9)'!A4\"), \"\")","v":""},{"$f":"IFERROR(INDIRECT(\"'DESIGN LOADING (9)'!A5\"), \"\")","v":""},{"$f":"IFERROR(INDIRECT(\"'LANE WIDTH (9)'!A4\"), \"\")","v":""},{"$f":"IFERROR(INDIRECT(\"'LANE WIDTH (9)'!A5\"), \"\")","v":""},{"$f":"IFERROR(INDIRECT(\"'SHOULDER WIDTH (9)'!A4\"), \"\")","v":""},{"$f":"IFERROR(INDIRECT(\"'SHOULDER WIDTH (9)'!A5\"), \"\")","v":""},{"$f":"IFERROR(INDIRECT(\"'HORIZONTAL CURVE (9)'!A4\"), \"\")","v":""},{"$f":"IFERROR(INDIRECT(\"'HORIZONTAL CURVE (9)'!A5\"), \"\")","v":""},{"$f":"IFERROR(INDIRECT(\"'SUPERELEVATION (9)'!A4\"), \"\")","v":""},{"$f":"IFERROR(INDIRECT(\"'SUPERELEVATION (9)'!A5\"), \"\")","v":""},{"$f":"IFERROR(INDIRECT(\"'SSD (9)'!A4\"), \"\")","v":""},{"$f":"IFERROR(INDIRECT(\"'SSD (9)'!A5\"), \"\")","v":""},{"$f":"IFERROR(INDIRECT(\"'MAX GRADE (9)'!A4\"), \"\")","v":""},{"$f":"IFERROR(INDIRECT(\"'MAX GRADE (9)'!A5\"), \"\")","v":""},{"$f":"IFERROR(INDIRECT(\"'CROSS SLOPE (9)'!A4\"), \"\")","v":""},{"$f":"IFERROR(INDIRECT(\"'CROSS SLOPE (9)'!A5\"), \"\")","v":""},{"$f":"IFERROR(INDIRECT(\"'VERTICAL CLEARANCE (9)'!A4\"), \"\")","v":""},{"$f":"IFERROR(INDIRECT(\"'VERTICAL CLEARANCE (9)'!A5\"), \"\")","v":""},{"$f":"IFERROR(INDIRECT(\"'DESIGN & TARGET SPEED (9)'!J206\"), \"\")","v":""},{"$f":"IFERROR(INDIRECT(\"'FACILITY INFO (9)'!J15\"), \"\")","v":""},{"$f":"IFERROR(INDIRECT(\"'CONTROLLING CRITERIA (9)'!AH13\"), \"\")","v":""}]
[10,{"$f":"IFERROR(INDIRECT(\"'FACILITY INFO (10)'!H9\"), \"\")","v":""},{"$f":"IFERROR(INDIRECT(\"'DESIGN & TARGET SPEED (10)'!A4\"), \"\")","v":""},{"$f":"IFERROR(INDIRECT(\"'DESIGN & TARGET SPEED (10)'!A5\"), \"\")","v":""},{"$f":"IFERROR(INDIRECT(\"'PED (10)'!A4\"), \"\")","v":""},{"$f":"IFERROR(INDIRECT(\"'PED (10)'!A5\"), \"\")","v":""},{"$f":"IFERROR(INDIRECT(\"'BIKE (10)'!A4\"), \"\")","v":""},{"$f":"IFERROR(INDIRECT(\"'BIKE (10)'!A5\"), \"\")","v":""},{"$f":"IFERROR(INDIRECT(\"'TRANSIT (10)'!A4\"), \"\")","v":""},{"$f":"IFERROR(INDIRECT(\"'TRANSIT (10)'!A5\"), \"\")","v":""},{"$f":"IFERROR(INDIRECT(\"'RAMP (10)'!A4\"), \"\")","v":""},{"$f":"IFERROR(INDIRECT(\"'RAMP (10)'!A5\"), \"\")","v":""},{"$f":"IFERROR(INDIRECT(\"'DESIGN LOADING (10)'!A4\"), \"\")","v":""},{"$f":"IFERROR(INDIRECT(\"'DESIGN LOADING (10)'!A5\"), \"\")","v":""},{"$f":"IFERROR(INDIRECT(\"'LANE WIDTH (10)'!A4\"), \"\")","v":""},{"$f":"IFERROR(INDIRECT(\"'LANE WIDTH (10)'!A5\"), \"\")","v":""},{"$f":"IFERROR(INDIRECT(\"'SHOULDER WIDTH (10)'!A4\"), \"\")","v":""},{"$f":"IFERROR(INDIRECT(\"'SHOULDER WIDTH (10)'!A5\"), \"\")","v":""},{"$f":"IFERROR(INDIRECT(\"'HORIZONTAL CURVE (10)'!A4\"), \"\")","v":""},{"$f":"IFERROR(INDIRECT(\"'HORIZONTAL CURVE (10)'!A5\"), \"\")","v":""},{"$f":"IFERROR(INDIRECT(\"'SUPERELEVATION (10)'!A4\"), \"\")","v":""},{"$f":"IFERROR(INDIRECT(\"'SUPERELEVATION (10)'!A5\"), \"\")","v":""},{"$f":"IFERROR(INDIRECT(\"'SSD (10)'!A4\"), \"\")","v":""},{"$f":"IFERROR(INDIRECT(\"'SSD (10)'!A5\"), \"\")","v":""},{"$f":"IFERROR(INDIRECT(\"'MAX GRADE (10)'!A4\"), \"\")","v":""},{"$f":"IFERROR(INDIRECT(\"'MAX GRADE (10)'!A5\"), \"\")","v":""},{"$f":"IFERROR(INDIRECT(\"'CROSS SLOPE (10)'!A4\"), \"\")","v":""},{"$f":"IFERROR(INDIRECT(\"'CROSS SLOPE (10)'!A5\"), \"\")","v":""},{"$f":"IFERROR(INDIRECT(\"'VERTICAL CLEARANCE (10)'!A4\"), \"\")","v":""},{"$f":"IFERROR(INDIRECT(\"'VERTICAL CLEARANCE (10)'!A5\"), \"\")","v":""},{"$f":"IFERROR(INDIRECT(\"'DESIGN & TARGET SPEED (10)'!J206\"), \"\")","v":""},{"$f":"IFERROR(INDIRECT(\"'FACILITY INFO (10)'!J15\"), \"\")","v":""},{"$f":"IFERROR(INDIRECT(\"'CONTROLLING CRITERIA (10)'!AH13\"), \"\")","v":""}]
[11,{"$f":"IFERROR(INDIRECT(\"'FACILITY INFO (11)'!H9\"), \"\")","v":""},{"$f":"IFERROR(INDIRECT(\"'DESIGN & TARGET SPEED (11)'!A4\"), \"\")","v":""},{"$f":"IFERROR(INDIRECT(\"'DESIGN & TARGET SPEED (11)'!A5\"), \"\")","v":""},{"$f":"IFERROR(INDIRECT(\"'PED (11)'!A4\"), \"\")","v":""},{"$f":"IFERROR(INDIRECT(\"'PED (11)'!A5\"), \"\")","v":""},{"$f":"IFERROR(INDIRECT(\"'BIKE (11)'!A4\"), \"\")","v":""},{"$f":"IFERROR(INDIRECT(\"'BIKE (11)'!A5\"), \"\")","v":""},{"$f":"IFERROR(INDIRECT(\"'TRANSIT (11)'!A4\"), \"\")","v":""},{"$f":"IFERROR(INDIRECT(\"'TRANSIT (11)'!A5\"), \"\")","v":""},{"$f":"IFERROR(INDIRECT(\"'RAMP (11)'!A4\"), \"\")","v":""},{"$f":"IFERROR(INDIRECT(\"'RAMP (11)'!A5\"), \"\")","v":""},{"$f":"IFERROR(INDIRECT(\"'DESIGN LOADING (11)'!A4\"), \"\")","v":""},{"$f":"IFERROR(INDIRECT(\"'DESIGN LOADING (11)'!A5\"), \"\")","v":""},{"$f":"IFERROR(INDIRECT(\"'LANE WIDTH (11)'!A4\"), \"\")","v":""},{"$f":"IFERROR(INDIRECT(\"'LANE WIDTH (11)'!A5\"), \"\")","v":""},{"$f":"IFERROR(INDIRECT(\"'SHOULDER WIDTH (11)'!A4\"), \"\")","v":""},{"$f":"IFERROR(INDIRECT(\"'SHOULDER WIDTH (11)'!A5\"), \"\")","v":""},{"$f":"IFERROR(INDIRECT(\"'HORIZONTAL CURVE (11)'!A4\"), \"\")","v":""},{"$f":"IFERROR(INDIRECT(\"'HORIZONTAL CURVE (11)'!A5\"), \"\")","v":""},{"$f":"IFERROR(INDIRECT(\"'SUPERELEVATION (11)'!A4\"), \"\")","v":""},{"$f":"IFERROR(INDIRECT(\"'SUPERELEVATION (11)'!A5\"), \"\")","v":""},{"$f":"IFERROR(INDIRECT(\"'SSD (11)'!A4\"), \"\")","v":""},{"$f":"IFERROR(INDIRECT(\"'SSD (11)'!A5\"), \"\")","v":""},{"$f":"IFERROR(INDIRECT(\"'MAX GRADE (11)'!A4\"), \"\")","v":""},{"$f":"IFERROR(INDIRECT(\"'MAX GRADE (11)'!A5\"), \"\")","v":""},{"$f":"IFERROR(INDIRECT(\"'CROSS SLOPE (11)'!A4\"), \"\")","v":""},{"$f":"IFERROR(INDIRECT(\"'CROSS SLOPE (11)'!A5\"), \"\")","v":""},{"$f":"IFERROR(INDIRECT(\"'VERTICAL CLEARANCE (11)'!A4\"), \"\")","v":""},{"$f":"IFERROR(INDIRECT(\"'VERTICAL CLEARANCE (11)'!A5\"), \"\")","v":""},{"$f":"IFERROR(INDIRECT(\"'DESIGN & TARGET SPEED (11)'!J206\"), \"\")","v":""},{"$f":"IFERROR(INDIRECT(\"'FACILITY INFO (11)'!J15\"), \"\")","v":""},{"$f":"IFERROR(INDIRECT(\"'CONTROLLING CRITERIA (11)'!AH13\"), \"\")","v":""}]
[12,{"$f":"IFERROR(INDIRECT(\"'FACILITY INFO (12)'!H9\"), \"\")","v":""},{"$f":"IFERROR(INDIRECT(\"'DESIGN & TARGET SPEED (12)'!A4\"), \"\")","v":""},{"$f":"IFERROR(INDIRECT(\"'DESIGN & TARGET SPEED (12)'!A5\"), \"\")","v":""},{"$f":"IFERROR(INDIRECT(\"'PED (12)'!A4\"), \"\")","v":""},{"$f":"IFERROR(INDIRECT(\"'PED (12)'!A5\"), \"\")","v":""},{"$f":"IFERROR(INDIRECT(\"'BIKE (12)'!A4\"), \"\")","v":""},{"$f":"IFERROR(INDIRECT(\"'BIKE (12)'!A5\"), \"\")","v":""},{"$f":"IFERROR(INDIRECT(\"'TRANSIT (12)'!A4\"), \"\")","v":""},{"$f":"IFERROR(INDIRECT(\"'TRANSIT (12)'!A5\"), \"\")","v":""},{"$f":"IFERROR(INDIRECT(\"'RAMP (12)'!A4\"), \"\")","v":""},{"$f":"IFERROR(INDIRECT(\"'RAMP (12)'!A5\"), \"\")","v":""},{"$f":"IFERROR(INDIRECT(\"'DESIGN LOADING (12)'!A4\"), \"\")","v":""},{"$f":"IFERROR(INDIRECT(\"'DESIGN LOADING (12)'!A5\"), \"\")","v":""},{"$f":"IFERROR(INDIRECT(\"'LANE WIDTH (12)'!A4\"), \"\")","v":""},{"$f":"IFERROR(INDIRECT(\"'LANE WIDTH (12)'!A5\"), \"\")","v":""},{"$f":"IFERROR(INDIRECT(\"'SHOULDER WIDTH (12)'!A4\"), \"\")","v":""},{"$f":"IFERROR(INDIRECT(\"'SHOULDER WIDTH (12)'!A5\"), \"\")","v":""},{"$f":"IFERROR(INDIRECT(\"'HORIZONTAL CURVE (12)'!A4\"), \"\")","v":""},{"$f":"IFERROR(INDIRECT(\"'HORIZONTAL CURVE (12)'!A5\"), \"\")","v":""},{"$f":"IFERROR(INDIRECT(\"'SUPERELEVATION (12)'!A4\"), \"\")","v":""},{"$f":"IFERROR(INDIRECT(\"'SUPERELEVATION (12)'!A5\"), \"\")","v":""},{"$f":"IFERROR(INDIRECT(\"'SSD (12)'!A4\"), \"\")","v":""},{"$f":"IFERROR(INDIRECT(\"'SSD (12)'!A5\"), \"\")","v":""},{"$f":"IFERROR(INDIRECT(\"'MAX GRADE (12)'!A4\"), \"\")","v":""},{"$f":"IFERROR(INDIRECT(\"'MAX GRADE (12)'!A5\"), \"\")","v":""},{"$f":"IFERROR(INDIRECT(\"'CROSS SLOPE (12)'!A4\"), \"\")","v":""},{"$f":"IFERROR(INDIRECT(\"'CROSS SLOPE (12)'!A5\"), \"\")","v":""},{"$f":"IFERROR(INDIRECT(\"'VERTICAL CLEARANCE (12)'!A4\"), \"\")","v":""},{"$f":"IFERROR(INDIRECT(\"'VERTICAL CLEARANCE (12)'!A5\"), \"\")","v":""},{"$f":"IFERROR(INDIRECT(\"'DESIGN & TARGET SPEED (12)'!J206\"), \"\")","v":""},{"$f":"IFERROR(INDIRECT(\"'FACILITY INFO (12)'!J15\"), \"\")","v":""},{"$f":"IFERROR(INDIRECT(\"'CONTROLLING CRITERIA (12)'!AH13\"), \"\")","v":""}]
[13,{"$f":"IFERROR(INDIRECT(\"'FACILITY INFO (13)'!H9\"), \"\")","v":""},{"$f":"IFERROR(INDIRECT(\"'DESIGN & TARGET SPEED (13)'!A4\"), \"\")","v":""},{"$f":"IFERROR(INDIRECT(\"'DESIGN & TARGET SPEED (13)'!A5\"), \"\")","v":""},{"$f":"IFERROR(INDIRECT(\"'PED (13)'!A4\"), \"\")","v":""},{"$f":"IFERROR(INDIRECT(\"'PED (13)'!A5\"), \"\")","v":""},{"$f":"IFERROR(INDIRECT(\"'BIKE (13)'!A4\"), \"\")","v":""},{"$f":"IFERROR(INDIRECT(\"'BIKE (13)'!A5\"), \"\")","v":""},{"$f":"IFERROR(INDIRECT(\"'TRANSIT (13)'!A4\"), \"\")","v":""},{"$f":"IFERROR(INDIRECT(\"'TRANSIT (13)'!A5\"), \"\")","v":""},{"$f":"IFERROR(INDIRECT(\"'RAMP (13)'!A4\"), \"\")","v":""},{"$f":"IFERROR(INDIRECT(\"'RAMP (13)'!A5\"), \"\")","v":""},{"$f":"IFERROR(INDIRECT(\"'DESIGN LOADING (13)'!A4\"), \"\")","v":""},{"$f":"IFERROR(INDIRECT(\"'DESIGN LOADING (13)'!A5\"), \"\")","v":""},{"$f":"IFERROR(INDIRECT(\"'LANE WIDTH (13)'!A4\"), \"\")","v":""},{"$f":"IFERROR(INDIRECT(\"'LANE WIDTH (13)'!A5\"), \"\")","v":""},{"$f":"IFERROR(INDIRECT(\"'SHOULDER WIDTH (13)'!A4\"), \"\")","v":""},{"$f":"IFERROR(INDIRECT(\"'SHOULDER WIDTH (13)'!A5\"), \"\")","v":""},{"$f":"IFERROR(INDIRECT(\"'HORIZONTAL CURVE (13)'!A4\"), \"\")","v":""},{"$f":"IFERROR(INDIRECT(\"'HORIZONTAL CURVE (13)'!A5\"), \"\")","v":""},{"$f":"IFERROR(INDIRECT(\"'SUPERELEVATION (13)'!A4\"), \"\")","v":""},{"$f":"IFERROR(INDIRECT(\"'SUPERELEVATION (13)'!A5\"), \"\")","v":""},{"$f":"IFERROR(INDIRECT(\"'SSD (13)'!A4\"), \"\")","v":""},{"$f":"IFERROR(INDIRECT(\"'SSD (13)'!A5\"), \"\")","v":""},{"$f":"IFERROR(INDIRECT(\"'MAX GRADE (13)'!A4\"), \"\")","v":""},{"$f":"IFERROR(INDIRECT(\"'MAX GRADE (13)'!A5\"), \"\")","v":""},{"$f":"IFERROR(INDIRECT(\"'CROSS SLOPE (13)'!A4\"), \"\")","v":""},{"$f":"IFERROR(INDIRECT(\"'CROSS SLOPE (13)'!A5\"), \"\")","v":""},{"$f":"IFERROR(INDIRECT(\"'VERTICAL CLEARANCE (13)'!A4\"), \"\")","v":""},{"$f":"IFERROR(INDIRECT(\"'VERTICAL CLEARANCE (13)'!A5\"), \"\")","v":""},{"$f":"IFERROR(INDIRECT(\"'DESIGN & TARGET SPEED (13)'!J206\"), \"\")","v":""},{"$f":"IFERROR(INDIRECT(\"'FACILITY INFO (13)'!J15\"), \"\")","v":""},{"$f":"IFERROR(INDIRECT(\"'CONTROLLING CRITERIA (13)'!AH13\"), \"\")","v":""}]
[14,{"$f":"IFERROR(INDIRECT(\"'FACILITY INFO (14)'!H9\"), \"\")","v":""},{"$f":"IFERROR(INDIRECT(\"'DESIGN & TARGET SPEED (14)'!A4\"), \"\")","v":""},{"$f":"IFERROR(INDIRECT(\"'DESIGN & TARGET SPEED (14)'!A5\"), \"\")","v":""},{"$f":"IFERROR(INDIRECT(\"'PED (14)'!A4\"), \"\")","v":""},{"$f":"IFERROR(INDIRECT(\"'PED (14)'!A5\"), \"\")","v":""},{"$f":"IFERROR(INDIRECT(\"'BIKE (14)'!A4\"), \"\")","v":""},{"$f":"IFERROR(INDIRECT(\"'BIKE (14)'!A5\"), \"\")","v":""},{"$f":"IFERROR(INDIRECT(\"'TRANSIT (14)'!A4\"), \"\")","v":""},{"$f":"IFERROR(INDIRECT(\"'TRANSIT (14)'!A5\"), \"\")","v":""},{"$f":"IFERROR(INDIRECT(\"'RAMP (14)'!A4\"), \"\")","v":""},{"$f":"IFERROR(INDIRECT(\"'RAMP (14)'!A5\"), \"\")","v":""},{"$f":"IFERROR(INDIRECT(\"'DESIGN LOADING (14)'!A4\"), \"\")","v":""},{"$f":"IFERROR(INDIRECT(\"'DESIGN LOADING (14)'!A5\"), \"\")","v":""},{"$f":"IFERROR(INDIRECT(\"'LANE WIDTH (14)'!A4\"), \"\")","v":""},{"$f":"IFERROR(INDIRECT(\"'LANE WIDTH (14)'!A5\"), \"\")","v":""},{"$f":"IFERROR(INDIRECT(\"'SHOULDER WIDTH (14)'!A4\"), \"\")","v":""},{"$f":"IFERROR(INDIRECT(\"'SHOULDER WIDTH (14)'!A5\"), \"\")","v":""},{"$f":"IFERROR(INDIRECT(\"'HORIZONTAL CURVE (14)'!A4\"), \"\")","v":""},{"$f":"IFERROR(INDIRECT(\"'HORIZONTAL CURVE (14)'!A5\"), \"\")","v":""},{"$f":"IFERROR(INDIRECT(\"'SUPERELEVATION (14)'!A4\"), \"\")","v":""},{"$f":"IFERROR(INDIRECT(\"'SUPERELEVATION (14)'!A5\"), \"\")","v":""},{"$f":"IFERROR(INDIRECT(\"'SSD (14)'!A4\"), \"\")","v":""},{"$f":"IFERROR(INDIRECT(\"'SSD (14)'!A5\"), \"\")","v":""},{"$f":"IFERROR(INDIRECT(\"'MAX GRADE (14)'!A4\"), \"\")","v":""},{"$f":"IFERROR(INDIRECT(\"'MAX GRADE (14)'!A5\"), \"\")","v":""},{"$f":"IFERROR(INDIRECT(\"'CROSS SLOPE (14)'!A4\"), \"\")","v":""},{"$f":"IFERROR(INDIRECT(\"'CROSS SLOPE (14)'!A5\"), \"\")","v":""},{"$f":"IFERROR(INDIRECT(\"'VERTICAL CLEARANCE (14)'!A4\"), \"\")","v":""},{"$f":"IFERROR(INDIRECT(\"'VERTICAL CLEARANCE (14)'!A5\"), \"\")","v":""},{"$f":"IFERROR(INDIRECT(\"'DESIGN & TARGET SPEED (14)'!J206\"), \"\")","v":""},{"$f":"IFERROR(INDIRECT(\"'FACILITY INFO (14)'!J15\"), \"\")","v":""},{"$f":"IFERROR(INDIRECT(\"'CONTROLLING CRITERIA (14)'!AH13\"), \"\")","v":""}]
[15,{"$f":"IFERROR(INDIRECT(\"'FACILITY INFO (15)'!H9\"), \"\")","v":""},{"$f":"IFERROR(INDIRECT(\"'DESIGN & TARGET SPEED (15)'!A4\"), \"\")","v":""},{"$f":"IFERROR(INDIRECT(\"'DESIGN & TARGET SPEED (15)'!A5\"), \"\")","v":""},{"$f":"IFERROR(INDIRECT(\"'PED (15)'!A4\"), \"\")","v":""},{"$f":"IFERROR(INDIRECT(\"'PED (15)'!A5\"), \"\")","v":""},{"$f":"IFERROR(INDIRECT(\"'BIKE (15)'!A4\"), \"\")","v":""},{"$f":"IFERROR(INDIRECT(\"'BIKE (15)'!A5\"), \"\")","v":""},{"$f":"IFERROR(INDIRECT(\"'TRANSIT (15)'!A4\"), \"\")","v":""},{"$f":"IFERROR(INDIRECT(\"'TRANSIT (15)'!A5\"), \"\")","v":""},{"$f":"IFERROR(INDIRECT(\"'RAMP (15)'!A4\"), \"\")","v":""},{"$f":"IFERROR(INDIRECT(\"'RAMP (15)'!A5\"), \"\")","v":""},{"$f":"IFERROR(INDIRECT(\"'DESIGN LOADING (15)'!A4\"), \"\")","v":""},{"$f":"IFERROR(INDIRECT(\"'DESIGN LOADING (15)'!A5\"), \"\")","v":""},{"$f":"IFERROR(INDIRECT(\"'LANE WIDTH (15)'!A4\"), \"\")","v":""},{"$f":"IFERROR(INDIRECT(\"'LANE WIDTH (15)'!A5\"), \"\")","v":""},{"$f":"IFERROR(INDIRECT(\"'SHOULDER WIDTH (15)'!A4\"), \"\")","v":""},{"$f":"IFERROR(INDIRECT(\"'SHOULDER WIDTH (15)'!A5\"), \"\")","v":""},{"$f":"IFERROR(INDIRECT(\"'HORIZONTAL CURVE (15)'!A4\"), \"\")","v":""},{"$f":"IFERROR(INDIRECT(\"'HORIZONTAL CURVE (15)'!A5\"), \"\")","v":""},{"$f":"IFERROR(INDIRECT(\"'SUPERELEVATION (15)'!A4\"), \"\")","v":""},{"$f":"IFERROR(INDIRECT(\"'SUPERELEVATION (15)'!A5\"), \"\")","v":""},{"$f":"IFERROR(INDIRECT(\"'SSD (15)'!A4\"), \"\")","v":""},{"$f":"IFERROR(INDIRECT(\"'SSD (15)'!A5\"), \"\")","v":""},{"$f":"IFERROR(INDIRECT(\"'MAX GRADE (15)'!A4\"), \"\")","v":""},{"$f":"IFERROR(INDIRECT(\"'MAX GRADE (15)'!A5\"), \"\")","v":""},{"$f":"IFERROR(INDIRECT(\"'CROSS SLOPE (15)'!A4\"), \"\")","v":""},{"$f":"IFERROR(INDIRECT(\"'CROSS SLOPE (15)'!A5\"), \"\")","v":""},{"$f":"IFERROR(INDIRECT(\"'VERTICAL CLEARANCE (15)'!A4\"), \"\")","v":""},{"$f":"IFERROR(INDIRECT(\"'VERTICAL CLEARANCE (15)'!A5\"), \"\")","v":""},{"$f":"IFERROR(INDIRECT(\"'DESIGN & TARGET SPEED (15)'!J206\"), \"\")","v":""},{"$f":"IFERROR(INDIRECT(\"'FACILITY INFO (15)'!J15\"), \"\")","v":""},{"$f":"IFERROR(INDIRECT(\"'CONTROLLING CRITERIA (15)'!AH13\"), \"\")","v":""}]
[16,{"$f":"IFERROR(INDIRECT(\"'FACILITY INFO (16)'!H9\"), \"\")","v":""},{"$f":"IFERROR(INDIRECT(\"'DESIGN & TARGET SPEED (16)'!A4\"), \"\")","v":""},{"$f":"IFERROR(INDIRECT(\"'DESIGN & TARGET SPEED (16)'!A5\"), \"\")","v":""},{"$f":"IFERROR(INDIRECT(\"'PED (16)'!A4\"), \"\")","v":""},{"$f":"IFERROR(INDIRECT(\"'PED (16)'!A5\"), \"\")","v":""},{"$f":"IFERROR(INDIRECT(\"'BIKE (16)'!A4\"), \"\")","v":""},{"$f":"IFERROR(INDIRECT(\"'BIKE (16)'!A5\"), \"\")","v":""},{"$f":"IFERROR(INDIRECT(\"'TRANSIT (16)'!A4\"), \"\")","v":""},{"$f":"IFERROR(INDIRECT(\"'TRANSIT (16)'!A5\"), \"\")","v":""},{"$f":"IFERROR(INDIRECT(\"'RAMP (16)'!A4\"), \"\")","v":""},{"$f":"IFERROR(INDIRECT(\"'RAMP (16)'!A5\"), \"\")","v":""},{"$f":"IFERROR(INDIRECT(\"'DESIGN LOADING (16)'!A4\"), \"\")","v":""},{"$f":"IFERROR(INDIRECT(\"'DESIGN LOADING (16)'!A5\"), \"\")","v":""},{"$f":"IFERROR(INDIRECT(\"'LANE WIDTH (16)'!A4\"), \"\")","v":""},{"$f":"IFERROR(INDIRECT(\"'LANE WIDTH (16)'!A5\"), \"\")","v":""},{"$f":"IFERROR(INDIRECT(\"'SHOULDER WIDTH (16)'!A4\"), \"\")","v":""},{"$f":"IFERROR(INDIRECT(\"'SHOULDER WIDTH (16)'!A5\"), \"\")","v":""},{"$f":"IFERROR(INDIRECT(\"'HORIZONTAL CURVE (16)'!A4\"), \"\")","v":""},{"$f":"IFERROR(INDIRECT(\"'HORIZONTAL CURVE (16)'!A5\"), \"\")","v":""},{"$f":"IFERROR(INDIRECT(\"'SUPERELEVATION (16)'!A4\"), \"\")","v":""},{"$f":"IFERROR(INDIRECT(\"'SUPERELEVATION (16)'!A5\"), \"\")","v":""},{"$f":"IFERROR(INDIRECT(\"'SSD (16)'!A4\"), \"\")","v":""},{"$f":"IFERROR(INDIRECT(\"'SSD (16)'!A5\"), \"\")","v":""},{"$f":"IFERROR(INDIRECT(\"'MAX GRADE (16)'!A4\"), \"\")","v":""},{"$f":"IFERROR(INDIRECT(\"'MAX GRADE (16)'!A5\"), \"\")","v":""},{"$f":"IFERROR(INDIRECT(\"'CROSS SLOPE (16)'!A4\"), \"\")","v":""},{"$f":"IFERROR(INDIRECT(\"'CROSS SLOPE (16)'!A5\"), \"\")","v":""},{"$f":"IFERROR(INDIRECT(\"'VERTICAL CLEARANCE (16)'!A4\"), \"\")","v":""},{"$f":"IFERROR(INDIRECT(\"'VERTICAL CLEARANCE (16)'!A5\"), \"\")","v":""},{"$f":"IFERROR(INDIRECT(\"'DESIGN & TARGET SPEED (16)'!J206\"), \"\")","v":""},{"$f":"IFERROR(INDIRECT(\"'FACILITY INFO (16)'!J15\"), \"\")","v":""},{"$f":"IFERROR(INDIRECT(\"'CONTROLLING CRITERIA (16)'!AH13\"), \"\")","v":""}]
[17,{"$f":"IFERROR(INDIRECT(\"'FACILITY INFO (17)'!H9\"), \"\")","v":""},{"$f":"IFERROR(INDIRECT(\"'DESIGN & TARGET SPEED (17)'!A4\"), \"\")","v":""},{"$f":"IFERROR(INDIRECT(\"'DESIGN & TARGET SPEED (17)'!A5\"), \"\")","v":""},{"$f":"IFERROR(INDIRECT(\"'PED (17)'!A4\"), \"\")","v":""},{"$f":"IFERROR(INDIRECT(\"'PED (17)'!A5\"), \"\")","v":""},{"$f":"IFERROR(INDIRECT(\"'BIKE (17)'!A4\"), \"\")","v":""},{"$f":"IFERROR(INDIRECT(\"'BIKE (17)'!A5\"), \"\")","v":""},{"$f":"IFERROR(INDIRECT(\"'TRANSIT (17)'!A4\"), \"\")","v":""},{"$f":"IFERROR(INDIRECT(\"'TRANSIT (17)'!A5\"), \"\")","v":""},{"$f":"IFERROR(INDIRECT(\"'RAMP (17)'!A4\"), \"\")","v":""},{"$f":"IFERROR(INDIRECT(\"'RAMP (17)'!A5\"), \"\")","v":""},{"$f":"IFERROR(INDIRECT(\"'DESIGN LOADING (17)'!A4\"), \"\")","v":""},{"$f":"IFERROR(INDIRECT(\"'DESIGN LOADING (17)'!A5\"), \"\")","v":""},{"$f":"IFERROR(INDIRECT(\"'LANE WIDTH (17)'!A4\"), \"\")","v":""},{"$f":"IFERROR(INDIRECT(\"'LANE WIDTH (17)'!A5\"), \"\")","v":""},{"$f":"IFERROR(INDIRECT(\"'SHOULDER WIDTH (17)'!A4\"), \"\")","v":""},{"$f":"IFERROR(INDIRECT(\"'SHOULDER WIDTH (17)'!A5\"), \"\")","v":""},{"$f":"IFERROR(INDIRECT(\"'HORIZONTAL CURVE (17)'!A4\"), \"\")","v":""},{"$f":"IFERROR(INDIRECT(\"'HORIZONTAL CURVE (17)'!A5\"), \"\")","v":""},{"$f":"IFERROR(INDIRECT(\"'SUPERELEVATION (17)'!A4\"), \"\")","v":""},{"$f":"IFERROR(INDIRECT(\"'SUPERELEVATION (17)'!A5\"), \"\")","v":""},{"$f":"IFERROR(INDIRECT(\"'SSD (17)'!A4\"), \"\")","v":""},{"$f":"IFERROR(INDIRECT(\"'SSD (17)'!A5\"), \"\")","v":""},{"$f":"IFERROR(INDIRECT(\"'MAX GRADE (17)'!A4\"), \"\")","v":""},{"$f":"IFERROR(INDIRECT(\"'MAX GRADE (17)'!A5\"), \"\")","v":""},{"$f":"IFERROR(INDIRECT(\"'CROSS SLOPE (17)'!A4\"), \"\")","v":""},{"$f":"IFERROR(INDIRECT(\"'CROSS SLOPE (17)'!A5\"), \"\")","v":""},{"$f":"IFERROR(INDIRECT(\"'VERTICAL CLEARANCE (17)'!A4\"), \"\")","v":""},{"$f":"IFERROR(INDIRECT(\"'VERTICAL CLEARANCE (17)'!A5\"), \"\")","v":""},{"$f":"IFERROR(INDIRECT(\"'DESIGN & TARGET SPEED (17)'!J206\"), \"\")","v":""},{"$f":"IFERROR(INDIRECT(\"'FACILITY INFO (17)'!J15\"), \"\")","v":""},{"$f":"IFERROR(INDIRECT(\"'CONTROLLING CRITERIA (17)'!AH13\"), \"\")","v":""}]
[18,{"$f":"IFERROR(INDIRECT(\"'FACILITY INFO (18)'!H9\"), \"\")","v":""},{"$f":"IFERROR(INDIRECT(\"'DESIGN & TARGET SPEED (18)'!A4\"), \"\")","v":""},{"$f":"IFERROR(INDIRECT(\"'DESIGN & TARGET SPEED (18)'!A5\"), \"\")","v":""},{"$f":"IFERROR(INDIRECT(\"'PED (18)'!A4\"), \"\")","v":""},{"$f":"IFERROR(INDIRECT(\"'PED (18)'!A5\"), \"\")","v":""},{"$f":"IFERROR(INDIRECT(\"'BIKE (18)'!A4\"), \"\")","v":""},{"$f":"IFERROR(INDIRECT(\"'BIKE (18)'!A5\"), \"\")","v":""},{"$f":"IFERROR(INDIRECT(\"'TRANSIT (18)'!A4\"), \"\")","v":""},{"$f":"IFERROR(INDIRECT(\"'TRANSIT (18)'!A5\"), \"\")","v":""},{"$f":"IFERROR(INDIRECT(\"'RAMP (18)'!A4\"), \"\")","v":""},{"$f":"IFERROR(INDIRECT(\"'RAMP (18)'!A5\"), \"\")","v":""},{"$f":"IFERROR(INDIRECT(\"'DESIGN LOADING (18)'!A4\"), \"\")","v":""},{"$f":"IFERROR(INDIRECT(\"'DESIGN LOADING (18)'!A5\"), \"\")","v":""},{"$f":"IFERROR(INDIRECT(\"'LANE WIDTH (18)'!A4\"), \"\")","v":""},{"$f":"IFERROR(INDIRECT(\"'LANE WIDTH (18)'!A5\"), \"\")","v":""},{"$f":"IFERROR(INDIRECT(\"'SHOULDER WIDTH (18)'!A4\"), \"\")","v":""},{"$f":"IFERROR(INDIRECT(\"'SHOULDER WIDTH (18)'!A5\"), \"\")","v":""},{"$f":"IFERROR(INDIRECT(\"'HORIZONTAL CURVE (18)'!A4\"), \"\")","v":""},{"$f":"IFERROR(INDIRECT(\"'HORIZONTAL CURVE (18)'!A5\"), \"\")","v":""},{"$f":"IFERROR(INDIRECT(\"'SUPERELEVATION (18)'!A4\"), \"\")","v":""},{"$f":"IFERROR(INDIRECT(\"'SUPERELEVATION (18)'!A5\"), \"\")","v":""},{"$f":"IFERROR(INDIRECT(\"'SSD (18)'!A4\"), \"\")","v":""},{"$f":"IFERROR(INDIRECT(\"'SSD (18)'!A5\"), \"\")","v":""},{"$f":"IFERROR(INDIRECT(\"'MAX GRADE (18)'!A4\"), \"\")","v":""},{"$f":"IFERROR(INDIRECT(\"'MAX GRADE (18)'!A5\"), \"\")","v":""},{"$f":"IFERROR(INDIRECT(\"'CROSS SLOPE (18)'!A4\"), \"\")","v":""},{"$f":"IFERROR(INDIRECT(\"'CROSS SLOPE (18)'!A5\"), \"\")","v":""},{"$f":"IFERROR(INDIRECT(\"'VERTICAL CLEARANCE (18)'!A4\"), \"\")","v":""},{"$f":"IFERROR(INDIRECT(\"'VERTICAL CLEARANCE (18)'!A5\"), \"\")","v":""},{"$f":"IFERROR(INDIRECT(\"'DESIGN & TARGET SPEED (18)'!J206\"), \"\")","v":""},{"$f":"IFERROR(INDIRECT(\"'FACILITY INFO (18)'!J15\"), \"\")","v":""},{"$f":"IFERROR(INDIRECT(\"'CONTROLLING CRITERIA (18)'!AH13\"), \"\")","v":""}]
[19,{"$f":"IFERROR(INDIRECT(\"'FACILITY INFO (19)'!H9\"), \"\")","v":""},{"$f":"IFERROR(INDIRECT(\"'DESIGN & TARGET SPEED (19)'!A4\"), \"\")","v":""},{"$f":"IFERROR(INDIRECT(\"'DESIGN & TARGET SPEED (19)'!A5\"), \"\")","v":""},{"$f":"IFERROR(INDIRECT(\"'PED (19)'!A4\"), \"\")","v":""},{"$f":"IFERROR(INDIRECT(\"'PED (19)'!A5\"), \"\")","v":""},{"$f":"IFERROR(INDIRECT(\"'BIKE (19)'!A4\"), \"\")","v":""},{"$f":"IFERROR(INDIRECT(\"'BIKE (19)'!A5\"), \"\")","v":""},{"$f":"IFERROR(INDIRECT(\"'TRANSIT (19)'!A4\"), \"\")","v":""},{"$f":"IFERROR(INDIRECT(\"'TRANSIT (19)'!A5\"), \"\")","v":""},{"$f":"IFERROR(INDIRECT(\"'RAMP (19)'!A4\"), \"\")","v":""},{"$f":"IFERROR(INDIRECT(\"'RAMP (19)'!A5\"), \"\")","v":""},{"$f":"IFERROR(INDIRECT(\"'DESIGN LOADING (19)'!A4\"), \"\")","v":""},{"$f":"IFERROR(INDIRECT(\"'DESIGN LOADING (19)'!A5\"), \"\")","v":""},{"$f":"IFERROR(INDIRECT(\"'LANE WIDTH (19)'!A4\"), \"\")","v":""},{"$f":"IFERROR(INDIRECT(\"'LANE WIDTH (19)'!A5\"), \"\")","v":""},{"$f":"IFERROR(INDIRECT(\"'SHOULDER WIDTH (19)'!A4\"), \"\")","v":""},{"$f":"IFERROR(INDIRECT(\"'SHOULDER WIDTH (19)'!A5\"), \"\")","v":""},{"$f":"IFERROR(INDIRECT(\"'HORIZONTAL CURVE (19)'!A4\"), \"\")","v":""},{"$f":"IFERROR(INDIRECT(\"'HORIZONTAL CURVE (19)'!A5\"), \"\")","v":""},{"$f":"IFERROR(INDIRECT(\"'SUPERELEVATION (19)'!A4\"), \"\")","v":""},{"$f":"IFERROR(INDIRECT(\"'SUPERELEVATION (19)'!A5\"), \"\")","v":""},{"$f":"IFERROR(INDIRECT(\"'SSD (19)'!A4\"), \"\")","v":""},{"$f":"IFERROR(INDIRECT(\"'SSD (19)'!A5\"), \"\")","v":""},{"$f":"IFERROR(INDIRECT(\"'MAX GRADE (19)'!A4\"), \"\")","v":""},{"$f":"IFERROR(INDIRECT(\"'MAX GRADE (19)'!A5\"), \"\")","v":""},{"$f":"IFERROR(INDIRECT(\"'CROSS SLOPE (19)'!A4\"), \"\")","v":""},{"$f":"IFERROR(INDIRECT(\"'CROSS SLOPE (19)'!A5\"), \"\")","v":""},{"$f":"IFERROR(INDIRECT(\"'VERTICAL CLEARANCE (19)'!A4\"), \"\")","v":""},{"$f":"IFERROR(INDIRECT(\"'VERTICAL CLEARANCE (19)'!A5\"), \"\")","v":""},{"$f":"IFERROR(INDIRECT(\"'DESIGN & TARGET SPEED (19)'!J206\"), \"\")","v":""},{"$f":"IFERROR(INDIRECT(\"'FACILITY INFO (19)'!J15\"), \"\")","v":""},{"$f":"IFERROR(INDIRECT(\"'CONTROLLING CRITERIA (19)'!AH13\"), \"\")","v":""}]
[20,{"$f":"IFERROR(INDIRECT(\"'FACILITY INFO (20)'!H9\"), \"\")","v":""},{"$f":"IFERROR(INDIRECT(\"'DESIGN & TARGET SPEED (20)'!A4\"), \"\")","v":""},{"$f":"IFERROR(INDIRECT(\"'DESIGN & TARGET SPEED (20)'!A5\"), \"\")","v":""},{"$f":"IFERROR(INDIRECT(\"'PED (20)'!A4\"), \"\")","v":""},{"$f":"IFERROR(INDIRECT(\"'PED (20)'!A5\"), \"\")","v":""},{"$f":"IFERROR(INDIRECT(\"'BIKE (20)'!A4\"), \"\")","v":""},{"$f":"IFERROR(INDIRECT(\"'BIKE (20)'!A5\"), \"\")","v":""},{"$f":"IFERROR(INDIRECT(\"'TRANSIT (20)'!A4\"), \"\")","v":""},{"$f":"IFERROR(INDIRECT(\"'TRANSIT (20)'!A5\"), \"\")","v":""},{"$f":"IFERROR(INDIRECT(\"'RAMP (20)'!A4\"), \"\")","v":""},{"$f":"IFERROR(INDIRECT(\"'RAMP (20)'!A5\"), \"\")","v":""},{"$f":"IFERROR(INDIRECT(\"'DESIGN LOADING (20)'!A4\"), \"\")","v":""},{"$f":"IFERROR(INDIRECT(\"'DESIGN LOADING (20)'!A5\"), \"\")","v":""},{"$f":"IFERROR(INDIRECT(\"'LANE WIDTH (20)'!A4\"), \"\")","v":""},{"$f":"IFERROR(INDIRECT(\"'LANE WIDTH (20)'!A5\"), \"\")","v":""},{"$f":"IFERROR(INDIRECT(\"'SHOULDER WIDTH (20)'!A4\"), \"\")","v":""},{"$f":"IFERROR(INDIRECT(\"'SHOULDER WIDTH (20)'!A5\"), \"\")","v":""},{"$f":"IFERROR(INDIRECT(\"'HORIZONTAL CURVE (20)'!A4\"), \"\")","v":""},{"$f":"IFERROR(INDIRECT(\"'HORIZONTAL CURVE (20)'!A5\"), \"\")","v":""},{"$f":"IFERROR(INDIRECT(\"'SUPERELEVATION (20)'!A4\"), \"\")","v":""},{"$f":"IFERROR(INDIRECT(\"'SUPERELEVATION (20)'!A5\"), \"\")","v":""},{"$f":"IFERROR(INDIRECT(\"'SSD (20)'!A4\"), \"\")","v":""},{"$f":"IFERROR(INDIRECT(\"'SSD (20)'!A5\"), \"\")","v":""},{"$f":"IFERROR(INDIRECT(\"'MAX GRADE (20)'!A4\"), \"\")","v":""},{"$f":"IFERROR(INDIRECT(\"'MAX GRADE (20)'!A5\"), \"\")","v":""},{"$f":"IFERROR(INDIRECT(\"'CROSS SLOPE (20)'!A4\"), \"\")","v":""},{"$f":"IFERROR(INDIRECT(\"'CROSS SLOPE (20)'!A5\"), \"\")","v":""},{"$f":"IFERROR(INDIRECT(\"'VERTICAL CLEARANCE (20)'!A4\"), \"\")","v":""},{"$f":"IFERROR(INDIRECT(\"'VERTICAL CLEARANCE (20)'!A5\"), \"\")","v":""},{"$f":"IFERROR(INDIRECT(\"'DESIGN & TARGET SPEED (20)'!J206\"), \"\")","v":""},{"$f":"IFERROR(INDIRECT(\"'FACILITY INFO (20)'!J15\"), \"\")","v":""},{"$f":"IFERROR(INDIRECT(\"'CONTROLLING CRITERIA (20)'!AH13\"), \"\")","v":""}]
[21,{"$f":"IFERROR(INDIRECT(\"'FACILITY INFO (21)'!H9\"), \"\")","v":""},{"$f":"IFERROR(INDIRECT(\"'DESIGN & TARGET SPEED (21)'!A4\"), \"\")","v":""},{"$f":"IFERROR(INDIRECT(\"'DESIGN & TARGET SPEED (21)'!A5\"), \"\")","v":""},{"$f":"IFERROR(INDIRECT(\"'PED (21)'!A4\"), \"\")","v":""},{"$f":"IFERROR(INDIRECT(\"'PED (21)'!A5\"), \"\")","v":""},{"$f":"IFERROR(INDIRECT(\"'BIKE (21)'!A4\"), \"\")","v":""},{"$f":"IFERROR(INDIRECT(\"'BIKE (21)'!A5\"), \"\")","v":""},{"$f":"IFERROR(INDIRECT(\"'TRANSIT (21)'!A4\"), \"\")","v":""},{"$f":"IFERROR(INDIRECT(\"'TRANSIT (21)'!A5\"), \"\")","v":""},{"$f":"IFERROR(INDIRECT(\"'RAMP (21)'!A4\"), \"\")","v":""},{"$f":"IFERROR(INDIRECT(\"'RAMP (21)'!A5\"), \"\")","v":""},{"$f":"IFERROR(INDIRECT(\"'DESIGN LOADING (21)'!A4\"), \"\")","v":""},{"$f":"IFERROR(INDIRECT(\"'DESIGN LOADING (21)'!A5\"), \"\")","v":""},{"$f":"IFERROR(INDIRECT(\"'LANE WIDTH (21)'!A4\"), \"\")","v":""},{"$f":"IFERROR(INDIRECT(\"'LANE WIDTH (21)'!A5\"), \"\")","v":""},{"$f":"IFERROR(INDIRECT(\"'SHOULDER WIDTH (21)'!A4\"), \"\")","v":""},{"$f":"IFERROR(INDIRECT(\"'SHOULDER WIDTH (21)'!A5\"), \"\")","v":""},{"$f":"IFERROR(INDIRECT(\"'HORIZONTAL CURVE (21)'!A4\"), \"\")","v":""},{"$f":"IFERROR(INDIRECT(\"'HORIZONTAL CURVE (21)'!A5\"), \"\")","v":""},{"$f":"IFERROR(INDIRECT(\"'SUPERELEVATION (21)'!A4\"), \"\")","v":""},{"$f":"IFERROR(INDIRECT(\"'SUPERELEVATION (21)'!A5\"), \"\")","v":""},{"$f":"IFERROR(INDIRECT(\"'SSD (21)'!A4\"), \"\")","v":""},{"$f":"IFERROR(INDIRECT(\"'SSD (21)'!A5\"), \"\")","v":""},{"$f":"IFERROR(INDIRECT(\"'MAX GRADE (21)'!A4\"), \"\")","v":""},{"$f":"IFERROR(INDIRECT(\"'MAX GRADE (21)'!A5\"), \"\")","v":""},{"$f":"IFERROR(INDIRECT(\"'CROSS SLOPE (21)'!A4\"), \"\")","v":""},{"$f":"IFERROR(INDIRECT(\"'CROSS SLOPE (21)'!A5\"), \"\")","v":""},{"$f":"IFERROR(INDIRECT(\"'VERTICAL CLEARANCE (21)'!A4\"), \"\")","v":""},{"$f":"IFERROR(INDIRECT(\"'VERTICAL CLEARANCE (21)'!A5\"), \"\")","v":""},{"$f":"IFERROR(INDIRECT(\"'DESIGN & TARGET SPEED (21)'!J206\"), \"\")","v":""},{"$f":"IFERROR(INDIRECT(\"'FACILITY INFO (21)'!J15\"), \"\")","v":""},{"$f":"IFERROR(INDIRECT(\"'CONTROLLING CRITERIA (21)'!AH13\"), \"\")","v":""}]
[22,{"$f":"IFERROR(INDIRECT(\"'FACILITY INFO (22)'!H9\"), \"\")","v":""},{"$f":"IFERROR(INDIRECT(\"'DESIGN & TARGET SPEED (22)'!A4\"), \"\")","v":""},{"$f":"IFERROR(INDIRECT(\"'DESIGN & TARGET SPEED (22)'!A5\"), \"\")","v":""},{"$f":"IFERROR(INDIRECT(\"'PED (22)'!A4\"), \"\")","v":""},{"$f":"IFERROR(INDIRECT(\"'PED (22)'!A5\"), \"\")","v":""},{"$f":"IFERROR(INDIRECT(\"'BIKE (22)'!A4\"), \"\")","v":""},{"$f":"IFERROR(INDIRECT(\"'BIKE (22)'!A5\"), \"\")","v":""},{"$f":"IFERROR(INDIRECT(\"'TRANSIT (22)'!A4\"), \"\")","v":""},{"$f":"IFERROR(INDIRECT(\"'TRANSIT (22)'!A5\"), \"\")","v":""},{"$f":"IFERROR(INDIRECT(\"'RAMP (22)'!A4\"), \"\")","v":""},{"$f":"IFERROR(INDIRECT(\"'RAMP (22)'!A5\"), \"\")","v":""},{"$f":"IFERROR(INDIRECT(\"'DESIGN LOADING (22)'!A4\"), \"\")","v":""},{"$f":"IFERROR(INDIRECT(\"'DESIGN LOADING (22)'!A5\"), \"\")","v":""},{"$f":"IFERROR(INDIRECT(\"'LANE WIDTH (22)'!A4\"), \"\")","v":""},{"$f":"IFERROR(INDIRECT(\"'LANE WIDTH (22)'!A5\"), \"\")","v":""},{"$f":"IFERROR(INDIRECT(\"'SHOULDER WIDTH (22)'!A4\"), \"\")","v":""},{"$f":"IFERROR(INDIRECT(\"'SHOULDER WIDTH (22)'!A5\"), \"\")","v":""},{"$f":"IFERROR(INDIRECT(\"'HORIZONTAL CURVE (22)'!A4\"), \"\")","v":""},{"$f":"IFERROR(INDIRECT(\"'HORIZONTAL CURVE (22)'!A5\"), \"\")","v":""},{"$f":"IFERROR(INDIRECT(\"'SUPERELEVATION (22)'!A4\"), \"\")","v":""},{"$f":"IFERROR(INDIRECT(\"'SUPERELEVATION (22)'!A5\"), \"\")","v":""},{"$f":"IFERROR(INDIRECT(\"'SSD (22)'!A4\"), \"\")","v":""},{"$f":"IFERROR(INDIRECT(\"'SSD (22)'!A5\"), \"\")","v":""},{"$f":"IFERROR(INDIRECT(\"'MAX GRADE (22)'!A4\"), \"\")","v":""},{"$f":"IFERROR(INDIRECT(\"'MAX GRADE (22)'!A5\"), \"\")","v":""},{"$f":"IFERROR(INDIRECT(\"'CROSS SLOPE (22)'!A4\"), \"\")","v":""},{"$f":"IFERROR(INDIRECT(\"'CROSS SLOPE (22)'!A5\"), \"\")","v":""},{"$f":"IFERROR(INDIRECT(\"'VERTICAL CLEARANCE (22)'!A4\"), \"\")","v":""},{"$f":"IFERROR(INDIRECT(\"'VERTICAL CLEARANCE (22)'!A5\"), \"\")","v":""},{"$f":"IFERROR(INDIRECT(\"'DESIGN & TARGET SPEED (22)'!J206\"), \"\")","v":""},{"$f":"IFERROR(INDIRECT(\"'FACILITY INFO (22)'!J15\"), \"\")","v":""},{"$f":"IFERROR(INDIRECT(\"'CONTROLLING CRITERIA (22)'!AH13\"), \"\")","v":""}]
[23,{"$f":"IFERROR(INDIRECT(\"'FACILITY INFO (23)'!H9\"), \"\")","v":""},{"$f":"IFERROR(INDIRECT(\"'DESIGN & TARGET SPEED (23)'!A4\"), \"\")","v":""},{"$f":"IFERROR(INDIRECT(\"'DESIGN & TARGET SPEED (23)'!A5\"), \"\")","v":""},{"$f":"IFERROR(INDIRECT(\"'PED (23)'!A4\"), \"\")","v":""},{"$f":"IFERROR(INDIRECT(\"'PED (23)'!A5\"), \"\")","v":""},{"$f":"IFERROR(INDIRECT(\"'BIKE (23)'!A4\"), \"\")","v":""},{"$f":"IFERROR(INDIRECT(\"'BIKE (23)'!A5\"), \"\")","v":""},{"$f":"IFERROR(INDIRECT(\"'TRANSIT (23)'!A4\"), \"\")","v":""},{"$f":"IFERROR(INDIRECT(\"'TRANSIT (23)'!A5\"), \"\")","v":""},{"$f":"IFERROR(INDIRECT(\"'RAMP (23)'!A4\"), \"\")","v":""},{"$f":"IFERROR(INDIRECT(\"'RAMP (23)'!A5\"), \"\")","v":""},{"$f":"IFERROR(INDIRECT(\"'DESIGN LOADING (23)'!A4\"), \"\")","v":""},{"$f":"IFERROR(INDIRECT(\"'DESIGN LOADING (23)'!A5\"), \"\")","v":""},{"$f":"IFERROR(INDIRECT(\"'LANE WIDTH (23)'!A4\"), \"\")","v":""},{"$f":"IFERROR(INDIRECT(\"'LANE WIDTH (23)'!A5\"), \"\")","v":""},{"$f":"IFERROR(INDIRECT(\"'SHOULDER WIDTH (23)'!A4\"), \"\")","v":""},{"$f":"IFERROR(INDIRECT(\"'SHOULDER WIDTH (23)'!A5\"), \"\")","v":""},{"$f":"IFERROR(INDIRECT(\"'HORIZONTAL CURVE (23)'!A4\"), \"\")","v":""},{"$f":"IFERROR(INDIRECT(\"'HORIZONTAL CURVE (23)'!A5\"), \"\")","v":""},{"$f":"IFERROR(INDIRECT(\"'SUPERELEVATION (23)'!A4\"), \"\")","v":""},{"$f":"IFERROR(INDIRECT(\"'SUPERELEVATION (23)'!A5\"), \"\")","v":""},{"$f":"IFERROR(INDIRECT(\"'SSD (23)'!A4\"), \"\")","v":""},{"$f":"IFERROR(INDIRECT(\"'SSD (23)'!A5\"), \"\")","v":""},{"$f":"IFERROR(INDIRECT(\"'MAX GRADE (23)'!A4\"), \"\")","v":""},{"$f":"IFERROR(INDIRECT(\"'MAX GRADE (23)'!A5\"), \"\")","v":""},{"$f":"IFERROR(INDIRECT(\"'CROSS SLOPE (23)'!A4\"), \"\")","v":""},{"$f":"IFERROR(INDIRECT(\"'CROSS SLOPE (23)'!A5\"), \"\")","v":""},{"$f":"IFERROR(INDIRECT(\"'VERTICAL CLEARANCE (23)'!A4\"), \"\")","v":""},{"$f":"IFERROR(INDIRECT(\"'VERTICAL CLEARANCE (23)'!A5\"), \"\")","v":""},{"$f":"IFERROR(INDIRECT(\"'DESIGN & TARGET SPEED (23)'!J206\"), \"\")","v":""},{"$f":"IFERROR(INDIRECT(\"'FACILITY INFO (23)'!J15\"), \"\")","v":""},{"$f":"IFERROR(INDIRECT(\"'CONTROLLING CRITERIA (23)'!AH13\"), \"\")","v":""}]
[24,{"$f":"IFERROR(INDIRECT(\"'FACILITY INFO (24)'!H9\"), \"\")","v":""},{"$f":"IFERROR(INDIRECT(\"'DESIGN & TARGET SPEED (24)'!A4\"), \"\")","v":""},{"$f":"IFERROR(INDIRECT(\"'DESIGN & TARGET SPEED (24)'!A5\"), \"\")","v":""},{"$f":"IFERROR(INDIRECT(\"'PED (24)'!A4\"), \"\")","v":""},{"$f":"IFERROR(INDIRECT(\"'PED (24)'!A5\"), \"\")","v":""},{"$f":"IFERROR(INDIRECT(\"'BIKE (24)'!A4\"), \"\")","v":""},{"$f":"IFERROR(INDIRECT(\"'BIKE (24)'!A5\"), \"\")","v":""},{"$f":"IFERROR(INDIRECT(\"'TRANSIT (24)'!A4\"), \"\")","v":""},{"$f":"IFERROR(INDIRECT(\"'TRANSIT (24)'!A5\"), \"\")","v":""},{"$f":"IFERROR(INDIRECT(\"'RAMP (24)'!A4\"), \"\")","v":""},{"$f":"IFERROR(INDIRECT(\"'RAMP (24)'!A5\"), \"\")","v":""},{"$f":"IFERROR(INDIRECT(\"'DESIGN LOADING (24)'!A4\"), \"\")","v":""},{"$f":"IFERROR(INDIRECT(\"'DESIGN LOADING (24)'!A5\"), \"\")","v":""},{"$f":"IFERROR(INDIRECT(\"'LANE WIDTH (24)'!A4\"), \"\")","v":""},{"$f":"IFERROR(INDIRECT(\"'LANE WIDTH (24)'!A5\"), \"\")","v":""},{"$f":"IFERROR(INDIRECT(\"'SHOULDER WIDTH (24)'!A4\"), \"\")","v":""},{"$f":"IFERROR(INDIRECT(\"'SHOULDER WIDTH (24)'!A5\"), \"\")","v":""},{"$f":"IFERROR(INDIRECT(\"'HORIZONTAL CURVE (24)'!A4\"), \"\")","v":""},{"$f":"IFERROR(INDIRECT(\"'HORIZONTAL CURVE (24)'!A5\"), \"\")","v":""},{"$f":"IFERROR(INDIRECT(\"'SUPERELEVATION (24)'!A4\"), \"\")","v":""},{"$f":"IFERROR(INDIRECT(\"'SUPERELEVATION (24)'!A5\"), \"\")","v":""},{"$f":"IFERROR(INDIRECT(\"'SSD (24)'!A4\"), \"\")","v":""},{"$f":"IFERROR(INDIRECT(\"'SSD (24)'!A5\"), \"\")","v":""},{"$f":"IFERROR(INDIRECT(\"'MAX GRADE (24)'!A4\"), \"\")","v":""},{"$f":"IFERROR(INDIRECT(\"'MAX GRADE (24)'!A5\"), \"\")","v":""},{"$f":"IFERROR(INDIRECT(\"'CROSS SLOPE (24)'!A4\"), \"\")","v":""},{"$f":"IFERROR(INDIRECT(\"'CROSS SLOPE (24)'!A5\"), \"\")","v":""},{"$f":"IFERROR(INDIRECT(\"'VERTICAL CLEARANCE (24)'!A4\"), \"\")","v":""},{"$f":"IFERROR(INDIRECT(\"'VERTICAL CLEARANCE (24)'!A5\"), \"\")","v":""},{"$f":"IFERROR(INDIRECT(\"'DESIGN & TARGET SPEED (24)'!J206\"), \"\")","v":""},{"$f":"IFERROR(INDIRECT(\"'FACILITY INFO (24)'!J15\"), \"\")","v":""},{"$f":"IFERROR(INDIRECT(\"'CONTROLLING CRITERIAO (24)'!AH13\"), \"\")","v":""}]
[25,{"$f":"IFERROR(INDIRECT(\"'FACILITY INFO (25)'!H9\"), \"\")","v":""},{"$f":"IFERROR(INDIRECT(\"'DESIGN & TARGET SPEED (25)'!A4\"), \"\")","v":""},{"$f":"IFERROR(INDIRECT(\"'DESIGN & TARGET SPEED (25)'!A5\"), \"\")","v":""},{"$f":"IFERROR(INDIRECT(\"'PED (25)'!A4\"), \"\")","v":""},{"$f":"IFERROR(INDIRECT(\"'PED (25)'!A5\"), \"\")","v":""},{"$f":"IFERROR(INDIRECT(\"'BIKE (25)'!A4\"), \"\")","v":""},{"$f":"IFERROR(INDIRECT(\"'BIKE (25)'!A5\"), \"\")","v":""},{"$f":"IFERROR(INDIRECT(\"'TRANSIT (25)'!A4\"), \"\")","v":""},{"$f":"IFERROR(INDIRECT(\"'TRANSIT (25)'!A5\"), \"\")","v":""},{"$f":"IFERROR(INDIRECT(\"'RAMP (25)'!A4\"), \"\")","v":""},{"$f":"IFERROR(INDIRECT(\"'RAMP (25)'!A5\"), \"\")","v":""},{"$f":"IFERROR(INDIRECT(\"'DESIGN LOADING (25)'!A4\"), \"\")","v":""},{"$f":"IFERROR(INDIRECT(\"'DESIGN LOADING (25)'!A5\"), \"\")","v":""},{"$f":"IFERROR(INDIRECT(\"'LANE WIDTH (25)'!A4\"), \"\")","v":""},{"$f":"IFERROR(INDIRECT(\"'LANE WIDTH (25)'!A5\"), \"\")","v":""},{"$f":"IFERROR(INDIRECT(\"'SHOULDER WIDTH (25)'!A4\"), \"\")","v":""},{"$f":"IFERROR(INDIRECT(\"'SHOULDER WIDTH (25)'!A5\"), \"\")","v":""},{"$f":"IFERROR(INDIRECT(\"'HORIZONTAL CURVE (25)'!A4\"), \"\")","v":""},{"$f":"IFERROR(INDIRECT(\"'HORIZONTAL CURVE (25)'!A5\"), \"\")","v":""},{"$f":"IFERROR(INDIRECT(\"'SUPERELEVATION (25)'!A4\"), \"\")","v":""},{"$f":"IFERROR(INDIRECT(\"'SUPERELEVATION (25)'!A5\"), \"\")","v":""},{"$f":"IFERROR(INDIRECT(\"'SSD (25)'!A4\"), \"\")","v":""},{"$f":"IFERROR(INDIRECT(\"'SSD (25)'!A5\"), \"\")","v":""},{"$f":"IFERROR(INDIRECT(\"'MAX GRADE (25)'!A4\"), \"\")","v":""},{"$f":"IFERROR(INDIRECT(\"'MAX GRADE (25)'!A5\"), \"\")","v":""},{"$f":"IFERROR(INDIRECT(\"'CROSS SLOPE (25)'!A4\"), \"\")","v":""},{"$f":"IFERROR(INDIRECT(\"'CROSS SLOPE (25)'!A5\"), \"\")","v":""},{"$f":"IFERROR(INDIRECT(\"'VERTICAL CLEARANCE (25)'!A4\"), \"\")","v":""},{"$f":"IFERROR(INDIRECT(\"'VERTICAL CLEARANCE (25)'!A5\"), \"\")","v":""},{"$f":"IFERROR(INDIRECT(\"'DESIGN & TARGET SPEED (25)'!J206\"), \"\")","v":""},{"$f":"IFERROR(INDIRECT(\"'FACILITY INFO (25)'!J15\"), \"\")","v":""},{"$f":"IFERROR(INDIRECT(\"'CONTROLLING CRITERIA (25)'!AH13\"), \"\")","v":""}]
[26,{"$f":"IFERROR(INDIRECT(\"'FACILITY INFO (26)'!H9\"), \"\")","v":""},{"$f":"IFERROR(INDIRECT(\"'DESIGN & TARGET SPEED (26)'!A4\"), \"\")","v":""},{"$f":"IFERROR(INDIRECT(\"'DESIGN & TARGET SPEED (26)'!A5\"), \"\")","v":""},{"$f":"IFERROR(INDIRECT(\"'PED (26)'!A4\"), \"\")","v":""},{"$f":"IFERROR(INDIRECT(\"'PED (26)'!A5\"), \"\")","v":""},{"$f":"IFERROR(INDIRECT(\"'BIKE (26)'!A4\"), \"\")","v":""},{"$f":"IFERROR(INDIRECT(\"'BIKE (26)'!A5\"), \"\")","v":""},{"$f":"IFERROR(INDIRECT(\"'TRANSIT (26)'!A4\"), \"\")","v":""},{"$f":"IFERROR(INDIRECT(\"'TRANSIT (26)'!A5\"), \"\")","v":""},{"$f":"IFERROR(INDIRECT(\"'RAMP (26)'!A4\"), \"\")","v":""},{"$f":"IFERROR(INDIRECT(\"'RAMP (26)'!A5\"), \"\")","v":""},{"$f":"IFERROR(INDIRECT(\"'DESIGN LOADING (26)'!A4\"), \"\")","v":""},{"$f":"IFERROR(INDIRECT(\"'DESIGN LOADING (26)'!A5\"), \"\")","v":""},{"$f":"IFERROR(INDIRECT(\"'LANE WIDTH (26)'!A4\"), \"\")","v":""},{"$f":"IFERROR(INDIRECT(\"'LANE WIDTH (26)'!A5\"), \"\")","v":""},{"$f":"IFERROR(INDIRECT(\"'SHOULDER WIDTH (26)'!A4\"), \"\")","v":""},{"$f":"IFERROR(INDIRECT(\"'SHOULDER WIDTH (26)'!A5\"), \"\")","v":""},{"$f":"IFERROR(INDIRECT(\"'HORIZONTAL CURVE (26)'!A4\"), \"\")","v":""},{"$f":"IFERROR(INDIRECT(\"'HORIZONTAL CURVE (26)'!A5\"), \"\")","v":""},{"$f":"IFERROR(INDIRECT(\"'SUPERELEVATION (26)'!A4\"), \"\")","v":""},{"$f":"IFERROR(INDIRECT(\"'SUPERELEVATION (26)'!A5\"), \"\")","v":""},{"$f":"IFERROR(INDIRECT(\"'SSD (26)'!A4\"), \"\")","v":""},{"$f":"IFERROR(INDIRECT(\"'SSD (26)'!A5\"), \"\")","v":""},{"$f":"IFERROR(INDIRECT(\"'MAX GRADE (26)'!A4\"), \"\")","v":""},{"$f":"IFERROR(INDIRECT(\"'MAX GRADE (26)'!A5\"), \"\")","v":""},{"$f":"IFERROR(INDIRECT(\"'CROSS SLOPE (26)'!A4\"), \"\")","v":""},{"$f":"IFERROR(INDIRECT(\"'CROSS SLOPE (26)'!A5\"), \"\")","v":""},{"$f":"IFERROR(INDIRECT(\"'VERTICAL CLEARANCE (26)'!A4\"), \"\")","v":""},{"$f":"IFERROR(INDIRECT(\"'VERTICAL CLEARANCE (26)'!A5\"), \"\")","v":""},{"$f":"IFERROR(INDIRECT(\"'DESIGN & TARGET SPEED (26)'!J206\"), \"\")","v":""},{"$f":"IFERROR(INDIRECT(\"'FACILITY INFO (26)'!J15\"), \"\")","v":""},{"$f":"IFERROR(INDIRECT(\"'CONTROLLING CRITERIA (26)'!AH13\"), \"\")","v":""}]
[27,{"$f":"IFERROR(INDIRECT(\"'FACILITY INFO (27)'!H9\"), \"\")","v":""},{"$f":"IFERROR(INDIRECT(\"'DESIGN & TARGET SPEED (27)'!A4\"), \"\")","v":""},{"$f":"IFERROR(INDIRECT(\"'DESIGN & TARGET SPEED (27)'!A5\"), \"\")","v":""},{"$f":"IFERROR(INDIRECT(\"'PED (27)'!A4\"), \"\")","v":""},{"$f":"IFERROR(INDIRECT(\"'PED (27)'!A5\"), \"\")","v":""},{"$f":"IFERROR(INDIRECT(\"'BIKE (27)'!A4\"), \"\")","v":""},{"$f":"IFERROR(INDIRECT(\"'BIKE (27)'!A5\"), \"\")","v":""},{"$f":"IFERROR(INDIRECT(\"'TRANSIT (27)'!A4\"), \"\")","v":""},{"$f":"IFERROR(INDIRECT(\"'TRANSIT (27)'!A5\"), \"\")","v":""},{"$f":"IFERROR(INDIRECT(\"'RAMP (27)'!A4\"), \"\")","v":""},{"$f":"IFERROR(INDIRECT(\"'RAMP (27)'!A5\"), \"\")","v":""},{"$f":"IFERROR(INDIRECT(\"'DESIGN LOADING (27)'!A4\"), \"\")","v":""},{"$f":"IFERROR(INDIRECT(\"'DESIGN LOADING (27)'!A5\"), \"\")","v":""},{"$f":"IFERROR(INDIRECT(\"'LANE WIDTH (27)'!A4\"), \"\")","v":""},{"$f":"IFERROR(INDIRECT(\"'LANE WIDTH (27)'!A5\"), \"\")","v":""},{"$f":"IFERROR(INDIRECT(\"'SHOULDER WIDTH (27)'!A4\"), \"\")","v":""},{"$f":"IFERROR(INDIRECT(\"'SHOULDER WIDTH (27)'!A5\"), \"\")","v":""},{"$f":"IFERROR(INDIRECT(\"'HORIZONTAL CURVE (27)'!A4\"), \"\")","v":""},{"$f":"IFERROR(INDIRECT(\"'HORIZONTAL CURVE (27)'!A5\"), \"\")","v":""},{"$f":"IFERROR(INDIRECT(\"'SUPERELEVATION (27)'!A4\"), \"\")","v":""},{"$f":"IFERROR(INDIRECT(\"'SUPERELEVATION (27)'!A5\"), \"\")","v":""},{"$f":"IFERROR(INDIRECT(\"'SSD (27)'!A4\"), \"\")","v":""},{"$f":"IFERROR(INDIRECT(\"'SSD (27)'!A5\"), \"\")","v":""},{"$f":"IFERROR(INDIRECT(\"'MAX GRADE (27)'!A4\"), \"\")","v":""},{"$f":"IFERROR(INDIRECT(\"'MAX GRADE (27)'!A5\"), \"\")","v":""},{"$f":"IFERROR(INDIRECT(\"'CROSS SLOPE (27)'!A4\"), \"\")","v":""},{"$f":"IFERROR(INDIRECT(\"'CROSS SLOPE (27)'!A5\"), \"\")","v":""},{"$f":"IFERROR(INDIRECT(\"'VERTICAL CLEARANCE (27)'!A4\"), \"\")","v":""},{"$f":"IFERROR(INDIRECT(\"'VERTICAL CLEARANCE (27)'!A5\"), \"\")","v":""},{"$f":"IFERROR(INDIRECT(\"'DESIGN & TARGET SPEED (27)'!J206\"), \"\")","v":""},{"$f":"IFERROR(INDIRECT(\"'FACILITY INFO (27)'!J15\"), \"\")","v":""},{"$f":"IFERROR(INDIRECT(\"'CONTROLLING CRITERIA (27)'!AH13\"), \"\")","v":""}]
[28,{"$f":"IFERROR(INDIRECT(\"'FACILITY INFO (28)'!H9\"), \"\")","v":""},{"$f":"IFERROR(INDIRECT(\"'DESIGN & TARGET SPEED (28)'!A4\"), \"\")","v":""},{"$f":"IFERROR(INDIRECT(\"'DESIGN & TARGET SPEED (28)'!A5\"), \"\")","v":""},{"$f":"IFERROR(INDIRECT(\"'PED (28)'!A4\"), \"\")","v":""},{"$f":"IFERROR(INDIRECT(\"'PED (28)'!A5\"), \"\")","v":""},{"$f":"IFERROR(INDIRECT(\"'BIKE (28)'!A4\"), \"\")","v":""},{"$f":"IFERROR(INDIRECT(\"'BIKE (28)'!A5\"), \"\")","v":""},{"$f":"IFERROR(INDIRECT(\"'TRANSIT (28)'!A4\"), \"\")","v":""},{"$f":"IFERROR(INDIRECT(\"'TRANSIT (28)'!A5\"), \"\")","v":""},{"$f":"IFERROR(INDIRECT(\"'RAMP (28)'!A4\"), \"\")","v":""},{"$f":"IFERROR(INDIRECT(\"'RAMP (28)'!A5\"), \"\")","v":""},{"$f":"IFERROR(INDIRECT(\"'DESIGN LOADING (28)'!A4\"), \"\")","v":""},{"$f":"IFERROR(INDIRECT(\"'DESIGN LOADING (28)'!A5\"), \"\")","v":""},{"$f":"IFERROR(INDIRECT(\"'LANE WIDTH (28)'!A4\"), \"\")","v":""},{"$f":"IFERROR(INDIRECT(\"'LANE WIDTH (28)'!A5\"), \"\")","v":""},{"$f":"IFERROR(INDIRECT(\"'SHOULDER WIDTH (28)'!A4\"), \"\")","v":""},{"$f":"IFERROR(INDIRECT(\"'SHOULDER WIDTH (28)'!A5\"), \"\")","v":""},{"$f":"IFERROR(INDIRECT(\"'HORIZONTAL CURVE (28)'!A4\"), \"\")","v":""},{"$f":"IFERROR(INDIRECT(\"'HORIZONTAL CURVE (28)'!A5\"), \"\")","v":""},{"$f":"IFERROR(INDIRECT(\"'SUPERELEVATION (28)'!A4\"), \"\")","v":""},{"$f":"IFERROR(INDIRECT(\"'SUPERELEVATION (28)'!A5\"), \"\")","v":""},{"$f":"IFERROR(INDIRECT(\"'SSD (28)'!A4\"), \"\")","v":""},{"$f":"IFERROR(INDIRECT(\"'SSD (28)'!A5\"), \"\")","v":""},{"$f":"IFERROR(INDIRECT(\"'MAX GRADE (28)'!A4\"), \"\")","v":""},{"$f":"IFERROR(INDIRECT(\"'MAX GRADE (28)'!A5\"), \"\")","v":""},{"$f":"IFERROR(INDIRECT(\"'CROSS SLOPE (28)'!A4\"), \"\")","v":""},{"$f":"IFERROR(INDIRECT(\"'CROSS SLOPE (28)'!A5\"), \"\")","v":""},{"$f":"IFERROR(INDIRECT(\"'VERTICAL CLEARANCE (28)'!A4\"), \"\")","v":""},{"$f":"IFERROR(INDIRECT(\"'VERTICAL CLEARANCE (28)'!A5\"), \"\")","v":""},{"$f":"IFERROR(INDIRECT(\"'DESIGN & TARGET SPEED (28)'!J206\"), \"\")","v":""},{"$f":"IFERROR(INDIRECT(\"'FACILITY INFO (28)'!J15\"), \"\")","v":""},{"$f":"IFERROR(INDIRECT(\"'CONTROLLING CRITERIA (28)'!AH13\"), \"\")","v":""}]
[29,{"$f":"IFERROR(INDIRECT(\"'FACILITY INFO (29)'!H9\"), \"\")","v":""},{"$f":"IFERROR(INDIRECT(\"'DESIGN & TARGET SPEED (29)'!A4\"), \"\")","v":""},{"$f":"IFERROR(INDIRECT(\"'DESIGN & TARGET SPEED (29)'!A5\"), \"\")","v":""},{"$f":"IFERROR(INDIRECT(\"'PED (29)'!A4\"), \"\")","v":""},{"$f":"IFERROR(INDIRECT(\"'PED (29)'!A5\"), \"\")","v":""},{"$f":"IFERROR(INDIRECT(\"'BIKE (29)'!A4\"), \"\")","v":""},{"$f":"IFERROR(INDIRECT(\"'BIKE (29)'!A5\"), \"\")","v":""},{"$f":"IFERROR(INDIRECT(\"'TRANSIT (29)'!A4\"), \"\")","v":""},{"$f":"IFERROR(INDIRECT(\"'TRANSIT (29)'!A5\"), \"\")","v":""},{"$f":"IFERROR(INDIRECT(\"'RAMP (29)'!A4\"), \"\")","v":""},{"$f":"IFERROR(INDIRECT(\"'RAMP (29)'!A5\"), \"\")","v":""},{"$f":"IFERROR(INDIRECT(\"'DESIGN LOADING (29)'!A4\"), \"\")","v":""},{"$f":"IFERROR(INDIRECT(\"'DESIGN LOADING (29)'!A5\"), \"\")","v":""},{"$f":"IFERROR(INDIRECT(\"'LANE WIDTH (29)'!A4\"), \"\")","v":""},{"$f":"IFERROR(INDIRECT(\"'LANE WIDTH (29)'!A5\"), \"\")","v":""},{"$f":"IFERROR(INDIRECT(\"'SHOULDER WIDTH (29)'!A4\"), \"\")","v":""},{"$f":"IFERROR(INDIRECT(\"'SHOULDER WIDTH (29)'!A5\"), \"\")","v":""},{"$f":"IFERROR(INDIRECT(\"'HORIZONTAL CURVE (29)'!A4\"), \"\")","v":""},{"$f":"IFERROR(INDIRECT(\"'HORIZONTAL CURVE (29)'!A5\"), \"\")","v":""},{"$f":"IFERROR(INDIRECT(\"'SUPERELEVATION (29)'!A4\"), \"\")","v":""},{"$f":"IFERROR(INDIRECT(\"'SUPERELEVATION (29)'!A5\"), \"\")","v":""},{"$f":"IFERROR(INDIRECT(\"'SSD (29)'!A4\"), \"\")","v":""},{"$f":"IFERROR(INDIRECT(\"'SSD (29)'!A5\"), \"\")","v":""},{"$f":"IFERROR(INDIRECT(\"'MAX GRADE (29)'!A4\"), \"\")","v":""},{"$f":"IFERROR(INDIRECT(\"'MAX GRADE (29)'!A5\"), \"\")","v":""},{"$f":"IFERROR(INDIRECT(\"'CROSS SLOPE (29)'!A4\"), \"\")","v":""},{"$f":"IFERROR(INDIRECT(\"'CROSS SLOPE (29)'!A5\"), \"\")","v":""},{"$f":"IFERROR(INDIRECT(\"'VERTICAL CLEARANCE (29)'!A4\"), \"\")","v":""},{"$f":"IFERROR(INDIRECT(\"'VERTICAL CLEARANCE (29)'!A5\"), \"\")","v":""},{"$f":"IFERROR(INDIRECT(\"'DESIGN & TARGET SPEED (29)'!J206\"), \"\")","v":""},{"$f":"IFERROR(INDIRECT(\"'FACILITY INFO (29)'!J15\"), \"\")","v":""},{"$f":"IFERROR(INDIRECT(\"'CONTROLLING CRITERIA (29)'!AH13\"), \"\")","v":""}]
[30,{"$f":"IFERROR(INDIRECT(\"'FACILITY INFO (30)'!H9\"), \"\")","v":""},{"$f":"IFERROR(INDIRECT(\"'DESIGN & TARGET SPEED (30)'!A4\"), \"\")","v":""},{"$f":"IFERROR(INDIRECT(\"'DESIGN & TARGET SPEED (30)'!A5\"), \"\")","v":""},{"$f":"IFERROR(INDIRECT(\"'PED (30)'!A4\"), \"\")","v":""},{"$f":"IFERROR(INDIRECT(\"'PED (30)'!A5\"), \"\")","v":""},{"$f":"IFERROR(INDIRECT(\"'BIKE (30)'!A4\"), \"\")","v":""},{"$f":"IFERROR(INDIRECT(\"'BIKE (30)'!A5\"), \"\")","v":""},{"$f":"IFERROR(INDIRECT(\"'TRANSIT (30)'!A4\"), \"\")","v":""},{"$f":"IFERROR(INDIRECT(\"'TRANSIT (30)'!A5\"), \"\")","v":""},{"$f":"IFERROR(INDIRECT(\"'RAMP (30)'!A4\"), \"\")","v":""},{"$f":"IFERROR(INDIRECT(\"'RAMP (30)'!A5\"), \"\")","v":""},{"$f":"IFERROR(INDIRECT(\"'DESIGN LOADING (30)'!A4\"), \"\")","v":""},{"$f":"IFERROR(INDIRECT(\"'DESIGN LOADING (30)'!A5\"), \"\")","v":""},{"$f":"IFERROR(INDIRECT(\"'LANE WIDTH (30)'!A4\"), \"\")","v":""},{"$f":"IFERROR(INDIRECT(\"'LANE WIDTH (30)'!A5\"), \"\")","v":""},{"$f":"IFERROR(INDIRECT(\"'SHOULDER WIDTH (30)'!A4\"), \"\")","v":""},{"$f":"IFERROR(INDIRECT(\"'SHOULDER WIDTH (30)'!A5\"), \"\")","v":""},{"$f":"IFERROR(INDIRECT(\"'HORIZONTAL CURVE (30)'!A4\"), \"\")","v":""},{"$f":"IFERROR(INDIRECT(\"'HORIZONTAL CURVE (30)'!A5\"), \"\")","v":""},{"$f":"IFERROR(INDIRECT(\"'SUPERELEVATION (30)'!A4\"), \"\")","v":""},{"$f":"IFERROR(INDIRECT(\"'SUPERELEVATION (30)'!A5\"), \"\")","v":""},{"$f":"IFERROR(INDIRECT(\"'SSD (30)'!A4\"), \"\")","v":""},{"$f":"IFERROR(INDIRECT(\"'SSD (30)'!A5\"), \"\")","v":""},{"$f":"IFERROR(INDIRECT(\"'MAX GRADE (30)'!A4\"), \"\")","v":""},{"$f":"IFERROR(INDIRECT(\"'MAX GRADE (30)'!A5\"), \"\")","v":""},{"$f":"IFERROR(INDIRECT(\"'CROSS SLOPE (30)'!A4\"), \"\")","v":""},{"$f":"IFERROR(INDIRECT(\"'CROSS SLOPE (30)'!A5\"), \"\")","v":""},{"$f":"IFERROR(INDIRECT(\"'VERTICAL CLEARANCE (30)'!A4\"), \"\")","v":""},{"$f":"IFERROR(INDIRECT(\"'VERTICAL CLEARANCE (30)'!A5\"), \"\")","v":""},{"$f":"IFERROR(INDIRECT(\"'DESIGN & TARGET SPEED (30)'!J206\"), \"\")","v":""},{"$f":"IFERROR(INDIRECT(\"'FACILITY INFO (30)'!J15\"), \"\")","v":""},{"$f":"IFERROR(INDIRECT(\"'CONTROLLING CRITERIA (30)'!AH13\"), \"\")","v":""}]

{"sheet":"HIDDEN Tables","index":2,"n_rows":30,"n_cols":6,"rows_kept":30,"cut":false,"hidden":true,"merged":[[5,2,5,5],[19,2,19,5]]}
["Hidden Tables and Figures for reference"]
[]
[null,"PDDG Chapter 3 Table 3-6"]
[null,"Target Speed Tab"]
[]
[null,"Area Type ","Minimum"]
[null,null,"Freeway","Arterial","Collector","Local"]
[null,"Rural Natural",50,25,25,15]
[null,"Rural Developed",50,25,20,15]
[null,"Rural Village",50,20,20,15]
[null,"Suburban Low Density Development",50,20,20,15]
[null,"Suburban High Density Development",50,20,20,15]
[null,"Suburban Town Center",50,20,20,15]
[null,"Urban Park",50,20,15,15]
[null,"Urban Residential",50,20,15,15]
[null,"Urban Central Business District",50,20,15,15]
[]
[]
[]
[null,"Area Type ","Maximum"]
[null,null,"Freeway","Arterial","Collector","Local"]
[null,"Rural Natural",75,55,45,35]
[null,"Rural Developed",75,45,40,35]
[null,"Rural Village",75,35,35,30]
[null,"Suburban Low Density Development",75,45,40,35]
[null,"Suburban High Density Development",75,35,35,30]
[null,"Suburban Town Center",75,30,30,30]
[null,"Urban Park",75,30,30,30]
[null,"Urban Residential",75,30,30,30]
[null,"Urban Central Business District",75,30,30,30]

{"sheet":"HIDDEN Lists","index":3,"n_rows":124,"n_cols":48,"rows_kept":124,"cut":false,"hidden":true,"merged":[[96,23,96,36],[99,35,99,37],[98,25,98,28],[98,30,98,34],[99,25,99,26],[99,28,99,29],[99,30,99,31],[99,33,99,34]]}
[null,"Workbook updated October 21, 2024"]
[null,null,null,null,null,null,null,null,null,null,null,null,null,"Tab:","DESIGN LOADING STRUCTURAL CAPACITY","LANE WIDTH","SHOULDER WIDTH","HORIZONTAL CURVE RADIUS","SUPERELEVATION RATE","STOPPING SIGHT DISTANCE","MAXIMUM GRADE","CROSS SLOPE","VERTICAL CLEARANCE"]
[null,"PDDG 3.2 - Area Types",null,"Bike Presence",null,"Pedestrian facilities are proposed on:",null,"RTA Service Districts",null,"Design Stage"]
[null,"Facility Info Tab",null,"Bike Tab",null,"Bicycle facilities are proposed on:",null,"Transit Tab",null,"Change Log Tab",null,null,null,"Sources:"]
[" ","Target Speed Tab",null,null,null,"Pedestrian Tab",null,null,null,null,null,null,null,null,"MassDOT Bridge Manual","MassDOT PDDG","MassDOT PDDG","MassDOT PDDG","MassDOT PDDG","MassDOT PDDG","MassDOT PDDG","MassDOT PDDG","MassDOT PDDG"]
[null,null,null,"NEITHER SIDE",null,"Bike Tab",null,null,null,"Pre-25%",null,null,null,null,"AASHTO Green Book","NACTO","AASHTO Green Book","Other (Describe below)","Other (Describe below)","Other (Describe below)","Other (Describe below)","AASHTO Green Book","AASHTO Green Book"]
[null,"Rural Natural",null,"ONLY ONE DIRECTION OF VEHICULAR TRAVEL",null,null,null,"BERKSHIRE REGIONAL TRANSIT AUTHORITY (BRTA)",null,"25%",null,null,null,null,"Other (Describe below)","AASHTO Green Book","Other (Describe below)",null,null,null,null,"Other (Describe below)","Other (Describe below)"]
[null,"Rural Developed",null,"EACH DIRECTION OF VEHICULAR TRAVEL",null,"NEITHER SIDE",null,"BROCKTON AREA TRANSIT AUTHORITY (BAT)",null,"75%",null,null,null,null,null,"Other (Describe below)",null,null,null,null,null,null,null,null,null,null,null,null,null,null,null,null,null,null,null,null,null,null,null,"Stopping Sight Distance"]
[null,"Rural Village",null,null,null,"ONE SIDE",null,"CAPE ANN TRANSIT AUTHORITY (CATA)",null,"100%",null,null,null,null,null,null,null,null,null,null,null,null,null,null,null,null,null,null,null,null,null,null,null,null,null,null,null,null,null,"PDDG Table 4-14"]
[null,"Suburban Low Density Development",null,null,null,"BOTH SIDES",null,"CAPE COD REGIONAL TRANSIT AUTHORITY (CCRTA)",null,"PS&E",null,null,null,null,null,null,null,null,null,null,null,null,null,null,null,null,null,null,null,null,null,null,null,null,null,null,null,null,null,"Design Speed (mph)","Stopping Sight Distance (ft)","Rate of Vertical Curvature, Ka (Calculated)","Rate of Vertical Curvature, Ka (Design)",null,"PDDG Table 4-1"]
[null,"Suburban High Density Development",null,null,null,null,null,"FRANKLIN REGIONAL TRANSIT AUTHORITY (FRTA)",null,null,null,null,null,null,null,null,null,null,null,null,null,null,null,null,null,null,null,null,null,null,null,null,null,null,null,null,null,null,null,15,80,3,3,null,"Design Speed (MPH)","Radius (ft)","Line of Sight","Sight Distance"]
[null,"Suburban Town Center",null,"Bike Facility Type",null,null,null,"GREATER ATTLEBORO TAUNTON REGIONAL TRANSIT AUTHORITY (GATRA)",null,null,null,null,null,null,null,null,null,null,null,null,null,null,null,null,null,null,null,null,null,null,null,null,null,null,null,null,null,null,null,20,115,6.1,7,null,50,3940,{"$f":"Table6[[#This Row],[Radius (ft)]]","v":3940},{"$f":"2*Table6[[#This Row],[Radius (ft)]]*ASIN(0.5)","v":4125.9583517145957}]
[null,"Urban Park",null,"Bike Tab",null,"Type of Pedestrian Accommodation:",null,"LOWELL REGIONAL TRANSIT AUTHORITY (LRTA)",null,null,null,null,null,null,null,null,null,null,null,null,null,null,null,null,null,null,null,null,null,null,null,null,null,null,null,null,null,null,null,25,155,11.1,12,null,55,4600,{"$f":"Table6[[#This Row],[Radius (ft)]]","v":4600},{"$f":"2*Table6[[#This Row],[Radius (ft)]]*ASIN(0.5)","v":4817.1087355043501}]
[null,"Urban Residential",null,null,null,"Pedestrian Tab",null,"MASSACHUSETTS BAY TRANSPORTATION AUTHORITY (MBTA) (A)",null,null,null,null,null,null,null,null,null,null,null,null,null,null,null,null,null,null,null,null,null,null,null,null,null,null,null,null,null,null,null,30,200,18.5,19,null,60,6560,{"$f":"Table6[[#This Row],[Radius (ft)]]","v":6560},{"$f":"2*Table6[[#This Row],[Radius (ft)]]*ASIN(0.5)","v":6869.6159358496816}]
[null,"Urban Central Business District",null,"NONE",null,null,null,"MASSACHUSETTS BAY TRANSPORTATION AUTHORITY (MBTA) (B)",null,null,null,null,null,null,null,null,null,null,null,null,null,null,null,null,null,null,null,null,null,null,null,null,null,null,null,null,null,null,null,35,250,29,29,null,70,6560,{"$f":"Table6[[#This Row],[Radius (ft)]]","v":6560},{"$f":"2*Table6[[#This Row],[Radius (ft)]]*ASIN(0.5)","v":6869.6159358496816}]
[null,null,null,"SHARROW",null,"NONE",null,"MASSACHUSETTS BAY TRANSPORTATION AUTHORITY (MBTA) (C)",null,null,null,null,null,null,null,null,null,null,null,null,null,null,null,null,null,null,null,null,null,null,null,null,null,null,null,null,null,null,null,40,305,43.1,44,null,75,8200,{"$f":"Table6[[#This Row],[Radius (ft)]]","v":8200},{"$f":"2*Table6[[#This Row],[Radius (ft)]]*ASIN(0.5)","v":8587.0199198121027}]
[null,null,null,"SHOULDER BIKE LANE",null,"SIDEWALK",null,"MERRIMACK VALLEY REGIONAL TRANSIT AUTHORITY (MVRTA)",null,null,null,null,null,null,"Max grade Charts",null,null,null,null,null,null,null,null,null,null,"Horizontal Curve Radius:",null,null,null,null,null,null,"Horizontal Curve Radius:",null,null,null,null,null,null,45,360,60.1,61]
[null,"PDDG - 3.2 - Roadway Types",null,"BUFFERED BIKE LANE",null,"SIDE PATH",null,"METROWEST REGIONAL TRANSIT AUTHORITY (MWRTA)",null,null,null,null,null,null,null,null,null,null,null,null,null,null,null,null,null,"Design Speed:",null,null,{"$f":"#REF!","v":{"$error":"#REF!"}},"mph",null,null,"PDDG Table 4-2&3",null,null,null,null,null,null,50,425,83.7,84]
[null,"Target Speed Tab",null,"SHARED USE PATH",null,"SHARED USE PATH",null,"MONTACHUSETT REGIONAL TRANSIT AUTHORITY (MART)",null,null,null,null,null,null,"Freeways",50,55,60,65,70,75,null,null,null,null,"Superelevation Rate:",null,null,null,{"$f":"IF(SUPERELEVATION!AC14=\"\",\"Fill out SUPERELEVATION tab\",SUPERELEVATION!AC14)","v":"Fill out SUPERELEVATION tab"},null,null,"Design Speed (MPH)","Radius (ft)",null,"e=",null,null,null,55,495,113.5,114]
[null,null,null,"SIDE PATH",null,null,null,"NANTUCKET REGIONAL TRANSIT AUTHORITY (NRTA)",null,null,null,null,null,null,"Level",0.04,0.04,0.03,0.03,0.03,0.03,null,null,null,null,"Horizontal Curve Radius:",null,null,15,{"$f":"_xlfn.XLOOKUP(AD19,'HIDDEN Lists'!AH20:AL20,'HIDDEN Lists'!AH21:AL32)","v":{"$error":"#N/A"}},null,null,"Design Speed (MPH)",-0.02,0,0.02,0.04,0.06,null,60,570,150.6,151]
[null,"Freeway",null,"SEPARATED BIKE LANE (1-WAY)",null,null,null,"PIONEER VALLEY TRANSIT AUTHORITY (PVTA)",null,null,null,null,null,null,"Rolling",0.05,0.05,0.04,0.04,0.04,0.04,null,null,null,null,{"$f":"_xlfn.XLOOKUP(AC18,AC20:AC31,AD20:AD31)","v":{"$error":"#REF!"}},"ft",null,20,null,null,null,15,50,50,45,45,40,null,65,645,192.8,193]
[null,"Arterial",null,"SEPARATED BIKE LANE (2-WAY)",null,"Crosswalks at Signalized Intersections",null,"SOUTHEASTERN REGIONAL TRANSIT AUTHORITY (SRTA)",null,null,null,null,null,null,"Mountainous",0.06,0.06,0.05,"-","-","-",null,null,null,null,null,null,null,25,null,null,null,20,110,100,95,90,85,null,70,730,246.9,247]
[null,"Collector",null,null,null,"Crosswalks at Bus Stops",null,"VINEYARD TRANSIT AUTHORITY (VTA)",null,null,null,null,null,null,null,null,null,null,null,null,null,null,null,null,null,null,null,null,30,null,null,null,25,200,185,170,155,145,null,75,820,311.60000000000002,312]
[null,"Local",null,null,null,"Pedestrian Tab",null,"WORCESTER REGIONAL TRANSIT AUTHORITY (WRTA)",null,null,null,null,null,null,"Arterials and Highways (Rural Villages, Suburban High-Intensity, Suburban Town Center, and Urban Areas) ",null,null,null,null,null,null,null,null,null,null,null,null,null,35,null,null,null,30,335,300,275,250,235,null,80,910,383.7,384]
[null,null,null,null,null,"Transit Tab",null,null,null,null,null,null,null,null,"Terrain","30 mph","35 mph","40 mph","45 mph","50 mph","55 mph","60 mph",null,null,null,null,null,null,40,null,null,null,35,510,455,410,375,340]
[null,null,null,null,null,null,null,null,null,null,null,null,null,null,"Level",0.08,7.0000000000000007E-2,7.0000000000000007E-2,0.06,0.06,0.05,0.05,null,null,null,null,null,null,45,null,null,null,40,765,670,595,535,485]
[null,"Functional Classification",null,null,null,"ARE",null,null,null,null,null,null,null,null,"Rolling",0.09,0.08,0.08,7.0000000000000007E-2,7.0000000000000007E-2,0.06,0.06,null,null,null,null,null,null,50,null,null,null,45,1040,900,795,715,645]
[null,"Facility Info Tab",null,null,null,"ARE NOT",null,null,null,null,null,null,null,null,"Mountainous",0.11,0.1,0.1,0.09,0.09,0.08,0.08,null,null,null,null,null,null,55,null,null,null,50,3940,null,null,930,835]
[null,null,null,null,null,null,null,null,null,null,null,null,null,null,null,null,null,null,null,null,null,null,null,null,null,null,null,null,60,null,null,null,55,4600,null,null,1190,1060]
[null,"INTERSTATE",null,null,null,null,null,null,null,null,null,null,null,null,"Arterials and Highways (Rural Natural, Rural Developed, and Suburban Low Intensity Areas) ",null,null,null,null,null,null,null,null,null,null,null,null,null,70,null,null,null,60,6560,null,null,1500,1330]
[null,"OTHER FREEWAY OR EXPRESSWAY",null,null,null,"Existing Crosswalk Removal",null,null,null,null,null,null,null,null,"Terrain","40 mph","45 mph","50 mph","55 mph","60 mph",null,null,null,null,null,null,null,null,75,null,null,null,70,6560,null,null,"Not Permitted",2040]
[null,"PRINCIPAL ARTERIAL",null,null,null,"Pedestrian Tab",null,null,null,null,null,null,null,null,"Level",0.05,0.05,0.04,0.04,0.03,null,null,null,null,null,null,null,null,"mph","ft",null,null,75,8200,null,null,"Not Permitted",2500]
[null,"MINOR ARTERIAL",null,null,null,null,null,null,null,null,null,null,null,null,"Rolling",0.06,0.06,0.05,0.05,0.04]
[null,"MAJOR COLLECTOR",null,null,null,"HAVE",null,null,null,null,null,null,null,null,"Mountainous",0.08,7.0000000000000007E-2,7.0000000000000007E-2,0.06,0.06,null,null,null,null,null,null,null,null,null,null,null,null,"Horizontal Curve Radius:"]
[null,"MINOR COLLECTOR",null,null,null,"HAVE NOT",null,null,null,null,null,null,null,null,null,null,null,null,null,null,null,null,null,null,null,null,null,null,null,null,null,null,"PDDG Table 4-4"]
[null,"LOCAL",null,null,null,null,null,null,null,null,null,null,null,null,"Collectors and Local Roads (Rural Villages, Suburban High-Intensity, Suburban Town Center, and Urban Areas) ",null,null,null,null,null,null,null,null,null,null,null,null,null,null,null,null,null,"e (%)",15,20,25,30,35,40,45,50,55,60,65,70]
[null,null,null,null,null,null,null,null,null,null,null,null,null,null,"Terrain","20 mph","25 mph","30 mph","35 mph","40 mph","45 mph","50 mph","55 mph","60 mph",null,null,null,null,null,null,null,null,"NC",868,1580,2290,3130,4100,5230,6480,7870,9410,11100,12600,14100]
[null,null,null,null,null,null,null,null,null,null,null,null,null,null,"Level",0.09,0.09,0.09,0.09,0.09,0.08,7.0000000000000007E-2,7.0000000000000007E-2,0.06,null,null,null,null,null,null,null,null,"RC",614,1120,1630,2240,2950,3770,4680,5700,6820,8060,9130,10300]
[null,"Urban / Rural",null,null,null,null,null,null,null,null,null,null,null,null,"Rolling",0.12,0.12,0.11,0.1,0.1,0.09,0.08,7.0000000000000007E-2,7.0000000000000007E-2,null,null,null,null,null,null,null,null,2.2000000000000002,543,991,1450,2000,2630,3370,4190,5100,6110,7230,8200,9240]
[null,"Faility Info Tab",null,null,null,null,null,null,null,null,null,null,null,null,"Mountainous",0.14000000000000001,0.13,0.12,0.12,0.12,0.11,0.1,0.1,0.09,null,null,null,null,null,null,null,null,2.4,482,884,1300,1790,2360,3030,3770,4600,5520,6540,7430,8380]
[null,null,null,null,null,null,null,null,null,null,null,null,null,null,null,null,null,null,null,null,null,null,null,null,null,null,null,null,null,null,null,null,2.6,430,791,1170,1610,2130,2740,3420,4170,5020,5950,6770,7660]
[null,"Urban",null,null,null,null,null,null,null,null,null,null,null,null,"Collectors (Rural Natural, Rural Developed, and Suburban Low Intensity Areas) ",null,null,null,null,null,null,null,null,null,null,null,null,null,null,null,null,null,2.8,384,709,1050,1460,1930,2490,3110,3800,4580,5440,6200,7030]
[null,"Urban Cluster",null,null,null,null,null,null,null,null,null,null,null,null,"Terrain","20 mph","25 mph","30 mph","35 mph","40 mph","45 mph","50 mph","55 mph","60 mph",null,null,null,null,null,null,null,null,3,341,635,944,1320,1760,2270,2840,3480,4200,4990,5710,6490]
[null,"Rural",null,null,null,null,null,null,null,null,null,null,null,null,"Level",7.0000000000000007E-2,7.0000000000000007E-2,7.0000000000000007E-2,7.0000000000000007E-2,7.0000000000000007E-2,7.0000000000000007E-2,0.06,0.06,0.05,null,null,null,null,null,null,null,null,3.2,300,566,850,1200,1600,2080,2600,3200,3860,4600,5280,6010]
[null,"Rural Village",null,null,null,null,null,null,null,null,null,null,null,null,"Rolling",0.1,0.1,0.09,0.09,0.08,0.08,7.0000000000000007E-2,7.0000000000000007E-2,0.06,null,null,null,null,null,null,null,null,3.4,256,498,761,1080,1460,1900,2390,2940,3560,4250,4890,5580]
[null,null,null,null,null,null,null,null,null,null,null,null,null,null,"Mountainous",0.12,0.11,0.1,0.1,0.1,0.1,0.09,0.09,0.09,null,null,null,null,null,null,null,null,3.6,209,422,673,972,1320,1740,2190,2710,3290,3940,4540,5210]
[null,null,null,null,null,null,null,null,null,null,null,null,null,null,null,null,null,null,null,null,null,null,null,null,null,null,null,null,null,null,null,null,3.8,176,358,583,864,1190,1590,2010,2490,3040,3650,4230,4860]
[null,null,null,null,null,null,null,null,null,1,"Drainage of Traveled Way",null,null,null,"Local Roads (Rural Natural, Rural Developed, and Suburban Low Intensity Areas) ",null,null,null,null,null,null,null,null,null,null,null,null,null,null,null,null,null,4,151,309,511,766,1070,1440,1840,2300,2810,3390,3950,4550]
[null,null,null,null,null,null,null,null,null,1.5,"Lateral Support of Pavement",null,null,null,"Terrain","15 mph","20 mph","25 mph","30 mph","35 mph","40 mph","45 mph",null,null,null,null,null,null,null,null,null,null,4.2,131,270,452,684,960,1310,1680,2110,2590,3140,3680,4270]
[null,null,null,null,null,null,null,null,null,2,"Encroachment of Wide Vehicles",null,null,null,"Level",0.09,0.08,7.0000000000000007E-2,7.0000000000000007E-2,7.0000000000000007E-2,7.0000000000000007E-2,7.0000000000000007E-2,null,null,null,null,null,null,null,null,null,null,4.4000000000000004,116,238,402,615,868,1190,1540,1940,2400,2920,3440,4010]
[null,null,null,null,null,null,null,null,null,2,"Off-tracking of Wide Vehicles",null,null,null,"Rolling",0.12,0.11,0.11,0.1,0.1,0.1,0.09,null,null,null,null,null,null,null,null,null,null,4.5999999999999996,102,212,360,555,788,1090,1410,1780,2210,2710,3220,3770]
[null,null,null,null,null,null,null,null,null,3,"Errant Vehicles",null,null,null,"Mountainous",0.17,0.16,0.15,0.14000000000000001,0.13,0.13,0.12,null,null,null,null,null,null,null,null,null,null,4.8,91,189,324,502,718,995,1300,1640,2050,2510,3000,3550]
[null,null,null,null,null,null,null,null,null,4,"Bicycle and Pedestrian Use",null,null,null,null,null,null,null,null,null,null,null,null,null,null,null,null,null,null,null,null,null,5,82,169,292,456,654,911,1190,1510,1890,2330,2800,3330]
[null,null,null,null,null,null,null,null,null,6,"Emergency Stopping",null,null,null,null,null,null,null,null,null,null,null,null,null,null,null,null,null,null,null,null,null,5.2,73,152,264,413,595,833,1090,1390,1750,2160,2610,3120]
[null,null,null,null,null,null,null,null,null,6,"Emergency Travel",null,null,null,null,null,null,null,null,null,null,null,null,null,null,null,null,null,null,null,null,null,5.4,65,136,237,373,540,759,995,1280,1610,1990,2420,2910]
[null,null,null,null,null,null,null,null,null,6,"Mail Delivery and Garbage Pickup",null,null,null,null,null,null,null,null,null,null,null,null,null,null,null,null,null,null,null,null,null,5.6,58,121,212,335,487,687,903,1160,1470,1830,2230,2700]
[null,null,null,null,null,null,null,null,null,8,"Law Enforcement Operations",null,null,null,null,null,null,null,null,null,null,null,null,null,null,null,null,null,null,null,null,null,5.8,51,106,186,296,431,611,806,1040,1320,1650,2020,2460]
[null,null,null,null,null,null,null,null,null,10,"Large Vehicle Emergency Stopping",null,null,null,null,null,null,null,null,null,null,null,null,null,null,null,null,null,null,null,null,null,6,39,81,144,231,340,485,643,833,1060,1330,1660,2040]
[null,null,null,null,null,null,null,null,null,10,"Occassional Travel/Detours"]
[null,null,null,null,null,null,null,null,null,8,"Highway Maintenance"]
[null,null,null,null,null,null,null,null,null,null,"Other (describe below)"]
[null,"YES"]
[null,"NO"]
[]
[]
[]
[null,"HMA"]
[null,"CEM CONC"]
[]
[]
[]
[]
[]
[]
[]
[]
[]
[]
[]
[]
[]
[]
[]
[]
[]
[]
[]
[]
[]
[]
[]
[]
[]
[]
[]
[]
[null,null,null,null,null,null,null,null,null,null,null,null,null,null,null,null,null,null,null,null,null,null,"Exhibit (5-14)","Roadway Type"]
[]
[null,null,null,null,null,null,null,null,null,null,null,null,null,null,null,null,null,null,null,null,null,null,"Travel Lane Width (ft)",null,null,"Arterials",null,null,null,null,"Collectors"]
[null,null,null,null,null,null,null,null,null,null,null,null,null,null,null,null,null,null,null,null,null,null,null,"Freeway",null,"Major",null,null,"Minor",null,"Major",null,null," Minor",null,"Local Road"]
[null,null,null,null,null,null,null,null,null,null,null,null,null,null,null,null,null,null,null,null,null,null,"Area Type",null,null,"Min","Max",null,"Min","Max","Min","Max",null,"Min","Max","Min","Max"]
[null,null,null,null,null,null,null,null,null,null,null,null,null,null,null,null,null,null,null,null,null,null,"Rural natural",12,null,11,12,null,11,12,10,12,null,10,12,9,12]
[null,"Width lookup tables",null,null,null,null,null,null,null,null,null,null,null,null,null,null,null,null,null,null,null,null,"Rural developed",12,null,11,12,null,11,12,10,12,null,10,12,9,12]
[null,null,null,null,null,null,null,null,null,null,null,null,null,null,null,null,null,null,null,null,null,null,"Rural Village",null,null,11,12,null,11,12,10,12,null,10,12,9,12]
[null,"Shoulders",null,null,null,"Lanes",null,null,null,null,null,null,null,null,null,null,null,null,null,null,null,null,"Suburban Low Density",12,null,11,12,null,11,12,10,12,null,10,12,9,12]
[null,"MassDOT PDDG, Exhibit 5-12",null,null,null,"MassDOT PDDG, Exhibit 5-14",null,null,null,null,null,null,null,null,null,null,null,null,null,null,null,null,"Suburban High Intensity",12,null,11,12,null,11,12,10,12,null,10,12,9,12]
[null,"Minimums",null,null,null,"Minimums",null,null,null,null,null,null,null,null,null,null,null,null,null,null,null,null,"Suburban Town Center",null,null,11,12,null,11,12,10,12,null,10,12,9,12]
[null,"INTERSTATE",10,null,null,"INTERSTATE",12,null,null,null,null,null,null,null,null,null,null,null,null,null,null,null,"Urban",12,null,11,12,null,11,12,10,12,null,10,12,9,12]
[null,"OTHER FREEWAY OR EXPRESSWAY",10,null,null,"OTHER FREEWAY OR EXPRESSWAY",12]
[null,"PRINCIPAL ARTERIAL",4,null,null,"PRINCIPAL ARTERIAL",11]
[null,"MINOR ARTERIAL",4,null,null,"MINOR ARTERIAL",11]
[null,"MAJOR COLLECTOR",4,null,null,"MAJOR COLLECTOR",10]
[null,"MINOR COLLECTOR",4,null,null,"MINOR COLLECTOR",10]
[null,"LOCAL",2,null,null,"LOCAL",9]
[null,"(Select from list:)",0,null,null,"(Select from list:)",0]
[null,"Maximums",null,null,null,"Maximums"]
[null,"INTERSTATE",12,null,null,"INTERSTATE",12]
[null,"OTHER FREEWAY OR EXPRESSWAY",12,null,null,"OTHER FREEWAY OR EXPRESSWAY",12]
[null,"PRINCIPAL ARTERIAL",12,null,null,"PRINCIPAL ARTERIAL",12]
[null,"MINOR ARTERIAL",12,null,null,"MINOR ARTERIAL",12]
[null,"MAJOR COLLECTOR",10,null,null,"MAJOR COLLECTOR",12]
[null,"MINOR COLLECTOR",10,null,null,"MINOR COLLECTOR",12]
[null,"LOCAL",8,null,null,"LOCAL",12]
[null,"(Select from list:)",0,null,null,"(Select from list:)",0]

{"sheet":"HIDDEN VLookup","index":4,"n_rows":33,"n_cols":37,"rows_kept":33,"cut":false,"hidden":true,"merged":[]}
["COLUMN:",1,2,3,4,5,6,7,8,9,10,11,12,13,14,15,16,17,18,19,20,21,22,23,24,25,26,27,28,29,30,31,32,33,34,35,36]
[null,"Street name","Project Proponent","Assest Ownership","Area Type","NHS","Functional Classification","Average Daily Traffic:","Percent Truck Traffic:","Posted or statutory speed:","50th Percentile Speeds:","85th Percentile Speeds:","Number of thru lanes:","Travel lane width:","Outside Shoulder Width:","Inside Shoulder Width:","Pedestrian facilities exist on:","Ped Type:","Ped Width:","Daily Pedestrian Volume:","High Potential Walking","Bicycle facilities exist on:","Bike Type:","Bike Width:","Daily Bicycle Volume:","High Potential Biking","Project is not within the service district of any of the RTAs or of the MBTA.","There are no existing or proposed RTA/MBTA transit services within the project limits.","There are no bus stops within the project limits.","Minimum design speed ","Maximum design speed","Design speed that current roadway elements meet","Selected target speed","Selected design speed","SSD curve radius","Superelevation rate","Design speed multi-lane"]
["STREET:","Please select a facility:","AJ13","AJ14","W13","W14","J15","K18","K19","K20","K21","K22","Z18","Z19","Z20","Z21","K25","R25","AD25","K26","AH27","K33","R33","AD33","K34","AH35","AH41","AH42","AH43","K22","AB22","Q25","J198","J206","K25","AC14","AH13"]
[1,{"$f":"IFERROR(INDIRECT(\"'FACILITY INFO'!H9\"), \"\")","v":"Street Road (Route X) - Segment X"},{"$f":"IFERROR(INDIRECT(\"'FACILITY INFO'!AJ13\"), \"\")","v":""},{"$f":"IFERROR(INDIRECT(\"'FACILITY INFO'!AJ14\"), \"\")","v":""},{"$f":"IFERROR(INDIRECT(\"'FACILITY INFO'!W13\"), \"\")","v":0},{"$f":"IFERROR(INDIRECT(\"'FACILITY INFO'!w14\"), \"\")","v":0},{"$f":"IFERROR(INDIRECT(\"'FACILITY INFO'!J15\"), \"\")","v":0},{"$f":"IFERROR(INDIRECT(\"'FACILITY INFO'!K18\"), \"\")","v":0},{"$f":"IFERROR(INDIRECT(\"'FACILITY INFO'!K19\"), \"\")","v":0},{"$f":"IFERROR(INDIRECT(\"'FACILITY INFO'!K20\"), \"\")","v":0},{"$f":"IFERROR(INDIRECT(\"'FACILITY INFO'!K21\"), \"\")","v":0},{"$f":"IFERROR(INDIRECT(\"'FACILITY INFO'!K22\"), \"\")","v":0},{"$f":"IFERROR(INDIRECT(\"'FACILITY INFO'!z18\"), \"\")","v":0},{"$f":"IFERROR(INDIRECT(\"'FACILITY INFO'!z19\"), \"\")","v":0},{"$f":"IFERROR(INDIRECT(\"'FACILITY INFO'!z20\"), \"\")","v":0},{"$f":"IFERROR(INDIRECT(\"'FACILITY INFO'!z21\"), \"\")","v":0},{"$f":"IFERROR(INDIRECT(\"'FACILITY INFO'!k25\"), \"\")","v":0},{"$f":"IFERROR(INDIRECT(\"'FACILITY INFO'!r25\"), \"\")","v":0},{"$f":"IFERROR(INDIRECT(\"'FACILITY INFO'!ad25\"), \"\")","v":0},{"$f":"IFERROR(INDIRECT(\"'FACILITY INFO'!K26\"), \"\")","v":0},{"$f":"IFERROR(INDIRECT(\"'FACILITY INFO'!ah27\"), \"\")","v":false},{"$f":"IFERROR(INDIRECT(\"'FACILITY INFO'!k33\"), \"\")","v":0},{"$f":"IFERROR(INDIRECT(\"'FACILITY INFO'!r33\"), \"\")","v":0},{"$f":"IFERROR(INDIRECT(\"'FACILITY INFO'!ad33\"), \"\")","v":0},{"$f":"IFERROR(INDIRECT(\"'FACILITY INFO'!k34\"), \"\")","v":0},{"$f":"IFERROR(INDIRECT(\"'FACILITY INFO'!ah35\"), \"\")","v":false},{"$f":"IFERROR(INDIRECT(\"'FACILITY INFO'!ah41\"), \"\")","v":false},{"$f":"IFERROR(INDIRECT(\"'FACILITY INFO'!ah42\"), \"\")","v":false},{"$f":"IFERROR(INDIRECT(\"'FACILITY INFO'!AH43\"), \"\")","v":false},{"$f":"IFERROR(INDIRECT(\"'DESIGN & TARGET SPEED'!k22\"), \"\")","v":""},{"$f":"IFERROR(INDIRECT(\"'DESIGN & TARGET SPEED'!AB22\"), \"\")","v":""},{"$f":"IFERROR(INDIRECT(\"'DESIGN & TARGET SPEED'!Q25\"), \"\")","v":0},{"$f":"IFERROR(INDIRECT(\"'DESIGN & TARGET SPEED'!J198\"), \"\")","v":0},{"$f":"IFERROR(INDIRECT(\"'DESIGN & TARGET SPEED'!J206\"), \"\")","v":0},{"$f":"IFERROR(INDIRECT(\"'SSD'!k25\"), \"\")","v":0},{"$f":"IFERROR(INDIRECT(\"'SUPERELEVATION'!AC14\"), \"\")","v":0},{"$f":"IFERROR(INDIRECT(\"'DESIGN & TARGET SPEED'!AH13\"), \"\")","v":false}]
[2,{"$f":"IFERROR(INDIRECT(\"'FACILITY INFO (2)'!H9\"), \"\")","v":""},{"$f":"IFERROR(INDIRECT(\"'FACILITY INFO (2)'!AJ13\"), \"\")","v":""},{"$f":"IFERROR(INDIRECT(\"'FACILITY INFO (2)'!AJ14\"), \"\")","v":""},{"$f":"IFERROR(INDIRECT(\"'FACILITY INFO (2)'!w13\"), \"\")","v":""},{"$f":"IFERROR(INDIRECT(\"'FACILITY INFO (2)'!w14\"), \"\")","v":""},{"$f":"IFERROR(INDIRECT(\"'FACILITY INFO (2)'!J15\"), \"\")","v":""},{"$f":"IFERROR(INDIRECT(\"'FACILITY INFO (2)'!K18\"), \"\")","v":""},{"$f":"IFERROR(INDIRECT(\"'FACILITY INFO (2)'!K19\"), \"\")","v":""},{"$f":"IFERROR(INDIRECT(\"'FACILITY INFO (2)'!K20\"), \"\")","v":""},{"$f":"IFERROR(INDIRECT(\"'FACILITY INFO (2)'!K21\"), \"\")","v":""},{"$f":"IFERROR(INDIRECT(\"'FACILITY INFO (2)'!K22\"), \"\")","v":""},{"$f":"IFERROR(INDIRECT(\"'FACILITY INFO (2)'!z18\"), \"\")","v":""},{"$f":"IFERROR(INDIRECT(\"'FACILITY INFO (2)'!z19\"), \"\")","v":""},{"$f":"IFERROR(INDIRECT(\"'FACILITY INFO (2)'!z20\"), \"\")","v":""},{"$f":"IFERROR(INDIRECT(\"'FACILITY INFO (2)'!z21\"), \"\")","v":""},{"$f":"IFERROR(INDIRECT(\"'FACILITY INFO (2)'!k25\"), \"\")","v":""},{"$f":"IFERROR(INDIRECT(\"'FACILITY INFO (2)'!r25\"), \"\")","v":""},{"$f":"IFERROR(INDIRECT(\"'FACILITY INFO (2)'!ad25\"), \"\")","v":""},{"$f":"IFERROR(INDIRECT(\"'FACILITY INFO (2)'!k26\"), \"\")","v":""},{"$f":"IFERROR(INDIRECT(\"'FACILITY INFO (2)'!ah27\"), \"\")","v":""},{"$f":"IFERROR(INDIRECT(\"'FACILITY INFO (2)'!k33\"), \"\")","v":""},{"$f":"IFERROR(INDIRECT(\"'FACILITY INFO (2)'!r33\"), \"\")","v":""},{"$f":"IFERROR(INDIRECT(\"'FACILITY INFO (2)'!ad33\"), \"\")","v":""},{"$f":"IFERROR(INDIRECT(\"'FACILITY INFO (2)'!k34\"), \"\")","v":""},{"$f":"IFERROR(INDIRECT(\"'FACILITY INFO (2)'!ah35\"), \"\")","v":""},{"$f":"IFERROR(INDIRECT(\"'FACILITY INFO (2)'!ah41\"), \"\")","v":""},{"$f":"IFERROR(INDIRECT(\"'FACILITY INFO (2)'!ah42\"), \"\")","v":""},{"$f":"IFERROR(INDIRECT(\"'FACILITY INFO (2)'!ah43\"), \"\")","v":""},{"$f":"IFERROR(INDIRECT(\"'DESIGN & TARGET SPEED (2)'!k22\"), \"\")","v":""},{"$f":"IFERROR(INDIRECT(\"'DESIGN & TARGET SPEED (2)'!ab22\"), \"\")","v":""},{"$f":"IFERROR(INDIRECT(\"'DESIGN & TARGET SPEED (2)'!q25\"), \"\")","v":""},{"$f":"IFERROR(INDIRECT(\"'DESIGN & TARGET SPEED (2)'!j198\"), \"\")","v":""},{"$f":"IFERROR(INDIRECT(\"'DESIGN & TARGET SPEED (2)'!j206\"), \"\")","v":""},{"$f":"IFERROR(INDIRECT(\"'SSD (2)'!k25\"), \"\")","v":""},{"$f":"IFERROR(INDIRECT(\"'SUPERELEVATION (2)'!ac14\"), \"\")","v":""},{"$f":"IFERROR(INDIRECT(\"'DESIGN & TARGET SPEED (2)'!AH13\"), \"\")","v":""}]
[3,{"$f":"IFERROR(INDIRECT(\"'FACILITY INFO (3)'!H9\"), \"\")","v":""},{"$f":"IFERROR(INDIRECT(\"'FACILITY INFO (3)'!AJ13\"), \"\")","v":""},{"$f":"IFERROR(INDIRECT(\"'FACILITY INFO (3)'!AJ14\"), \"\")","v":""},{"$f":"IFERROR(INDIRECT(\"'FACILITY INFO (3)'!w13\"), \"\")","v":""},{"$f":"IFERROR(INDIRECT(\"'FACILITY INFO (3)'!w14\"), \"\")","v":""},{"$f":"IFERROR(INDIRECT(\"'FACILITY INFO (3)'!j15\"), \"\")","v":""},{"$f":"IFERROR(INDIRECT(\"'FACILITY INFO (3)'!K18\"), \"\")","v":""},{"$f":"IFERROR(INDIRECT(\"'FACILITY INFO (3)'!K19\"), \"\")","v":""},{"$f":"IFERROR(INDIRECT(\"'FACILITY INFO (3)'!K20\"), \"\")","v":""},{"$f":"IFERROR(INDIRECT(\"'FACILITY INFO (3)'!K21\"), \"\")","v":""},{"$f":"IFERROR(INDIRECT(\"'FACILITY INFO (3)'!K22\"), \"\")","v":""},{"$f":"IFERROR(INDIRECT(\"'FACILITY INFO (3)'!z18\"), \"\")","v":""},{"$f":"IFERROR(INDIRECT(\"'FACILITY INFO (3)'!z19\"), \"\")","v":""},{"$f":"IFERROR(INDIRECT(\"'FACILITY INFO (3)'!z20\"), \"\")","v":""},{"$f":"IFERROR(INDIRECT(\"'FACILITY INFO (3)'!z21\"), \"\")","v":""},{"$f":"IFERROR(INDIRECT(\"'FACILITY INFO (3)'!k25\"), \"\")","v":""},{"$f":"IFERROR(INDIRECT(\"'FACILITY INFO (3)'!r25\"), \"\")","v":""},{"$f":"IFERROR(INDIRECT(\"'FACILITY INFO (3)'!ad25\"), \"\")","v":""},{"$f":"IFERROR(INDIRECT(\"'FACILITY INFO (3)'!k26\"), \"\")","v":""},{"$f":"IFERROR(INDIRECT(\"'FACILITY INFO (3)'!ah27\"), \"\")","v":""},{"$f":"IFERROR(INDIRECT(\"'FACILITY INFO (3)'!k33\"), \"\")","v":""},{"$f":"IFERROR(INDIRECT(\"'FACILITY INFO (3)'!r33\"), \"\")","v":""},{"$f":"IFERROR(INDIRECT(\"'FACILITY INFO (3)'!ad33\"), \"\")","v":""},{"$f":"IFERROR(INDIRECT(\"'FACILITY INFO (3)'!k34\"), \"\")","v":""},{"$f":"IFERROR(INDIRECT(\"'FACILITY INFO (3)'!ah35\"), \"\")","v":""},{"$f":"IFERROR(INDIRECT(\"'FACILITY INFO (3)'!ah41\"), \"\")","v":""},{"$f":"IFERROR(INDIRECT(\"'FACILITY INFO (3)'!ah42\"), \"\")","v":""},{"$f":"IFERROR(INDIRECT(\"'FACILITY INFO (3)'!ah43\"), \"\")","v":""},{"$f":"IFERROR(INDIRECT(\"'DESIGN & TARGET SPEED (3)'!k22\"), \"\")","v":""},{"$f":"IFERROR(INDIRECT(\"'DESIGN & TARGET SPEED (3)'!ab22\"), \"\")","v":""},{"$f":"IFERROR(INDIRECT(\"'DESIGN & TARGET SPEED (3)'!q25\"), \"\")","v":""},{"$f":"IFERROR(INDIRECT(\"'DESIGN & TARGET SPEED (3)'!j198\"), \"\")","v":""},{"$f":"IFERROR(INDIRECT(\"'DESIGN & TARGET SPEED (3)'!j206\"), \"\")","v":""},{"$f":"IFERROR(INDIRECT(\"'SSD (3)'!k25\"), \"\")","v":""},{"$f":"IFERROR(INDIRECT(\"'SUPERELEVATION (3)'!ac14\"), \"\")","v":""},{"$f":"IFERROR(INDIRECT(\"'DESIGN & TARGET SPEED (3)'!AH13\"), \"\")","v":""}]
[4,{"$f":"IFERROR(INDIRECT(\"'FACILITY INFO (4)'!H9\"), \"\")","v":""},{"$f":"IFERROR(INDIRECT(\"'FACILITY INFO (4)'!AJ13\"), \"\")","v":""},{"$f":"IFERROR(INDIRECT(\"'FACILITY INFO (4)'!AJ14\"), \"\")","v":""},{"$f":"IFERROR(INDIRECT(\"'FACILITY INFO (4)'!w13\"), \"\")","v":""},{"$f":"IFERROR(INDIRECT(\"'FACILITY INFO (4)'!w14\"), \"\")","v":""},{"$f":"IFERROR(INDIRECT(\"'FACILITY INFO (4)'!j15\"), \"\")","v":""},{"$f":"IFERROR(INDIRECT(\"'FACILITY INFO (4)'!K18\"), \"\")","v":""},{"$f":"IFERROR(INDIRECT(\"'FACILITY INFO (4)'!K19\"), \"\")","v":""},{"$f":"IFERROR(INDIRECT(\"'FACILITY INFO (4)'!K20\"), \"\")","v":""},{"$f":"IFERROR(INDIRECT(\"'FACILITY INFO (4)'!K21\"), \"\")","v":""},{"$f":"IFERROR(INDIRECT(\"'FACILITY INFO (4)'!K22\"), \"\")","v":""},{"$f":"IFERROR(INDIRECT(\"'FACILITY INFO (4)'!z18\"), \"\")","v":""},{"$f":"IFERROR(INDIRECT(\"'FACILITY INFO (4)'!z19\"), \"\")","v":""},{"$f":"IFERROR(INDIRECT(\"'FACILITY INFO (4)'!z20\"), \"\")","v":""},{"$f":"IFERROR(INDIRECT(\"'FACILITY INFO (4)'!z21\"), \"\")","v":""},{"$f":"IFERROR(INDIRECT(\"'FACILITY INFO (4)'!k25\"), \"\")","v":""},{"$f":"IFERROR(INDIRECT(\"'FACILITY INFO (4)'!r25\"), \"\")","v":""},{"$f":"IFERROR(INDIRECT(\"'FACILITY INFO (4)'!ad25\"), \"\")","v":""},{"$f":"IFERROR(INDIRECT(\"'FACILITY INFO (4)'!k26\"), \"\")","v":""},{"$f":"IFERROR(INDIRECT(\"'FACILITY INFO (4)'!ah27\"), \"\")","v":""},{"$f":"IFERROR(INDIRECT(\"'FACILITY INFO (4)'!k33\"), \"\")","v":""},{"$f":"IFERROR(INDIRECT(\"'FACILITY INFO (4)'!r33\"), \"\")","v":""},{"$f":"IFERROR(INDIRECT(\"'FACILITY INFO (4)'!ad33\"), \"\")","v":""},{"$f":"IFERROR(INDIRECT(\"'FACILITY INFO (4)'!k34\"), \"\")","v":""},{"$f":"IFERROR(INDIRECT(\"'FACILITY INFO (4)'!ah35\"), \"\")","v":""},{"$f":"IFERROR(INDIRECT(\"'FACILITY INFO (4)'!ah41\"), \"\")","v":""},{"$f":"IFERROR(INDIRECT(\"'FACILITY INFO (4)'!ah42\"), \"\")","v":""},{"$f":"IFERROR(INDIRECT(\"'FACILITY INFO (4)'!ah43\"), \"\")","v":""},{"$f":"IFERROR(INDIRECT(\"'DESIGN & TARGET SPEED (4)'!k22\"), \"\")","v":""},{"$f":"IFERROR(INDIRECT(\"'DESIGN & TARGET SPEED (4)'!ab22\"), \"\")","v":""},{"$f":"IFERROR(INDIRECT(\"'DESIGN & TARGET SPEED (4)'!q25\"), \"\")","v":""},{"$f":"IFERROR(INDIRECT(\"'DESIGN & TARGET SPEED (4)'!j198\"), \"\")","v":""},{"$f":"IFERROR(INDIRECT(\"'DESIGN & TARGET SPEED (4)'!j206\"), \"\")","v":""},{"$f":"IFERROR(INDIRECT(\"'SSD (4)'!k25\"), \"\")","v":""},{"$f":"IFERROR(INDIRECT(\"'SUPERELEVATION (4)'!ac14\"), \"\")","v":""},{"$f":"IFERROR(INDIRECT(\"'DESIGN & TARGET SPEED (4)'!AH13\"), \"\")","v":""}]
[5,{"$f":"IFERROR(INDIRECT(\"'FACILITY INFO (5)'!H9\"), \"\")","v":""},{"$f":"IFERROR(INDIRECT(\"'FACILITY INFO (5)'!AJ13\"), \"\")","v":""},{"$f":"IFERROR(INDIRECT(\"'FACILITY INFO (5)'!AJ14\"), \"\")","v":""},{"$f":"IFERROR(INDIRECT(\"'FACILITY INFO (5)'!w13\"), \"\")","v":""},{"$f":"IFERROR(INDIRECT(\"'FACILITY INFO (5)'!w14\"), \"\")","v":""},{"$f":"IFERROR(INDIRECT(\"'FACILITY INFO (5)'!j15\"), \"\")","v":""},{"$f":"IFERROR(INDIRECT(\"'FACILITY INFO (5)'!K18\"), \"\")","v":""},{"$f":"IFERROR(INDIRECT(\"'FACILITY INFO (5)'!K19\"), \"\")","v":""},{"$f":"IFERROR(INDIRECT(\"'FACILITY INFO (5)'!K20\"), \"\")","v":""},{"$f":"IFERROR(INDIRECT(\"'FACILITY INFO (5)'!K21\"), \"\")","v":""},{"$f":"IFERROR(INDIRECT(\"'FACILITY INFO (5)'!K22\"), \"\")","v":""},{"$f":"IFERROR(INDIRECT(\"'FACILITY INFO (5)'!z18\"), \"\")","v":""},{"$f":"IFERROR(INDIRECT(\"'FACILITY INFO (5)'!z19\"), \"\")","v":""},{"$f":"IFERROR(INDIRECT(\"'FACILITY INFO (5)'!z20\"), \"\")","v":""},{"$f":"IFERROR(INDIRECT(\"'FACILITY INFO (5)'!z21\"), \"\")","v":""},{"$f":"IFERROR(INDIRECT(\"'FACILITY INFO (5)'!k25\"), \"\")","v":""},{"$f":"IFERROR(INDIRECT(\"'FACILITY INFO (5)'!r25\"), \"\")","v":""},{"$f":"IFERROR(INDIRECT(\"'FACILITY INFO (5)'!ad25\"), \"\")","v":""},{"$f":"IFERROR(INDIRECT(\"'FACILITY INFO (5)'!k26\"), \"\")","v":""},{"$f":"IFERROR(INDIRECT(\"'FACILITY INFO (5)'!ah27\"), \"\")","v":""},{"$f":"IFERROR(INDIRECT(\"'FACILITY INFO (5)'!k33\"), \"\")","v":""},{"$f":"IFERROR(INDIRECT(\"'FACILITY INFO (5)'!r33\"), \"\")","v":""},{"$f":"IFERROR(INDIRECT(\"'FACILITY INFO (5)'!ad33\"), \"\")","v":""},{"$f":"IFERROR(INDIRECT(\"'FACILITY INFO (5)'!k34\"), \"\")","v":""},{"$f":"IFERROR(INDIRECT(\"'FACILITY INFO (5)'!ah35\"), \"\")","v":""},{"$f":"IFERROR(INDIRECT(\"'FACILITY INFO (5)'!ah41\"), \"\")","v":""},{"$f":"IFERROR(INDIRECT(\"'FACILITY INFO (5)'!ah42\"), \"\")","v":""},{"$f":"IFERROR(INDIRECT(\"'FACILITY INFO (5)'!ah43\"), \"\")","v":""},{"$f":"IFERROR(INDIRECT(\"'DESIGN & TARGET SPEED (5)'!k22\"), \"\")","v":""},{"$f":"IFERROR(INDIRECT(\"'DESIGN & TARGET SPEED (5)'!ab22\"), \"\")","v":""},{"$f":"IFERROR(INDIRECT(\"'DESIGN & TARGET SPEED (5)'!q25\"), \"\")","v":""},{"$f":"IFERROR(INDIRECT(\"'DESIGN & TARGET SPEED (5)'!j198\"), \"\")","v":""},{"$f":"IFERROR(INDIRECT(\"'DESIGN & TARGET SPEED (5)'!j206\"), \"\")","v":""},{"$f":"IFERROR(INDIRECT(\"'SSD (5)'!k25\"), \"\")","v":""},{"$f":"IFERROR(INDIRECT(\"'SUPERELEVATION (5)'!ac14\"), \"\")","v":""},{"$f":"IFERROR(INDIRECT(\"'DESIGN & TARGET SPEED (5)'!AH13\"), \"\")","v":""}]
[6,{"$f":"IFERROR(INDIRECT(\"'FACILITY INFO (6)'!H9\"), \"\")","v":""},{"$f":"IFERROR(INDIRECT(\"'FACILITY INFO (6)'!AJ13\"), \"\")","v":""},{"$f":"IFERROR(INDIRECT(\"'FACILITY INFO (6)'!AJ14\"), \"\")","v":""},{"$f":"IFERROR(INDIRECT(\"'FACILITY INFO (6)'!w13\"), \"\")","v":""},{"$f":"IFERROR(INDIRECT(\"'FACILITY INFO (6)'!w14\"), \"\")","v":""},{"$f":"IFERROR(INDIRECT(\"'FACILITY INFO (6)'!j15\"), \"\")","v":""},{"$f":"IFERROR(INDIRECT(\"'FACILITY INFO (6)'!K18\"), \"\")","v":""},{"$f":"IFERROR(INDIRECT(\"'FACILITY INFO (6)'!K19\"), \"\")","v":""},{"$f":"IFERROR(INDIRECT(\"'FACILITY INFO (6)'!K20\"), \"\")","v":""},{"$f":"IFERROR(INDIRECT(\"'FACILITY INFO (6)'!K21\"), \"\")","v":""},{"$f":"IFERROR(INDIRECT(\"'FACILITY INFO (6)'!K22\"), \"\")","v":""},{"$f":"IFERROR(INDIRECT(\"'FACILITY INFO (6)'!z18\"), \"\")","v":""},{"$f":"IFERROR(INDIRECT(\"'FACILITY INFO (6)'!z19\"), \"\")","v":""},{"$f":"IFERROR(INDIRECT(\"'FACILITY INFO (6)'!z20\"), \"\")","v":""},{"$f":"IFERROR(INDIRECT(\"'FACILITY INFO (6)'!z21\"), \"\")","v":""},{"$f":"IFERROR(INDIRECT(\"'FACILITY INFO (6)'!k25\"), \"\")","v":""},{"$f":"IFERROR(INDIRECT(\"'FACILITY INFO (6)'!r25\"), \"\")","v":""},{"$f":"IFERROR(INDIRECT(\"'FACILITY INFO (6)'!ad25\"), \"\")","v":""},{"$f":"IFERROR(INDIRECT(\"'FACILITY INFO (6)'!k26\"), \"\")","v":""},{"$f":"IFERROR(INDIRECT(\"'FACILITY INFO (6)'!ah27\"), \"\")","v":""},{"$f":"IFERROR(INDIRECT(\"'FACILITY INFO (6)'!k33\"), \"\")","v":""},{"$f":"IFERROR(INDIRECT(\"'FACILITY INFO (6)'!r33\"), \"\")","v":""},{"$f":"IFERROR(INDIRECT(\"'FACILITY INFO (6)'!ad33\"), \"\")","v":""},{"$f":"IFERROR(INDIRECT(\"'FACILITY INFO (6)'!k34\"), \"\")","v":""},{"$f":"IFERROR(INDIRECT(\"'FACILITY INFO (6)'!ah35\"), \"\")","v":""},{"$f":"IFERROR(INDIRECT(\"'FACILITY INFO (6)'!ah41\"), \"\")","v":""},{"$f":"IFERROR(INDIRECT(\"'FACILITY INFO (6)'!ah42\"), \"\")","v":""},{"$f":"IFERROR(INDIRECT(\"'FACILITY INFO (6)'!ah43\"), \"\")","v":""},{"$f":"IFERROR(INDIRECT(\"'DESIGN & TARGET SPEED (6)'!k22\"), \"\")","v":""},{"$f":"IFERROR(INDIRECT(\"'DESIGN & TARGET SPEED (6)'!ab22\"), \"\")","v":""},{"$f":"IFERROR(INDIRECT(\"'DESIGN & TARGET SPEED (6)'!q25\"), \"\")","v":""},{"$f":"IFERROR(INDIRECT(\"'DESIGN & TARGET SPEED (6)'!j198\"), \"\")","v":""},{"$f":"IFERROR(INDIRECT(\"'DESIGN & TARGET SPEED (6)'!j206\"), \"\")","v":""},{"$f":"IFERROR(INDIRECT(\"'SSD (6)'!k25\"), \"\")","v":""},{"$f":"IFERROR(INDIRECT(\"'SUPERELEVATION (6)'!ac14\"), \"\")","v":""},{"$f":"IFERROR(INDIRECT(\"'DESIGN & TARGET SPEED (6)'!AH13\"), \"\")","v":""}]
[7,{"$f":"IFERROR(INDIRECT(\"'FACILITY INFO (7)'!H9\"), \"\")","v":""},{"$f":"IFERROR(INDIRECT(\"'FACILITY INFO (7)'!AJ13\"), \"\")","v":""},{"$f":"IFERROR(INDIRECT(\"'FACILITY INFO (7)'!AJ14\"), \"\")","v":""},{"$f":"IFERROR(INDIRECT(\"'FACILITY INFO (7)'!w13\"), \"\")","v":""},{"$f":"IFERROR(INDIRECT(\"'FACILITY INFO (7)'!w14\"), \"\")","v":""},{"$f":"IFERROR(INDIRECT(\"'FACILITY INFO (7)'!j15\"), \"\")","v":""},{"$f":"IFERROR(INDIRECT(\"'FACILITY INFO (7)'!K18\"), \"\")","v":""},{"$f":"IFERROR(INDIRECT(\"'FACILITY INFO (7)'!K19\"), \"\")","v":""},{"$f":"IFERROR(INDIRECT(\"'FACILITY INFO (7)'!K20\"), \"\")","v":""},{"$f":"IFERROR(INDIRECT(\"'FACILITY INFO (7)'!K21\"), \"\")","v":""},{"$f":"IFERROR(INDIRECT(\"'FACILITY INFO (7)'!K22\"), \"\")","v":""},{"$f":"IFERROR(INDIRECT(\"'FACILITY INFO (7)'!z18\"), \"\")","v":""},{"$f":"IFERROR(INDIRECT(\"'FACILITY INFO (7)'!z19\"), \"\")","v":""},{"$f":"IFERROR(INDIRECT(\"'FACILITY INFO (7)'!z20\"), \"\")","v":""},{"$f":"IFERROR(INDIRECT(\"'FACILITY INFO (7)'!z21\"), \"\")","v":""},{"$f":"IFERROR(INDIRECT(\"'FACILITY INFO (7)'!k25\"), \"\")","v":""},{"$f":"IFERROR(INDIRECT(\"'FACILITY INFO (7)'!r25\"), \"\")","v":""},{"$f":"IFERROR(INDIRECT(\"'FACILITY INFO (7)'!ad25\"), \"\")","v":""},{"$f":"IFERROR(INDIRECT(\"'FACILITY INFO (7)'!k26\"), \"\")","v":""},{"$f":"IFERROR(INDIRECT(\"'FACILITY INFO (7)'!ah27\"), \"\")","v":""},{"$f":"IFERROR(INDIRECT(\"'FACILITY INFO (7)'!k33\"), \"\")","v":""},{"$f":"IFERROR(INDIRECT(\"'FACILITY INFO (7)'!r33\"), \"\")","v":""},{"$f":"IFERROR(INDIRECT(\"'FACILITY INFO (7)'!ad33\"), \"\")","v":""},{"$f":"IFERROR(INDIRECT(\"'FACILITY INFO (7)'!k34\"), \"\")","v":""},{"$f":"IFERROR(INDIRECT(\"'FACILITY INFO (7)'!ah35\"), \"\")","v":""},{"$f":"IFERROR(INDIRECT(\"'FACILITY INFO (7)'!ah41\"), \"\")","v":""},{"$f":"IFERROR(INDIRECT(\"'FACILITY INFO (7)'!ah42\"), \"\")","v":""},{"$f":"IFERROR(INDIRECT(\"'FACILITY INFO (7)'!ah43\"), \"\")","v":""},{"$f":"IFERROR(INDIRECT(\"'DESIGN & TARGET SPEED (7)'!k22\"), \"\")","v":""},{"$f":"IFERROR(INDIRECT(\"'DESIGN & TARGET SPEED (7)'!ab22\"), \"\")","v":""},{"$f":"IFERROR(INDIRECT(\"'DESIGN & TARGET SPEED (7)'!q25\"), \"\")","v":""},{"$f":"IFERROR(INDIRECT(\"'DESIGN & TARGET SPEED (7)'!j198\"), \"\")","v":""},{"$f":"IFERROR(INDIRECT(\"'DESIGN & TARGET SPEED (7)'!j206\"), \"\")","v":""},{"$f":"IFERROR(INDIRECT(\"'SSD (7)'!k25\"), \"\")","v":""},{"$f":"IFERROR(INDIRECT(\"'SUPERELEVATION (7)'!ac14\"), \"\")","v":""},{"$f":"IFERROR(INDIRECT(\"'DESIGN & TARGET SPEED (7)'!AH13\"), \"\")","v":""}]
[8,{"$f":"IFERROR(INDIRECT(\"'FACILITY INFO (8)'!H9\"), \"\")","v":""},{"$f":"IFERROR(INDIRECT(\"'FACILITY INFO (8)'!AJ13\"), \"\")","v":""},{"$f":"IFERROR(INDIRECT(\"'FACILITY INFO (8)'!AJ14\"), \"\")","v":""},{"$f":"IFERROR(INDIRECT(\"'FACILITY INFO (8)'!w13\"), \"\")","v":""},{"$f":"IFERROR(INDIRECT(\"'FACILITY INFO (8)'!w14\"), \"\")","v":""},{"$f":"IFERROR(INDIRECT(\"'FACILITY INFO (8)'!j15\"), \"\")","v":""},{"$f":"IFERROR(INDIRECT(\"'FACILITY INFO (8)'!K18\"), \"\")","v":""},{"$f":"IFERROR(INDIRECT(\"'FACILITY INFO (8)'!K19\"), \"\")","v":""},{"$f":"IFERROR(INDIRECT(\"'FACILITY INFO (8)'!K20\"), \"\")","v":""},{"$f":"IFERROR(INDIRECT(\"'FACILITY INFO (8)'!K21\"), \"\")","v":""},{"$f":"IFERROR(INDIRECT(\"'FACILITY INFO (8)'!K22\"), \"\")","v":""},{"$f":"IFERROR(INDIRECT(\"'FACILITY INFO (8)'!z18\"), \"\")","v":""},{"$f":"IFERROR(INDIRECT(\"'FACILITY INFO (8)'!z19\"), \"\")","v":""},{"$f":"IFERROR(INDIRECT(\"'FACILITY INFO (8)'!z20\"), \"\")","v":""},{"$f":"IFERROR(INDIRECT(\"'FACILITY INFO (8)'!z21\"), \"\")","v":""},{"$f":"IFERROR(INDIRECT(\"'FACILITY INFO (8)'!k25\"), \"\")","v":""},{"$f":"IFERROR(INDIRECT(\"'FACILITY INFO (8)'!r25\"), \"\")","v":""},{"$f":"IFERROR(INDIRECT(\"'FACILITY INFO (8)'!ad25\"), \"\")","v":""},{"$f":"IFERROR(INDIRECT(\"'FACILITY INFO (8)'!k26\"), \"\")","v":""},{"$f":"IFERROR(INDIRECT(\"'FACILITY INFO (8)'!ah27\"), \"\")","v":""},{"$f":"IFERROR(INDIRECT(\"'FACILITY INFO (8)'!k33\"), \"\")","v":""},{"$f":"IFERROR(INDIRECT(\"'FACILITY INFO (8)'!r33\"), \"\")","v":""},{"$f":"IFERROR(INDIRECT(\"'FACILITY INFO (8)'!ad33\"), \"\")","v":""},{"$f":"IFERROR(INDIRECT(\"'FACILITY INFO (8)'!k34\"), \"\")","v":""},{"$f":"IFERROR(INDIRECT(\"'FACILITY INFO (8)'!ah35\"), \"\")","v":""},{"$f":"IFERROR(INDIRECT(\"'FACILITY INFO (8)'!ah41\"), \"\")","v":""},{"$f":"IFERROR(INDIRECT(\"'FACILITY INFO (8)'!ah42\"), \"\")","v":""},{"$f":"IFERROR(INDIRECT(\"'FACILITY INFO (8)'!ah43\"), \"\")","v":""},{"$f":"IFERROR(INDIRECT(\"'DESIGN & TARGET SPEED (8)'!k22\"), \"\")","v":""},{"$f":"IFERROR(INDIRECT(\"'DESIGN & TARGET SPEED (8)'!ab22\"), \"\")","v":""},{"$f":"IFERROR(INDIRECT(\"'DESIGN & TARGET SPEED (8)'!q25\"), \"\")","v":""},{"$f":"IFERROR(INDIRECT(\"'DESIGN & TARGET SPEED (8)'!j198\"), \"\")","v":""},{"$f":"IFERROR(INDIRECT(\"'DESIGN & TARGET SPEED (8)'!j206\"), \"\")","v":""},{"$f":"IFERROR(INDIRECT(\"'SSD (8)'!k25\"), \"\")","v":""},{"$f":"IFERROR(INDIRECT(\"'SUPERELEVATION (8)'!ac14\"), \"\")","v":""},{"$f":"IFERROR(INDIRECT(\"'DESIGN & TARGET SPEED (8)'!AH13\"), \"\")","v":""}]
[9,{"$f":"IFERROR(INDIRECT(\"'FACILITY INFO (9)'!H9\"), \"\")","v":""},{"$f":"IFERROR(INDIRECT(\"'FACILITY INFO (9)'!AJ13\"), \"\")","v":""},{"$f":"IFERROR(INDIRECT(\"'FACILITY INFO (9)'!AJ14\"), \"\")","v":""},{"$f":"IFERROR(INDIRECT(\"'FACILITY INFO (9)'!w13\"), \"\")","v":""},{"$f":"IFERROR(INDIRECT(\"'FACILITY INFO (9)'!w14\"), \"\")","v":""},{"$f":"IFERROR(INDIRECT(\"'FACILITY INFO (9)'!j15\"), \"\")","v":""},{"$f":"IFERROR(INDIRECT(\"'FACILITY INFO (9)'!K18\"), \"\")","v":""},{"$f":"IFERROR(INDIRECT(\"'FACILITY INFO (9)'!K19\"), \"\")","v":""},{"$f":"IFERROR(INDIRECT(\"'FACILITY INFO (9)'!K20\"), \"\")","v":""},{"$f":"IFERROR(INDIRECT(\"'FACILITY INFO (9)'!K21\"), \"\")","v":""},{"$f":"IFERROR(INDIRECT(\"'FACILITY INFO (9)'!K22\"), \"\")","v":""},{"$f":"IFERROR(INDIRECT(\"'FACILITY INFO (9)'!z18\"), \"\")","v":""},{"$f":"IFERROR(INDIRECT(\"'FACILITY INFO (9)'!z19\"), \"\")","v":""},{"$f":"IFERROR(INDIRECT(\"'FACILITY INFO (9)'!z20\"), \"\")","v":""},{"$f":"IFERROR(INDIRECT(\"'FACILITY INFO (9)'!z21\"), \"\")","v":""},{"$f":"IFERROR(INDIRECT(\"'FACILITY INFO (9)'!k25\"), \"\")","v":""},{"$f":"IFERROR(INDIRECT(\"'FACILITY INFO (9)'!r25\"), \"\")","v":""},{"$f":"IFERROR(INDIRECT(\"'FACILITY INFO (9)'!ad25\"), \"\")","v":""},{"$f":"IFERROR(INDIRECT(\"'FACILITY INFO (9)'!k26\"), \"\")","v":""},{"$f":"IFERROR(INDIRECT(\"'FACILITY INFO (9)'!ah27\"), \"\")","v":""},{"$f":"IFERROR(INDIRECT(\"'FACILITY INFO (9)'!k33\"), \"\")","v":""},{"$f":"IFERROR(INDIRECT(\"'FACILITY INFO (9)'!r33\"), \"\")","v":""},{"$f":"IFERROR(INDIRECT(\"'FACILITY INFO (9)'!ad33\"), \"\")","v":""},{"$f":"IFERROR(INDIRECT(\"'FACILITY INFO (9)'!k34\"), \"\")","v":""},{"$f":"IFERROR(INDIRECT(\"'FACILITY INFO (9)'!ah35\"), \"\")","v":""},{"$f":"IFERROR(INDIRECT(\"'FACILITY INFO (9)'!ah41\"), \"\")","v":""},{"$f":"IFERROR(INDIRECT(\"'FACILITY INFO (9)'!ah42\"), \"\")","v":""},{"$f":"IFERROR(INDIRECT(\"'FACILITY INFO (9)'!ah43\"), \"\")","v":""},{"$f":"IFERROR(INDIRECT(\"'DESIGN & TARGET SPEED (9)'!k22\"), \"\")","v":""},{"$f":"IFERROR(INDIRECT(\"'DESIGN & TARGET SPEED (9)'!ab22\"), \"\")","v":""},{"$f":"IFERROR(INDIRECT(\"'DESIGN & TARGET SPEED (9)'!q25\"), \"\")","v":""},{"$f":"IFERROR(INDIRECT(\"'DESIGN & TARGET SPEED (9)'!j198\"), \"\")","v":""},{"$f":"IFERROR(INDIRECT(\"'DESIGN & TARGET SPEED (9)'!j206\"), \"\")","v":""},{"$f":"IFERROR(INDIRECT(\"'SSD (9)'!k25\"), \"\")","v":""},{"$f":"IFERROR(INDIRECT(\"'SUPERELEVATION (9)'!ac14\"), \"\")","v":""},{"$f":"IFERROR(INDIRECT(\"'DESIGN & TARGET SPEED (9)'!AH13\"), \"\")","v":""}]
[10,{"$f":"IFERROR(INDIRECT(\"'FACILITY INFO (10)'!H9\"), \"\")","v":""},{"$f":"IFERROR(INDIRECT(\"'FACILITY INFO (10)'!AJ13\"), \"\")","v":""},{"$f":"IFERROR(INDIRECT(\"'FACILITY INFO (10)'!AJ14\"), \"\")","v":""},{"$f":"IFERROR(INDIRECT(\"'FACILITY INFO (10)'!w13\"), \"\")","v":""},{"$f":"IFERROR(INDIRECT(\"'FACILITY INFO (10)'!w14\"), \"\")","v":""},{"$f":"IFERROR(INDIRECT(\"'FACILITY INFO (10)'!j15\"), \"\")","v":""},{"$f":"IFERROR(INDIRECT(\"'FACILITY INFO (10)'!K18\"), \"\")","v":""},{"$f":"IFERROR(INDIRECT(\"'FACILITY INFO (10)'!K19\"), \"\")","v":""},{"$f":"IFERROR(INDIRECT(\"'FACILITY INFO (10)'!K20\"), \"\")","v":""},{"$f":"IFERROR(INDIRECT(\"'FACILITY INFO (10)'!K21\"), \"\")","v":""},{"$f":"IFERROR(INDIRECT(\"'FACILITY INFO (10)'!K22\"), \"\")","v":""},{"$f":"IFERROR(INDIRECT(\"'FACILITY INFO (10)'!z18\"), \"\")","v":""},{"$f":"IFERROR(INDIRECT(\"'FACILITY INFO (10)'!z19\"), \"\")","v":""},{"$f":"IFERROR(INDIRECT(\"'FACILITY INFO (10)'!z20\"), \"\")","v":""},{"$f":"IFERROR(INDIRECT(\"'FACILITY INFO (10)'!z21\"), \"\")","v":""},{"$f":"IFERROR(INDIRECT(\"'FACILITY INFO (10)'!k25\"), \"\")","v":""},{"$f":"IFERROR(INDIRECT(\"'FACILITY INFO (10)'!r25\"), \"\")","v":""},{"$f":"IFERROR(INDIRECT(\"'FACILITY INFO (10)'!ad25\"), \"\")","v":""},{"$f":"IFERROR(INDIRECT(\"'FACILITY INFO (10)'!k26\"), \"\")","v":""},{"$f":"IFERROR(INDIRECT(\"'FACILITY INFO (10)'!ah27\"), \"\")","v":""},{"$f":"IFERROR(INDIRECT(\"'FACILITY INFO (10)'!k33\"), \"\")","v":""},{"$f":"IFERROR(INDIRECT(\"'FACILITY INFO (10)'!r33\"), \"\")","v":""},{"$f":"IFERROR(INDIRECT(\"'FACILITY INFO (10)'!ad33\"), \"\")","v":""},{"$f":"IFERROR(INDIRECT(\"'FACILITY INFO (10)'!k34\"), \"\")","v":""},{"$f":"IFERROR(INDIRECT(\"'FACILITY INFO (10)'!ah35\"), \"\")","v":""},{"$f":"IFERROR(INDIRECT(\"'FACILITY INFO (10)'!ah41\"), \"\")","v":""},{"$f":"IFERROR(INDIRECT(\"'FACILITY INFO (10)'!ah42\"), \"\")","v":""},{"$f":"IFERROR(INDIRECT(\"'FACILITY INFO (10)'!ah43\"), \"\")","v":""},{"$f":"IFERROR(INDIRECT(\"'DESIGN & TARGET SPEED (10)'!k22\"), \"\")","v":""},{"$f":"IFERROR(INDIRECT(\"'DESIGN & TARGET SPEED (10)'!ab22\"), \"\")","v":""},{"$f":"IFERROR(INDIRECT(\"'DESIGN & TARGET SPEED (10)'!q25\"), \"\")","v":""},{"$f":"IFERROR(INDIRECT(\"'DESIGN & TARGET SPEED (10)'!j198\"), \"\")","v":""},{"$f":"IFERROR(INDIRECT(\"'DESIGN & TARGET SPEED (10)'!j206\"), \"\")","v":""},{"$f":"IFERROR(INDIRECT(\"'SSD (10)'!k25\"), \"\")","v":""},{"$f":"IFERROR(INDIRECT(\"'SUPERELEVATION (10)'!ac14\"), \"\")","v":""},{"$f":"IFERROR(INDIRECT(\"'DESIGN & TARGET SPEED (10)'!AH13\"), \"\")","v":""}]
[11,{"$f":"IFERROR(INDIRECT(\"'FACILITY INFO (11)'!H9\"), \"\")","v":""},{"$f":"IFERROR(INDIRECT(\"'FACILITY INFO (11)'!AJ13\"), \"\")","v":""},{"$f":"IFERROR(INDIRECT(\"'FACILITY INFO (11)'!AJ14\"), \"\")","v":""},{"$f":"IFERROR(INDIRECT(\"'FACILITY INFO (11)'!w13\"), \"\")","v":""},{"$f":"IFERROR(INDIRECT(\"'FACILITY INFO (11)'!w14\"), \"\")","v":""},{"$f":"IFERROR(INDIRECT(\"'FACILITY INFO (11)'!j15\"), \"\")","v":""},{"$f":"IFERROR(INDIRECT(\"'FACILITY INFO (11)'!K18\"), \"\")","v":""},{"$f":"IFERROR(INDIRECT(\"'FACILITY INFO (11)'!K19\"), \"\")","v":""},{"$f":"IFERROR(INDIRECT(\"'FACILITY INFO (11)'!K20\"), \"\")","v":""},{"$f":"IFERROR(INDIRECT(\"'FACILITY INFO (11)'!K21\"), \"\")","v":""},{"$f":"IFERROR(INDIRECT(\"'FACILITY INFO (11)'!K22\"), \"\")","v":""},{"$f":"IFERROR(INDIRECT(\"'FACILITY INFO (11)'!z18\"), \"\")","v":""},{"$f":"IFERROR(INDIRECT(\"'FACILITY INFO (11)'!z19\"), \"\")","v":""},{"$f":"IFERROR(INDIRECT(\"'FACILITY INFO (11)'!z20\"), \"\")","v":""},{"$f":"IFERROR(INDIRECT(\"'FACILITY INFO (11)'!z21\"), \"\")","v":""},{"$f":"IFERROR(INDIRECT(\"'FACILITY INFO (11)'!k25\"), \"\")","v":""},{"$f":"IFERROR(INDIRECT(\"'FACILITY INFO (11)'!r25\"), \"\")","v":""},{"$f":"IFERROR(INDIRECT(\"'FACILITY INFO (11)'!ad25\"), \"\")","v":""},{"$f":"IFERROR(INDIRECT(\"'FACILITY INFO (11)'!k26\"), \"\")","v":""},{"$f":"IFERROR(INDIRECT(\"'FACILITY INFO (11)'!ah27\"), \"\")","v":""},{"$f":"IFERROR(INDIRECT(\"'FACILITY INFO (11)'!k33\"), \"\")","v":""},{"$f":"IFERROR(INDIRECT(\"'FACILITY INFO (11)'!r33\"), \"\")","v":""},{"$f":"IFERROR(INDIRECT(\"'FACILITY INFO (11)'!ad33\"), \"\")","v":""},{"$f":"IFERROR(INDIRECT(\"'FACILITY INFO (11)'!k34\"), \"\")","v":""},{"$f":"IFERROR(INDIRECT(\"'FACILITY INFO (11)'!ah35\"), \"\")","v":""},{"$f":"IFERROR(INDIRECT(\"'FACILITY INFO (11)'!ah41\"), \"\")","v":""},{"$f":"IFERROR(INDIRECT(\"'FACILITY INFO (11)'!ah42\"), \"\")","v":""},{"$f":"IFERROR(INDIRECT(\"'FACILITY INFO (11)'!ah43\"), \"\")","v":""},{"$f":"IFERROR(INDIRECT(\"'DESIGN & TARGET SPEED (11)'!k22\"), \"\")","v":""},{"$f":"IFERROR(INDIRECT(\"'DESIGN & TARGET SPEED (11)'!ab22\"), \"\")","v":""},{"$f":"IFERROR(INDIRECT(\"'DESIGN & TARGET SPEED (11)'!q25\"), \"\")","v":""},{"$f":"IFERROR(INDIRECT(\"'DESIGN & TARGET SPEED (11)'!j198\"), \"\")","v":""},{"$f":"IFERROR(INDIRECT(\"'DESIGN & TARGET SPEED (11)'!j206\"), \"\")","v":""},{"$f":"IFERROR(INDIRECT(\"'SSD (11)'!k25\"), \"\")","v":""},{"$f":"IFERROR(INDIRECT(\"'SUPERELEVATION (11)'!ac14\"), \"\")","v":""},{"$f":"IFERROR(INDIRECT(\"'DESIGN & TARGET SPEED (11)'!AH13\"), \"\")","v":""}]
[12,{"$f":"IFERROR(INDIRECT(\"'FACILITY INFO (12)'!H9\"), \"\")","v":""},{"$f":"IFERROR(INDIRECT(\"'FACILITY INFO (12)'!AJ13\"), \"\")","v":""},{"$f":"IFERROR(INDIRECT(\"'FACILITY INFO (12)'!AJ14\"), \"\")","v":""},{"$f":"IFERROR(INDIRECT(\"'FACILITY INFO (12)'!w13\"), \"\")","v":""},{"$f":"IFERROR(INDIRECT(\"'FACILITY INFO (12)'!w14\"), \"\")","v":""},{"$f":"IFERROR(INDIRECT(\"'FACILITY INFO (12)'!j15\"), \"\")","v":""},{"$f":"IFERROR(INDIRECT(\"'FACILITY INFO (12)'!K18\"), \"\")","v":""},{"$f":"IFERROR(INDIRECT(\"'FACILITY INFO (12)'!K19\"), \"\")","v":""},{"$f":"IFERROR(INDIRECT(\"'FACILITY INFO (12)'!K20\"), \"\")","v":""},{"$f":"IFERROR(INDIRECT(\"'FACILITY INFO (12)'!K21\"), \"\")","v":""},{"$f":"IFERROR(INDIRECT(\"'FACILITY INFO (12)'!K22\"), \"\")","v":""},{"$f":"IFERROR(INDIRECT(\"'FACILITY INFO (12)'!z18\"), \"\")","v":""},{"$f":"IFERROR(INDIRECT(\"'FACILITY INFO (12)'!z19\"), \"\")","v":""},{"$f":"IFERROR(INDIRECT(\"'FACILITY INFO (12)'!z20\"), \"\")","v":""},{"$f":"IFERROR(INDIRECT(\"'FACILITY INFO (12)'!z21\"), \"\")","v":""},{"$f":"IFERROR(INDIRECT(\"'FACILITY INFO (12)'!k25\"), \"\")","v":""},{"$f":"IFERROR(INDIRECT(\"'FACILITY INFO (12)'!r25\"), \"\")","v":""},{"$f":"IFERROR(INDIRECT(\"'FACILITY INFO (12)'!ad25\"), \"\")","v":""},{"$f":"IFERROR(INDIRECT(\"'FACILITY INFO (12)'!k26\"), \"\")","v":""},{"$f":"IFERROR(INDIRECT(\"'FACILITY INFO (12)'!ah27\"), \"\")","v":""},{"$f":"IFERROR(INDIRECT(\"'FACILITY INFO (12)'!k33\"), \"\")","v":""},{"$f":"IFERROR(INDIRECT(\"'FACILITY INFO (12)'!r33\"), \"\")","v":""},{"$f":"IFERROR(INDIRECT(\"'FACILITY INFO (12)'!ad33\"), \"\")","v":""},{"$f":"IFERROR(INDIRECT(\"'FACILITY INFO (12)'!k34\"), \"\")","v":""},{"$f":"IFERROR(INDIRECT(\"'FACILITY INFO (12)'!ah35\"), \"\")","v":""},{"$f":"IFERROR(INDIRECT(\"'FACILITY INFO (12)'!ah41\"), \"\")","v":""},{"$f":"IFERROR(INDIRECT(\"'FACILITY INFO (12)'!ah42\"), \"\")","v":""},{"$f":"IFERROR(INDIRECT(\"'FACILITY INFO (12)'!ah43\"), \"\")","v":""},{"$f":"IFERROR(INDIRECT(\"'DESIGN & TARGET SPEED (12)'!k22\"), \"\")","v":""},{"$f":"IFERROR(INDIRECT(\"'DESIGN & TARGET SPEED (12)'!ab22\"), \"\")","v":""},{"$f":"IFERROR(INDIRECT(\"'DESIGN & TARGET SPEED (12)'!q25\"), \"\")","v":""},{"$f":"IFERROR(INDIRECT(\"'DESIGN & TARGET SPEED (12)'!j198\"), \"\")","v":""},{"$f":"IFERROR(INDIRECT(\"'DESIGN & TARGET SPEED (12)'!j206\"), \"\")","v":""},{"$f":"IFERROR(INDIRECT(\"'SSD (12)'!k25\"), \"\")","v":""},{"$f":"IFERROR(INDIRECT(\"'SUPERELEVATION (12)'!ac14\"), \"\")","v":""},{"$f":"IFERROR(INDIRECT(\"'DESIGN & TARGET SPEED (12)'!AH13\"), \"\")","v":""}]
[13,{"$f":"IFERROR(INDIRECT(\"'FACILITY INFO (13)'!H9\"), \"\")","v":""},{"$f":"IFERROR(INDIRECT(\"'FACILITY INFO (13)'!AJ13\"), \"\")","v":""},{"$f":"IFERROR(INDIRECT(\"'FACILITY INFO (13)'!AJ14\"), \"\")","v":""},{"$f":"IFERROR(INDIRECT(\"'FACILITY INFO (13)'!w13\"), \"\")","v":""},{"$f":"IFERROR(INDIRECT(\"'FACILITY INFO (13)'!w14\"), \"\")","v":""},{"$f":"IFERROR(INDIRECT(\"'FACILITY INFO (13)'!j15\"), \"\")","v":""},{"$f":"IFERROR(INDIRECT(\"'FACILITY INFO (13)'!K18\"), \"\")","v":""},{"$f":"IFERROR(INDIRECT(\"'FACILITY INFO (13)'!K19\"), \"\")","v":""},{"$f":"IFERROR(INDIRECT(\"'FACILITY INFO (13)'!K20\"), \"\")","v":""},{"$f":"IFERROR(INDIRECT(\"'FACILITY INFO (13)'!K21\"), \"\")","v":""},{"$f":"IFERROR(INDIRECT(\"'FACILITY INFO (13)'!K22\"), \"\")","v":""},{"$f":"IFERROR(INDIRECT(\"'FACILITY INFO (13)'!z18\"), \"\")","v":""},{"$f":"IFERROR(INDIRECT(\"'FACILITY INFO (13)'!z19\"), \"\")","v":""},{"$f":"IFERROR(INDIRECT(\"'FACILITY INFO (13)'!z20\"), \"\")","v":""},{"$f":"IFERROR(INDIRECT(\"'FACILITY INFO (13)'!z21\"), \"\")","v":""},{"$f":"IFERROR(INDIRECT(\"'FACILITY INFO (13)'!k25\"), \"\")","v":""},{"$f":"IFERROR(INDIRECT(\"'FACILITY INFO (13)'!r25\"), \"\")","v":""},{"$f":"IFERROR(INDIRECT(\"'FACILITY INFO (13)'!ad25\"), \"\")","v":""},{"$f":"IFERROR(INDIRECT(\"'FACILITY INFO (13)'!k26\"), \"\")","v":""},{"$f":"IFERROR(INDIRECT(\"'FACILITY INFO (13)'!ah27\"), \"\")","v":""},{"$f":"IFERROR(INDIRECT(\"'FACILITY INFO (13)'!k33\"), \"\")","v":""},{"$f":"IFERROR(INDIRECT(\"'FACILITY INFO (13)'!r33\"), \"\")","v":""},{"$f":"IFERROR(INDIRECT(\"'FACILITY INFO (13)'!ad33\"), \"\")","v":""},{"$f":"IFERROR(INDIRECT(\"'FACILITY INFO (13)'!k34\"), \"\")","v":""},{"$f":"IFERROR(INDIRECT(\"'FACILITY INFO (13)'!ah35\"), \"\")","v":""},{"$f":"IFERROR(INDIRECT(\"'FACILITY INFO (13)'!ah41\"), \"\")","v":""},{"$f":"IFERROR(INDIRECT(\"'FACILITY INFO (13)'!ah42\"), \"\")","v":""},{"$f":"IFERROR(INDIRECT(\"'FACILITY INFO (13)'!ah43\"), \"\")","v":""},{"$f":"IFERROR(INDIRECT(\"'DESIGN & TARGET SPEED (13)'!k22\"), \"\")","v":""},{"$f":"IFERROR(INDIRECT(\"'DESIGN & TARGET SPEED (13)'!ab22\"), \"\")","v":""},{"$f":"IFERROR(INDIRECT(\"'DESIGN & TARGET SPEED (13)'!q25\"), \"\")","v":""},{"$f":"IFERROR(INDIRECT(\"'DESIGN & TARGET SPEED (13)'!j198\"), \"\")","v":""},{"$f":"IFERROR(INDIRECT(\"'DESIGN & TARGET SPEED (13)'!j206\"), \"\")","v":""},{"$f":"IFERROR(INDIRECT(\"'SSD (13)'!k25\"), \"\")","v":""},{"$f":"IFERROR(INDIRECT(\"'SUPERELEVATION (13)'!ac14\"), \"\")","v":""},{"$f":"IFERROR(INDIRECT(\"'DESIGN & TARGET SPEED (13)'!AH13\"), \"\")","v":""}]
[14,{"$f":"IFERROR(INDIRECT(\"'FACILITY INFO (14)'!H9\"), \"\")","v":""},{"$f":"IFERROR(INDIRECT(\"'FACILITY INFO (14)'!AJ13\"), \"\")","v":""},{"$f":"IFERROR(INDIRECT(\"'FACILITY INFO (14)'!AJ14\"), \"\")","v":""},{"$f":"IFERROR(INDIRECT(\"'FACILITY INFO (14)'!w13\"), \"\")","v":""},{"$f":"IFERROR(INDIRECT(\"'FACILITY INFO (14)'!w14\"), \"\")","v":""},{"$f":"IFERROR(INDIRECT(\"'FACILITY INFO (14)'!j15\"), \"\")","v":""},{"$f":"IFERROR(INDIRECT(\"'FACILITY INFO (14)'!K18\"), \"\")","v":""},{"$f":"IFERROR(INDIRECT(\"'FACILITY INFO (14)'!K19\"), \"\")","v":""},{"$f":"IFERROR(INDIRECT(\"'FACILITY INFO (14)'!K20\"), \"\")","v":""},{"$f":"IFERROR(INDIRECT(\"'FACILITY INFO (14)'!K21\"), \"\")","v":""},{"$f":"IFERROR(INDIRECT(\"'FACILITY INFO (14)'!K22\"), \"\")","v":""},{"$f":"IFERROR(INDIRECT(\"'FACILITY INFO (14)'!z18\"), \"\")","v":""},{"$f":"IFERROR(INDIRECT(\"'FACILITY INFO (14)'!z19\"), \"\")","v":""},{"$f":"IFERROR(INDIRECT(\"'FACILITY INFO (14)'!z20\"), \"\")","v":""},{"$f":"IFERROR(INDIRECT(\"'FACILITY INFO (14)'!z21\"), \"\")","v":""},{"$f":"IFERROR(INDIRECT(\"'FACILITY INFO (14)'!k25\"), \"\")","v":""},{"$f":"IFERROR(INDIRECT(\"'FACILITY INFO (14)'!r25\"), \"\")","v":""},{"$f":"IFERROR(INDIRECT(\"'FACILITY INFO (14)'!ad25\"), \"\")","v":""},{"$f":"IFERROR(INDIRECT(\"'FACILITY INFO (14)'!k26\"), \"\")","v":""},{"$f":"IFERROR(INDIRECT(\"'FACILITY INFO (14)'!ah27\"), \"\")","v":""},{"$f":"IFERROR(INDIRECT(\"'FACILITY INFO (14)'!k33\"), \"\")","v":""},{"$f":"IFERROR(INDIRECT(\"'FACILITY INFO (14)'!r33\"), \"\")","v":""},{"$f":"IFERROR(INDIRECT(\"'FACILITY INFO (14)'!ad33\"), \"\")","v":""},{"$f":"IFERROR(INDIRECT(\"'FACILITY INFO (14)'!k34\"), \"\")","v":""},{"$f":"IFERROR(INDIRECT(\"'FACILITY INFO (14)'!ah35\"), \"\")","v":""},{"$f":"IFERROR(INDIRECT(\"'FACILITY INFO (14)'!ah41\"), \"\")","v":""},{"$f":"IFERROR(INDIRECT(\"'FACILITY INFO (14)'!ah42\"), \"\")","v":""},{"$f":"IFERROR(INDIRECT(\"'FACILITY INFO (14)'!ah43\"), \"\")","v":""},{"$f":"IFERROR(INDIRECT(\"'DESIGN & TARGET SPEED (14)'!k22\"), \"\")","v":""},{"$f":"IFERROR(INDIRECT(\"'DESIGN & TARGET SPEED (14)'!ab22\"), \"\")","v":""},{"$f":"IFERROR(INDIRECT(\"'DESIGN & TARGET SPEED (14)'!q25\"), \"\")","v":""},{"$f":"IFERROR(INDIRECT(\"'DESIGN & TARGET SPEED (14)'!j198\"), \"\")","v":""},{"$f":"IFERROR(INDIRECT(\"'DESIGN & TARGET SPEED (14)'!j206\"), \"\")","v":""},{"$f":"IFERROR(INDIRECT(\"'SSD (14)'!k25\"), \"\")","v":""},{"$f":"IFERROR(INDIRECT(\"'SUPERELEVATION (14)'!ac14\"), \"\")","v":""},{"$f":"IFERROR(INDIRECT(\"'DESIGN & TARGET SPEED (14)'!AH13\"), \"\")","v":""}]
[15,{"$f":"IFERROR(INDIRECT(\"'FACILITY INFO (15)'!H9\"), \"\")","v":""},{"$f":"IFERROR(INDIRECT(\"'FACILITY INFO (15)'!AJ13\"), \"\")","v":""},{"$f":"IFERROR(INDIRECT(\"'FACILITY INFO (15)'!AJ14\"), \"\")","v":""},{"$f":"IFERROR(INDIRECT(\"'FACILITY INFO (15)'!w13\"), \"\")","v":""},{"$f":"IFERROR(INDIRECT(\"'FACILITY INFO (15)'!w14\"), \"\")","v":""},{"$f":"IFERROR(INDIRECT(\"'FACILITY INFO (15)'!j15\"), \"\")","v":""},{"$f":"IFERROR(INDIRECT(\"'FACILITY INFO (15)'!K18\"), \"\")","v":""},{"$f":"IFERROR(INDIRECT(\"'FACILITY INFO (15)'!K19\"), \"\")","v":""},{"$f":"IFERROR(INDIRECT(\"'FACILITY INFO (15)'!K20\"), \"\")","v":""},{"$f":"IFERROR(INDIRECT(\"'FACILITY INFO (15)'!K21\"), \"\")","v":""},{"$f":"IFERROR(INDIRECT(\"'FACILITY INFO (15)'!K22\"), \"\")","v":""},{"$f":"IFERROR(INDIRECT(\"'FACILITY INFO (15)'!z18\"), \"\")","v":""},{"$f":"IFERROR(INDIRECT(\"'FACILITY INFO (15)'!z19\"), \"\")","v":""},{"$f":"IFERROR(INDIRECT(\"'FACILITY INFO (15)'!z20\"), \"\")","v":""},{"$f":"IFERROR(INDIRECT(\"'FACILITY INFO (15)'!z21\"), \"\")","v":""},{"$f":"IFERROR(INDIRECT(\"'FACILITY INFO (15)'!k25\"), \"\")","v":""},{"$f":"IFERROR(INDIRECT(\"'FACILITY INFO (15)'!r25\"), \"\")","v":""},{"$f":"IFERROR(INDIRECT(\"'FACILITY INFO (15)'!ad25\"), \"\")","v":""},{"$f":"IFERROR(INDIRECT(\"'FACILITY INFO (15)'!k26\"), \"\")","v":""},{"$f":"IFERROR(INDIRECT(\"'FACILITY INFO (15)'!ah27\"), \"\")","v":""},{"$f":"IFERROR(INDIRECT(\"'FACILITY INFO (15)'!k33\"), \"\")","v":""},{"$f":"IFERROR(INDIRECT(\"'FACILITY INFO (15)'!r33\"), \"\")","v":""},{"$f":"IFERROR(INDIRECT(\"'FACILITY INFO (15)'!ad33\"), \"\")","v":""},{"$f":"IFERROR(INDIRECT(\"'FACILITY INFO (15)'!k34\"), \"\")","v":""},{"$f":"IFERROR(INDIRECT(\"'FACILITY INFO (15)'!ah35\"), \"\")","v":""},{"$f":"IFERROR(INDIRECT(\"'FACILITY INFO (15)'!ah41\"), \"\")","v":""},{"$f":"IFERROR(INDIRECT(\"'FACILITY INFO (15)'!ah42\"), \"\")","v":""},{"$f":"IFERROR(INDIRECT(\"'FACILITY INFO (15)'!ah43\"), \"\")","v":""},{"$f":"IFERROR(INDIRECT(\"'DESIGN & TARGET SPEED (15)'!k22\"), \"\")","v":""},{"$f":"IFERROR(INDIRECT(\"'DESIGN & TARGET SPEED (15)'!ab22\"), \"\")","v":""},{"$f":"IFERROR(INDIRECT(\"'DESIGN & TARGET SPEED (15)'!q25\"), \"\")","v":""},{"$f":"IFERROR(INDIRECT(\"'DESIGN & TARGET SPEED (15)'!j198\"), \"\")","v":""},{"$f":"IFERROR(INDIRECT(\"'DESIGN & TARGET SPEED (15)'!j206\"), \"\")","v":""},{"$f":"IFERROR(INDIRECT(\"'SSD (15)'!k25\"), \"\")","v":""},{"$f":"IFERROR(INDIRECT(\"'SUPERELEVATION (15)'!ac14\"), \"\")","v":""},{"$f":"IFERROR(INDIRECT(\"'DESIGN & TARGET SPEED (15)'!AH13\"), \"\")","v":""}]
[16,{"$f":"IFERROR(INDIRECT(\"'FACILITY INFO (16)'!H9\"), \"\")","v":""},{"$f":"IFERROR(INDIRECT(\"'FACILITY INFO (16)'!AJ13\"), \"\")","v":""},{"$f":"IFERROR(INDIRECT(\"'FACILITY INFO (16)'!AJ14\"), \"\")","v":""},{"$f":"IFERROR(INDIRECT(\"'FACILITY INFO (16)'!w13\"), \"\")","v":""},{"$f":"IFERROR(INDIRECT(\"'FACILITY INFO (16)'!w14\"), \"\")","v":""},{"$f":"IFERROR(INDIRECT(\"'FACILITY INFO (16)'!j15\"), \"\")","v":""},{"$f":"IFERROR(INDIRECT(\"'FACILITY INFO (16)'!K18\"), \"\")","v":""},{"$f":"IFERROR(INDIRECT(\"'FACILITY INFO (16)'!K19\"), \"\")","v":""},{"$f":"IFERROR(INDIRECT(\"'FACILITY INFO (16)'!K20\"), \"\")","v":""},{"$f":"IFERROR(INDIRECT(\"'FACILITY INFO (16)'!K21\"), \"\")","v":""},{"$f":"IFERROR(INDIRECT(\"'FACILITY INFO (16)'!K22\"), \"\")","v":""},{"$f":"IFERROR(INDIRECT(\"'FACILITY INFO (16)'!z18\"), \"\")","v":""},{"$f":"IFERROR(INDIRECT(\"'FACILITY INFO (16)'!z19\"), \"\")","v":""},{"$f":"IFERROR(INDIRECT(\"'FACILITY INFO (16)'!z20\"), \"\")","v":""},{"$f":"IFERROR(INDIRECT(\"'FACILITY INFO (16)'!z21\"), \"\")","v":""},{"$f":"IFERROR(INDIRECT(\"'FACILITY INFO (16)'!k25\"), \"\")","v":""},{"$f":"IFERROR(INDIRECT(\"'FACILITY INFO (16)'!r25\"), \"\")","v":""},{"$f":"IFERROR(INDIRECT(\"'FACILITY INFO (16)'!ad25\"), \"\")","v":""},{"$f":"IFERROR(INDIRECT(\"'FACILITY INFO (16)'!k26\"), \"\")","v":""},{"$f":"IFERROR(INDIRECT(\"'FACILITY INFO (16)'!ah27\"), \"\")","v":""},{"$f":"IFERROR(INDIRECT(\"'FACILITY INFO (16)'!k33\"), \"\")","v":""},{"$f":"IFERROR(INDIRECT(\"'FACILITY INFO (16)'!r33\"), \"\")","v":""},{"$f":"IFERROR(INDIRECT(\"'FACILITY INFO (16)'!ad33\"), \"\")","v":""},{"$f":"IFERROR(INDIRECT(\"'FACILITY INFO (16)'!k34\"), \"\")","v":""},{"$f":"IFERROR(INDIRECT(\"'FACILITY INFO (16)'!ah35\"), \"\")","v":""},{"$f":"IFERROR(INDIRECT(\"'FACILITY INFO (16)'!ah41\"), \"\")","v":""},{"$f":"IFERROR(INDIRECT(\"'FACILITY INFO (16)'!ah42\"), \"\")","v":""},{"$f":"IFERROR(INDIRECT(\"'FACILITY INFO (16)'!ah43\"), \"\")","v":""},{"$f":"IFERROR(INDIRECT(\"'DESIGN & TARGET SPEED (16)'!k22\"), \"\")","v":""},{"$f":"IFERROR(INDIRECT(\"'DESIGN & TARGET SPEED (16)'!ab22\"), \"\")","v":""},{"$f":"IFERROR(INDIRECT(\"'DESIGN & TARGET SPEED (16)'!q25\"), \"\")","v":""},{"$f":"IFERROR(INDIRECT(\"'DESIGN & TARGET SPEED (16)'!j198\"), \"\")","v":""},{"$f":"IFERROR(INDIRECT(\"'DESIGN & TARGET SPEED (16)'!j206\"), \"\")","v":""},{"$f":"IFERROR(INDIRECT(\"'SSD (16)'!k25\"), \"\")","v":""},{"$f":"IFERROR(INDIRECT(\"'SUPERELEVATION (16)'!ac14\"), \"\")","v":""},{"$f":"IFERROR(INDIRECT(\"'DESIGN & TARGET SPEED (16)'!AH13\"), \"\")","v":""}]
[17,{"$f":"IFERROR(INDIRECT(\"'FACILITY INFO (17)'!H9\"), \"\")","v":""},{"$f":"IFERROR(INDIRECT(\"'FACILITY INFO (17)'!AJ13\"), \"\")","v":""},{"$f":"IFERROR(INDIRECT(\"'FACILITY INFO (17)'!AJ14\"), \"\")","v":""},{"$f":"IFERROR(INDIRECT(\"'FACILITY INFO (17)'!w13\"), \"\")","v":""},{"$f":"IFERROR(INDIRECT(\"'FACILITY INFO (17)'!w14\"), \"\")","v":""},{"$f":"IFERROR(INDIRECT(\"'FACILITY INFO (17)'!j15\"), \"\")","v":""},{"$f":"IFERROR(INDIRECT(\"'FACILITY INFO (17)'!K18\"), \"\")","v":""},{"$f":"IFERROR(INDIRECT(\"'FACILITY INFO (17)'!K19\"), \"\")","v":""},{"$f":"IFERROR(INDIRECT(\"'FACILITY INFO (17)'!K20\"), \"\")","v":""},{"$f":"IFERROR(INDIRECT(\"'FACILITY INFO (17)'!K21\"), \"\")","v":""},{"$f":"IFERROR(INDIRECT(\"'FACILITY INFO (17)'!K22\"), \"\")","v":""},{"$f":"IFERROR(INDIRECT(\"'FACILITY INFO (17)'!z18\"), \"\")","v":""},{"$f":"IFERROR(INDIRECT(\"'FACILITY INFO (17)'!z19\"), \"\")","v":""},{"$f":"IFERROR(INDIRECT(\"'FACILITY INFO (17)'!z20\"), \"\")","v":""},{"$f":"IFERROR(INDIRECT(\"'FACILITY INFO (17)'!z21\"), \"\")","v":""},{"$f":"IFERROR(INDIRECT(\"'FACILITY INFO (17)'!k25\"), \"\")","v":""},{"$f":"IFERROR(INDIRECT(\"'FACILITY INFO (17)'!r25\"), \"\")","v":""},{"$f":"IFERROR(INDIRECT(\"'FACILITY INFO (17)'!ad25\"), \"\")","v":""},{"$f":"IFERROR(INDIRECT(\"'FACILITY INFO (17)'!k26\"), \"\")","v":""},{"$f":"IFERROR(INDIRECT(\"'FACILITY INFO (17)'!ah27\"), \"\")","v":""},{"$f":"IFERROR(INDIRECT(\"'FACILITY INFO (17)'!k33\"), \"\")","v":""},{"$f":"IFERROR(INDIRECT(\"'FACILITY INFO (17)'!r33\"), \"\")","v":""},{"$f":"IFERROR(INDIRECT(\"'FACILITY INFO (17)'!ad33\"), \"\")","v":""},{"$f":"IFERROR(INDIRECT(\"'FACILITY INFO (17)'!k34\"), \"\")","v":""},{"$f":"IFERROR(INDIRECT(\"'FACILITY INFO (17)'!ah35\"), \"\")","v":""},{"$f":"IFERROR(INDIRECT(\"'FACILITY INFO (17)'!ah41\"), \"\")","v":""},{"$f":"IFERROR(INDIRECT(\"'FACILITY INFO (17)'!ah42\"), \"\")","v":""},{"$f":"IFERROR(INDIRECT(\"'FACILITY INFO (17)'!ah43\"), \"\")","v":""},{"$f":"IFERROR(INDIRECT(\"'DESIGN & TARGET SPEED (17)'!k22\"), \"\")","v":""},{"$f":"IFERROR(INDIRECT(\"'DESIGN & TARGET SPEED (17)'!ab22\"), \"\")","v":""},{"$f":"IFERROR(INDIRECT(\"'DESIGN & TARGET SPEED (17)'!q25\"), \"\")","v":""},{"$f":"IFERROR(INDIRECT(\"'DESIGN & TARGET SPEED (17)'!j198\"), \"\")","v":""},{"$f":"IFERROR(INDIRECT(\"'DESIGN & TARGET SPEED (17)'!j206\"), \"\")","v":""},{"$f":"IFERROR(INDIRECT(\"'SSD (17)'!k25\"), \"\")","v":""},{"$f":"IFERROR(INDIRECT(\"'SUPERELEVATION (17)'!ac14\"), \"\")","v":""},{"$f":"IFERROR(INDIRECT(\"'DESIGN & TARGET SPEED (17)'!AH13\"), \"\")","v":""}]
[18,{"$f":"IFERROR(INDIRECT(\"'FACILITY INFO (18)'!H9\"), \"\")","v":""},{"$f":"IFERROR(INDIRECT(\"'FACILITY INFO (18)'!AJ13\"), \"\")","v":""},{"$f":"IFERROR(INDIRECT(\"'FACILITY INFO (18)'!AJ14\"), \"\")","v":""},{"$f":"IFERROR(INDIRECT(\"'FACILITY INFO (18)'!w13\"), \"\")","v":""},{"$f":"IFERROR(INDIRECT(\"'FACILITY INFO (18)'!w14\"), \"\")","v":""},{"$f":"IFERROR(INDIRECT(\"'FACILITY INFO (18)'!j15\"), \"\")","v":""},{"$f":"IFERROR(INDIRECT(\"'FACILITY INFO (18)'!K18\"), \"\")","v":""},{"$f":"IFERROR(INDIRECT(\"'FACILITY INFO (18)'!K19\"), \"\")","v":""},{"$f":"IFERROR(INDIRECT(\"'FACILITY INFO (18)'!K20\"), \"\")","v":""},{"$f":"IFERROR(INDIRECT(\"'FACILITY INFO (18)'!K21\"), \"\")","v":""},{"$f":"IFERROR(INDIRECT(\"'FACILITY INFO (18)'!K22\"), \"\")","v":""},{"$f":"IFERROR(INDIRECT(\"'FACILITY INFO (18)'!z18\"), \"\")","v":""},{"$f":"IFERROR(INDIRECT(\"'FACILITY INFO (18)'!z19\"), \"\")","v":""},{"$f":"IFERROR(INDIRECT(\"'FACILITY INFO (18)'!z20\"), \"\")","v":""},{"$f":"IFERROR(INDIRECT(\"'FACILITY INFO (18)'!z21\"), \"\")","v":""},{"$f":"IFERROR(INDIRECT(\"'FACILITY INFO (18)'!k25\"), \"\")","v":""},{"$f":"IFERROR(INDIRECT(\"'FACILITY INFO (18)'!r25\"), \"\")","v":""},{"$f":"IFERROR(INDIRECT(\"'FACILITY INFO (18)'!ad25\"), \"\")","v":""},{"$f":"IFERROR(INDIRECT(\"'FACILITY INFO (18)'!k26\"), \"\")","v":""},{"$f":"IFERROR(INDIRECT(\"'FACILITY INFO (18)'!ah27\"), \"\")","v":""},{"$f":"IFERROR(INDIRECT(\"'FACILITY INFO (18)'!k33\"), \"\")","v":""},{"$f":"IFERROR(INDIRECT(\"'FACILITY INFO (18)'!r33\"), \"\")","v":""},{"$f":"IFERROR(INDIRECT(\"'FACILITY INFO (18)'!ad33\"), \"\")","v":""},{"$f":"IFERROR(INDIRECT(\"'FACILITY INFO (18)'!k34\"), \"\")","v":""},{"$f":"IFERROR(INDIRECT(\"'FACILITY INFO (18)'!ah35\"), \"\")","v":""},{"$f":"IFERROR(INDIRECT(\"'FACILITY INFO (18)'!ah41\"), \"\")","v":""},{"$f":"IFERROR(INDIRECT(\"'FACILITY INFO (18)'!ah42\"), \"\")","v":""},{"$f":"IFERROR(INDIRECT(\"'FACILITY INFO (18)'!ah43\"), \"\")","v":""},{"$f":"IFERROR(INDIRECT(\"'DESIGN & TARGET SPEED (18)'!k22\"), \"\")","v":""},{"$f":"IFERROR(INDIRECT(\"'DESIGN & TARGET SPEED (18)'!ab22\"), \"\")","v":""},{"$f":"IFERROR(INDIRECT(\"'DESIGN & TARGET SPEED (18)'!q25\"), \"\")","v":""},{"$f":"IFERROR(INDIRECT(\"'DESIGN & TARGET SPEED (18)'!j198\"), \"\")","v":""},{"$f":"IFERROR(INDIRECT(\"'DESIGN & TARGET SPEED (18)'!j206\"), \"\")","v":""},{"$f":"IFERROR(INDIRECT(\"'SSD (18)'!k25\"), \"\")","v":""},{"$f":"IFERROR(INDIRECT(\"'SUPERELEVATION (18)'!ac14\"), \"\")","v":""},{"$f":"IFERROR(INDIRECT(\"'DESIGN & TARGET SPEED (18)'!AH13\"), \"\")","v":""}]
[19,{"$f":"IFERROR(INDIRECT(\"'FACILITY INFO (19)'!H9\"), \"\")","v":""},{"$f":"IFERROR(INDIRECT(\"'FACILITY INFO (19)'!AJ13\"), \"\")","v":""},{"$f":"IFERROR(INDIRECT(\"'FACILITY INFO (19)'!AJ14\"), \"\")","v":""},{"$f":"IFERROR(INDIRECT(\"'FACILITY INFO (19)'!w13\"), \"\")","v":""},{"$f":"IFERROR(INDIRECT(\"'FACILITY INFO (19)'!w14\"), \"\")","v":""},{"$f":"IFERROR(INDIRECT(\"'FACILITY INFO (19)'!j15\"), \"\")","v":""},{"$f":"IFERROR(INDIRECT(\"'FACILITY INFO (19)'!K18\"), \"\")","v":""},{"$f":"IFERROR(INDIRECT(\"'FACILITY INFO (19)'!K19\"), \"\")","v":""},{"$f":"IFERROR(INDIRECT(\"'FACILITY INFO (19)'!K20\"), \"\")","v":""},{"$f":"IFERROR(INDIRECT(\"'FACILITY INFO (19)'!K21\"), \"\")","v":""},{"$f":"IFERROR(INDIRECT(\"'FACILITY INFO (19)'!K22\"), \"\")","v":""},{"$f":"IFERROR(INDIRECT(\"'FACILITY INFO (19)'!z18\"), \"\")","v":""},{"$f":"IFERROR(INDIRECT(\"'FACILITY INFO (19)'!z19\"), \"\")","v":""},{"$f":"IFERROR(INDIRECT(\"'FACILITY INFO (19)'!z20\"), \"\")","v":""},{"$f":"IFERROR(INDIRECT(\"'FACILITY INFO (19)'!z21\"), \"\")","v":""},{"$f":"IFERROR(INDIRECT(\"'FACILITY INFO (19)'!k25\"), \"\")","v":""},{"$f":"IFERROR(INDIRECT(\"'FACILITY INFO (19)'!r25\"), \"\")","v":""},{"$f":"IFERROR(INDIRECT(\"'FACILITY INFO (19)'!ad25\"), \"\")","v":""},{"$f":"IFERROR(INDIRECT(\"'FACILITY INFO (19)'!k26\"), \"\")","v":""},{"$f":"IFERROR(INDIRECT(\"'FACILITY INFO (19)'!ah27\"), \"\")","v":""},{"$f":"IFERROR(INDIRECT(\"'FACILITY INFO (19)'!k33\"), \"\")","v":""},{"$f":"IFERROR(INDIRECT(\"'FACILITY INFO (19)'!r33\"), \"\")","v":""},{"$f":"IFERROR(INDIRECT(\"'FACILITY INFO (19)'!ad33\"), \"\")","v":""},{"$f":"IFERROR(INDIRECT(\"'FACILITY INFO (19)'!k34\"), \"\")","v":""},{"$f":"IFERROR(INDIRECT(\"'FACILITY INFO (19)'!ah35\"), \"\")","v":""},{"$f":"IFERROR(INDIRECT(\"'FACILITY INFO (19)'!ah41\"), \"\")","v":""},{"$f":"IFERROR(INDIRECT(\"'FACILITY INFO (19)'!ah42\"), \"\")","v":""},{"$f":"IFERROR(INDIRECT(\"'FACILITY INFO (19)'!ah43\"), \"\")","v":""},{"$f":"IFERROR(INDIRECT(\"'DESIGN & TARGET SPEED (19)'!k22\"), \"\")","v":""},{"$f":"IFERROR(INDIRECT(\"'DESIGN & TARGET SPEED (19)'!ab22\"), \"\")","v":""},{"$f":"IFERROR(INDIRECT(\"'DESIGN & TARGET SPEED (19)'!q25\"), \"\")","v":""},{"$f":"IFERROR(INDIRECT(\"'DESIGN & TARGET SPEED (19)'!j198\"), \"\")","v":""},{"$f":"IFERROR(INDIRECT(\"'DESIGN & TARGET SPEED (19)'!j206\"), \"\")","v":""},{"$f":"IFERROR(INDIRECT(\"'SSD (19)'!k25\"), \"\")","v":""},{"$f":"IFERROR(INDIRECT(\"'SUPERELEVATION (19)'!ac14\"), \"\")","v":""},{"$f":"IFERROR(INDIRECT(\"'DESIGN & TARGET SPEED (19)'!AH13\"), \"\")","v":""}]
[20,{"$f":"IFERROR(INDIRECT(\"'FACILITY INFO (20)'!H9\"), \"\")","v":""},{"$f":"IFERROR(INDIRECT(\"'FACILITY INFO (20)'!AJ13\"), \"\")","v":""},{"$f":"IFERROR(INDIRECT(\"'FACILITY INFO (20)'!AJ14\"), \"\")","v":""},{"$f":"IFERROR(INDIRECT(\"'FACILITY INFO (20)'!w13\"), \"\")","v":""},{"$f":"IFERROR(INDIRECT(\"'FACILITY INFO (20)'!w14\"), \"\")","v":""},{"$f":"IFERROR(INDIRECT(\"'FACILITY INFO (20)'!j15\"), \"\")","v":""},{"$f":"IFERROR(INDIRECT(\"'FACILITY INFO (20)'!K18\"), \"\")","v":""},{"$f":"IFERROR(INDIRECT(\"'FACILITY INFO (20)'!K19\"), \"\")","v":""},{"$f":"IFERROR(INDIRECT(\"'FACILITY INFO (20)'!K20\"), \"\")","v":""},{"$f":"IFERROR(INDIRECT(\"'FACILITY INFO (20)'!K21\"), \"\")","v":""},{"$f":"IFERROR(INDIRECT(\"'FACILITY INFO (20)'!K22\"), \"\")","v":""},{"$f":"IFERROR(INDIRECT(\"'FACILITY INFO (20)'!z18\"), \"\")","v":""},{"$f":"IFERROR(INDIRECT(\"'FACILITY INFO (20)'!z19\"), \"\")","v":""},{"$f":"IFERROR(INDIRECT(\"'FACILITY INFO (20)'!z20\"), \"\")","v":""},{"$f":"IFERROR(INDIRECT(\"'FACILITY INFO (20)'!z21\"), \"\")","v":""},{"$f":"IFERROR(INDIRECT(\"'FACILITY INFO (20)'!k25\"), \"\")","v":""},{"$f":"IFERROR(INDIRECT(\"'FACILITY INFO (20)'!r25\"), \"\")","v":""},{"$f":"IFERROR(INDIRECT(\"'FACILITY INFO (20)'!ad25\"), \"\")","v":""},{"$f":"IFERROR(INDIRECT(\"'FACILITY INFO (20)'!k26\"), \"\")","v":""},{"$f":"IFERROR(INDIRECT(\"'FACILITY INFO (20)'!ah27\"), \"\")","v":""},{"$f":"IFERROR(INDIRECT(\"'FACILITY INFO (20)'!k33\"), \"\")","v":""},{"$f":"IFERROR(INDIRECT(\"'FACILITY INFO (20)'!r33\"), \"\")","v":""},{"$f":"IFERROR(INDIRECT(\"'FACILITY INFO (20)'!ad33\"), \"\")","v":""},{"$f":"IFERROR(INDIRECT(\"'FACILITY INFO (20)'!k34\"), \"\")","v":""},{"$f":"IFERROR(INDIRECT(\"'FACILITY INFO (20)'!ah35\"), \"\")","v":""},{"$f":"IFERROR(INDIRECT(\"'FACILITY INFO (20)'!ah41\"), \"\")","v":""},{"$f":"IFERROR(INDIRECT(\"'FACILITY INFO (20)'!ah42\"), \"\")","v":""},{"$f":"IFERROR(INDIRECT(\"'FACILITY INFO (20)'!ah43\"), \"\")","v":""},{"$f":"IFERROR(INDIRECT(\"'DESIGN & TARGET SPEED (20)'!k22\"), \"\")","v":""},{"$f":"IFERROR(INDIRECT(\"'DESIGN & TARGET SPEED (20)'!ab22\"), \"\")","v":""},{"$f":"IFERROR(INDIRECT(\"'DESIGN & TARGET SPEED (20)'!q25\"), \"\")","v":""},{"$f":"IFERROR(INDIRECT(\"'DESIGN & TARGET SPEED (20)'!j198\"), \"\")","v":""},{"$f":"IFERROR(INDIRECT(\"'DESIGN & TARGET SPEED (20)'!j206\"), \"\")","v":""},{"$f":"IFERROR(INDIRECT(\"'SSD (20)'!k25\"), \"\")","v":""},{"$f":"IFERROR(INDIRECT(\"'SUPERELEVATION (20)'!ac14\"), \"\")","v":""},{"$f":"IFERROR(INDIRECT(\"'DESIGN & TARGET SPEED (20)'!AH13\"), \"\")","v":""}]
[21,{"$f":"IFERROR(INDIRECT(\"'FACILITY INFO (21)'!H9\"), \"\")","v":""},{"$f":"IFERROR(INDIRECT(\"'FACILITY INFO (21)'!AJ13\"), \"\")","v":""},{"$f":"IFERROR(INDIRECT(\"'FACILITY INFO (21)'!AJ14\"), \"\")","v":""},{"$f":"IFERROR(INDIRECT(\"'FACILITY INFO (21)'!w13\"), \"\")","v":""},{"$f":"IFERROR(INDIRECT(\"'FACILITY INFO (21)'!w14\"), \"\")","v":""},{"$f":"IFERROR(INDIRECT(\"'FACILITY INFO (21)'!j15\"), \"\")","v":""},{"$f":"IFERROR(INDIRECT(\"'FACILITY INFO (21)'!K18\"), \"\")","v":""},{"$f":"IFERROR(INDIRECT(\"'FACILITY INFO (21)'!K19\"), \"\")","v":""},{"$f":"IFERROR(INDIRECT(\"'FACILITY INFO (21)'!K20\"), \"\")","v":""},{"$f":"IFERROR(INDIRECT(\"'FACILITY INFO (21)'!K21\"), \"\")","v":""},{"$f":"IFERROR(INDIRECT(\"'FACILITY INFO (21)'!K22\"), \"\")","v":""},{"$f":"IFERROR(INDIRECT(\"'FACILITY INFO (21)'!z18\"), \"\")","v":""},{"$f":"IFERROR(INDIRECT(\"'FACILITY INFO (21)'!z19\"), \"\")","v":""},{"$f":"IFERROR(INDIRECT(\"'FACILITY INFO (21)'!z20\"), \"\")","v":""},{"$f":"IFERROR(INDIRECT(\"'FACILITY INFO (21)'!z21\"), \"\")","v":""},{"$f":"IFERROR(INDIRECT(\"'FACILITY INFO (21)'!k25\"), \"\")","v":""},{"$f":"IFERROR(INDIRECT(\"'FACILITY INFO (21)'!r25\"), \"\")","v":""},{"$f":"IFERROR(INDIRECT(\"'FACILITY INFO (21)'!ad25\"), \"\")","v":""},{"$f":"IFERROR(INDIRECT(\"'FACILITY INFO (21)'!k26\"), \"\")","v":""},{"$f":"IFERROR(INDIRECT(\"'FACILITY INFO (21)'!ah27\"), \"\")","v":""},{"$f":"IFERROR(INDIRECT(\"'FACILITY INFO (21)'!k33\"), \"\")","v":""},{"$f":"IFERROR(INDIRECT(\"'FACILITY INFO (21)'!r33\"), \"\")","v":""},{"$f":"IFERROR(INDIRECT(\"'FACILITY INFO (21)'!ad33\"), \"\")","v":""},{"$f":"IFERROR(INDIRECT(\"'FACILITY INFO (21)'!k34\"), \"\")","v":""},{"$f":"IFERROR(INDIRECT(\"'FACILITY INFO (21)'!ah35\"), \"\")","v":""},{"$f":"IFERROR(INDIRECT(\"'FACILITY INFO (21)'!ah41\"), \"\")","v":""},{"$f":"IFERROR(INDIRECT(\"'FACILITY INFO (21)'!ah42\"), \"\")","v":""},{"$f":"IFERROR(INDIRECT(\"'FACILITY INFO (21)'!ah43\"), \"\")","v":""},{"$f":"IFERROR(INDIRECT(\"'DESIGN & TARGET SPEED (21)'!k22\"), \"\")","v":""},{"$f":"IFERROR(INDIRECT(\"'DESIGN & TARGET SPEED (21)'!ab22\"), \"\")","v":""},{"$f":"IFERROR(INDIRECT(\"'DESIGN & TARGET SPEED (21)'!q25\"), \"\")","v":""},{"$f":"IFERROR(INDIRECT(\"'DESIGN & TARGET SPEED (21)'!j198\"), \"\")","v":""},{"$f":"IFERROR(INDIRECT(\"'DESIGN & TARGET SPEED (21)'!j206\"), \"\")","v":""},{"$f":"IFERROR(INDIRECT(\"'SSD (21)'!k25\"), \"\")","v":""},{"$f":"IFERROR(INDIRECT(\"'SUPERELEVATION (21)'!ac14\"), \"\")","v":""},{"$f":"IFERROR(INDIRECT(\"'DESIGN & TARGET SPEED (21)'!AH13\"), \"\")","v":""}]
[22,{"$f":"IFERROR(INDIRECT(\"'FACILITY INFO (22)'!H9\"), \"\")","v":""},{"$f":"IFERROR(INDIRECT(\"'FACILITY INFO (22)'!AJ13\"), \"\")","v":""},{"$f":"IFERROR(INDIRECT(\"'FACILITY INFO (22)'!AJ14\"), \"\")","v":""},{"$f":"IFERROR(INDIRECT(\"'FACILITY INFO (22)'!w13\"), \"\")","v":""},{"$f":"IFERROR(INDIRECT(\"'FACILITY INFO (22)'!w14\"), \"\")","v":""},{"$f":"IFERROR(INDIRECT(\"'FACILITY INFO (22)'!j15\"), \"\")","v":""},{"$f":"IFERROR(INDIRECT(\"'FACILITY INFO (22)'!K18\"), \"\")","v":""},{"$f":"IFERROR(INDIRECT(\"'FACILITY INFO (22)'!K19\"), \"\")","v":""},{"$f":"IFERROR(INDIRECT(\"'FACILITY INFO (22)'!K20\"), \"\")","v":""},{"$f":"IFERROR(INDIRECT(\"'FACILITY INFO (22)'!K21\"), \"\")","v":""},{"$f":"IFERROR(INDIRECT(\"'FACILITY INFO (22)'!K22\"), \"\")","v":""},{"$f":"IFERROR(INDIRECT(\"'FACILITY INFO (22)'!z18\"), \"\")","v":""},{"$f":"IFERROR(INDIRECT(\"'FACILITY INFO (22)'!z19\"), \"\")","v":""},{"$f":"IFERROR(INDIRECT(\"'FACILITY INFO (22)'!z20\"), \"\")","v":""},{"$f":"IFERROR(INDIRECT(\"'FACILITY INFO (22)'!z21\"), \"\")","v":""},{"$f":"IFERROR(INDIRECT(\"'FACILITY INFO (22)'!k25\"), \"\")","v":""},{"$f":"IFERROR(INDIRECT(\"'FACILITY INFO (22)'!r25\"), \"\")","v":""},{"$f":"IFERROR(INDIRECT(\"'FACILITY INFO (22)'!ad25\"), \"\")","v":""},{"$f":"IFERROR(INDIRECT(\"'FACILITY INFO (22)'!k26\"), \"\")","v":""},{"$f":"IFERROR(INDIRECT(\"'FACILITY INFO (22)'!ah27\"), \"\")","v":""},{"$f":"IFERROR(INDIRECT(\"'FACILITY INFO (22)'!k33\"), \"\")","v":""},{"$f":"IFERROR(INDIRECT(\"'FACILITY INFO (22)'!r33\"), \"\")","v":""},{"$f":"IFERROR(INDIRECT(\"'FACILITY INFO (22)'!ad33\"), \"\")","v":""},{"$f":"IFERROR(INDIRECT(\"'FACILITY INFO (22)'!k34\"), \"\")","v":""},{"$f":"IFERROR(INDIRECT(\"'FACILITY INFO (22)'!ah35\"), \"\")","v":""},{"$f":"IFERROR(INDIRECT(\"'FACILITY INFO (22)'!ah41\"), \"\")","v":""},{"$f":"IFERROR(INDIRECT(\"'FACILITY INFO (22)'!ah42\"), \"\")","v":""},{"$f":"IFERROR(INDIRECT(\"'FACILITY INFO (22)'!ah43\"), \"\")","v":""},{"$f":"IFERROR(INDIRECT(\"'DESIGN & TARGET SPEED (22)'!k22\"), \"\")","v":""},{"$f":"IFERROR(INDIRECT(\"'DESIGN & TARGET SPEED (22)'!ab22\"), \"\")","v":""},{"$f":"IFERROR(INDIRECT(\"'DESIGN & TARGET SPEED (22)'!q25\"), \"\")","v":""},{"$f":"IFERROR(INDIRECT(\"'DESIGN & TARGET SPEED (22)'!j198\"), \"\")","v":""},{"$f":"IFERROR(INDIRECT(\"'DESIGN & TARGET SPEED (22)'!j206\"), \"\")","v":""},{"$f":"IFERROR(INDIRECT(\"'SSD (22)'!k25\"), \"\")","v":""},{"$f":"IFERROR(INDIRECT(\"'SUPERELEVATION (22)'!ac14\"), \"\")","v":""},{"$f":"IFERROR(INDIRECT(\"'DESIGN & TARGET SPEED (22)'!AH13\"), \"\")","v":""}]
[23,{"$f":"IFERROR(INDIRECT(\"'FACILITY INFO (23)'!H9\"), \"\")","v":""},{"$f":"IFERROR(INDIRECT(\"'FACILITY INFO (23)'!AJ13\"), \"\")","v":""},{"$f":"IFERROR(INDIRECT(\"'FACILITY INFO (23)'!AJ14\"), \"\")","v":""},{"$f":"IFERROR(INDIRECT(\"'FACILITY INFO (23)'!w13\"), \"\")","v":""},{"$f":"IFERROR(INDIRECT(\"'FACILITY INFO (23)'!w14\"), \"\")","v":""},{"$f":"IFERROR(INDIRECT(\"'FACILITY INFO (23)'!j15\"), \"\")","v":""},{"$f":"IFERROR(INDIRECT(\"'FACILITY INFO (23)'!K18\"), \"\")","v":""},{"$f":"IFERROR(INDIRECT(\"'FACILITY INFO (23)'!K19\"), \"\")","v":""},{"$f":"IFERROR(INDIRECT(\"'FACILITY INFO (23)'!K20\"), \"\")","v":""},{"$f":"IFERROR(INDIRECT(\"'FACILITY INFO (23)'!K21\"), \"\")","v":""},{"$f":"IFERROR(INDIRECT(\"'FACILITY INFO (23)'!K22\"), \"\")","v":""},{"$f":"IFERROR(INDIRECT(\"'FACILITY INFO (23)'!z18\"), \"\")","v":""},{"$f":"IFERROR(INDIRECT(\"'FACILITY INFO (23)'!z19\"), \"\")","v":""},{"$f":"IFERROR(INDIRECT(\"'FACILITY INFO (23)'!z20\"), \"\")","v":""},{"$f":"IFERROR(INDIRECT(\"'FACILITY INFO (23)'!z21\"), \"\")","v":""},{"$f":"IFERROR(INDIRECT(\"'FACILITY INFO (23)'!k25\"), \"\")","v":""},{"$f":"IFERROR(INDIRECT(\"'FACILITY INFO (23)'!r25\"), \"\")","v":""},{"$f":"IFERROR(INDIRECT(\"'FACILITY INFO (23)'!ad25\"), \"\")","v":""},{"$f":"IFERROR(INDIRECT(\"'FACILITY INFO (23)'!k26\"), \"\")","v":""},{"$f":"IFERROR(INDIRECT(\"'FACILITY INFO (23)'!ah27\"), \"\")","v":""},{"$f":"IFERROR(INDIRECT(\"'FACILITY INFO (23)'!k33\"), \"\")","v":""},{"$f":"IFERROR(INDIRECT(\"'FACILITY INFO (23)'!r33\"), \"\")","v":""},{"$f":"IFERROR(INDIRECT(\"'FACILITY INFO (23)'!ad33\"), \"\")","v":""},{"$f":"IFERROR(INDIRECT(\"'FACILITY INFO (23)'!k34\"), \"\")","v":""},{"$f":"IFERROR(INDIRECT(\"'FACILITY INFO (23)'!ah35\"), \"\")","v":""},{"$f":"IFERROR(INDIRECT(\"'FACILITY INFO (23)'!ah41\"), \"\")","v":""},{"$f":"IFERROR(INDIRECT(\"'FACILITY INFO (23)'!ah42\"), \"\")","v":""},{"$f":"IFERROR(INDIRECT(\"'FACILITY INFO (23)'!ah43\"), \"\")","v":""},{"$f":"IFERROR(INDIRECT(\"'DESIGN & TARGET SPEED (23)'!k22\"), \"\")","v":""},{"$f":"IFERROR(INDIRECT(\"'DESIGN & TARGET SPEED (23)'!ab22\"), \"\")","v":""},{"$f":"IFERROR(INDIRECT(\"'DESIGN & TARGET SPEED (23)'!q25\"), \"\")","v":""},{"$f":"IFERROR(INDIRECT(\"'DESIGN & TARGET SPEED (23)'!j198\"), \"\")","v":""},{"$f":"IFERROR(INDIRECT(\"'DESIGN & TARGET SPEED (23)'!j206\"), \"\")","v":""},{"$f":"IFERROR(INDIRECT(\"'SSD (23)'!k25\"), \"\")","v":""},{"$f":"IFERROR(INDIRECT(\"'SUPERELEVATION (23)'!ac14\"), \"\")","v":""},{"$f":"IFERROR(INDIRECT(\"'DESIGN & TARGET SPEED (23)'!AH13\"), \"\")","v":""}]
[24,{"$f":"IFERROR(INDIRECT(\"'FACILITY INFO (24)'!H9\"), \"\")","v":""},{"$f":"IFERROR(INDIRECT(\"'FACILITY INFO (24)'!AJ13\"), \"\")","v":""},{"$f":"IFERROR(INDIRECT(\"'FACILITY INFO (24)'!AJ14\"), \"\")","v":""},{"$f":"IFERROR(INDIRECT(\"'FACILITY INFO (24)'!w13\"), \"\")","v":""},{"$f":"IFERROR(INDIRECT(\"'FACILITY INFO (24)'!w14\"), \"\")","v":""},{"$f":"IFERROR(INDIRECT(\"'FACILITY INFO (24)'!j15\"), \"\")","v":""},{"$f":"IFERROR(INDIRECT(\"'FACILITY INFO (24)'!K18\"), \"\")","v":""},{"$f":"IFERROR(INDIRECT(\"'FACILITY INFO (24)'!K19\"), \"\")","v":""},{"$f":"IFERROR(INDIRECT(\"'FACILITY INFO (24)'!K20\"), \"\")","v":""},{"$f":"IFERROR(INDIRECT(\"'FACILITY INFO (24)'!K21\"), \"\")","v":""},{"$f":"IFERROR(INDIRECT(\"'FACILITY INFO (24)'!K22\"), \"\")","v":""},{"$f":"IFERROR(INDIRECT(\"'FACILITY INFO (24)'!z18\"), \"\")","v":""},{"$f":"IFERROR(INDIRECT(\"'FACILITY INFO (24)'!z19\"), \"\")","v":""},{"$f":"IFERROR(INDIRECT(\"'FACILITY INFO (24)'!z20\"), \"\")","v":""},{"$f":"IFERROR(INDIRECT(\"'FACILITY INFO (24)'!z21\"), \"\")","v":""},{"$f":"IFERROR(INDIRECT(\"'FACILITY INFO (24)'!k25\"), \"\")","v":""},{"$f":"IFERROR(INDIRECT(\"'FACILITY INFO (24)'!r25\"), \"\")","v":""},{"$f":"IFERROR(INDIRECT(\"'FACILITY INFO (24)'!ad25\"), \"\")","v":""},{"$f":"IFERROR(INDIRECT(\"'FACILITY INFO (24)'!k26\"), \"\")","v":""},{"$f":"IFERROR(INDIRECT(\"'FACILITY INFO (24)'!ah27\"), \"\")","v":""},{"$f":"IFERROR(INDIRECT(\"'FACILITY INFO (24)'!k33\"), \"\")","v":""},{"$f":"IFERROR(INDIRECT(\"'FACILITY INFO (24)'!r33\"), \"\")","v":""},{"$f":"IFERROR(INDIRECT(\"'FACILITY INFO (24)'!ad33\"), \"\")","v":""},{"$f":"IFERROR(INDIRECT(\"'FACILITY INFO (24)'!k34\"), \"\")","v":""},{"$f":"IFERROR(INDIRECT(\"'FACILITY INFO (24)'!ah35\"), \"\")","v":""},{"$f":"IFERROR(INDIRECT(\"'FACILITY INFO (24)'!ah41\"), \"\")","v":""},{"$f":"IFERROR(INDIRECT(\"'FACILITY INFO (24)'!ah42\"), \"\")","v":""},{"$f":"IFERROR(INDIRECT(\"'FACILITY INFO (24)'!ah43\"), \"\")","v":""},{"$f":"IFERROR(INDIRECT(\"'DESIGN & TARGET SPEED (24)'!k22\"), \"\")","v":""},{"$f":"IFERROR(INDIRECT(\"'DESIGN & TARGET SPEED (24)'!ab22\"), \"\")","v":""},{"$f":"IFERROR(INDIRECT(\"'DESIGN & TARGET SPEED (24)'!q25\"), \"\")","v":""},{"$f":"IFERROR(INDIRECT(\"'DESIGN & TARGET SPEED (24)'!j198\"), \"\")","v":""},{"$f":"IFERROR(INDIRECT(\"'DESIGN & TARGET SPEED (24)'!j206\"), \"\")","v":""},{"$f":"IFERROR(INDIRECT(\"'SSD (24)'!k25\"), \"\")","v":""},{"$f":"IFERROR(INDIRECT(\"'SUPERELEVATION (24)'!ac14\"), \"\")","v":""},{"$f":"IFERROR(INDIRECT(\"'DESIGN & TARGET SPEED (24)'!AH13\"), \"\")","v":""}]
[25,{"$f":"IFERROR(INDIRECT(\"'FACILITY INFO (25)'!H9\"), \"\")","v":""},{"$f":"IFERROR(INDIRECT(\"'FACILITY INFO (25)'!AJ13\"), \"\")","v":""},{"$f":"IFERROR(INDIRECT(\"'FACILITY INFO (25)'!AJ14\"), \"\")","v":""},{"$f":"IFERROR(INDIRECT(\"'FACILITY INFO (25)'!w13\"), \"\")","v":""},{"$f":"IFERROR(INDIRECT(\"'FACILITY INFO (25)'!w14\"), \"\")","v":""},{"$f":"IFERROR(INDIRECT(\"'FACILITY INFO (25)'!j15\"), \"\")","v":""},{"$f":"IFERROR(INDIRECT(\"'FACILITY INFO (25)'!K18\"), \"\")","v":""},{"$f":"IFERROR(INDIRECT(\"'FACILITY INFO (25)'!K19\"), \"\")","v":""},{"$f":"IFERROR(INDIRECT(\"'FACILITY INFO (25)'!K20\"), \"\")","v":""},{"$f":"IFERROR(INDIRECT(\"'FACILITY INFO (25)'!K21\"), \"\")","v":""},{"$f":"IFERROR(INDIRECT(\"'FACILITY INFO (25)'!K22\"), \"\")","v":""},{"$f":"IFERROR(INDIRECT(\"'FACILITY INFO (25)'!z18\"), \"\")","v":""},{"$f":"IFERROR(INDIRECT(\"'FACILITY INFO (25)'!z19\"), \"\")","v":""},{"$f":"IFERROR(INDIRECT(\"'FACILITY INFO (25)'!z20\"), \"\")","v":""},{"$f":"IFERROR(INDIRECT(\"'FACILITY INFO (25)'!z21\"), \"\")","v":""},{"$f":"IFERROR(INDIRECT(\"'FACILITY INFO (25)'!k25\"), \"\")","v":""},{"$f":"IFERROR(INDIRECT(\"'FACILITY INFO (25)'!r25\"), \"\")","v":""},{"$f":"IFERROR(INDIRECT(\"'FACILITY INFO (25)'!ad25\"), \"\")","v":""},{"$f":"IFERROR(INDIRECT(\"'FACILITY INFO (25)'!k26\"), \"\")","v":""},{"$f":"IFERROR(INDIRECT(\"'FACILITY INFO (25)'!ah27\"), \"\")","v":""},{"$f":"IFERROR(INDIRECT(\"'FACILITY INFO (25)'!k33\"), \"\")","v":""},{"$f":"IFERROR(INDIRECT(\"'FACILITY INFO (25)'!r33\"), \"\")","v":""},{"$f":"IFERROR(INDIRECT(\"'FACILITY INFO (25)'!ad33\"), \"\")","v":""},{"$f":"IFERROR(INDIRECT(\"'FACILITY INFO (25)'!k34\"), \"\")","v":""},{"$f":"IFERROR(INDIRECT(\"'FACILITY INFO (25)'!ah35\"), \"\")","v":""},{"$f":"IFERROR(INDIRECT(\"'FACILITY INFO (25)'!ah41\"), \"\")","v":""},{"$f":"IFERROR(INDIRECT(\"'FACILITY INFO (25)'!ah42\"), \"\")","v":""},{"$f":"IFERROR(INDIRECT(\"'FACILITY INFO (25)'!ah43\"), \"\")","v":""},{"$f":"IFERROR(INDIRECT(\"'DESIGN & TARGET SPEED (25)'!k22\"), \"\")","v":""},{"$f":"IFERROR(INDIRECT(\"'DESIGN & TARGET SPEED (25)'!ab22\"), \"\")","v":""},{"$f":"IFERROR(INDIRECT(\"'DESIGN & TARGET SPEED (25)'!q25\"), \"\")","v":""},{"$f":"IFERROR(INDIRECT(\"'DESIGN & TARGET SPEED (25)'!j198\"), \"\")","v":""},{"$f":"IFERROR(INDIRECT(\"'DESIGN & TARGET SPEED (25)'!j206\"), \"\")","v":""},{"$f":"IFERROR(INDIRECT(\"'SSD (25)'!k25\"), \"\")","v":""},{"$f":"IFERROR(INDIRECT(\"'SUPERELEVATION (25)'!ac14\"), \"\")","v":""},{"$f":"IFERROR(INDIRECT(\"'DESIGN & TARGET SPEED (25)'!AH13\"), \"\")","v":""}]
[26,{"$f":"IFERROR(INDIRECT(\"'FACILITY INFO (26)'!H9\"), \"\")","v":""},{"$f":"IFERROR(INDIRECT(\"'FACILITY INFO (26)'!AJ13\"), \"\")","v":""},{"$f":"IFERROR(INDIRECT(\"'FACILITY INFO (26)'!AJ14\"), \"\")","v":""},{"$f":"IFERROR(INDIRECT(\"'FACILITY INFO (26)'!w13\"), \"\")","v":""},{"$f":"IFERROR(INDIRECT(\"'FACILITY INFO (26)'!w14\"), \"\")","v":""},{"$f":"IFERROR(INDIRECT(\"'FACILITY INFO (26)'!j15\"), \"\")","v":""},{"$f":"IFERROR(INDIRECT(\"'FACILITY INFO (26)'!K18\"), \"\")","v":""},{"$f":"IFERROR(INDIRECT(\"'FACILITY INFO (26)'!K19\"), \"\")","v":""},{"$f":"IFERROR(INDIRECT(\"'FACILITY INFO (26)'!K20\"), \"\")","v":""},{"$f":"IFERROR(INDIRECT(\"'FACILITY INFO (26)'!K21\"), \"\")","v":""},{"$f":"IFERROR(INDIRECT(\"'FACILITY INFO (26)'!K22\"), \"\")","v":""},{"$f":"IFERROR(INDIRECT(\"'FACILITY INFO (26)'!z18\"), \"\")","v":""},{"$f":"IFERROR(INDIRECT(\"'FACILITY INFO (26)'!z19\"), \"\")","v":""},{"$f":"IFERROR(INDIRECT(\"'FACILITY INFO (26)'!z20\"), \"\")","v":""},{"$f":"IFERROR(INDIRECT(\"'FACILITY INFO (26)'!z21\"), \"\")","v":""},{"$f":"IFERROR(INDIRECT(\"'FACILITY INFO (26)'!k25\"), \"\")","v":""},{"$f":"IFERROR(INDIRECT(\"'FACILITY INFO (26)'!r25\"), \"\")","v":""},{"$f":"IFERROR(INDIRECT(\"'FACILITY INFO (26)'!ad25\"), \"\")","v":""},{"$f":"IFERROR(INDIRECT(\"'FACILITY INFO (26)'!k26\"), \"\")","v":""},{"$f":"IFERROR(INDIRECT(\"'FACILITY INFO (26)'!ah27\"), \"\")","v":""},{"$f":"IFERROR(INDIRECT(\"'FACILITY INFO (26)'!k33\"), \"\")","v":""},{"$f":"IFERROR(INDIRECT(\"'FACILITY INFO (26)'!r33\"), \"\")","v":""},{"$f":"IFERROR(INDIRECT(\"'FACILITY INFO (26)'!ad33\"), \"\")","v":""},{"$f":"IFERROR(INDIRECT(\"'FACILITY INFO (26)'!k34\"), \"\")","v":""},{"$f":"IFERROR(INDIRECT(\"'FACILITY INFO (26)'!ah35\"), \"\")","v":""},{"$f":"IFERROR(INDIRECT(\"'FACILITY INFO (26)'!ah41\"), \"\")","v":""},{"$f":"IFERROR(INDIRECT(\"'FACILITY INFO (26)'!ah42\"), \"\")","v":""},{"$f":"IFERROR(INDIRECT(\"'FACILITY INFO (26)'!ah43\"), \"\")","v":""},{"$f":"IFERROR(INDIRECT(\"'DESIGN & TARGET SPEED (26)'!k22\"), \"\")","v":""},{"$f":"IFERROR(INDIRECT(\"'DESIGN & TARGET SPEED (26)'!ab22\"), \"\")","v":""},{"$f":"IFERROR(INDIRECT(\"'DESIGN & TARGET SPEED (26)'!q25\"), \"\")","v":""},{"$f":"IFERROR(INDIRECT(\"'DESIGN & TARGET SPEED (26)'!j198\"), \"\")","v":""},{"$f":"IFERROR(INDIRECT(\"'DESIGN & TARGET SPEED (26)'!j206\"), \"\")","v":""},{"$f":"IFERROR(INDIRECT(\"'SSD (26)'!k25\"), \"\")","v":""},{"$f":"IFERROR(INDIRECT(\"'SUPERELEVATION (26)'!ac14\"), \"\")","v":""},{"$f":"IFERROR(INDIRECT(\"'DESIGN & TARGET SPEED (26)'!AH13\"), \"\")","v":""}]
[27,{"$f":"IFERROR(INDIRECT(\"'FACILITY INFO (27)'!H9\"), \"\")","v":""},{"$f":"IFERROR(INDIRECT(\"'FACILITY INFO (27)'!AJ13\"), \"\")","v":""},{"$f":"IFERROR(INDIRECT(\"'FACILITY INFO (27)'!AJ14\"), \"\")","v":""},{"$f":"IFERROR(INDIRECT(\"'FACILITY INFO (27)'!w13\"), \"\")","v":""},{"$f":"IFERROR(INDIRECT(\"'FACILITY INFO (27)'!w14\"), \"\")","v":""},{"$f":"IFERROR(INDIRECT(\"'FACILITY INFO (27)'!j15\"), \"\")","v":""},{"$f":"IFERROR(INDIRECT(\"'FACILITY INFO (27)'!K18\"), \"\")","v":""},{"$f":"IFERROR(INDIRECT(\"'FACILITY INFO (27)'!K19\"), \"\")","v":""},{"$f":"IFERROR(INDIRECT(\"'FACILITY INFO (27)'!K20\"), \"\")","v":""},{"$f":"IFERROR(INDIRECT(\"'FACILITY INFO (27)'!K21\"), \"\")","v":""},{"$f":"IFERROR(INDIRECT(\"'FACILITY INFO (27)'!K22\"), \"\")","v":""},{"$f":"IFERROR(INDIRECT(\"'FACILITY INFO (27)'!z18\"), \"\")","v":""},{"$f":"IFERROR(INDIRECT(\"'FACILITY INFO (27)'!z19\"), \"\")","v":""},{"$f":"IFERROR(INDIRECT(\"'FACILITY INFO (27)'!z20\"), \"\")","v":""},{"$f":"IFERROR(INDIRECT(\"'FACILITY INFO (27)'!z21\"), \"\")","v":""},{"$f":"IFERROR(INDIRECT(\"'FACILITY INFO (27)'!k25\"), \"\")","v":""},{"$f":"IFERROR(INDIRECT(\"'FACILITY INFO (27)'!r25\"), \"\")","v":""},{"$f":"IFERROR(INDIRECT(\"'FACILITY INFO (27)'!ad25\"), \"\")","v":""},{"$f":"IFERROR(INDIRECT(\"'FACILITY INFO (27)'!k26\"), \"\")","v":""},{"$f":"IFERROR(INDIRECT(\"'FACILITY INFO (27)'!ah27\"), \"\")","v":""},{"$f":"IFERROR(INDIRECT(\"'FACILITY INFO (27)'!k33\"), \"\")","v":""},{"$f":"IFERROR(INDIRECT(\"'FACILITY INFO (27)'!r33\"), \"\")","v":""},{"$f":"IFERROR(INDIRECT(\"'FACILITY INFO (27)'!ad33\"), \"\")","v":""},{"$f":"IFERROR(INDIRECT(\"'FACILITY INFO (27)'!k34\"), \"\")","v":""},{"$f":"IFERROR(INDIRECT(\"'FACILITY INFO (27)'!ah35\"), \"\")","v":""},{"$f":"IFERROR(INDIRECT(\"'FACILITY INFO (27)'!ah41\"), \"\")","v":""},{"$f":"IFERROR(INDIRECT(\"'FACILITY INFO (27)'!ah42\"), \"\")","v":""},{"$f":"IFERROR(INDIRECT(\"'FACILITY INFO (27)'!ah43\"), \"\")","v":""},{"$f":"IFERROR(INDIRECT(\"'DESIGN & TARGET SPEED (27)'!k22\"), \"\")","v":""},{"$f":"IFERROR(INDIRECT(\"'DESIGN & TARGET SPEED (27)'!ab22\"), \"\")","v":""},{"$f":"IFERROR(INDIRECT(\"'DESIGN & TARGET SPEED (27)'!q25\"), \"\")","v":""},{"$f":"IFERROR(INDIRECT(\"'DESIGN & TARGET SPEED (27)'!j198\"), \"\")","v":""},{"$f":"IFERROR(INDIRECT(\"'DESIGN & TARGET SPEED (27)'!j206\"), \"\")","v":""},{"$f":"IFERROR(INDIRECT(\"'SSD (27)'!k25\"), \"\")","v":""},{"$f":"IFERROR(INDIRECT(\"'SUPERELEVATION (27)'!ac14\"), \"\")","v":""},{"$f":"IFERROR(INDIRECT(\"'DESIGN & TARGET SPEED (27)'!AH13\"), \"\")","v":""}]
[28,{"$f":"IFERROR(INDIRECT(\"'FACILITY INFO (28)'!H9\"), \"\")","v":""},{"$f":"IFERROR(INDIRECT(\"'FACILITY INFO (28)'!AJ13\"), \"\")","v":""},{"$f":"IFERROR(INDIRECT(\"'FACILITY INFO (28)'!AJ14\"), \"\")","v":""},{"$f":"IFERROR(INDIRECT(\"'FACILITY INFO (28)'!w13\"), \"\")","v":""},{"$f":"IFERROR(INDIRECT(\"'FACILITY INFO (28)'!w14\"), \"\")","v":""},{"$f":"IFERROR(INDIRECT(\"'FACILITY INFO (28)'!j15\"), \"\")","v":""},{"$f":"IFERROR(INDIRECT(\"'FACILITY INFO (28)'!K18\"), \"\")","v":""},{"$f":"IFERROR(INDIRECT(\"'FACILITY INFO (28)'!K19\"), \"\")","v":""},{"$f":"IFERROR(INDIRECT(\"'FACILITY INFO (28)'!K20\"), \"\")","v":""},{"$f":"IFERROR(INDIRECT(\"'FACILITY INFO (28)'!K21\"), \"\")","v":""},{"$f":"IFERROR(INDIRECT(\"'FACILITY INFO (28)'!K22\"), \"\")","v":""},{"$f":"IFERROR(INDIRECT(\"'FACILITY INFO (28)'!z18\"), \"\")","v":""},{"$f":"IFERROR(INDIRECT(\"'FACILITY INFO (28)'!z19\"), \"\")","v":""},{"$f":"IFERROR(INDIRECT(\"'FACILITY INFO (28)'!z20\"), \"\")","v":""},{"$f":"IFERROR(INDIRECT(\"'FACILITY INFO (28)'!z21\"), \"\")","v":""},{"$f":"IFERROR(INDIRECT(\"'FACILITY INFO (28)'!k25\"), \"\")","v":""},{"$f":"IFERROR(INDIRECT(\"'FACILITY INFO (28)'!r25\"), \"\")","v":""},{"$f":"IFERROR(INDIRECT(\"'FACILITY INFO (28)'!ad25\"), \"\")","v":""},{"$f":"IFERROR(INDIRECT(\"'FACILITY INFO (28)'!k26\"), \"\")","v":""},{"$f":"IFERROR(INDIRECT(\"'FACILITY INFO (28)'!ah27\"), \"\")","v":""},{"$f":"IFERROR(INDIRECT(\"'FACILITY INFO (28)'!k33\"), \"\")","v":""},{"$f":"IFERROR(INDIRECT(\"'FACILITY INFO (28)'!r33\"), \"\")","v":""},{"$f":"IFERROR(INDIRECT(\"'FACILITY INFO (28)'!ad33\"), \"\")","v":""},{"$f":"IFERROR(INDIRECT(\"'FACILITY INFO (28)'!k34\"), \"\")","v":""},{"$f":"IFERROR(INDIRECT(\"'FACILITY INFO (28)'!ah35\"), \"\")","v":""},{"$f":"IFERROR(INDIRECT(\"'FACILITY INFO (28)'!ah41\"), \"\")","v":""},{"$f":"IFERROR(INDIRECT(\"'FACILITY INFO (28)'!ah42\"), \"\")","v":""},{"$f":"IFERROR(INDIRECT(\"'FACILITY INFO (28)'!ah43\"), \"\")","v":""},{"$f":"IFERROR(INDIRECT(\"'DESIGN & TARGET SPEED (28)'!k22\"), \"\")","v":""},{"$f":"IFERROR(INDIRECT(\"'DESIGN & TARGET SPEED (28)'!ab22\"), \"\")","v":""},{"$f":"IFERROR(INDIRECT(\"'DESIGN & TARGET SPEED (28)'!q25\"), \"\")","v":""},{"$f":"IFERROR(INDIRECT(\"'DESIGN & TARGET SPEED (28)'!j198\"), \"\")","v":""},{"$f":"IFERROR(INDIRECT(\"'DESIGN & TARGET SPEED (28)'!j206\"), \"\")","v":""},{"$f":"IFERROR(INDIRECT(\"'SSD (28)'!k25\"), \"\")","v":""},{"$f":"IFERROR(INDIRECT(\"'SUPERELEVATION (28)'!ac14\"), \"\")","v":""},{"$f":"IFERROR(INDIRECT(\"'DESIGN & TARGET SPEED (28)'!AH13\"), \"\")","v":""}]
[29,{"$f":"IFERROR(INDIRECT(\"'FACILITY INFO (29)'!H9\"), \"\")","v":""},{"$f":"IFERROR(INDIRECT(\"'FACILITY INFO (29)'!AJ13\"), \"\")","v":""},{"$f":"IFERROR(INDIRECT(\"'FACILITY INFO (29)'!AJ14\"), \"\")","v":""},{"$f":"IFERROR(INDIRECT(\"'FACILITY INFO (29)'!w13\"), \"\")","v":""},{"$f":"IFERROR(INDIRECT(\"'FACILITY INFO (29)'!w14\"), \"\")","v":""},{"$f":"IFERROR(INDIRECT(\"'FACILITY INFO (29)'!j15\"), \"\")","v":""},{"$f":"IFERROR(INDIRECT(\"'FACILITY INFO (29)'!K18\"), \"\")","v":""},{"$f":"IFERROR(INDIRECT(\"'FACILITY INFO (29)'!K19\"), \"\")","v":""},{"$f":"IFERROR(INDIRECT(\"'FACILITY INFO (29)'!K20\"), \"\")","v":""},{"$f":"IFERROR(INDIRECT(\"'FACILITY INFO (29)'!K21\"), \"\")","v":""},{"$f":"IFERROR(INDIRECT(\"'FACILITY INFO (29)'!K22\"), \"\")","v":""},{"$f":"IFERROR(INDIRECT(\"'FACILITY INFO (29)'!z18\"), \"\")","v":""},{"$f":"IFERROR(INDIRECT(\"'FACILITY INFO (29)'!z19\"), \"\")","v":""},{"$f":"IFERROR(INDIRECT(\"'FACILITY INFO (29)'!z20\"), \"\")","v":""},{"$f":"IFERROR(INDIRECT(\"'FACILITY INFO (29)'!z21\"), \"\")","v":""},{"$f":"IFERROR(INDIRECT(\"'FACILITY INFO (29)'!k25\"), \"\")","v":""},{"$f":"IFERROR(INDIRECT(\"'FACILITY INFO (29)'!r25\"), \"\")","v":""},{"$f":"IFERROR(INDIRECT(\"'FACILITY INFO (29)'!ad25\"), \"\")","v":""},{"$f":"IFERROR(INDIRECT(\"'FACILITY INFO (29)'!k26\"), \"\")","v":""},{"$f":"IFERROR(INDIRECT(\"'FACILITY INFO (29)'!ah27\"), \"\")","v":""},{"$f":"IFERROR(INDIRECT(\"'FACILITY INFO (29)'!k33\"), \"\")","v":""},{"$f":"IFERROR(INDIRECT(\"'FACILITY INFO (29)'!r33\"), \"\")","v":""},{"$f":"IFERROR(INDIRECT(\"'FACILITY INFO (29)'!ad33\"), \"\")","v":""},{"$f":"IFERROR(INDIRECT(\"'FACILITY INFO (29)'!k34\"), \"\")","v":""},{"$f":"IFERROR(INDIRECT(\"'FACILITY INFO (29)'!ah35\"), \"\")","v":""},{"$f":"IFERROR(INDIRECT(\"'FACILITY INFO (29)'!ah41\"), \"\")","v":""},{"$f":"IFERROR(INDIRECT(\"'FACILITY INFO (29)'!ah42\"), \"\")","v":""},{"$f":"IFERROR(INDIRECT(\"'FACILITY INFO (29)'!ah43\"), \"\")","v":""},{"$f":"IFERROR(INDIRECT(\"'DESIGN & TARGET SPEED (29)'!k22\"), \"\")","v":""},{"$f":"IFERROR(INDIRECT(\"'DESIGN & TARGET SPEED (29)'!ab22\"), \"\")","v":""},{"$f":"IFERROR(INDIRECT(\"'DESIGN & TARGET SPEED (29)'!q25\"), \"\")","v":""},{"$f":"IFERROR(INDIRECT(\"'DESIGN & TARGET SPEED (29)'!j198\"), \"\")","v":""},{"$f":"IFERROR(INDIRECT(\"'DESIGN & TARGET SPEED (29)'!j206\"), \"\")","v":""},{"$f":"IFERROR(INDIRECT(\"'SSD (29)'!k25\"), \"\")","v":""},{"$f":"IFERROR(INDIRECT(\"'SUPERELEVATION (29)'!ac14\"), \"\")","v":""},{"$f":"IFERROR(INDIRECT(\"'DESIGN & TARGET SPEED (29)'!AH13\"), \"\")","v":""}]
[30,{"$f":"IFERROR(INDIRECT(\"'FACILITY INFO (30)'!H9\"), \"\")","v":""},{"$f":"IFERROR(INDIRECT(\"'FACILITY INFO (30)'!AJ13\"), \"\")","v":""},{"$f":"IFERROR(INDIRECT(\"'FACILITY INFO (30)'!AJ14\"), \"\")","v":""},{"$f":"IFERROR(INDIRECT(\"'FACILITY INFO (30)'!w13\"), \"\")","v":""},{"$f":"IFERROR(INDIRECT(\"'FACILITY INFO (30)'!w14\"), \"\")","v":""},{"$f":"IFERROR(INDIRECT(\"'FACILITY INFO (30)'!j15\"), \"\")","v":""},{"$f":"IFERROR(INDIRECT(\"'FACILITY INFO (30)'!K18\"), \"\")","v":""},{"$f":"IFERROR(INDIRECT(\"'FACILITY INFO (30)'!K19\"), \"\")","v":""},{"$f":"IFERROR(INDIRECT(\"'FACILITY INFO (30)'!K20\"), \"\")","v":""},{"$f":"IFERROR(INDIRECT(\"'FACILITY INFO (30)'!K21\"), \"\")","v":""},{"$f":"IFERROR(INDIRECT(\"'FACILITY INFO (30)'!K22\"), \"\")","v":""},{"$f":"IFERROR(INDIRECT(\"'FACILITY INFO (30)'!z18\"), \"\")","v":""},{"$f":"IFERROR(INDIRECT(\"'FACILITY INFO (30)'!z19\"), \"\")","v":""},{"$f":"IFERROR(INDIRECT(\"'FACILITY INFO (30)'!z20\"), \"\")","v":""},{"$f":"IFERROR(INDIRECT(\"'FACILITY INFO (30)'!z21\"), \"\")","v":""},{"$f":"IFERROR(INDIRECT(\"'FACILITY INFO (30)'!k25\"), \"\")","v":""},{"$f":"IFERROR(INDIRECT(\"'FACILITY INFO (30)'!r25\"), \"\")","v":""},{"$f":"IFERROR(INDIRECT(\"'FACILITY INFO (30)'!ad25\"), \"\")","v":""},{"$f":"IFERROR(INDIRECT(\"'FACILITY INFO (30)'!k26\"), \"\")","v":""},{"$f":"IFERROR(INDIRECT(\"'FACILITY INFO (30)'!ah27\"), \"\")","v":""},{"$f":"IFERROR(INDIRECT(\"'FACILITY INFO (30)'!k33\"), \"\")","v":""},{"$f":"IFERROR(INDIRECT(\"'FACILITY INFO (30)'!r33\"), \"\")","v":""},{"$f":"IFERROR(INDIRECT(\"'FACILITY INFO (30)'!ad33\"), \"\")","v":""},{"$f":"IFERROR(INDIRECT(\"'FACILITY INFO (30)'!k34\"), \"\")","v":""},{"$f":"IFERROR(INDIRECT(\"'FACILITY INFO (30)'!ah35\"), \"\")","v":""},{"$f":"IFERROR(INDIRECT(\"'FACILITY INFO (30)'!ah41\"), \"\")","v":""},{"$f":"IFERROR(INDIRECT(\"'FACILITY INFO (30)'!ah42\"), \"\")","v":""},{"$f":"IFERROR(INDIRECT(\"'FACILITY INFO (30)'!ah43\"), \"\")","v":""},{"$f":"IFERROR(INDIRECT(\"'DESIGN & TARGET SPEED (30)'!k22\"), \"\")","v":""},{"$f":"IFERROR(INDIRECT(\"'DESIGN & TARGET SPEED (30)'!ab22\"), \"\")","v":""},{"$f":"IFERROR(INDIRECT(\"'DESIGN & TARGET SPEED (30)'!q25\"), \"\")","v":""},{"$f":"IFERROR(INDIRECT(\"'DESIGN & TARGET SPEED (30)'!j198\"), \"\")","v":""},{"$f":"IFERROR(INDIRECT(\"'DESIGN & TARGET SPEED (30)'!j206\"), \"\")","v":""},{"$f":"IFERROR(INDIRECT(\"'SSD (30)'!k25\"), \"\")","v":""},{"$f":"IFERROR(INDIRECT(\"'SUPERELEVATION (30)'!ac14\"), \"\")","v":""},{"$f":"IFERROR(INDIRECT(\"'DESIGN & TARGET SPEED (30)'!AH13\"), \"\")","v":""}]

{"sheet":"INSTRUCTIONS","index":5,"n_rows":81,"n_cols":49,"rows_kept":81,"cut":false,"hidden":false,"merged":[[76,37,79,37],[62,9,62,21],[67,9,67,21],[0,0,0,32],[1,0,1,32],[3,3,3,5],[3,11,3,32],[5,0,5,32],[43,1,47,31],[14,1,41,31],[49,0,49,32],[52,1,53,31],[56,2,57,31],[7,1,9,31],[76,38,79,38],[76,1,77,31],[78,0,78,32],[16,35,17,70],[76,44,79,44],[76,45,79,45],[76,46,79,46],[76,47,79,47],[76,48,79,48],[76,39,79,39],[76,40,79,40],[76,41,79,41],[76,42,79,42],[76,43,79,43],[76,35,79,35],[76,36,79,36]]}
["DO NOT SUBMIT THIS SHEET IN THE FINAL WORKBOOK"]
["INSTRUCTIONS -- START HERE",null,null,null,null,null,null,null,null,null,null,null,null,null,null,null,null,null,null,null,null,null,null,null,null,null,null,null,null,null,null,null,null,null,null,"(This Worksheet is designed to guide the Designer in determining if they are required to fill out the remainder of this Workbook.)"]
["Fill in all light blue boxes."]
["Project:",null,null,"6XXXXX",null,null,null,"Description:",null,null,null,"MUNICIPALITY- PROJECT DESCRIPTION",null,null,null,null,null,null,null,null,null,null,null,null,null,null,null,null,null,null,null,null,null,null,null,"(Comments appear here in the non-printable areas to the right of each sheet; this information should not be printed.)"]
[]
[{"$f":"IF(AND(ISBLANK(J63),ISBLANK(J68)),\"Select a project type\",IF(AND(NOT(ISBLANK(J63)),NOT(ISBLANK(J68))),\"Select only one project type\",IF(OR(AH53=4,AH66=1,AH74=1),\"SUBMISSION NOT REQUIRED\",\"SUBMISSION REQUIRED\")))","v":"Select a project type"},null,null,null,null,null,null,null,null,null,null,null,null,null,null,null,null,null,null,null,null,null,null,null,null,null,null,null,null,null,null,null,null,null,null,"//IF \"none of these apply\" OR maintenance project with criteria, return \"Submission not required\""]
[]
[null,"Many of the sheets in the Workbook use the Designer's responses to pre-populate information in other areas of the Workbook. Do not rename tabs or insert rows into the spreadsheet, this will break the linking features within the workbook.",null,null,null,null,null,null,null,null,null,null,null,null,null,null,null,null,null,null,null,null,null,null,null,null,null,null,null,null,null,null,null,null,null,"(Recommend  display scaling set to 100% for best formatting)"]
[null,null,null,null,null,null,null,null,null,null,null,null,null,null,null,null,null,null,null,null,null,null,null,null,null,null,null,null,null,null,null,null,null,null,null,"(If display scaling is set over 100% some text may not be visible in the fields, if so increase height of a row connected to the text box)"]
[]
[]
[null,"INSTRUCTIONS FOR REQUIRED SUBMISSIONS"]
[null,"When preparing the Workbook, note the following:"]
[]
[null,"Designers with projects that are required to have a Workbook submitted shall complete this workbook in its entirety and submit it with the 25%.  \n\nWhen the minimum standards cannot be achieved, the Design Justification Workbook will alert the Designer where deviation from the criteria has occurred and supplemental documentation must be provided.\n\nThe Workbook consists of two parts - the Project Information (Title Sheet, Project Overview, Locus Map, Facility Photos, Alternatives), and the Facility Information (Facility Info, Controlling Criteria, and all subsequent tabs). Each project shall have only one Project Information section, but may contain several Facility Information sets (which include discussion of the controlling criteria).  Where there is more than one major roadway within the project limits, OR the roadway changes dramatically, which includes changes in adjacent land use (i.e. from residential to commercial), speed limit, number of lanes, etc.; a set of Facility Information sheets should be generated for each of the differing roadway segments, as determined at the Pre-25% Scoping Meeting. \n\nBased on the scoping checklist and district input, engineering judgement shall be used to determine what level of changes to the roadway cross-section warrants it to be considered a new facility. \n\nTransitions to existing conditions do not need formal DJW documentation and approval and will be reviewed as a part of the Complete Streets plan review. \n\nThe intent of the workbook is to ensure sound engineering judgment has been used, weighing relevant contextual constraints and other relevant factors to develop the proposed design; the Designer shall demonstrate that the use of these values will not compromise the safety of the roadway for all users.  \n\nAll locations that do not meet Controlling Criteria should be listed and justified within their respective criterion sheet.\n\nEven when certain criteria are not applicable or non-controlling, the Designer should still fill in all existing and proposed values in blue boxes.\n\nThe Workbook shall be checked for grammar and spelling errors prior to submission (F7 for Excel spell check)."]
[]
[null,null,null,null,null,null,null,null,null,null,null,null,null,null,null,null,null,null,null,null,null,null,null,null,null,null,null,null,null,null,null,null,null,null,null,"(The design guidance contained in the Project Development and Design Guide (PDDG) is intended to provide project proponents with sufficient flexibility to address the unique and diverse conditions encountered on the Commonwealth’s streets and highways.) "]
[]
[null,null,null,null,null,null,null,null,null,null,null,null,null,null,null,null,null,null,null,null,null,null,null,null,null,null,null,null,null,null,null,null,null,null,null,"(Every reasonable effort should be made to design projects within the ranges of standards provided in the guidance documents.)"]
[null,null,null,null,null,null,null,null,null,null,null,null,null,null,null,null,null,null,null,null,null,null,null,null,null,null,null,null,null,null,null,null,null,null,null,"(When the standards cannot be achieved, documentation of such criterion not met is required and must be provided in the Design Justification Workbook.)"]
[null,null,null,null,null,null,null,null,null,null,null,null,null,null,null,null,null,null,null,null,null,null,null,null,null,null,null,null,null,null,null,null,null,null,null,"(Some routine maintenance projects, and projects with limited scope, however, are exempt from completing the Design Justification Workbook.)"]
[]
[]
[]
[]
[]
[]
[]
[]
[]
[]
[]
[]
[]
[]
[]
[]
[]
[]
[]
[]
[]
[]
[null,"Light blue boxes are intended to have entries modified by the Designer. For text boxes that are blue but do not need any additional information provided, delete the existing text and provide supplemental information as required.\n\nIf additional space is required, attach additional sheets as necessary to avoid text cutting off when printed. If text does not fit into the provided boxes, write (CONTINUED) and add additional pages in the PDF."]
[]
[]
[]
[]
[]
[{"$f":"A6","v":"Select a project type"}]
[]
[null,"PROJECT INFORMATION"]
[null,"Certain projects are categorically exempt from the need to fill out this workbook. To determine if that is the case, check the boxes for which, if any, of the following cases apply to this project:",null,null,null,null,null,null,null,null,null,null,null,null,null,null,null,null,null,null,null,null,null,null,null,null,null,null,null,null,null,null,null,1,null,"This value is linked to the first option group. "]
[null,null,null,null,null,null,null,null,null,null,null,null,null,null,null,null,null,null,null,null,null,null,null,null,null,null,null,null,null,null,null,null,null,null,null,"If 4 (\"None of these apply\") is returned, the entire project is exempt from the need to submit a Workbook."]
[null,null,"MassDOT Highway Division is the project proponent"]
[null,null,"MassDOT Highway Division is responsible for project funding (state or federal aid)"]
[null,null,"MassDOT Highway Division controls the affected infrastructure (State Highway), including projects seeking Category II and III Highway Access Permits"]
[]
[null,null,"None of these apply",null,null,null,null,null,null,null,null,null,null,null,null,null,null,null,null,null,null,null,null,null,null,null,null,null,null,null,null,{"$f":"IF(AH53=3, \"Note: This Workbook should only apply to improvements within SHLO.\", \"\")","v":""}]
[]
[null,"PROJECT TYPE SELECTION"]
[null,"If this project is a maintenance project, select a project type from this dropdown:"]
[null,null,null,"Select project type: ",null,null,null,null,null,null,null,null,null,null,null,null,null,null,null,null,null,null,null,null,null,null,null,null,null,null,null,null,null,{"$f":"IFERROR(VLOOKUP($J$63,'HIDDEN-PROJ TYPES'!B2:Q21,16,FALSE),\"\")","v":""}]
[null,false,"The purpose and need of this project is solely to maintain the roadway surface or structure.",null,null,null,null,null,null,null,null,null,null,null,null,null,null,null,null,null,null,null,null,null,null,null,null,null,null,null,null,null,null,{"$f":"B64","v":false}]
[null,false,"The crash history does not indicate any apparent geometric deficiency.",null,null,null,null,null,null,null,null,null,null,null,null,null,null,null,null,null,null,null,null,null,null,null,null,null,null,null,null,null,null,false]
[null,null,null,null,null,null,null,null,null,null,null,null,null,null,null,null,null,null,null,null,null,null,null,null,null,null,null,null,null,null,null,null,null,{"$f":"IF(AND(AH63=14,AH64=TRUE,AH65=TRUE),1,IF(AND(AH63=10,AH64=TRUE,AH65=TRUE),2,0))","v":0},null,"Returns 1 IF exempted maintenance project type is selected AND both boxes are checked. Exempt from submitting DJW=1, FHWA criteria is non-controlling=2, no exemptions=0"]
[null,"Otherwise, select a project type from this dropdown:"]
[null,null,null,"Select project type: ",null,null,null,null,null,null,null,null,null,null,null,null,null,null,null,null,null,null,null,null,null,null,null,null,null,null,null,null,null,{"$f":"IFERROR(VLOOKUP($J$68,'HIDDEN-PROJ TYPES'!B22:Q79,16,FALSE),\"\")","v":""}]
[null,"AND select any applicable checkboxes:"]
[null,false,"Non-vehicular access permits",null,null,null,null,null,null,null,null,null,null,null,null,null,null,null,null,null,null,null,null,null,null,null,null,null,null,null,null,null,null,{"$f":"B70","v":false}]
[null,false,"Minor vehicle access permits (Category I)",null,null,null,null,null,null,null,null,null,null,null,null,null,null,null,null,null,null,null,null,null,null,null,null,null,null,null,null,null,null,{"$f":"B71","v":false}]
[null,false,"Isolated single intersection safety improvement project with minimal work on approach roadways",null,null,null,null,null,null,null,null,null,null,null,null,null,null,null,null,null,null,null,null,null,null,null,null,null,null,null,null,null,null,false]
[null,false,"Project designed under the Bridge R&R Program for Non-NHS Bridges (P-92-010)",null,null,null,null,null,null,null,null,null,null,null,null,null,null,null,null,null,null,null,null,null,null,null,null,null,null,null,null,null,null,false]
[null,null,null,null,null,null,null,null,null,null,null,null,null,null,null,null,null,null,null,null,null,null,null,null,null,null,null,null,null,null,null,null,null,{"$f":"IF(OR(AH68=14,AH70=TRUE,AH71=TRUE), 1, IF(OR(AH68=10,AH72=TRUE, AH73=TRUE),2, 0))","v":0},null,"Exempt from submitting DJW=1, FHWA criteria is non-controlling=2, no exemptions=0"]
[]
[null,{"$f":"IF(A6=\"SUBMISSION REQUIRED\",IF(OR(AH66=2,AH74=2), \"Based on these responses, this project is required to have a Workbook submitted but FHWA criteria is non-controlling.\",\"Based on these responses, this project is required to have a Workbook submitted.\"), IF(A6=\"Select only one project type.\",\"\",\"Based on these responses, this project is exempt from the need to have a Workbook submitted.\"))","v":"Based on these responses, this project is exempt from the need to have a Workbook submitted."},null,null,null,null,null,null,null,null,null,null,null,null,null,null,null,null,null,null,null,null,null,null,null,null,null,null,null,null,null,null,null,null,null,"Just based on Project Type: criterion is non-controlling=1, criterion is controlling=0 "]
[null,{"$f":"IF(OR(AH66=1, AH74=1),\"The Designer may opt to fill out this workbook to aid in design; however, the Workbook does not need to be submitted.\",\"\")","v":""},null,null,null,null,null,null,null,null,null,null,null,null,null,null,null,null,null,null,null,null,null,null,null,null,null,null,null,null,null,null,null,null,null,"Design Speed","Pedestrian Facilities","Bicycle Facilities","Transit Accommodation","Ramp Length","Design Loading Structural Capacity","Lane Width","Shoulder Width","Horizontal Curve Radius","Superelevation Rate","Stopping Sight Distance","Maximum Grade","Cross Slope","Vertical Clearance"]
[]
[{"$f":"A6","v":"Select a project type"}]
[]
[null,null,null,null,null,null,null,null,null,null,null,null,null,null,null,null,null,null,null,null,null,null,null,null,null,null,null,null,null,null,null,null,{"$f":"'HIDDEN Lists'!B1","v":"Workbook updated October 21, 2024"},null,null,{"$f":"IF(NOT(ISBLANK($J$63)),IF(AND($AH$64=TRUE,$AH$65=TRUE),VLOOKUP($J$63,'HIDDEN-PROJ TYPES'!$B$2:$Q$79,6,FALSE),0),IF(NOT(ISBLANK($J$68)),VLOOKUP($J$68,'HIDDEN-PROJ TYPES'!$B$2:$Q$79,6,FALSE),0))","v":0},{"$f":"IF(NOT(ISBLANK($J$63)),IF(AND($AH$64=TRUE,$AH$65=TRUE),VLOOKUP($J$63,'HIDDEN-PROJ TYPES'!$B$2:$Q$79,2,FALSE),0),IF(NOT(ISBLANK($J$68)),VLOOKUP($J$68,'HIDDEN-PROJ TYPES'!$B$2:$Q$79,2,FALSE),0))","v":0},{"$f":"IF(NOT(ISBLANK($J$63)),IF(AND($AH$64=TRUE,$AH$65=TRUE),VLOOKUP($J$63,'HIDDEN-PROJ TYPES'!$B$2:$Q$79,3,FALSE),0),IF(NOT(ISBLANK($J$68)),VLOOKUP($J$68,'HIDDEN-PROJ TYPES'!$B$2:$Q$79,3,FALSE),0))","v":0},{"$f":"IF(NOT(ISBLANK($J$63)),IF(AND($AH$64=TRUE,$AH$65=TRUE),VLOOKUP($J$63,'HIDDEN-PROJ TYPES'!$B$2:$Q$79,4,FALSE),0),IF(NOT(ISBLANK($J$68)),VLOOKUP($J$68,'HIDDEN-PROJ TYPES'!$B$2:$Q$79,4,FALSE),0))","v":0},{"$f":"IF(NOT(ISBLANK($J$63)),IF(AND($AH$64=TRUE,$AH$65=TRUE),VLOOKUP($J$63,'HIDDEN-PROJ TYPES'!$B$2:$Q$79,5,FALSE),0),IF(NOT(ISBLANK($J$68)),VLOOKUP($J$68,'HIDDEN-PROJ TYPES'!$B$2:$Q$79,5,FALSE),0))","v":0},{"$f":"IF(NOT(ISBLANK($J$63)),IF(AND($AH$64=TRUE,$AH$65=TRUE),VLOOKUP($J$63,'HIDDEN-PROJ TYPES'!$B$2:$Q$79,7,FALSE),0), IF(NOT(ISBLANK($J$68)),VLOOKUP($J$68,'HIDDEN-PROJ TYPES'!$B$2:$Q$79,7,FALSE),0))","v":0},{"$f":"IF(NOT(ISBLANK($J$63)),IF(AND($AH$64=TRUE,$AH$65=TRUE),VLOOKUP($J$63,'HIDDEN-PROJ TYPES'!$B$2:$Q$79,8,FALSE),0), IF(NOT(ISBLANK($J$68)),VLOOKUP($J$68,'HIDDEN-PROJ TYPES'!$B$2:$Q$79,8,FALSE),0))","v":0},{"$f":"IF(NOT(ISBLANK($J$63)),IF(AND($AH$64=TRUE,$AH$65=TRUE),VLOOKUP($J$63,'HIDDEN-PROJ TYPES'!$B$2:$Q$79,9,FALSE),0),IF(NOT(ISBLANK($J$68)),VLOOKUP($J$68,'HIDDEN-PROJ TYPES'!$B$2:$Q$79,9,FALSE),0))","v":0},{"$f":"IF(NOT(ISBLANK($J$63)), IF(AND($AH$64=TRUE,$AH$65=TRUE),VLOOKUP($J$63,'HIDDEN-PROJ TYPES'!$B$2:$Q$79,10,FALSE),0), IF(NOT(ISBLANK($J$68)),VLOOKUP($J$68,'HIDDEN-PROJ TYPES'!$B$2:$Q$79,10,FALSE),0))","v":0},{"$f":"IF(NOT(ISBLANK($J$63)), IF(AND($AH$64=TRUE,$AH$65=TRUE),VLOOKUP($J$63,'HIDDEN-PROJ TYPES'!$B$2:$Q$79,11,FALSE),0), IF(NOT(ISBLANK($J$68)),VLOOKUP($J$68,'HIDDEN-PROJ TYPES'!$B$2:$Q$79,11,FALSE),0))","v":0},{"$f":"IF(NOT(ISBLANK($J$63)), IF(AND($AH$64=TRUE,$AH$65=TRUE),VLOOKUP($J$63,'HIDDEN-PROJ TYPES'!$B$2:$Q$79,12,FALSE),0), IF(NOT(ISBLANK($J$68)),VLOOKUP($J$68,'HIDDEN-PROJ TYPES'!$B$2:$Q$79,12,FALSE),0))","v":0},{"$f":"IF(NOT(ISBLANK($J$63)), IF(AND($AH$64=TRUE,$AH$65=TRUE),VLOOKUP($J$63,'HIDDEN-PROJ TYPES'!$B$2:$Q$79,13,FALSE),0), IF(NOT(ISBLANK($J$68)),VLOOKUP($J$68,'HIDDEN-PROJ TYPES'!$B$2:$Q$79,13,FALSE),0))","v":0},{"$f":"IF(NOT(ISBLANK($J$63)), IF(AND($AH$64=TRUE,$AH$65=TRUE),VLOOKUP($J$63,'HIDDEN-PROJ TYPES'!$B$2:$Q$79,14,FALSE),0), IF(NOT(ISBLANK($J$68)),VLOOKUP($J$68,'HIDDEN-PROJ TYPES'!$B$2:$Q$79,14,FALSE),0))","v":0},{"$f":"IF(NOT(ISBLANK($J$63)), IF(AND($AH$64=TRUE,$AH$65=TRUE),VLOOKUP($J$63,'HIDDEN-PROJ TYPES'!$B$2:$Q$79,15,FALSE),0), IF(NOT(ISBLANK($J$68)),VLOOKUP($J$68,'HIDDEN-PROJ TYPES'!$B$2:$Q$79,15,FALSE),0))","v":0}]

{"sheet":"CHANGE LOG","index":6,"n_rows":47,"n_cols":33,"rows_kept":47,"cut":false,"hidden":false,"merged":[[0,0,0,32],[1,3,1,5],[1,11,1,32],[2,0,2,32],[4,1,6,31],[26,1,26,31],[28,1,31,31],[35,1,35,4],[39,1,42,31],[13,1,13,4],[17,1,20,31],[24,1,24,4],[37,1,37,31],[35,6,35,10],[9,1,9,4],[9,6,9,10],[13,6,13,10],[24,6,24,10],[15,1,15,31]]}
["DO NOT SUBMIT THIS SHEET IN THE FINAL WORKBOOK"]
["Project:",null,null,{"$f":"INSTRUCTIONS!D4","v":"6XXXXX"},null,null,null,"Description:",null,null,null,{"$f":"INSTRUCTIONS!L4","v":"MUNICIPALITY- PROJECT DESCRIPTION"}]
["CHANGE LOG"]
[]
[null,"Provide the first submission date. Afterwards, provide the revision submission date, the project's design stage, and a list of sections that have significant changes since the last submission. Add more pages if necessary. Remove this sheet from final submission."]
[]
[]
[null,"FIRST SUBMISSION"]
[null,"DATE:",null,null,null,null,"DESIGN STAGE:"]
[]
[]
[null,"REVISION 1"]
[null,"DATE:",null,null,null,null,"DESIGN STAGE:"]
[]
[null,"MAJOR SECTIONS UPDATED:"]
[]
[null,"REASON FOR UPDATES:"]
[]
[]
[]
[]
[]
[null,"REVISION 2"]
[null,"DATE:",null,null,null,null,"DESIGN STAGE:"]
[]
[null,"MAJOR SECTIONS UPDATED:"]
[]
[null,"REASON FOR UPDATES:"]
[]
[]
[]
[]
[]
[null,"REVISION 3"]
[null,"DATE:",null,null,null,null,"DESIGN STAGE:"]
[]
[null,"MAJOR SECTIONS UPDATED:"]
[]
[null,"REASON FOR UPDATES:"]
[]
[]
[]
[]
[]
[]
[]
[null,null,null,null,null,null,null,null,null,null,null,null,null,null,null,null,null,null,null,null,null,null,null,null,null,null,null,null,null,null,null,null,{"$f":"'HIDDEN Lists'!$B$1","v":"Workbook updated October 21, 2024"}]

{"sheet":"TITLE SHEET","index":7,"n_rows":47,"n_cols":36,"rows_kept":47,"cut":false,"hidden":false,"merged":[[1,35,1,65],[2,35,2,65],[3,35,3,65],[4,35,7,65],[12,0,12,32],[8,35,8,65],[9,35,9,65],[0,0,2,6],[15,0,15,32],[16,0,16,32],[9,0,10,32],[11,0,11,32],[13,0,13,32],[14,16,14,18],[19,0,19,32],[27,0,27,32],[28,0,28,32],[23,0,23,32],[24,0,24,32],[25,0,25,32],[26,0,26,32],[20,0,20,32],[21,0,21,32],[22,0,22,32],[42,5,42,20],[42,26,42,31],[45,5,45,15],[45,21,45,31],[31,0,31,32],[32,1,39,21]]}
[{"$f":"IF('CHANGE LOG'!G36=\"Pre-25%\",\"DRAFT DJW\",IF(AND(ISBLANK('CHANGE LOG'!G36)=FALSE,'CHANGE LOG'!G36<>\"Pre-25%\"),\"\",IF('CHANGE LOG'!G25=\"Pre-25%\",\"DRAFT DJW\",IF(AND(ISBLANK('CHANGE LOG'!G25)=FALSE, 'CHANGE LOG'!G25<>\"Pre-25%\"),\"\", IF('CHANGE LOG'!G14=\"Pre-25%\",\"DRAFT DJW\",IF(AND(ISBLANK('CHANGE LOG'!G14)=FALSE, 'CHANGE LOG'!G14<>\"Pre-25%\"), \"\",IF('CHANGE LOG'!G10=\"Pre-25%\",\"DRAFT DJW\", IF(AND(ISBLANK('CHANGE LOG'!G10)=FALSE, 'CHANGE LOG'!G10<>\"Pre-25%\"), \"\",\"\"))))))))","v":""},null,null,null,null,null,null,null,null,null,null,null,null,null,null,null,null,null,null,null,null,null,null,null,null,null,null,null,null,null,null,null,null,null,null,"PAGE FORMATTING"]
[null,null,null,null,null,null,null,null,null,null,null,null,null,null,null,null,null,null,null,null,null,null,null,null,null,null,null,null,null,null,null,null,null,null,null,"Columns A - AG should all be 2.11 wide (26 pixels) to print properly with no scaling."]
[null,null,null,null,null,null,null,null,null,null,null,null,null,null,null,null,null,null,null,null,null,null,null,null,null,null,null,null,null,null,null,null,null,null,null,"Rows should all be 15 high (25 pixels)."]
[null,null,null,null,null,null,null,null,null,null,null,null,null,null,null,null,null,null,null,null,null,null,null,null,null,null,null,null,null,null,null,null,null,null,null,"If the sheet fits on one page, the last row should be located at row 47 to print properly with no scaling."]
[null,null,null,null,null,null,null,null,null,null,null,null,null,null,null,null,null,null,null,null,null,null,null,null,null,null,null,null,null,null,null,null,null,null,null,"If there are multiple pages, then move the print line to a logical spot so no information is cut off. Select \"Page Break View\" display on the bottom right of the screen to see the page break lines. Solid blue line represents the sheet area; a dashed blue line represents if the selection will not fit on the page."]
[]
[]
[]
[null,null,null,null,null,null,null,null,null,null,null,null,null,null,null,null,null,null,null,null,null,null,null,null,null,null,null,null,null,null,null,null,null,null,null,"All margins should be set to 0.5\" and header and footer should be set to 0.3\""]
["MASSDOT DESIGN JUSTIFICATION WORKBOOK",null,null,null,null,null,null,null,null,null,null,null,null,null,null,null,null,null,null,null,null,null,null,null,null,null,null,null,null,null,null,null,null,null,null,"Paper size should be Letter 8.5\" x 11\""]
[null,null,null,null,null,null,null,null,null,null,null,null,null,null,null,null,null,null,null,null,null,null,null,null,null,null,null,null,null,null,null,null,null,null,null,"No scaling should be selected"]
[]
[{"$f":"INSTRUCTIONS!L4","v":"MUNICIPALITY- PROJECT DESCRIPTION"}]
[]
[null,null,null,null,null,null,null,null,null,null,null,null,null,"PROJECT",null,null,{"$f":"INSTRUCTIONS!D4","v":"6XXXXX"}]
[{"$f":"INSTRUCTIONS!A6","v":"Select a project type"}]
["Date XX, 20YY"]
[]
[]
["PREPARED BY:"]
["(Provide the name of the firm preparing this document, including the street address.)"]
[]
[]
[]
["PREPARED FOR:"]
["(Indicate Commonwealth of Massachusetts, Town/City of Municipality, or if it is a private development, the Owner)"]
["(Include the Owner's address, if applicable)"]
[]
[]
[]
[]
["--- DESIGNER'S CERTIFICATION ---"]
[null,"\"I have reviewed this document as it relates to the proposed design and have determined the design to be safe for public health and welfare in conformity with accepted engineering standards.\"",null,null,null,null,null,null,null,null,null,null,null,null,null,null,null,null,null,null,null,null,null,null,null,null,null,null,null,null,null,null,null,null,"(Insert PE stamp in this box)"]
[]
[]
[]
[]
[]
[]
[]
[]
[]
[null,"NAME:",null,null,null,null,null,null,null,null,null,null,null,null,null,null,null,null,null,null,null,null,null,null,"DATE:"]
[]
[]
[null,"TITLE:",null,null,null,null,null,null,null,null,null,null,null,null,null,null,null,null,null,"FIRM:"]
[null,null,null,null,null,null,null,null,null,null,null,null,null,null,null,null,null,null,null,null,null,null,null,null,null,null,null,null,null,null,null,null,{"$f":"'HIDDEN Lists'!$B$1","v":"Workbook updated October 21, 2024"}]

{"sheet":"PROJECT OVERVIEW","index":8,"n_rows":47,"n_cols":36,"rows_kept":47,"cut":false,"hidden":false,"merged":[[4,35,13,65],[16,35,35,65],[16,1,35,31],[46,5,46,20],[0,0,0,32],[1,3,1,5],[1,11,1,32],[2,0,2,32],[37,0,37,32],[39,5,39,20],[40,5,40,20],[42,5,42,20],[43,5,43,20],[45,5,45,20],[4,1,13,31]]}
["MassDOT Design Justification Workbook"]
["Project:",null,null,{"$f":"INSTRUCTIONS!D4","v":"6XXXXX"},null,null,null,"Description:",null,null,null,{"$f":"INSTRUCTIONS!L4","v":"MUNICIPALITY- PROJECT DESCRIPTION"}]
["PROJECT OVERVIEW"]
[null,"PROJECT SUMMARY"]
[null,"This section should explain the reasons why the project was initiated (purpose and need) and provide a high-level overview of the project scope. Reference notes and initiation form from Pre-PRC and PRC, and provide the CIP program and anticipated advertising year. ",null,null,null,null,null,null,null,null,null,null,null,null,null,null,null,null,null,null,null,null,null,null,null,null,null,null,null,null,null,null,null,null,null,"This section should explain the reasons why the project was initiated (purpose and need) and provide a high-level overview of the project scope. Reference the notes and initiation form from Pre-PRC and PRC, and provide the CIP program and anticipated advertising year."]
[]
[]
[]
[]
[]
[]
[]
[]
[]
[]
[null,"SUMMARY OF JUSTIFICATIONS"]
[null,"The Designer shall complete this workbook in its entirety prior to preparing the Summary of Justifications.  The summary should contain a description of the criteria that requires an exemption and a brief justification of why the criteria was not met. \n\nIf the project does not require a formal exemption, this text shall be deleted and this box left blank.\n\nDo not attach additional sheets for this Summary of Justification. This Summary of Justifications must be brief, concise, and fit in the space provided. Additional details can be inputted in later applicable sections of the Workbook.\n\n(Note that, if after completing this Workbook it is determined that no criteria have been violated, the Workbook should still be submitted to document the Designer's decision-making process.)",null,null,null,null,null,null,null,null,null,null,null,null,null,null,null,null,null,null,null,null,null,null,null,null,null,null,null,null,null,null,null,null,null,"The Designer shall complete this workbook in its entirety prior to preparing the Summary of Justifications.  The summary should contain a description of the criteria that requires an exemption and a brief justification of why the criteria was not met.  If the project does not require an exemption, the designer shall not fill out this Summary of Justifications box.\n\nDo not attach additional sheets for this Summary of Justification. This Summary of Justifications must be brief, concise, and fit in the space provided. Additional details can be inputted in later applicable sections of the Workbook.\n\n(Note that, if after completing this Workbook it is determined that no criteria have been violated, the Workbook should still be submitted to document the Designer's decision-making process.)"]
[]
[]
[]
[]
[]
[]
[]
[]
[]
[]
[]
[]
[]
[]
[]
[]
[]
[]
[]
[]
["--- FOR MASSDOT/FHWA USE ONLY ---"]
[]
[null,"APPROVED:",null,null,null," ",null,null,null,null,null,null,null,null,null,null,null,null,null,null,null,null,null,null,"DATE:"]
[null,null,null,null,null,"(Chief Engineer, MassDOT)",null,null,null,null,null,null,null,null,null,null,null,null,null,null,null,null,null,null,null,null," "," "," "," "," "," "]
[]
[null,"APPROVED:",null,null,null," ",null,null,null,null,null,null,null,null,null,null,null,null,null,null,null,null,null,null,"DATE:"]
[null,null,null,null,null,"(FHWA)",null,null,null,null,null,null,null,null,null,null,null,null,null,null,null,null,null,null,null,null," "," "," "," "," "," "]
[]
[null,"APPROVED:",null,null,null," ",null,null,null,null,null,null,null,null,null,null,null,null,null,null,null,null,null,null,"DATE:"]
[null,null,null,null,null,"(Secretary / CEO of MassDOT)",null,null,null,null,null,null,null,null,null,null,null,null,null,null,null,null,null,null,null,null,null,null,null,null,null,null,{"$f":"'HIDDEN Lists'!$B$1","v":"Workbook updated October 21, 2024"}]

{"sheet":"LOCUS MAP","index":9,"n_rows":47,"n_cols":35,"rows_kept":47,"cut":false,"hidden":false,"merged":[[4,1,12,31],[0,0,0,32],[1,3,1,5],[1,11,1,32],[2,0,2,32]]}
["MassDOT Design Justification Workbook"]
["Project:",null,null,{"$f":"INSTRUCTIONS!D4","v":"6XXXXX"},null,null,null,"Description:",null,null,null,{"$f":"INSTRUCTIONS!L4","v":"MUNICIPALITY- PROJECT DESCRIPTION"}]
["LOCUS MAP"]
[]
[null,"Provide a Locus Map on this sheet, or by adding a page in the PDF document. Provide the following existing conditions information in the locus map, or series of maps: (Attach screenshots of relevant maps, if applicable.)\n\n· Mile Markers at the beginning and end of the project\n· Bridge numbers and BINs of relevant bridges\n· Relevant roadway names\n· Speed limits\n· Traffic signals\n· Any other relevant information\n",null,null,null,null,null,null,null,null,null,null,null,null,null,null,null,null,null,null,null,null,null,null,null,null,null,null,null,null,null,null,null,null,"Common GIS layers that may be useful. Attach screenshot of these maps if applicable:"]
[null,null,null,null,null,null,null,null,null,null,null,null,null,null,null,null,null,null,null,null,null,null,null,null,null,null,null,null,null,null,null,null,null,null,"GeoDOT Gallery"]
[]
[]
[null,null,null,null,null,null,null,null,null,null,null,null,null,null,null,null,null,null,null,null,null,null,null,null,null,null,null,null,null,null,null,null,null,null,"Road Inventory 2023"]
[null,null,null,null,null,null,null,null,null,null,null,null,null,null,null,null,null,null,null,null,null,null,null,null,null,null,null,null,null,null,null,null,null,null,"Potential for Walkable Trips (2022 Update)"]
[]
[null,null,null,null,null,null,null,null,null,null,null,null,null,null,null,null,null,null,null,null,null,null,null,null,null,null,null,null,null,null,null,null,null,null,"Potential for Everyday Biking (2022 Update)"]
[null,null,null,null,null,null,null,null,null,null,null,null,null,null,null,null,null,null,null,null,null,null,null,null,null,null,null,null,null,null,null,null,null,null,"Bridges"]
[null,null,null,null,null,null,null,null,null,null,null,null,null,null,null,null,null,null,null,null,null,null,null,null,null,null,null,null,null,null,null,null,null,null,"RTA Bus Routes"]
[null,null,null,null,null,null,null,null,null,null,null,null,null,null,null,null,null,null,null,null,null,null,null,null,null,null,null,null,null,null,null,null,null,null,"MBTA Bus Routes and Stops"]
[]
[]
[]
[]
[]
[]
[]
[]
[]
[]
[]
[]
[]
[]
[]
[]
[]
[]
[]
[]
[]
[]
[]
[]
[]
[]
[]
[]
[]
[]
[]
[null,null,null,null,null,null,null,null,null,null,null,null,null,null,null,null,null,null,null,null,null,null,null,null,null,null,null,null,null,null,null,null,{"$f":"'HIDDEN Lists'!$B$1","v":"Workbook updated October 21, 2024"}]

{"sheet":"FACILITY PHOTOS","index":10,"n_rows":47,"n_cols":33,"rows_kept":47,"cut":false,"hidden":false,"merged":[[8,1,13,31],[16,1,17,31],[0,0,0,32],[1,3,1,5],[1,11,1,32],[2,0,2,32]]}
["MassDOT Design Justification Workbook"]
["Project:",null,null,{"$f":"INSTRUCTIONS!D4","v":"6XXXXX"},null,null,null,"Description:",null,null,null,{"$f":"INSTRUCTIONS!L4","v":"MUNICIPALITY- PROJECT DESCRIPTION"}]
["FACILITY PHOTOS"]
[null," \n"]
[null,"Photos\n"]
[null,"Provide figures and photographs on this sheet, or by replacing this page in the PDF document.\n\n"]
[]
[null,"Cross sections"]
[null,"For every distinct section of the facility, provide typical cross sections with the following existing and proposed \ninformation (if applicable):\n· Lane width\n· Shoulder width\n· Sidewalk width\n· Bicycle facility width\n· Cross slope"]
[]
[]
[]
[]
[]
[]
[null,"Narrative"]
[null,"Optional: write a narrative pointing out useful information to note from the existing conditions locus map or the cross sections."]
[]
[]
[]
[]
[]
[]
[]
[]
[]
[]
[]
[]
[]
[]
[]
[]
[]
[]
[]
[]
[]
[]
[]
[]
[]
[]
[]
[]
[]
[null,null,null,null,null,null,null,null,null,null,null,null,null,null,null,null,null,null,null,null,null,null,null,null,null,null,null,null,null,null,null,null,{"$f":"'HIDDEN Lists'!$B$1","v":"Workbook updated October 21, 2024"}]

{"sheet":"ALTERNATIVES","index":11,"n_rows":47,"n_cols":35,"rows_kept":47,"cut":false,"hidden":false,"merged":[[5,34,45,64],[0,0,0,32],[1,3,1,5],[1,11,1,32],[2,0,2,32],[5,1,45,31]]}
["MassDOT Design Justification Workbook"]
["Project:",null,null,{"$f":"INSTRUCTIONS!D4","v":"6XXXXX"},null,null,null,"Description:",null,null,null,{"$f":"INSTRUCTIONS!L4","v":"MUNICIPALITY- PROJECT DESCRIPTION"}]
["ALTERNATIVES"]
[]
[null,"Alternatives Summary"]
[null,"Provide a brief summary of the project development and alternatives process so far, for all roadways. Add additional pages as necessary.\n\nAnswer the following questions: Which alternatives were considered? What were the criteria used to evaluate the alternatives? Why was the preferred alternative selected? Why were other alternatives discarded?",null,null,null,null,null,null,null,null,null,null,null,null,null,null,null,null,null,null,null,null,null,null,null,null,null,null,null,null,null,null,null,null,"Provide a brief summary of the project development and alternatives process so far, for all roadways. Add additional pages as necessary.\n\nAnswer the following questions: Which alternatives were considered? What were the criteria used to evaluate the alternatives? Why was the preferred alternative selected? Why were other alternatives discarded?"]
[]
[]
[]
[]
[]
[]
[]
[]
[]
[]
[]
[]
[]
[]
[]
[]
[]
[]
[]
[]
[]
[]
[]
[]
[]
[]
[]
[]
[]
[]
[]
[]
[]
[]
[]
[]
[]
[]
[]
[]
[null,null,null,null,null,null,null,null,null,null,null,null,null,null,null,null,null,null,null,null,null,null,null,null,null,null,null,null,null,null,null,null,{"$f":"'HIDDEN Lists'!$B$1","v":"Workbook updated October 21, 2024"}]

{"sheet":"FACILITY INFO","index":12,"n_rows":47,"n_cols":36,"rows_kept":47,"cut":false,"hidden":false,"merged":[[5,35,6,52],[3,35,4,52],[2,35,2,52],[14,9,14,19],[24,17,24,24],[4,1,5,31],[8,7,8,23],[24,29,24,30],[18,10,18,12],[19,10,19,12],[20,10,20,12],[17,25,17,26],[18,25,18,26],[19,25,19,26],[12,22,12,25],[6,1,7,31],[20,25,20,26],[17,10,17,12],[0,0,0,32],[1,3,1,5],[1,11,1,32],[2,0,2,32],[3,0,3,32],[13,22,13,25],[68,42,68,55],[64,42,64,55],[65,42,65,51],[65,52,65,55],[67,42,67,51],[67,52,67,55],[66,42,66,55],[28,35,29,65],[36,35,37,65],[36,1,37,31],[21,10,21,12],[25,10,25,13],[33,10,33,13],[32,29,32,30],[32,17,32,24],[32,10,32,13],[24,10,24,13],[28,1,29,31]]}
["MassDOT Design Justification Workbook"]
["Project:",null,null,{"$f":"INSTRUCTIONS!D4","v":"6XXXXX"},null,null,null,"Description:",null,null,null,{"$f":"INSTRUCTIONS!L4","v":"MUNICIPALITY- PROJECT DESCRIPTION"},null,null,null,null,null,null,null,null,null,null,null,null,null,null,null,null,null,null,null,null,null,null,null,"Instruction on what the colors mean in this workbook"]
["FACILITY INFO",null,null,null,null,null,null,null,null,null,null,null,null,null,null,null,null,null,null,null,null,null,null,null,null,null,null,null,null,null,null,null,null,null,null,"Boxes in LIGHT BLUE will require the field to be filled out."]
[{"$f":"IF(OR(A9=\"*\",AG9=\"*\",H13=\"*\",H14=\"*\", V13=\"*\", V14=\"*\", J18=\"*\", J19=\"*\", J20=\"*\", J21=\"*\", Y18=\"*\", Y19=\"*\", Y20=\"*\", Y21=\"*\", J25=\"*\", J26=\"*\", Q25=\"*\", AC25=\"*\", J33=\"*\", J34=\"*\", Q33=\"*\", AC33=\"*\", I15=\"*\",J22=\"*\"),\"PLEASE FILL OUT ALL FIELDS MARKED WITH *\",\"\")","v":"PLEASE FILL OUT ALL FIELDS MARKED WITH *"},null,null,null,null,null,null,null,null,null,null,null,null,null,null,null,null,null,null,null,null,null,null,null,null,null,null,null,null,null,null,null,null,null,null,"Boxes in LIGHT GRAY will be auto-populated from the Facility Info tab, other tabs, or design guides."]
[null,"Where there is more than one roadway within the project limits OR the roadway changes dramatically, a \"Facility Info\" and corresponding facility sheets shall be generated for each of the differing roadway segments."]
[null,null,null,null,null,null,null,null,null,null,null,null,null,null,null,null,null,null,null,null,null,null,null,null,null,null,null,null,null,null,null,null,null,null,null,"Boxes in DARK GRAY are not required to be filled out based on the designer's selections."]
[null,"Notes: This sheet should be filled out in its entirety and the values will be auto-populated to their respective sheets. Also in order to retain Workbook functionalities, Workbook tab names should NOT be changed."]
[]
[{"$f":"IF($H$9=\"Street Road (Route X) - Segment X\",\"*\",\"\")","v":"*"},"Facility & Segment:",null,null,null,null,null,"Street Road (Route X) - Segment X",null,null,null,null,null,null,null,null,null,null,null,null,null,null,null,null,null,null,null,null,"# of Facility Set:",{"$f":"INDEX('HIDDEN VLookup'!$A$4:$B$33,MATCH($H$9,'HIDDEN VLookup'!$B$4:$B$33,0),1)","v":1},"of",{"$f":"30-COUNTBLANK('HIDDEN VLookup'!$B$4:$B$33)","v":1},null,null,null,"(Once a segment name has been provided here it is recommended that the Designer go through each sheet and select the segment name to be able to see which Criteria are controlling for this project)"]
[null,null,null,null,null,null,null,null,null,null,null,null,null,null,null,null,null,null,null,null,null,null,null,null,null,null,"Only click this button to automatically add a new set of criteria sheets, if project has multiple facilities/segments:"]
[null,null,null,null,null,null,null,null,null,null,null,null,null,null,null,null,null,null,null,null,null,null,null,null,null,null,"(Need to enable macros for this button.)",null,null,null,null,null,null,null,null,"GIS layer: Urban Boundaries 2010"]
[null,"Roadway Context",null,null,null,null,null,null,null,null,null,null,null,null,null,null,null,null,null,null,null,null,null,null,null,null,null,null,null,null,null,null,null,null,null,"GIS layer: MassDOT Road Inventory 2023"]
[null,"Project Proponent:",null,null,null,null,null,{"$f":"IF(AND(AH13=FALSE,AI13=FALSE), \"*\", \"\")","v":"*"},false,"Municipality",null,null,null,false,"MassDOT",null,null,null,"Area Type:",null,null,{"$f":"IF(W13=\"\",\"*\",\"\")","v":"*"},null,null,null,null,null,null,null,null,null,null,null,{"$f":"I13","v":false},{"$f":"N13","v":false},{"$f":"IF(AND(AH13=FALSE,AI13=FALSE),\"\",IF(AND(AH13=TRUE,AI13=FALSE),\"Municipality\",\"MassDOT\"))","v":""}]
[null,"Asset Ownership:",null,null,null,null,null,{"$f":"IF(AND(AH14=FALSE,AI14=FALSE), \"*\", \"\")","v":"*"},false,"Municipality",null,null,null,false,"MassDOT",null,null,null,"NHS:",null,null,{"$f":"IF(W14=\"\", \"*\", \"\")","v":"*"},null,null,null,null,null,null,null,null,null,null,null,{"$f":"I14","v":false},{"$f":"N14","v":false},{"$f":"IF(AND(AH14=FALSE,AI14=FALSE),\"\",IF(AND(AH14=TRUE,AI14=FALSE),\"Municipality\",\"MassDOT\"))","v":""}]
[null,"Functional Classification:",null,null,null,null,null,null,{"$f":"IF(J15=\"\",\"*\",\"\")","v":"*"}]
[null,{"$f":"IF(AND(W14=\"YES\",INSTRUCTIONS!AH73=TRUE()),\"Verify the NHS status. Instructions show project designed under Bridge R&R Program for Non-NHS Bridges, but NHS was set to 'yes'.\",\"\")","v":""}]
[null,"Existing Roadway Information",null,null,null,null,null,null,null,null,null,null,null,null,null,null,null,null,null,null,null,null,null,null,null,null,null,null,null,null,null,null,null,null,null,"(Provide information on the typical existing facility. N/A if not applicable or value is 0)"]
[null,"Average Daily Traffic:",null,null,null,null,null,null,null,{"$f":"IF(K18=\"\", \"*\", \"\")","v":"*"},null,null,null,"VPD",null,null,null,"Number of thru lanes:",null,null,null,null,null,null,{"$f":"IF(Z18=\"\", \"*\", \"\")","v":"*"},null,null,null,null,null,null,"(in each direction.)",null,null,null,"(If number of thru lanes varies, use the higher number.)"]
[null,"Percent Truck Traffic:",null,null,null,null,null,null,null,{"$f":"IF(K19=\"\", \"*\", \"\")","v":"*"},null,null,null,"%",null,null,null,"Travel lane width:",null,null,null,null,null,null,{"$f":"IF(Z19=\"\", \"*\", \"\")","v":"*"}]
[null,"Posted or Statutory speed:",null,null,null,null,null,null,null,{"$f":"IF(K20=\"\", \"*\", \"\")","v":"*"},null,null,null,"MPH",null,null,null,"Outside Shoulder Width:",null,null,null,null,null,null,{"$f":"IF(Z20=\"\", \"*\", \"\")","v":"*"},null,null,"FT"]
[null,"50th Percentile Speeds:",null,null,null,null,null,null,null,{"$f":"IF(K21=\"\", \"*\", \"\")","v":"*"},null,null,null,"MPH",null,null,null,"Inside Shoulder Width:",null,null,null,null,null,null,{"$f":"IF(Z21=\"\", \"*\", \"\")","v":"*"},null,null,"FT"]
[null,"85th Percentile Speeds:",null,null,null,null,null,null,null,{"$f":"IF(K22=\"\", \"*\", \"\")","v":"*"},null,null,null,"MPH"]
[]
[null,"Existing sidewalks:",null,null,null,null,null,null,null,null,null,null,null,null,null,null,null,null,null,null,null,null,null,null,null,null,null,null,null,null,null,null,null,null,null,"For both pedestrian and bike facilities:"]
[null,"Pedestrian facilities exist on:",null,null,null,null,null,null,null,{"$f":"IF(K25=\"\", \"*\", \"\")","v":"*"},null,null,null,null,null,"Type:",{"$f":"IF(R25=\"\", \"*\", \"\")","v":"*"},null,null,null,null,null,null,null,null,null,null,"Width:",{"$f":"IF(AD25=\"\", \"*\", \"\")","v":"*"},null,null,"FT",null,null,null,"(For type, provide information on the typical existing facility.)"]
[null,"Daily Pedestrian Volume:",null,null,null,null,null,null,null,{"$f":"IF(K26=\"\", \"*\", \"\")","v":"*"},null,null,null,null,"(N/A if unknown. )",null,null,null,null,null,null,null,null,null,null,null,null,null,null,null,null,null,null,null,null,"(If width varies, provide a minimum. Width excludes any buffer areas or curbing.)"]
[null,false,"The roadway is identified as having a High Potential of Walkable Trips in the Pedestrian Plan.",null,null,null,null,null,null,null,null,null,null,null,null,null,null,null,null,null,null,null,null,null,null,null,null,null,null,null,null,null,null,{"$f":"B27","v":false},null,"GIS layer: Potential for Walkable Trips 2022 Update"]
[]
[null,"(If multiple types of pedestrian facilities, describe here.)",null,null,null,null,null,null,null,null,null,null,null,null,null,null,null,null,null,null,null,null,null,null,null,null,null,null,null,null,null,null,null,null,null,"(If multiple types of pedestrian facilities, describe here.)"]
[]
[]
[null,"Existing bike facilities:"]
[null,"Bicycle facilities exist on:",null,null,null,null,null,null,null,{"$f":"IF(K33=\"\",  \"*\", \"\")","v":"*"},null,null,null,null,null,"Type:",{"$f":"IF(R33=\"\",  \"*\", \"\")","v":"*"},null,null,null,null,null,null,null,null,null,null,"Width:",{"$f":"IF(AD33=\"\", \"*\", \"\")","v":"*"},null,null,"FT"]
[null,"Daily Bicycle Volume:",null,null,null,null,null,null,null,{"$f":"IF(K34=\"\",  \"*\", \"\")","v":"*"},null,null,null,null,"(N/A if unknown)"]
[null,false,"The roadway is classified as a corridor with a High Potential for Everyday Biking in the Bike Plan.",null,null,null,null,null,null,null,null,null,null,null,null,null,null,null,null,null,null,null,null,null,null,null,null,null,null,null,null,null,null,{"$f":"B35","v":false},null,"GIS layer: Potential for Everyday Biking 2022 Update\\"]
[]
[null,"(If multiple types of pedestrian facilities, describe here.)",null,null,null,null,null,null,null,null,null,null,null,null,null,null,null,null,null,null,null,null,null,null,null,null,null,null,null,null,null,null,null,null,null,"(If multiple types of bicycle facilities, describe here.)"]
[]
[]
[null,"Existing transit:"]
[null,false,"Project is not within the service district of any of the RTAs or of the MBTA.",null,null,null,null,null,null,null,null,null,null,null,null,null,null,null,null,null,null,null,null,null,null,null,null,null,null,null,null,null,null,{"$f":"B41","v":false}]
[null,false,"There are no existing or proposed RTA/MBTA transit services within the project limits.",null,null,null,null,null,null,null,null,null,null,null,null,null,null,null,null,null,null,null,null,null,null,null,null,null,null,null,null,null,null,{"$f":"B42","v":false}]
[null,false,"There are no bus stops within the project limits.",null,null,null,null,null,null,null,null,null,null,null,null,null,null,null,null,null,null,null,null,null,null,null,null,null,null,null,null,null,null,false]
[]
[]
[]
[null,null,null,null,null,null,null,null,null,null,null,null,null,null,null,null,null,null,null,null,null,null,null,null,null,null,null,null,null,null,null,null,{"$f":"'HIDDEN Lists'!$B$1","v":"Workbook updated October 21, 2024"}]

{"sheet":"CONTROLLING CRITERIA","index":13,"n_rows":47,"n_cols":38,"rows_kept":47,"cut":false,"hidden":false,"merged":[[16,1,16,10],[0,0,0,32],[2,0,2,32],[1,11,1,32],[9,1,12,31],[14,28,14,31],[14,17,14,26],[1,0,1,2],[1,3,1,5],[4,7,4,23],[6,1,7,31],[14,1,14,10],[14,12,14,15],[15,17,15,31],[15,1,15,15],[18,28,18,31],[18,12,18,15],[19,1,19,15],[17,17,17,31],[21,17,21,31],[20,28,20,31],[18,17,18,26],[26,28,26,31],[16,12,16,15],[18,1,18,10],[20,1,20,10],[22,1,22,10],[20,12,20,15],[22,12,22,15],[21,1,21,15],[16,28,16,31],[25,17,25,31],[17,1,17,15],[16,17,16,26],[23,17,23,31],[22,28,22,31],[22,17,22,26],[19,17,19,31],[12,34,17,45],[31,1,34,31],[29,1,30,31],[35,1,38,31],[20,17,20,26],[23,1,23,15],[24,12,24,15],[24,28,24,31],[26,1,26,10],[27,17,27,31],[25,1,25,15],[26,17,26,26],[24,17,24,26],[24,1,24,10],[27,1,27,15],[26,12,26,15]]}
["MassDOT Design Justification Workbook"]
["Project:",null,null,{"$f":"INSTRUCTIONS!D4","v":"6XXXXX"},null,null,null,"Description:",null,null,null,{"$f":"INSTRUCTIONS!L4","v":"MUNICIPALITY- PROJECT DESCRIPTION"}]
["CONTROLLING CRITERIA"]
[null,null,null,null,null,null,null,null,null,null,null,null,null,null,null,null,null,null,null,null,null,null,null,null,null,null,null,null,null,null,null,null,{"$f":"IF(AND(AD5=\"\",AF5=\"\"), \"*\", \"\")","v":""}]
[{"$f":"IF($H$5=\"Street Road (Route X) - Segment X\",\"*\",\"\")","v":"*"},"Facility & Segment:",null,null,null,null,null,"Street Road (Route X) - Segment X",null,null,null,null,null,null,null,null,null,null,null,null,null,null,null,null,null,null,null,null,"# of Facility Set:",{"$f":"IFERROR(INDEX('HIDDEN VLookup'!$A$4:$B$33,MATCH($H$5,'HIDDEN VLookup'!$B$4:$B$33,0),1),\"\")","v":1},"of",{"$f":"30-COUNTBLANK('HIDDEN VLookup'!$B$4:$B$33)","v":1}]
[]
[null,"This sheet serves as a summary documenting whether a criterion is controlling/non-controlling and met/not met, and whether its corresponding sheet is completely/incompletely filled out. "]
[]
[]
[null,"This list will update automatically based on the responses in other sheets.\n(Any criteria that are not considered a \"Controlling Criteria\" are still design criteria; the applicable worksheet should still be filled out to document the Designer's decision-making process when selecting these values.)"]
[]
[]
[null,null,null,null,null,null,null,null,null,null,null,null,null,null,null,null,null,null,null,null,null,null,null,null,null,null,null,null,null,null,null,null,null,{"$f":"IF(OR(VLOOKUP($H$5,'HIDDEN Criteria'!$B$4:$AZ$33,30,FALSE)>=50,VLOOKUP($H$5,'HIDDEN Criteria'!$B$4:$AZ$33,31,FALSE)=\"INTERSTATE\",VLOOKUP($H$5,'HIDDEN Criteria'!$B$4:$AZ$33,31,FALSE)=\"OTHER FREEWAY OR EXPRESSWAY\"),FALSE,TRUE)","v":true},"EXEMPTIONS: Flag is set to \"TRUE\" if only seven criteria are controlling or \"FALSE\" if all 14 criteria are controlling, based on responses in Design & Target Speed (design speed) and Facility Info (functional classification) tabs per E-20-001 Exhibit 4."]
[]
[null,"DESIGN & TARGET SPEED",null,null,null,null,null,null,null,null,null,{"$f":"IF(AND(M15=\"Not met\",B16=\"(Controlling criterion)\"),\"⚠️\",IF(AND(M15=\"MET\",B16=\"(Controlling criterion)\"),\"✔️\",\"\"))","v":""},{"$f":"IFERROR(IF(VLOOKUP($H$5,'HIDDEN Criteria'!$B$4:$AZ$33,2,FALSE)=\"Criterion not applicable.\",\"N/A\",IF(VLOOKUP($H$5,'HIDDEN Criteria'!$B$4:$AZ$33,3,FALSE)=\"PLEASE FILL OUT ALL FIELDS MARKED WITH *\",\"NOT DONE\",IF(VLOOKUP($H$5,'HIDDEN Criteria'!$B$4:$AZ$33,33,FALSE)=TRUE,\"Not met\",\"Met\"))),\"\")","v":"NOT DONE"},null,null,null,null,"SHOULDER WIDTH",null,null,null,null,null,null,null,null,null,{"$f":"IF(AND(AC15=\"Not met\",R16=\"(Controlling criterion)\"),\"⚠️\",IF(AND(AC15=\"MET\",R16=\"(Controlling criterion)\"),\"✔️\",\"\"))","v":""},{"$f":"IFERROR(IF(VLOOKUP($H$5,'HIDDEN Criteria'!$B$4:$AZ$33,16,FALSE)=\"Criterion not applicable.\",\"N/A\",IF(VLOOKUP($H$5,'HIDDEN Criteria'!$B$4:$AZ$33,17,FALSE)=\"PLEASE FILL OUT ALL FIELDS MARKED WITH *\",\"NOT DONE\",IF(VLOOKUP($H$5,'HIDDEN Criteria'!$B$4:$AZ$33,40,FALSE)=TRUE,\"Not met\",\"Met\"))),\"\")","v":"NOT DONE"}]
[null,{"$f":"IFERROR(IF(VLOOKUP($H$5,'HIDDEN Criteria'!$B$4:$BI$33,47,FALSE)=TRUE, \"(Non-Controlling criterion)\", \"(Controlling criterion)\"),\"\")","v":"(Controlling criterion)"},null,null,null,null,null,null,null,null,null,null,null,null,null,null,null,{"$f":"IFERROR(IF(VLOOKUP($H$5,'HIDDEN Criteria'!$B$4:$BI$33,54,FALSE)=TRUE, \"(Non-Controlling criterion)\", \"(Controlling criterion)\"),\"\")","v":"(Controlling criterion)"}]
[null,"PEDESTRIAN FACILITIES",null,null,null,null,null,null,null,null,null,{"$f":"IF(AND(M17=\"Not met\",B18=\"(Controlling criterion)\"),\"⚠️\",IF(AND(M17=\"MET\",B18=\"(Controlling criterion)\"),\"✔️\",\"\"))","v":""},{"$f":"IFERROR(IF(VLOOKUP($H$5,'HIDDEN Criteria'!$B$4:$AZ$33,4,FALSE)=\"Criterion not applicable.\",\"N/A\",IF(VLOOKUP($H$5,'HIDDEN Criteria'!$B$4:$AZ$33,5,FALSE)=\"PLEASE FILL OUT ALL FIELDS MARKED WITH *\",\"NOT DONE\",IF(VLOOKUP($H$5,'HIDDEN Criteria'!$B$4:$AZ$33,34,FALSE)=TRUE, \"Not met\",\"Met\"))),\"\")","v":"NOT DONE"},null,null,null,null,"HORIZONTAL CURVE RADIUS",null,null,null,null,null,null,null,null,null,{"$f":"IF(AND(AC17=\"Not met\",R18=\"(Controlling criterion)\"),\"⚠️\",IF(AND(AC17=\"MET\",R18=\"(Controlling criterion)\"),\"✔️\",\"\"))","v":""},{"$f":"IFERROR(IF(VLOOKUP($H$5,'HIDDEN Criteria'!$B$4:$AZ$33,18,FALSE)=\"Criterion not applicable.\",\"N/A\",IF(VLOOKUP($H$5,'HIDDEN Criteria'!$B$4:$AZ$33,19,FALSE)=\"PLEASE FILL OUT ALL FIELDS MARKED WITH *\",\"NOT DONE\",IF(VLOOKUP($H$5,'HIDDEN Criteria'!$B$4:$AZ$33,41,FALSE)=TRUE,\"Not met\",\"Met\"))),\"\")","v":"NOT DONE"}]
[null,{"$f":"IFERROR(IF(VLOOKUP($H$5,'HIDDEN Criteria'!$B$4:$BI$33,48,FALSE)=TRUE, \"(Non-Controlling criterion)\", \"(Controlling criterion)\"),\"\")","v":"(Controlling criterion)"},null,null,null,null,null,null,null,null,null,null,null,null,null,null,null,{"$f":"IFERROR(IF(VLOOKUP($H$5,'HIDDEN Criteria'!$B$4:$BI$33,55,FALSE)=TRUE, \"(Non-Controlling criterion)\", \"(Controlling criterion)\"),\"\")","v":"(Non-Controlling criterion)"}]
[null,"BICYCLE FACILITIES",null,null,null,null,null,null,null,null,null,{"$f":"IF(AND(M19=\"Not met\",B20=\"(Controlling criterion)\"),\"⚠️\",IF(AND(M19=\"MET\",B20=\"(Controlling criterion)\"),\"✔️\",\"\"))","v":""},{"$f":"IFERROR(IF(VLOOKUP($H$5,'HIDDEN Criteria'!$B$4:$AZ$33,6,FALSE)=\"Criterion not applicable.\",\"N/A\",IF(VLOOKUP($H$5,'HIDDEN Criteria'!$B$4:$AZ$33,7,FALSE)=\"PLEASE FILL OUT ALL FIELDS MARKED WITH *\",\"NOT DONE\",IF(VLOOKUP($H$5,'HIDDEN Criteria'!$B$4:$AZ$33,35,FALSE)=TRUE,\"Not met\",\"Met\"))),\"\")","v":"NOT DONE"},null,null,null,null,"SUPERELEVATION RATE",null,null,null,null,null,null,null,null,null,{"$f":"IF(AND(AC19=\"Not met\",R20=\"(Controlling criterion)\"),\"⚠️\",IF(AND(AC19=\"MET\",R20=\"(Controlling criterion)\"),\"✔️\",\"\"))","v":""},{"$f":"IFERROR(IF(VLOOKUP($H$5,'HIDDEN Criteria'!$B$4:$AZ$33,20,FALSE)=\"Criterion not applicable.\",\"N/A\",IF(VLOOKUP($H$5,'HIDDEN Criteria'!$B$4:$AZ$33,21,FALSE)=\"PLEASE FILL OUT ALL FIELDS MARKED WITH *\",\"NOT DONE\",IF(VLOOKUP($H$5,'HIDDEN Criteria'!$B$4:$AZ$33,42,FALSE)=TRUE,\"Not met\",\"Met\"))),\"\")","v":"NOT DONE"}]
[null,{"$f":"IFERROR(IF(VLOOKUP($H$5,'HIDDEN Criteria'!$B$4:$BI$33,49,FALSE)=TRUE, \"(Non-Controlling criterion)\", \"(Controlling criterion)\"),\"\")","v":"(Controlling criterion)"},null,null,null,null,null,null,null,null,null,null,null,null,null,null,null,{"$f":"IFERROR(IF(VLOOKUP($H$5,'HIDDEN Criteria'!$B$4:$BI$33,56,FALSE)=TRUE, \"(Non-Controlling criterion)\", \"(Controlling criterion)\"),\"\")","v":"(Non-Controlling criterion)"}]
[null,"TRANSIT ACCOMMODATION",null,null,null,null,null,null,null,null,null,{"$f":"IF(AND(M21=\"Not met\",B22=\"(Controlling criterion)\"),\"⚠️\",IF(AND(M21=\"MET\",B22=\"(Controlling criterion)\"),\"✔️\",\"\"))","v":""},{"$f":"IFERROR(IF(VLOOKUP($H$5,'HIDDEN Criteria'!$B$4:$AZ$33,8,FALSE)=\"Criterion not applicable.\",\"N/A\",IF(VLOOKUP($H$5,'HIDDEN Criteria'!$B$4:$AZ$33,9,FALSE)=\"PLEASE FILL OUT ALL FIELDS MARKED WITH *\",\"NOT DONE\",IF(VLOOKUP($H$5,'HIDDEN Criteria'!$B$4:$AZ$33,36,FALSE)=TRUE,\"Not met\",\"Met\"))),\"\")","v":"NOT DONE"},null,null,null,null,"STOPPING SIGHT DISTANCE",null,null,null,null,null,null,null,null,null,{"$f":"IF(AND(AC21=\"Not met\",R22=\"(Controlling criterion)\"),\"⚠️\",IF(AND(AC21=\"MET\",R22=\"(Controlling criterion)\"),\"✔️\",\"\"))","v":""},{"$f":"IFERROR(IF(VLOOKUP($H$5,'HIDDEN Criteria'!$B$4:$AZ$33,22,FALSE)=\"Criterion not applicable.\",\"N/A\",IF(VLOOKUP($H$5,'HIDDEN Criteria'!$B$4:$AZ$33,23,FALSE)=\"PLEASE FILL OUT ALL FIELDS MARKED WITH *\",\"NOT DONE\",IF(VLOOKUP($H$5,'HIDDEN Criteria'!$B$4:$AZ$33,43,FALSE)=TRUE,\"Not met\",\"Met\"))),\"\")","v":"NOT DONE"}]
[null,{"$f":"IFERROR(IF(VLOOKUP($H$5,'HIDDEN Criteria'!$B$4:$BI$33,50,FALSE)=TRUE, \"(Non-Controlling criterion)\", \"(Controlling criterion)\"),\"\")","v":"(Controlling criterion)"},null,null,null,null,null,null,null,null,null,null,null,null,null,null,null,{"$f":"IFERROR(IF(VLOOKUP($H$5,'HIDDEN Criteria'!$B$4:$BI$33,57,FALSE)=TRUE, \"(Non-Controlling criterion)\", \"(Controlling criterion)\"),\"\")","v":"(Non-Controlling criterion)"}]
[null,"RAMP LENGTH",null,null,null,null,null,null,null,null,null,{"$f":"IF(AND(M23=\"Not met\",B24=\"(Controlling criterion)\"),\"⚠️\",IF(AND(M23=\"MET\",B24=\"(Controlling criterion)\"),\"✔️\",\"\"))","v":""},{"$f":"IFERROR(IF(VLOOKUP($H$5,'HIDDEN Criteria'!$B$4:$AZ$33,10,FALSE)=\"Criterion not applicable.\",\"N/A\",IF(VLOOKUP($H$5,'HIDDEN Criteria'!$B$4:$AZ$33,11,FALSE)=\"PLEASE FILL OUT ALL FIELDS MARKED WITH *\",\"NOT DONE\",IF(VLOOKUP($H$5,'HIDDEN Criteria'!$B$4:$AZ$33,37,FALSE)=TRUE,\"Not met\",\"Met\"))),\"\")","v":"NOT DONE"},null,null,null,null,"MAXIMUM GRADE",null,null,null,null,null,null,null,null,null,{"$f":"IF(AND(AC23=\"Not met\",R24=\"(Controlling criterion)\"),\"⚠️\",IF(AND(AC23=\"MET\",R24=\"(Controlling criterion)\"),\"✔️\",\"\"))","v":""},{"$f":"IFERROR(IF(VLOOKUP($H$5,'HIDDEN Criteria'!$B$4:$AZ$33,24,FALSE)=\"Criterion not applicable.\",\"N/A\",IF(VLOOKUP($H$5,'HIDDEN Criteria'!$B$4:$AZ$33,25,FALSE)=\"PLEASE FILL OUT ALL FIELDS MARKED WITH *\",\"NOT DONE\",IF(VLOOKUP($H$5,'HIDDEN Criteria'!$B$4:$AZ$33,44,FALSE)=TRUE,\"Not met\",\"Met\"))),\"\")","v":"NOT DONE"},null,null,null,null,null,null,null,null," "]
[null,{"$f":"IFERROR(IF(VLOOKUP($H$5,'HIDDEN Criteria'!$B$4:$BI$33,51,FALSE)=TRUE, \"(Non-Controlling criterion)\", \"(Controlling criterion)\"),\"\")","v":"(Controlling criterion)"},null,null,null,null,null,null,null,null,null,null,null,null,null,null,null,{"$f":"IFERROR(IF(VLOOKUP($H$5,'HIDDEN Criteria'!$B$4:$BI$33,58,FALSE)=TRUE, \"(Non-Controlling criterion)\", \"(Controlling criterion)\"),\"\")","v":"(Non-Controlling criterion)"}]
[null,"DESIGN LOADING STRUCT. CAPACITY",null,null,null,null,null,null,null,null,null,{"$f":"IF(AND(M25=\"Not met\",B26=\"(Controlling criterion)\"),\"⚠️\",IF(AND(M25=\"MET\",B26=\"(Controlling criterion)\"),\"✔️\",\"\"))","v":""},{"$f":"IFERROR(IF(VLOOKUP($H$5,'HIDDEN Criteria'!$B$4:$AZ$33,12,FALSE)=\"Criterion not applicable.\",\"N/A\",IF(VLOOKUP($H$5,'HIDDEN Criteria'!$B$4:$AZ$33,13,FALSE)=\"PLEASE FILL OUT ALL FIELDS MARKED WITH *\",\"NOT DONE\",IF(VLOOKUP($H$5,'HIDDEN Criteria'!$B$4:$AZ$33,38,FALSE)=TRUE,\"Not met\",\"Met\"))),\"\")","v":"NOT DONE"},null,null,null,null,"CROSS SLOPE",null,null,null,null,null,null,null,null,null,{"$f":"IF(AND(AC25=\"Not met\",R26=\"(Controlling criterion)\"),\"⚠️\",IF(AND(AC25=\"MET\",R26=\"(Controlling criterion)\"),\"✔️\",\"\"))","v":""},{"$f":"IFERROR(IF(VLOOKUP($H$5,'HIDDEN Criteria'!$B$4:$AZ$33,26,FALSE)=\"Criterion not applicable.\",\"N/A\",IF(VLOOKUP($H$5,'HIDDEN Criteria'!$B$4:$AZ$33,27,FALSE)=\"PLEASE FILL OUT ALL FIELDS MARKED WITH *\",\"NOT DONE\",IF(VLOOKUP($H$5,'HIDDEN Criteria'!$B$4:$AZ$33,45,FALSE)=TRUE,\"Not met\",\"Met\"))),\"\")","v":"NOT DONE"}]
[null,{"$f":"IFERROR(IF(VLOOKUP($H$5,'HIDDEN Criteria'!$B$4:$BI$33,52,FALSE)=TRUE, \"(Non-Controlling criterion)\", \"(Controlling criterion)\"),\"\")","v":"(Controlling criterion)"},null,null,null,null,null,null,null,null,null,null,null,null,null,null,null,{"$f":"IFERROR(IF(VLOOKUP($H$5,'HIDDEN Criteria'!$B$4:$BI$33,59,FALSE)=TRUE, \"(Non-Controlling criterion)\", \"(Controlling criterion)\"),\"\")","v":"(Non-Controlling criterion)"}]
[null,"LANE WIDTH",null,null,null,null,null,null,null,null,null,{"$f":"IF(AND(M27=\"Not met\",B28=\"(Controlling criterion)\"),\"⚠️\",IF(AND(M27=\"MET\",B28=\"(Controlling criterion)\"),\"✔️\",\"\"))","v":""},{"$f":"IFERROR(IF(VLOOKUP($H$5,'HIDDEN Criteria'!$B$4:$AZ$33,14,FALSE)=\"Criterion not applicable.\",\"N/A\",IF(VLOOKUP($H$5,'HIDDEN Criteria'!$B$4:$AZ$33,15,FALSE)=\"PLEASE FILL OUT ALL FIELDS MARKED WITH *\",\"NOT DONE\",IF(VLOOKUP($H$5,'HIDDEN Criteria'!$B$4:$AZ$33,39,FALSE)=TRUE,\"Not met\",\"Met\"))),\"\")","v":"NOT DONE"},null,null,null,null,"VERTICAL CLEARANCE",null,null,null,null,null,null,null,null,null,{"$f":"IF(AND(AC27=\"Not met\",R28=\"(Controlling criterion)\"),\"⚠️\",IF(AND(AC27=\"MET\",R28=\"(Controlling criterion)\"),\"✔️\",\"\"))","v":""},{"$f":"IFERROR(IF(VLOOKUP($H$5,'HIDDEN Criteria'!$B$4:$AZ$33,28,FALSE)=\"Criterion not applicable.\",\"N/A\",IF(VLOOKUP($H$5,'HIDDEN Criteria'!$B$4:$AZ$33,29,FALSE)=\"PLEASE FILL OUT ALL FIELDS MARKED WITH *\",\"NOT DONE\",IF(VLOOKUP($H$5,'HIDDEN Criteria'!$B$4:$AZ$33,46,FALSE)=TRUE,\"Not met\",\"Met\"))),\"\")","v":"NOT DONE"}]
[null,{"$f":"IFERROR(IF(VLOOKUP($H$5,'HIDDEN Criteria'!$B$4:$BI$33,53,FALSE)=TRUE, \"(Non-Controlling criterion)\", \"(Controlling criterion)\"),\"\")","v":"(Controlling criterion)"},null,null,null,null,null,null,null,null,null,null,null,null,null,null,null,{"$f":"IFERROR(IF(VLOOKUP($H$5,'HIDDEN Criteria'!$B$4:$BI$33,60,FALSE)=TRUE, \"(Non-Controlling criterion)\", \"(Controlling criterion)\"),\"\")","v":"(Non-Controlling criterion)"}]
[]
[null,"⚠️ : criterion is controlling but criterion does not meet standard.\n✔️ : criterion is controlling and criterion meets standard. "]
[]
[null,"NOT DONE : criterion's corresponding sheet has not been filled out completely.\nNot met : criterion does not meet standard.\nMet : criterion meets standard.\nN/A : criterion is not applicable."]
[]
[]
[]
[null,"(Controlling criterion) : Workbook shall require formal approval if criterion does not meet standard, based on project type and E-20-001 Exhibit 3 and Exhibit 4.\n(Non-controlling criteria) : Workbook does not require formal approval if criterion does not meet standard, based on project type and E-20-001 Exhibit 3 and Exhibit 4."]
[]
[]
[]
[]
[]
[]
[]
[]
[]
[]
[null,null,null,null,null,null,null,null,null,null,null,null,null,null,null,null,null,null,null,null,null,null,null,null,null,null,null,null,null,null,null,null,{"$f":"'HIDDEN Lists'!$B$1","v":"Workbook updated October 21, 2024"}]

{"sheet":"DESIGN & TARGET SPEED","index":14,"n_rows":224,"n_cols":40,"rows_kept":224,"cut":false,"hidden":false,"merged":[[159,7,159,14],[159,15,159,17],[160,7,160,14],[160,15,160,17],[158,1,160,6],[158,7,158,14],[77,23,82,31],[60,5,76,11],[60,12,76,13],[60,23,76,31],[158,18,158,31],[60,14,76,20],[60,21,76,22],[116,23,123,31],[156,18,157,31],[158,15,158,17],[159,18,159,31],[160,18,160,31],[156,7,157,14],[156,15,157,17],[139,1,142,31],[99,14,111,20],[99,21,111,22],[99,23,111,31],[161,18,161,31],[162,18,162,31],[163,18,163,31],[156,34,158,63],[21,27,21,28],[21,10,21,11],[137,11,137,12],[145,1,153,31],[125,12,125,13],[125,21,125,22],[51,23,53,31],[54,23,59,31],[136,34,137,63],[46,1,49,31],[161,1,171,6],[43,6,43,13],[51,1,53,4],[51,5,53,11],[51,12,53,13],[51,14,53,20],[51,21,53,22],[164,18,165,31],[137,28,137,29],[156,1,157,6],[176,15,176,17],[183,33,185,33],[178,33,179,33],[173,33,174,33],[168,33,170,33],[164,33,165,33],[181,33,182,33],[167,7,167,14],[167,15,167,17],[167,18,167,31],[164,7,165,14],[164,15,165,17],[166,7,166,14],[166,15,166,17],[176,18,176,31],[166,18,166,31],[168,18,170,31],[171,18,171,31],[172,18,172,31],[112,1,115,4],[112,5,115,11],[112,12,115,13],[112,14,115,20],[112,21,115,22],[112,23,115,31],[127,1,132,31],[136,11,136,12],[136,28,136,29],[116,1,123,4],[116,5,123,11],[116,12,123,13],[116,14,123,20],[116,21,123,22],[26,1,29,31],[35,1,38,31],[33,28,33,29],[54,1,59,4],[54,5,59,11],[54,12,59,13],[54,14,59,20],[54,21,59,22],[43,16,43,21],[43,14,43,15],[41,1,41,5],[41,6,41,13],[42,6,42,13],[33,16,33,17],[42,16,42,21],[42,14,42,15],[41,14,41,21],[0,0,0,32],[1,0,1,2],[1,3,1,5],[1,11,1,32],[2,0,2,32],[3,0,3,32],[10,7,10,10],[11,7,11,16],[14,1,17,31],[5,7,5,23],[4,0,4,32],[60,1,76,4],[205,9,205,10],[177,18,177,31],[178,18,179,31],[180,18,180,31],[181,18,182,31],[183,18,185,31],[186,18,186,31],[181,7,182,14],[181,15,182,17],[197,9,197,10],[193,1,195,31],[191,11,191,12],[191,28,191,29],[190,11,190,12],[190,28,190,29],[199,1,202,31],[99,1,111,4],[99,12,111,13],[77,1,82,4],[77,5,82,11],[77,12,82,13],[77,14,82,20],[77,21,82,22],[14,34,17,64],[199,34,202,63],[83,1,98,4],[83,5,98,11],[83,12,98,13],[83,14,98,20],[83,21,98,22],[83,23,98,31],[183,7,185,14],[183,15,185,17],[186,1,186,14],[186,15,186,17],[178,15,179,17],[180,7,180,14],[180,15,180,17],[172,1,174,6],[172,7,172,14],[172,15,172,17],[173,7,174,14],[35,34,38,64],[26,34,29,64],[99,5,111,11],[24,16,24,17],[31,13,31,14],[207,1,219,31],[207,34,219,64],[173,15,174,17],[176,7,176,14],[177,7,177,14],[177,15,177,17],[139,34,142,63],[175,7,175,14],[175,15,175,17],[183,1,185,6],[175,1,182,6],[178,7,179,14],[161,7,161,14],[161,15,161,17],[162,7,162,14],[162,15,162,17],[163,7,163,14],[163,15,163,17],[168,7,170,14],[168,15,170,17],[171,7,171,14],[171,15,171,17],[173,18,174,31],[175,18,175,31]]}
["MassDOT Design Justification Workbook"]
["Project:",null,null,"60XXXX",null,null,null,"Description:",null,null,null,"MUNICIPALITY- PROJECT DESCRIPTION"]
["DESIGN AND TARGET SPEED",null,null,null,null,null,null,null,null,null,null,null,null,null,null,null,null,null,null,null,null,null,null,null,null,null,null,null,null,null,null,null,null,null,"(This Workbook sheet is intended to update automatically based on the Designer's entries.)"]
[{"$f":"IF(B223=\"is not applicable.\",\"Criterion not applicable.\",IF(B223=\"is non-controlling criterion.\",\"Criterion is non-controlling.\",IF(B223=\"has been violated.\",\"Standard not met.\",IF(B223=\"has been satisfied.\",\"Standard met.\",\"\"))))","v":""}]
[{"$f":"IF(A4=\"is non-controlling criterion.\",\"\",IF(OR(AG6=\"*\",G11=\"*\",G12=\"*\",A15=\"*\",P25=\"*\",A27=\"*\",A36=\"*\",K138=\"*\",AB138=\"*\",A140=\"*\",I198=\"*\",A200=\"*\",I206=\"*\",A208=\"*\"),\"PLEASE FILL OUT ALL FIELDS MARKED WITH *\",\"\"))","v":"PLEASE FILL OUT ALL FIELDS MARKED WITH *"},null,null,null,null,null,null,null,null,null,null,null,null,null,null,null,null,null,null,null,null,null,null,null,null,null,null,null,null,null,null,null,null,{"$f":"IF(OR(AG6=\"*\",G11=\"*\",G12=\"*\",A15=\"*\",J22=\"*\",AA22=\"*\",P25=\"*\",A27=\"*\",M32=\"*\",P34=\"*\",AB34=\"*\",A36=\"*\",K138=\"*\",AB138=\"*\",A140=\"*\",I198=\"*\",A200=\"*\",I206=\"*\"),TRUE, FALSE)","v":true}]
[{"$f":"IF($H$6=\"Street Road (Route X) - Segment X\",\"*\",\"\")","v":"*"},"Facility & Segment:",null,null,null,null,null,"Street Road (Route X) - Segment X",null,null,null,null,null,null,null,null,null,null,null,null,null,null,null,null,null,null,null,null,"# of Facility Set:",{"$f":"IFERROR(INDEX('HIDDEN VLookup'!A4:B18,MATCH(H6,'HIDDEN VLookup'!B4:B18,0),1),\"\")","v":1},"of",{"$f":"15-COUNTBLANK('HIDDEN VLookup'!B4:B18)","v":1},null,{"$f":"IF(INSTRUCTIONS!AJ81=1,TRUE,FALSE)","v":false},null,"(Other types of projects may also be exempt from the need to comply with this criteria - we ask that the Workbook is still completed in these cases.)"]
[]
[null,false,"Check this box if target speed is not applicable for this project as identified on the Pre-25% Scoping Checklist. ",null,null,null,null,null,null,null,null,null,null,null,null,null,null,null,null,null,null,null,null,null,null,null,null,null,null,null,null,null,null,{"$f":"B8","v":false}]
[null,null,{"$f":"IF(AH8=TRUE(),\"Skip to Step 6.\",\"\")","v":""}]
[null,"Step 1. Enter Target and Design Speed Range from PDDG"]
[null,"Roadway Type:",null,null,null,null,{"$f":"IF(H11=\"\",\"*\",\"\")","v":"*"},null,null,null,null,null,"(Refer to PDDG Figure 3-4 and its accompanying text)",null,null,null,null,null,null,null,null,null,null,null,null,null,null,null,null,null,null,null,null,{"$f":"IF(H11=\"FREEWAY\",TRUE,FALSE)","v":false}]
[null,"Area Type:",null,null,null,null,{"$f":"IF(H12=\"\",\"*\",\"\")","v":"*"},null,null,null,null,null,null,null,null,null,null,null,"(Refer to PDDG Table 3-1)",null,null,null,null,null,null,null,null,null,null,null,null,null,null,null,"(The area type and roadway type should have already been identified on the Pre-25% Scoping Checklist.)"]
[null,false,"Check this box if segment is a multilane divided arterial.",null,null,null,null,null,null,null,null,null,null,null,null,null,null,null,null,null,null,null,null,null,null,null,null,null,null,null,null,null,null,{"$f":"B13","v":false},"(Based on Table 3-7, note 2. A design speed, up to 55 mph, may be appropriate for multi-lane, divided arterials.)"]
[]
[{"$f":"IF(AND(AH8=FALSE,B15=AI15),\"*\",\"\")","v":"*"},"(Document distinguishing characteristics consistent with area type (see PDDG Table 3-1))",null,null,null,null,null,null,null,null,null,null,null,null,null,null,null,null,null,null,null,null,null,null,null,null,null,null,null,null,null,null,null,null,"(Document distinguishing characteristics consistent with area type (see PDDG Table 3-1))"]
[]
[]
[]
[]
[null,"Target and Design Speed Range:",null,null,null,null,null,null,null,null,"(Based on PDDG Table 3-7)"]
[]
[null,"Lower Target Speed Range:",null,null,null,null,null,null,null,null,{"$f":"IFERROR(VLOOKUP($H$12,'HIDDEN Tables'!B7:F16,MATCH($H$11,'HIDDEN Tables'!B7:F7,0),FALSE),\"\")","v":""},null,"MPH",null,null,null,null,null,"Higher Target Speed Range:",null,null,null,null,null,null,null,null,{"$f":"IF(AND(H11=\"Arterial\",AH13=TRUE),55,IFERROR(VLOOKUP($H$12,'HIDDEN Tables'!B21:F30,MATCH($H$11,'HIDDEN Tables'!B21:F21,0),FALSE),\"\"))","v":""},null,"MPH"]
[]
[null,"Step 2. Verify Existing Speed Information"]
[null,"Design Speed that current roadway elements meet:",null,null,null,null,null,null,null,null,null,null,null,null,null,{"$f":"IF(AND(AH8=FALSE,Q25=\"\"),\"*\",\"\")","v":"*"},null,null,"MPH",null,null,"(N/A if unable to determine.)"]
[]
[{"$f":"IF(AND(AH8=FALSE,B27=AI27),\"*\",\"\")","v":"*"},"(If applicable, document how existing design speed was determined (e.g., as-built drawing, field measurements, recreating existing alignments in CAD against field survey))",null,null,null,null,null,null,null,null,null,null,null,null,null,null,null,null,null,null,null,null,null,null,null,null,null,null,null,null,null,null,null,null,"(If applicable, document how existing design speed was determined (e.g., as-built drawing, field measurements, recreating existing alignments in CAD against field survey))"]
[]
[]
[]
[]
[null,"Existing Posted or Statutory Speed Limit:",null,null,null,null,null,null,null,null,null,null,null,{"$f":"IFERROR(VLOOKUP($H$6,'HIDDEN VLookup'!$B$4:$AJ$18,9,FALSE),\"\")","v":0},null,"MPH",null,null,null,null,null,null,null,null,null,null,null,null,null,null,null,null,null,null,"(Existing speed information is referred from the Facility Info sheet.)"]
[]
[null,"Existing Operating Speeds:",null,null,null,null,null,null,null,null,"50th Percentile:",null,null,null,null,null,{"$f":"IFERROR(VLOOKUP($H$6,'HIDDEN VLookup'!$B$4:$AJ$18,10,FALSE),\"\")","v":0},null,"MPH",null,null,null,"85th Percentile:",null,null,null,null,null,{"$f":"IFERROR(VLOOKUP($H$6,'HIDDEN VLookup'!$B$4:$AJ$18,11,FALSE),\"\")","v":0},null,"MPH",null,null,null,"(Operating speeds should be calculated based on the free-flow off peak periods)"]
[]
[{"$f":"IF(AND(AH8=FALSE,B36=AI36,AH11=FALSE),\"*\",\"\")","v":"*"},"(Document operating speed data source, including dates and time periods.)",null,null,null,null,null,null,null,null,null,null,null,null,null,null,null,null,null,null,null,null,null,null,null,null,null,null,null,null,null,null,null,null,"(Document operating speed data source, including dates and time periods.)"]
[]
[]
[]
[]
[null,"Step 3. Compare Existing Operating Speeds to Target and Design Speed Range",null,null,null,null,null,null,null,null,null,null,null,null,null,null,null,null,null,null,null,null,null,null,null,null,null,null,null,null,null,null,null,null,"(Identify whether the existing operating speeds are within or outside the target and design speed range.)"]
[null,"Operating Speed",null,null,null,null,"Within or Outside of Range",null,null,null,null,null,null,null,"MPH Above Range"]
[null,"50th Percentile:",null,null,null,null,{"$f":"IF(ISBLANK(Q34),\" \",IF(AND(Q34<=AB22,Q34>=K22),\"Within Range\",\"Outside of Range\"))","v":"Outside of Range"},null,null,null,null,null,null,null,{"$f":"IFERROR(IF(G43=\"Outside of Range\",Q34-AB22,\" \"),\"\")","v":""},null,{"$f":"IF(ISBLANK(Q34),\" \",IF(G43=\"Within Range\",\" \",\"mph above maximum\"))","v":"mph above maximum"}]
[null,"85th Percentile:",null,null,null,null,{"$f":"IF(ISBLANK(AC34),\" \",IF(AND(AC34<=AB22,AC34>=K22),\"Within Range\",\"Outside of Range\"))","v":"Outside of Range"},null,null,null,null,null,null,null,{"$f":"IFERROR(IF(G44=\"Outside of Range\",AC34-AB22,\" \"),\"\")","v":""},null,{"$f":"IF(ISBLANK(AC34),\" \",IF(G44=\"Within Range\",\" \",\"mph above maximum\"))","v":"mph above maximum"}]
[]
[null,"Step 4. Assess Factors to Narrow Target Speed Range"]
[null,"Guidance: Using information collected during the planning and needs assessment stage of the project, or new information, work with a multi-disciplinary team to assess the seven target speed factors in the table below to determine if the target speed should be at the low or high end of the target and design speed range in PDDG Table 3.6. Provide details in the Documentation column that led to the selection of lower or higher end.",null,null,null,null,null,null,null,null,null,null,null,null,null,null,null,null,null,null,null,null,null,null,null,null,null,null,null,null,null,null,null,null,null,null,null,null,null,"(MassDOT Speed Management Webpage)"]
[null,null,null,null,null,null,null,null,null,null,null,null,null,null,null,null,null,null,null,null,null,null,null,null,null,null,null,null,null,null,null,null,null,null,"(multi-discipline team may include District, Municipality, HQ, etc.)"]
[]
[]
[]
[null,"Factor",null,null,null,"Considerations for Selecting Target Speed at Low End of Range",null,null,null,null,null,null,"Check if Yes",null,"Considerations for Selecting Target Speed at High End of Range",null,null,null,null,null,null,"Check if Yes",null,"Documentation",null,null,null,null,null,null,null,null,null,null,"(Documentation section can include any additional information relevant to the Factors)"]
[null,null,null,null,null,null,null,null,null,null,null,null,null,null,null,null,null,null,null,null,null,null,null,null,null,null,null,null,null,null,null,null,null,false]
[null,null,null,null,null,null,null,null,null,null,null,null,null,null,null,null,null,null,null,null,null,null,null,null,null,null,null,null,null,null,null,null,null,false,{"$f":"IF(AH54=TRUE,1,\"0\")","v":"0"},{"$f":"IF(AH54=FALSE,1,\"0\")","v":1}]
[null,"Safety Risk",null,null,null,"Project area is among top risk sites in MassDOT’s Systemic/Risk-based screening results in the RPA/MPO within the “Speeding” Emphasis Area.",null,null,null,null,null,null,null,null,"Project area is not among top risk sites MassDOT’s Systemic/Risk-based screening results.",null,null,null,null,null,null,null,null,null,null,null,null,null,null,null,null,null,null,false,{"$f":"IF(AH55=TRUE,1,\"0\")","v":"0"},{"$f":"IF(AH55=FALSE,1,\"0\")","v":1},null,null,null,"(Network Screening Risk Based Tool)"]
[null,null,null,null,null,null,null,null,null,null,null,null,null,null,null,null,null,null,null,null,null,null,null,null,null,null,null,null,null,null,null,null,null,false,"0",1]
[null,null,null,null,null,null,null,null,null,null,null,null,null,null,null,null,null,null,null,null,null,null,null,null,null,null,null,null,null,null,null,null,null,false,"0",1]
[null,null,null,null,null,null,null,null,null,null,null,null,null,null,null,null,null,null,null,null,null,null,null,null,null,null,null,null,null,null,null,null,null,false,"0",1]
[null,null,null,null,null,null,null,null,null,null,null,null,null,null,null,null,null,null,null,null,null,null,null,null,null,null,null,null,null,null,null,null,null,false,"0",1]
[null,null,null,null,null,null,null,null,null,null,null,null,null,null,null,null,null,null,null,null,null,null,null,null,null,null,null,null,null,null,null,null,null,false,"0",1]
[null,"Crash History",null,null,null,"3-year crash history includes any of the following:\n- Fatal or serious injury crashes\n- Crashes identified by having a Manner of Collision typically associated with driving in excess of what is considered reasonable and proper, such as angle, single vehicle, or rear-end; First Harmful Events that are collisions with fixed objects\n- Collisions with people walking or biking",null,null,null,null,null,null,null,null,"3-year crash history does not include crashes with the characteristics listed to the left."]
[null,null,null,null,null,null,null,null,null,null,null,null,null,null,null,null,null,null,null,null,null,null,null,null,null,null,null,null,null,null,null,null,null,null,null,null,null,null,null,"(MassDOT IMPACT)"]
[]
[]
[]
[]
[]
[]
[]
[]
[]
[]
[]
[]
[]
[]
[]
[null,"Crossing Density / Access Points",null,null,null,"Project area has moderate to high density of crossing points OR needs higher crossing density based on the project need and context. ",null,null,null,null,null,null,null,null,"Project area has low density of crossing points, or a low/moderate combination of these two elements."]
[null,null,null,null,null,null,null,null,null,null,null,null,null,null,null,null,null,null,null,null,null,null,null,null,null,null,null,null,null,null,null,null,null,null,null,null,null,null,null,"(Refer to NACTO Conflict Density guidance for details. Use only the crossing density metric.)"]
[]
[]
[]
[]
[null,"Activity Level",null,null,null,"Project area has any of the following characteristics:\n- In downtown/CBD, retail corridor, moderate-to-high density residential or commercial street, mixed use corridor\n- Near an active public or recreational space (e.g., school, park, library)\n- Moderate-to-high curbside demand\n- Medium-to-high potential for everyday biking trips\n- Medium-to-high potential for walking trips\n- Near transit stops",null,null,null,null,null,null,null,null,"Project area has all of the following characteristics:\n- In a low-density area (e.g. rural, industrial, suburban residential)\n- Low curbside demand\n- Low walking or biking demand\n- No transit stops",null,null,null,null,null,null,null,null,null,null,null,null,null,null,null,null,null,null,null,null,null,{"$f":"IF(AJ84=FALSE,0,1)","v":0}]
[null,null,null,null,null,null,null,null,null,null,null,null,null,null,null,null,null,null,null,null,null,null,null,null,null,null,null,null,null,null,null,null,null,null,null,null,null,null,null,"(Potential for everyday biking trips)"]
[null,null,null,null,null,null,null,null,null,null,null,null,null,null,null,null,null,null,null,null,null,null,null,null,null,null,null,null,null,null,null,null,null,null,null,null,null,null,null,"(Potential for walking trips)"]
[]
[]
[]
[]
[]
[]
[]
[]
[]
[]
[]
[]
[]
[null,"Community Input",null,null,null,"Community members have expressed concerns about speed, safety, comfort, or the appropriateness of the facility for users of all ages and abilities. Input may have been received from various forums including public meetings, Road Safety Audits, District Traffic, and activities during a project’s planning / needs assessment phase.",null,null,null,null,null,null,null,null,"Community input does not include concerns that would be influenced by the motor vehicle operating speed of the facility.",null,null,null,null,null,null,null,null,null,null,null,null,null,null,null,null,null,null,null,null,null,{"$f":"IF(AJ100=FALSE,0,1)","v":0}]
[]
[]
[]
[]
[]
[]
[]
[]
[]
[]
[]
[]
[null,"Existing Motor Vehicle Operating Speed",null,null,null,"Existing operating speeds are within or below the target and design speed range (see Step 3 above) ",null,null,null,null,null,null,null,null,"Existing operating speeds are higher than the target and design speed range (see Step 3 above)"]
[]
[]
[]
[null,"Existing or Planned Bicycle Facilities\n(if applicable)",null,null,null,"Existing or proposed bicycle facilities are not separated (e.g., bike lane with no buffer), OR\nNo existing or proposed dedicated bicycle facilities (e.g. people biking operate in mixed traffic).",null,null,null,null,null,null,null,null,"Existing or proposed bicycle facilities are separated (e.g., SBL or shared use path)."]
[]
[]
[]
[]
[]
[]
[]
[]
[null,"Tally of consideration checks:",null,null,null,null,null,null,null,null,null,null,{"$f":"SUM(AI54:AI60)","v":0},null,"for low end of range",null,null,null,null,null,null,{"$f":"SUM(AJ54:AJ60)","v":7},null,"for high end of range"]
[]
[null,"Guidance: Narrow the target speed range to a span of 5 mph to determine the ideal operating speeds on the roadway.\n- \"Tally of consideration checks\" is a sum of the above option buttons and should help inform the designer if the target speed should be at the lower or higher end of the range provided in Step 2. \n- However, the designer should assess all of the factors to determine what operating speed would be desirable based on safety, activity, and multimodal needs."]
[]
[]
[]
[]
[]
[]
[null,"Narrowed Target and Design Speed Range:"]
[]
[null,"Lower Target Speed Range:",null,null,null,null,null,null,null,null,null,{"$f":"K22","v":""},null,"MPH",null,null,null,null,"Higher Target Speed Range:",null,null,null,null,null,null,null,null,null,{"$f":"AB22","v":""},null,"MPH",null,null,null,"(Step 5 will be used to determine if speed management countermeasures may be able to reduce the existing operating speeds to fall within the range provided here.)"]
[null,"Narrowed Target Speed Range:",null,null,null,null,null,null,null,null,{"$f":"IF(AND(AH8=FALSE,L138=\"\",AH11=FALSE),\"*\",\"\")","v":"*"},null,null,"MPH",null,null,null,null,"Narrowed Target Speed Range:",null,null,null,null,null,null,null,null,{"$f":"IF(AND(AH8=FALSE,AC138=\"\",AH11=FALSE),\"*\",\"\")","v":"*"},null,null,"MPH"]
[]
[{"$f":"IF(AND(AH8=FALSE,B140=AI140,NOT(H11=\"Freeway\")),\"*\",\"\")","v":"*"},"Describe the reason for the selection of the narrowed target speed range and if any factors in Step 4 above that were determined to be of significant importance to the project.",null,null,null,null,null,null,null,null,null,null,null,null,null,null,null,null,null,null,null,null,null,null,null,null,null,null,null,null,null,null,null,null,"Describe the reason for the selection of the narrowed target speed range and if any factors in Step 4 above that were determined to be of significant importance to the project."]
[]
[]
[]
[]
[null,"Step 5. Identify Speed Management Measures and Finalize Target Speed",null,null,null,null,null,null,null,null,null,null,null,null,null,null,null,null,null,null,null,null,null,null,null,null,null,null,null,null,null,null,null,null,"(If speed management is needed to achieve the target speed, complete this step)"]
[null,"Guidance: Consider the following potential reductions, generalized from a FHWA summary of measured speed reductions:\n- Greater than 10 mph of operating speed reduction can be achieved with roundabouts or a combination of multiple countermeasures.\n- 5-10 mph of speed reduction can be achieved with vertical deflection countermeasures.\n- Less than 5 mph of speed reduction can be achieved with horizontal countermeasures.\n\nAchieving a target speed of 15-20 mph generally requires frequent vertical deflection (e.g., speed humps at 150-250 ft spacing) OR a mix of vertical and horizontal deflection (e.g., raised crosswalks, chicanes, medians in combination).\n\n",null,null,null,null,null,null,null,null,null,null,null,null,null,null,null,null,null,null,null,null,null,null,null,null,null,null,null,null,null,null,null,null,"(Consider what elements are included in the project scope or should be added.)"]
[null,null,null,null,null,null,null,null,null,null,null,null,null,null,null,null,null,null,null,null,null,null,null,null,null,null,null,null,null,null,null,null,null,null,"(See PDDG Table 3-8 for more information.)"]
[null,null,null,null,null,null,null,null,null,null,null,null,null,null,null,null,null,null,null,null,null,null,null,null,null,null,null,null,null,null,null,null,null,null,"(FHWA - Engineering Speed Management Countermeasures)"]
[]
[]
[]
[]
[]
[]
[]
[null,"Check all that apply under \"identified measure\" and fill in a brief description of the location."]
[null,"Type of Roadway Countermeasures",null,null,null,null,null,"Roadway Countermeasures",null,null,null,null,null,null,null,"Identified Measure",null,null,"Description of Location",null,null,null,null,null,null,null,null,null,null,null,null,null,null,null,"MassDOT does not have enough data to provide projected speed reductions for these countermeasures. The designer should use the FHWA Engineering Speed Management Countermeasures website above, and engineering judgement to help assess expected speed reductions."]
[]
[null,"Vertical Deflection Countermeasures",null,null,null,null,null,"Speed Humps",null,null,null,null,null,null,null,false,null,null,null,null,null,null,null,null,null,null,null,null,null,null,null,null,null,{"$f":"P159","v":false}]
[null,null,null,null,null,null,null,"Raised Crosswalks",null,null,null,null,null,null,null,false,null,null,null,null,null,null,null,null,null,null,null,null,null,null,null,null,null,{"$f":"P160","v":false}]
[null,null,null,null,null,null,null,"Raised Intersections",null,null,null,null,null,null,null,false,null,null,null,null,null,null,null,null,null,null,null,null,null,null,null,null,null,false]
[null,"Horizontal Countermeasures",null,null,null,null,null,"Curbside Parking",null,null,null,null,null,null,null,false,null,null,null,null,null,null,null,null,null,null,null,null,null,null,null,null,null,false]
[null,null,null,null,null,null,null,"Chicanes and Lane Offsets",null,null,null,null,null,null,null,false,null,null,null,null,null,null,null,null,null,null,null,null,null,null,null,null,null,false]
[null,null,null,null,null,null,null,"Curb Extensions",null,null,null,null,null,null,null,false,null,null,null,null,null,null,null,null,null,null,null,null,null,null,null,null,null,false]
[null,null,null,null,null,null,null,"Medians & Pedestrian Refuge Islands",null,null,null,null,null,null,null,false,null,null,null,null,null,null,null,null,null,null,null,null,null,null,null,null,null,false,null,null,null,null,{"$f":"AK165","v":0}]
[]
[null,null,null,null,null,null,null,"Spot Narrowing of Pavement",null,null,null,null,null,null,null,false,null,null,null,null,null,null,null,null,null,null,null,null,null,null,null,null,null,false]
[null,null,null,null,null,null,null,"Roundabout",null,null,null,null,null,null,null,false,null,null,null,null,null,null,null,null,null,null,null,null,null,null,null,null,null,false]
[null,null,null,null,null,null,null,"Mini Roundabouts or Neighborhood Traffic Circles",null,null,null,null,null,null,null,false,null,null,null,null,null,null,null,null,null,null,null,null,null,null,null,null,null,false]
[]
[]
[null,null,null,null,null,null,null,"Midblock Traffic Circles",null,null,null,null,null,null,null,false,null,null,null,null,null,null,null,null,null,null,null,null,null,null,null,null,null,false]
[null,"Physical Narrowing Countermeasures",null,null,null,null,null,"Travel Lane Width",null,null,null,null,null,null,null,false,null,null,null,null,null,null,null,null,null,null,null,null,null,null,null,null,null,false]
[null,null,null,null,null,null,null,"Road Diets or Lane Removal",null,null,null,null,null,null,null,false,null,null,null,null,null,null,null,null,null,null,null,null,null,null,null,null,null,false]
[]
[null,"Measures to Narrow the Apparent Width",null,null,null,null,null,"Street Furniture",null,null,null,null,null,null,null,false,null,null,null,null,null,null,null,null,null,null,null,null,null,null,null,null,null,false]
[null,null,null,null,null,null,null,"Street Lighting",null,null,null,null,null,null,null,false,null,null,null,null,null,null,null,null,null,null,null,null,null,null,null,null,null,{"$f":"P177","v":false}]
[null,null,null,null,null,null,null,"Street Trees",null,null,null,null,null,null,null,false,null,null,null,null,null,null,null,null,null,null,null,null,null,null,null,null,null,false]
[null,null,null,null,null,null,null,"Raised Curbs or Curbless Streets",null,null,null,null,null,null,null,false,null,null,null,null,null,null,null,null,null,null,null,null,null,null,null,null,null,false]
[]
[null,null,null,null,null,null,null,"Gateways",null,null,null,null,null,null,null,false,null,null,null,null,null,null,null,null,null,null,null,null,null,null,null,null,null,false]
[null,null,null,null,null,null,null,"Marking Measures: Textured Pavement",null,null,null,null,null,null,null,false,null,null,null,null,null,null,null,null,null,null,null,null,null,null,null,null,null,false]
[]
[null,"Driver Information",null,null,null,null,null,"Dynamic Speed Feedback Signs",null,null,null,null,null,null,null,false,null,null,null,null,null,null,null,null,null,null,null,null,null,null,null,null,null,false]
[]
[]
[null,"Other",null,null,null,null,null,null,null,null,null,null,null,null,null,false,null,null,null,null,null,null,null,null,null,null,null,null,null,null,null,null,null,false]
[]
[null,"Target speed range and existing operating speeds from pervious steps for reference:"]
[]
[null,"50th Percentile:",null,null,null,null,{"$f":"IF(AND(AH6=FALSE,L191=\"\",Y171=FALSE),\"*\",\"\")","v":""},null,null,null,null,{"$f":"Q34","v":0},null,"MPH",null,null,null,null,"85th Percentile:",null,null,null,null,{"$f":"IF(AND(AH6=FALSE,AC191=\"\",AD171=FALSE),\"*\",\"\")","v":""},null,null,null,null,{"$f":"AC34","v":0},null,"MPH"]
[null,"Narrowed Target Speed Range:",null,null,null,null,null,null,null,null,null,{"$f":"L138","v":0},null,"MPH",null,null,null,null,"Narrowed Target Speed Range:",null,null,null,null,null,null,null,null,null,{"$f":"AC138","v":0},null,"MPH"]
[]
[null,"Guidance: Select a target speed from within the narrowed range if the designer determines that the speed management countermeasures may result in new operating speeds within the range. If not feasible, select the lowest target speed that may be achievable with this project."]
[]
[]
[]
[null,"Selected Target Speed:",null,null,null,null,null,null,{"$f":"IF(AND(AH8=FALSE,J198=\"\",AH11=FALSE),\"*\",\"\")","v":"*"},null,null,"MPH",null,null,null,null,null,null,null,null,null,null,null,null,null,null,null,null,null,null,null,null,null,null,"Target Speed is not a controlling criterion, but Design Speed is a controlling criterion."]
[]
[{"$f":"IF(AND(AH8=FALSE,AH11=FALSE, B200=AI200), \"*\",\"\")","v":"*"},"Justify the selected target speed. The selected target speed may fall outside the narrowed target speed range based on the countermeasures selected in Step 5 - use this space to elaborate on that decision-making process.",null,null,null,null,null,null,null,null,null,null,null,null,null,null,null,null,null,null,null,null,null,null,null,null,null,null,null,null,null,null,null,null,"Justify the selected target speed. The selected target speed may fall outside the narrowed target speed range based on the countermeasures selected in Step 5 - use this space to elaborate on that decision-making process."]
[]
[]
[]
[]
[null,"Step 6. Select Design Speed",null,null,null,null,null,null,null,"(Design speed shall not be, by default, the posted speed limit +5MPH.)",null,null,null,null,null,null,null,null,null,null,null,null,null,null,null,null,null,null,null,null,null,null,null,null,"(Consider the project scope and whether speed management measures identified in Step 5 are feasible for the project.)"]
[null,"Selected Design Speed:",null,null,null,null,null,null,{"$f":"IF(J206=\"\",\"*\",\"\")","v":"*"},null,null,"MPH",null,null,null,null,null,null,null,null,null,null,null,null,null,null,null,null,null,null,{"$f":"IF(AH221=FALSE(),\"Standard not met.\",\"\")","v":""},null,null,null,"(The designer should work with a multidisciplinary team and use engineering judgment to select the design speed. See PDDG Chapter 3, Section 3.6 Speed, for guidance.)"]
[]
[{"$f":"IF(AND(OR(AH221=FALSE, AND(AH11=FALSE, J206>J198)),B208=AI208), \"*\", \"\")","v":""},"(If the selected design speed is outside the identified design speed range in Step 1, justify why. When not met, provide (at a minimum) the following additional justification:\n- Length of section with reduced design speed compared to overall length of project\n- Measures used in transitions to adjacent sections with higher or lower design or operating speeds.\n\nAlso, if criterion is not met, summarize the decision-making process that led to the selection of the proposed Design Speed.  This should include a discussion of alternatives evaluated to ensure the project meets the intended purpose/need, while minimizing or mitigating associated impacts to the maximum extent feasible.  The evaluation may include an incremental comparison of costs, design impacts, etc. Attach additional pages as necessary.)\n\n(If the design speed is higher than the target speed identified by Step 6, justify why.)",null,null,null,null,null,null,null,null,null,null,null,null,null,null,null,null,null,null,null,null,null,null,null,null,null,null,null,null,null,null,null,null,"(If the selected design speed is outside the identified design speed range in Step 1, justify why. When not met, provide (at a minimum) the following additional justification:\n- Length of section with reduced design speed compared to overall length of project\n- Measures used in transitions to adjacent sections with higher or lower design or operating speeds.\n\nAlso, if criterion is not met, summarize the decision-making process that led to the selection of the proposed Design Speed.  This should include a discussion of alternatives evaluated to ensure the project meets the intended purpose/need, while minimizing or mitigating associated impacts to the maximum extent feasible.  The evaluation may include an incremental comparison of costs, design impacts, etc. Attach additional pages as necessary.)\n\n(If the design speed is higher than the target speed identified by Step 6, justify why.)"]
[]
[]
[]
[]
[]
[]
[]
[]
[]
[]
[]
[]
[null,null,null,null,null,null,null,null,null,null,null,null,null,null,null,null,null,null,null,null,null,null,null,null,null,null,null,null,null,null,null,null,null,{"$f":"IF(AND(NOT(ISBLANK(J206)),OR(J206<K22,J206>AB22)),FALSE,TRUE)","v":true},"(Returns \"TRUE\" if Selected Design Speed is less than the minimum or greater than the maximum.)"]
[null,"Based on the preceding responses, the Design Speed criterion"]
[null,{"$f":"IF(AH6=TRUE, \"is non-controlling criterion.\",IF(AH5=TRUE,\"\",IF(AE206=\"Standard not met.\",\"has been violated.\",\"has been satisfied.\")))","v":""},null,null,null,null,null,null,null,null,null,null,null,null,null,null,null,null,null,null,null,null,null,null,null,null,null,null,null,null,null,null,null,null,"(This line will change to display \"has been violated\", \"has been satisfied\", or \"is non-controlling criterion\" as appropriate.)"]
[null,null,null,null,null,null,null,null,null,null,null,null,null,null,null,null,null,null,null,null,null,null,null,null,null,null,null,null,null,null,null,null,{"$f":"'HIDDEN Lists'!B1","v":"Workbook updated October 21, 2024"}]

{"sheet":"PED","index":15,"n_rows":93,"n_cols":37,"rows_kept":93,"cut":false,"hidden":false,"merged":[[70,1,73,31],[70,34,73,64],[39,11,39,31],[80,1,91,31],[80,34,91,64],[42,1,45,31],[42,34,45,64],[54,6,54,8],[57,1,60,31],[57,34,60,64],[67,8,67,10],[54,10,55,31],[51,2,52,31],[30,1,32,31],[30,34,32,64],[37,6,37,8],[37,17,37,19],[37,28,37,30],[23,34,25,64],[28,13,28,19],[28,20,28,21],[28,22,28,28],[0,0,0,32],[1,3,1,5],[1,11,1,32],[2,0,2,32],[3,0,3,32],[4,0,4,32],[5,7,5,23],[19,14,19,18],[20,14,20,18],[23,1,25,31]]}
["MassDOT Design Justification Workbook"]
["Project:",null,null,{"$f":"INSTRUCTIONS!D4","v":"6XXXXX"},null,null,null,"Description:",null,null,null,{"$f":"INSTRUCTIONS!L4","v":"MUNICIPALITY- PROJECT DESCRIPTION"}]
["PEDESTRIAN FACILITIES",null,null,null,null,null,null,null,null,null,null,null,null,null,null,null,null,null,null,null,null,null,null,null,null,null,null,null,null,null,null,null,null,null,null,null,"(This Workbook sheet is intended to update automatically based on the Designer's entries.)"]
[{"$f":"IF(B78=\"is not applicable.\",\"Criterion not applicable.\",IF(B78=\"is non-controlling criterion.\",\"Criterion is non-controlling.\",IF(B78=\"has been violated.\",\"Standard not met.\",IF(B78=\"has been satisfied.\",\"Standard met.\",\"\"))))","v":""}]
[{"$f":"IF(OR(AH8=TRUE,AH9=TRUE),\"\",IF(OR(A6=\"*\",N21=\"*\", AB38=\"*\", F55=\"*\", H68=\"*\",AG6=\"*\",A24=\"*\",M29=\"*\",A31=\"*\",A43=\"*\",A58=\"*\",A71=\"*\",A81=\"*\"),\"PLEASE FILL OUT ALL FIELDS MARKED WITH *\",\"\"))","v":"PLEASE FILL OUT ALL FIELDS MARKED WITH *"},null,null,null,null,null,null,null,null,null,null,null,null,null,null,null,null,null,null,null,null,null,null,null,null,null,null,null,null,null,null,null,null,{"$f":"IF(OR(A6=\"*\",N21=\"*\", AB38=\"*\", F55=\"*\", H68=\"*\",AG6=\"*\",A24=\"*\",M29=\"*\",A31=\"*\",A43=\"*\",A58=\"*\",A71=\"*\"), TRUE, FALSE)","v":true}]
[{"$f":"IF($H$6=\"Street Road (Route X) - Segment X\",\"*\",\"\")","v":"*"},"Facility & Segment:",null,null,null,null,null,"Street Road (Route X) - Segment X",null,null,null,null,null,null,null,null,null,null,null,null,null,null,null,null,null,null,null,null,"# of Facility Set:",{"$f":"IFERROR(INDEX('HIDDEN VLookup'!$A$4:$B$33,MATCH($H$6,'HIDDEN VLookup'!$B$4:$B$33,0),1),\"\")","v":1},"of",{"$f":"30-COUNTBLANK('HIDDEN VLookup'!$B$4:$B$33)","v":1},null,{"$f":"IF(INSTRUCTIONS!AK81=1,TRUE,FALSE)","v":false}]
[null,"(Check the boxes if any of the following apply)",null,null,null,null,null,null,null,null,null,null,null,null,null,null,null,null,null,null,null,null,null,null,null,null,null,null,null,null,null,null,null,null,null,null,"(Other types of projects may also be exempt from the need to comply with this criteria - we ask that the Workbook is still completed in these cases.)"]
[null,false,"Pedestrians are not legally allowed on the facility.",null,null,null,null,null,null,null,null,null,null,null,null,null,null,null,null,null,null,null,null,null,null,null,null,null,null,null,null,null,null,{"$f":"B8","v":false}]
[null,false,"Project involves work on pavement markings only.",null,null,null,null,null,null,null,null,null,null,null,null,null,null,null,null,null,null,null,null,null,null,null,null,null,null,null,null,null,null,{"$f":"B9","v":false}]
[]
[null,null,null,null,null,null,null,null,null,null,null,null,null,null,null,null,null,null,null,null,null,null,null,null,null,null,null,null,null,null,null,null,null,{"$f":"OR(AH8=TRUE,AH9=TRUE,AH19=TRUE,AH6=TRUE)","v":false},null,null,"(If any exemptions are claimed, this flag will return \"true\".)"]
[null,"Subcriterion: Presence",null,null,null,null,null,null,null,null,null,null,null,null,null,null,null,null,null,null,null,null,null,null,null,null,null,null,null,null,null,{"$f":"IF(AND(OR(O21=\"NEITHER SIDE\",O21=\"ONE SIDE\"),OR(AH14=TRUE,AH15=TRUE,AH16=TRUE)),\"Standard not met.\",\"\")","v":""},null,null,null,null,"(\"Standard not met.\" will be returned if the Subcriterion is not satisfied.)"]
[]
[null,{"$f":"IF(OR(AI14='HIDDEN Lists'!B42, AI14='HIDDEN Lists'!B43, AI14='HIDDEN Lists'!B45), \"☑\", \"☐\")","v":"☐"},"The roadway is in an urbanized area, an urban cluster, or a rural village.",null,null,null,null,null,null,null,null,null,null,null,null,null,null,null,null,null,null,null,null,null,null,null,null,null,null,null,null,null,null,{"$f":"IF(OR(AI14='HIDDEN Lists'!B42, AI14='HIDDEN Lists'!B43, AI14='HIDDEN Lists'!B45), TRUE, FALSE)","v":false},{"$f":"IFERROR(VLOOKUP($H$6,'HIDDEN VLookup'!B4:AH33,4,FALSE),\"\")","v":0},null,"(Referenced from \"Facility Info\" tab.)"]
[null,{"$f":"IF(AH15=TRUE, \"☑\", \"☐\")","v":"☐"},"The roadway is identified as having a High Potential of Walkable Trips in the Pedestrian Plan.",null,null,null,null,null,null,null,null,null,null,null,null,null,null,null,null,null,null,null,null,null,null,null,null,null,null,null,null,null,null,{"$f":"IFERROR(VLOOKUP($H$6,'HIDDEN VLookup'!$B$4:$AH$33,20,FALSE),\"\")","v":false},{"$f":"IFERROR(VLOOKUP($H$6,'HIDDEN VLookup'!$B$4:$AH$33,6,FALSE),\"\")","v":0}," ","(Referenced from \"Facility Info\" tab.)"]
[null,false,"The project involves work on or underneath a bridge.",null,null,null,null,null,null,null,null,null,null,null,null,null,null,null,null,null,null,null,null,null,null,null,null,null,null,null,null,null,null,{"$f":"B16","v":false},{"$f":"IFERROR(VLOOKUP($H$6,'HIDDEN VLookup'!$B$4:$AH$33,5,FALSE),\"\")","v":0}]
[null,false,"If work is on a bridge: No pedestrian facilities currently exist on the bridge or the approaches.",null,null,null,null,null,null,null,null,null,null,null,null,null,null,null,null,null,null,null,null,null,null,null,null,null,null,null,null,null,null,{"$f":"B17","v":false}]
[null,{"$f":"IF(AH18=TRUE, \"☑\", \"☐\")","v":"☐"},"Project designed under the Bridge R&R Program for Non-NHS Bridges (P-92-010).",null,null,null,null,null,null,null,null,null,null,null,null,null,null,null,null,null,null,null,null,null,null,null,null,null,null,null,null,null,null,{"$f":"INSTRUCTIONS!AH73","v":false},null,null,"(Referenced from \"Instructions\" tab.)"]
[null,null,null,null,null,null,null,null,null,null,null,null,null,null,null,null,null,null,null,null,null,null,null,null,null,null,null,null,null,null,null,null,null,{"$f":"AND(AH17=TRUE(),AH14=FALSE(),AH18=TRUE(),AI16=\"NO\",OR(AI15=\"LOCAL\",AI15=\"MINOR COLLECTOR\",AI15=\"MAJOR COLLECTOR\"))","v":false},null,null,"(If the project is designed under P-92-010, the area type is not urban, the bridge does not have any existing sidewalks, and the functional class is either a local or collector, this returns \"true\", and is non NHS)"]
[null,"Pedestrian facilities exist on:",null,null,null,null,null,null,null,null,null,null,null,null,{"$f":"IFERROR(VLOOKUP($H$6,'HIDDEN VLookup'!$B$4:$AH$33,16,FALSE),\"\")","v":0},null,null,null,null,"of the facility.",null,null,null,null,null,null,null,null,null,null,null,null,null,{"$f":"IF(O20=\"NEITHER SIDE\",TRUE,FALSE)","v":false},null,null,"(Returns TRUE if \"NEITHER SIDE\" is selected.)"]
[null,"Pedestrian facilities are proposed on:",null,null,null,null,null,null,null,null,null,null,null,{"$f":"IF(AND($AH$8=FALSE,$AH$9=FALSE,O21=\"\"),\"*\",\"\")","v":"*"},null,null,null,null,null,"of the facility.",null,null,null,null,null,null,null,null,null,null,null,null,null,{"$f":"IF(O21=\"NEITHER SIDE\",TRUE,FALSE)","v":false},null,null,"(Returns TRUE if \"NEITHER SIDE\" is selected.)"]
[]
[null,"Justify the proposed number of sidewalks."]
[{"$f":"IF(O21=\"BOTH SIDES\",\"\",IF(AND(AH8=FALSE,AH9=FALSE,B24=AI24),\"*\",\"\"))","v":"*"},"(Provide qualitative analysis why the Subcriterion cannot be met. Attach additional sheets as necessary.)",null,null,null,null,null,null,null,null,null,null,null,null,null,null,null,null,null,null,null,null,null,null,null,null,null,null,null,null,null,null,null,null,"(Provide qualitative analysis why the Subcriterion cannot be met. Attach additional sheets as necessary.)"]
[]
[]
[]
[null,null,null,null,null,null,null,null,null,null,null,null,null,null,null,null,null,null,null,null,null,null,"(If multiple types, select here)"]
[null,"Type of Pedestrian Accommodation:",null,null,null,null,null,null,null,null,null,null,{"$f":"IF(AND($AH$8=FALSE,$AH$9=FALSE,N29=\"\",NOT(O21=\"NEITHER SIDE\")),\"*\",\"\")","v":"*"},null,null,null,null,null,null,null,"and",null,null,null,null,null,null,null,null,null,null,null,null,null,null,null,"(If there is a sidewalk and shared use path, list sidewalk in the left box.)"]
[]
[{"$f":"IF(O21=\"NEITHER SIDE\",\"\",IF(AND(AH8=FALSE,AH9=FALSE,B31=AI31),\"*\",\"\"))","v":"*"},"(Describe the location of the proposed pedestrian accommodation(s). If needed, provide a map in the Project Context page showing the location and type of accommodation(s).)",null,null,null,null,null,null,null,null,null,null,null,null,null,null,null,null,null,null,null,null,null,null,null,null,null,null,null,null,null,null,null,null,"(Describe the location of the proposed pedestrian accommodation(s). If needed, provide a map in the Project Context page showing the location and type of accommodation(s).)"]
[]
[]
[]
[]
[null,"Subcriterion: Width",null,null,null,null,null,null,null,null,null,null,null,null,null,null,null,null,null,null,null,null,null,null,null,null,null,null,null,null,null,{"$f":"IF(OR(AH8=TRUE,AH9=TRUE),\"\",IF(OR(ISBLANK(O21),O21=\"NEITHER SIDE\",ISBLANK(AC38)),\"\",IF(AC38>=G38,\"\",\"Standard not met.\")))","v":""},null,null,null,null,"(\"Standard not met.\" will be returned if the Subcriterion is not satisfied.)"]
[null,"(Width is exclusive of any curb width.)",null,null,null,null,null,null,null,null,null,null,null,null,null,null,null,null,null,null,null,null,null,null,null,null,null,null,null,null,null,"(If the width varies, provide a minimum.)"]
[null,"Minimum:",null,null,null,null,{"$f":"IF(ISBLANK(N29),\"\",IF(N29=\"SIDEWALK\",5,IF(OR(N29=\"SHARED USE PATH\",N29=\"SIDE PATH\"),10,\"\")))","v":""},null,null,"FT",null,null,null,"Existing:",null,null,null,{"$f":"IFERROR(VLOOKUP($H$6,'HIDDEN VLookup'!$B$4:$AH$33,18,FALSE),\"\")","v":0},null,null,"FT",null,null,null,"Proposed:",null,null,{"$f":"IF(O21=\"NEITHER SIDE\",\"\",IF(AND(AH8=FALSE,AH9=FALSE,AC38=\"\"),\"*\",\"\"))","v":"*"},null,null,null,"FT"]
[null,null,null,null,null,null,null,null,null,null,null,null,null,null,null,null,null,null,null,null,null,null,null,null,null,null,null,null,null,null,null,{"$f":"IF(AND(O21=\"NEITHER SIDE\",AC38>0),\"The proposed width should be 0.0 FT if NEITHER SIDE is selected.\",\"\")","v":""}]
[null,"Source used for minimum:",null,null,null,null,null,null,null,null,null,"MassDOT Controlling Criteria"]
[]
[null,"Justify the proposed width."]
[{"$f":"IF(O21=\"NEITHER SIDE\",\"\",IF(AND(AH8=FALSE,AH9=FALSE,B43=AI43),\"*\",\"\"))","v":"*"},"(Provide qualitative analysis related to why the proposed width is the most appropriate for this project, including when meeting or exceeding the minimum. Example when exceeding: demand, pedestrian destinations nearby, etc. Note that design guides themselves should not be used as justification. Attach additional sheets as necessary.)",null,null,null,null,null,null,null,null,null,null,null,null,null,null,null,null,null,null,null,null,null,null,null,null,null,null,null,null,null,null,null,null,"(Provide qualitative analysis related to why the proposed width is the most appropriate for this project, including when meeting or exceeding the minimum. Example when exceeding: demand, pedestrian destinations nearby, etc. Note that design guides themselves should not be used as justification. Attach additional sheets as necessary.)"]
[]
[]
[]
[]
[]
[null,"Subcriterion: Crosswalks at Signalized Intersections",null,null,null,null,null,null,null,null,null,null,null,null,null,null,null,null,null,null,null,null,null,null,null,null,null,null,null,null,null,{"$f":"IF(OR(AH8=TRUE,AH9=TRUE,AH51=TRUE,AH52=TRUE),\"\",IF(G55=\"ARE NOT\",\"Standard not met.\",\"\"))","v":""},null,null,null,null,"(\"Standard not met.\" will be returned if the Subcriterion is not satisfied.)"]
[]
[null,false,"If there are no signalized intersections, check this box and do not fill out this Subcriterion.",null,null,null,null,null,null,null,null,null,null,null,null,null,null,null,null,null,null,null,null,null,null,null,null,null,null,null,null,null,null,{"$f":"B51","v":false}]
[null,false,"If there are no existing or proposed sidewalks at the signalized intersection, check this box and do not fill out this Subcriterion.",null,null,null,null,null,null,null,null,null,null,null,null,null,null,null,null,null,null,null,null,null,null,null,null,null,null,null,null,null,null,{"$f":"B52","v":false}]
[]
[]
[null,"Crosswalks",null,null,null,{"$f":"IF(O21=\"NEITHER SIDE\",\"\",IF(AND(AH52=FALSE,AH51=FALSE,AH8=FALSE,AH9=FALSE,G55=\"\"),\"*\",\"\"))","v":"*"},null,null,null,null,"provided across every leg of all signalized intersections on the facility where sidewalks are present and/or proposed."]
[]
[null,"Justify the proposed value."]
[{"$f":"IF(O21=\"NEITHER SIDE\", \"\",IF(AND(AH52=FALSE,AH51=FALSE,AH8=FALSE,AH9=FALSE,B58=AI58),IF(G55=\"ARE\",\"\",\"*\"),\"\"))","v":"*"},"(Provide qualitative analysis why the Subcriterion cannot be met. Attach additional sheets as necessary.)",null,null,null,null,null,null,null,null,null,null,null,null,null,null,null,null,null,null,null,null,null,null,null,null,null,null,null,null,null,null,null,null,"(Provide qualitative analysis why the Subcriterion cannot be met. Attach additional sheets as necessary.)"]
[]
[]
[]
[]
[]
[null,"Subcriterion: Existing Crosswalk Removal",null,null,null,null,null,null,null,null,null,null,null,null,null,null,null,null,null,null,null,null,null,null,null,null,null,null,null,null,null,{"$f":"IF(OR(AH8=TRUE,AH9=TRUE,AH66=TRUE),\"\",IF(I68=\"HAVE\",\"Standard not met.\",\"\"))","v":""},null,null,null,null,"(\"Standard not met.\" will be returned if the Subcriterion is not satisfied.)"]
[null,"Note: Use engineering judgement to determine whether a crosswalk is either relocated or removed."]
[null,false,"If there are no existing marked crosswalks, check this box and do not fill out this Subcriterion.",null,null,null,null,null,null,null,null,null,null,null,null,null,null,null,null,null,null,null,null,null,null,null,null,null,null,null,null,null,null,{"$f":"B66","v":false}]
[]
[null,"Existing crosswalks",null,null,null,null,null,{"$f":"IF(O21=\"NEITHER SIDE\",\"\",IF(AND(AH66=FALSE,AH8=FALSE,AH9=FALSE,I68=\"\"),\"*\",\"\"))","v":"*"},null,null,null,null,"been removed from this facility."]
[]
[null,"Justify the proposed value."]
[{"$f":"IF(O21=\"NEITHER SIDE\",\"\",IF(AND(AH66=FALSE,AH8=FALSE,AH9=FALSE,B71=AI71),IF(I68=\"HAVE NOT\",\"\",\"*\"),\"\"))","v":"*"},"(Provide qualitative analysis why the Subcriterion cannot be met. Attach additional sheets as necessary.)",null,null,null,null,null,null,null,null,null,null,null,null,null,null,null,null,null,null,null,null,null,null,null,null,null,null,null,null,null,null,null,null,"(Provide qualitative analysis why the Subcriterion cannot be met. Attach additional sheets as necessary.)"]
[]
[]
[]
[]
[]
[null,"Based on the preceding responses, the Pedestrian Facilities criterion"]
[null,{"$f":"IF(OR(AH8=TRUE,AH9=TRUE),\"is not applicable.\",IF(OR(AH6=TRUE,AH19=TRUE),\"is non-controlling criterion.\",IF(AH5=TRUE,\"\",IF(OR(AF64=\"Standard not met.\",AF49=\"Standard not met.\",AF12=\"Standard not met.\",AF36=\"Standard not met.\"),\"has been violated.\",\"has been satisfied.\"))))","v":""},null,null,null,null,null,null,null,null,null,null,null,null,null,null,null,null,null,null,null,null,null,null,null,null,null,null,null,null,null,null,null,null,null,null,"(This line will change to display \"has been violated\", \"has been satisfied\", or \"is non-controlling criterion\" as appropriate.)"]
[]
[null,{"$f":"IF(B78=\"has been violated.\",\"Provide additional justification for why this criterion cannot be met.\",\"Additional comments may be provided in the box below.\")","v":"Additional comments may be provided in the box below."},null,null,null,null,null,null,null,null,null,null,null,null,null,null,null,null,null,null,null,null,null,null,null,null,null,null,null,null,null,null,null,null,"(This cell changes to note whether the additional justification is a requirement or not.)"]
[{"$f":"IF(AND(B81=AI81,B78=\"has been violated.\"),\"*\",\"\")","v":""},"(If the criterion was violated, provide quantitative analysis and summarize the decision-making process that led to the selection of the proposed cross-section.  This should include a discussion of alternatives evaluated to ensure the project meets the intended purpose/need, while minimizing or mitigating associated impacts to the maximum extent feasible. This should also include a discussion of pedestrian network connectivity including crossings, especially when exceptions are sought for substandard sidewalk presence.  The evaluation may include an incremental comparison of costs for ROW acquisition, square footage of wetland and/or parkland impacts, building encroachment, construction costs, individual tree impacts, impacts to historically significant properties, etc.  Justification should also include a discussion of the safety benefits for the evaluated alternatives. Attach additional sheets as necessary.\n\nNote that preservation of on- or off-street parking areas is not considered an adequate justification, unless a parking study shows that the demand for parking is significant.)",null,null,null,null,null,null,null,null,null,null,null,null,null,null,null,null,null,null,null,null,null,null,null,null,null,null,null,null,null,null,null,null,"(If the criterion was violated, provide quantitative analysis and summarize the decision-making process that led to the selection of the proposed cross-section.  This should include a discussion of alternatives evaluated to ensure the project meets the intended purpose/need, while minimizing or mitigating associated impacts to the maximum extent feasible. This should also include a discussion of pedestrian network connectivity including crossings, especially when exceptions are sought for substandard sidewalk presence.  The evaluation may include an incremental comparison of costs for ROW acquisition, square footage of wetland and/or parkland impacts, building encroachment, construction costs, individual tree impacts, impacts to historically significant properties, etc.  Justification should also include a discussion of the safety benefits for the evaluated alternatives. Attach additional sheets as necessary.\n\nNote that preservation of on- or off-street parking areas is not considered an adequate justification, unless a parking study shows that the demand for parking is significant.)"]
[]
[]
[]
[]
[]
[]
[]
[]
[]
[]
[]
[null,null,null,null,null,null,null,null,null,null,null,null,null,null,null,null,null,null,null,null,null,null,null,null,null,null,null,null,null,null,null,null,{"$f":"'HIDDEN Lists'!$B$1","v":"Workbook updated October 21, 2024"}]

{"sheet":"BIKE","index":16,"n_rows":88,"n_cols":35,"rows_kept":88,"cut":false,"hidden":false,"merged":[[39,34,42,64],[52,1,55,31],[52,34,55,64],[62,1,86,31],[62,34,86,64],[49,11,49,31],[0,0,0,32],[1,3,1,5],[1,11,1,32],[27,1,30,31],[27,34,30,64],[5,7,5,23],[4,0,4,32],[3,0,3,32],[18,12,18,13],[17,10,17,11],[18,10,18,11],[16,10,16,11],[17,12,17,13],[16,12,16,13],[17,28,17,29],[18,29,18,30],[2,0,2,32],[24,12,24,24],[35,7,35,15],[47,6,47,8],[47,18,47,20],[14,30,14,31],[17,26,17,27],[14,28,14,29],[18,26,18,28],[16,26,16,27],[14,10,14,13],[15,10,15,18],[39,1,42,31],[34,18,35,31]]}
["MassDOT Design Justification Workbook"]
["Project:",null,null,{"$f":"INSTRUCTIONS!D4","v":"6XXXXX"},null,null,null,"Description:",null,null,null,{"$f":"INSTRUCTIONS!L4","v":"MUNICIPALITY- PROJECT DESCRIPTION"}]
["BICYCLE FACILITIES",null,null,null,null,null,null,null,null,null,null,null,null,null,null,null,null,null,null,null,null,null,null,null,null,null,null,null,null,null,null,null,null,null,"(This Workbook sheet is intended to update automatically based on the Designer's entries.)"]
[{"$f":"IF(B60=\"is not applicable.\",\"Criterion not applicable.\",IF(B60=\"is non-controlling criterion.\",\"Criterion is non-controlling.\",IF(B60=\"has been violated.\",\"Standard not met.\",IF(B60=\"has been satisfied.\",\"Standard met.\",\"\"))))","v":""}]
[{"$f":"IF(A4=\"Criterion not applicable.\",\"\",IF(OR(A6=\"*\",L25=\"*\",G36=\"*\",A28=\"*\",A40=\"*\",R48=\"*\",A53=\"*\",AG6=\"*\",A63=\"*\"),\"PLEASE FILL OUT ALL FIELDS MARKED WITH *\",\"\"))","v":"PLEASE FILL OUT ALL FIELDS MARKED WITH *"},null,null,null,null,null,null,null,null,null,null,null,null,null,null,null,null,null,null,null,null,null,null,null,null,null,null,null,null,null,null,null,null,{"$f":"IF(OR(A6=\"*\",L25=\"*\",G36=\"*\",A28=\"*\",A40=\"*\",R48=\"*\",A53=\"*\",AG6=\"*\"),TRUE,FALSE)","v":true}]
[{"$f":"IF($H$6=\"Street Road (Route X) - Segment X\",\"*\",\"\")","v":"*"},"Facility & Segment:",null,null,null,null,null,"Street Road (Route X) - Segment X",null,null,null,null,null,null,null,null,null,null,null,null,null,null,null,null,null,null,null,null,"# of Facilities: ",{"$f":"IFERROR(INDEX('HIDDEN VLookup'!$A$4:$B$33,MATCH($H$6,'HIDDEN VLookup'!$B$4:$B$33,0),1),\"\")","v":1},"of",{"$f":"30-COUNTBLANK('HIDDEN VLookup'!$B$4:$B$33)","v":1},null,{"$f":"IF(INSTRUCTIONS!AL81=1,TRUE,FALSE)","v":false},"(Other types of projects may also be exempt from the need to comply with this criteria - we ask that the Workbook is still completed in these cases.)"]
[null,"(Check the boxes if any of the following apply)"]
[null,false,"Bicyclists are not legally allowed on the facility.",null,null,null,null,null,null,null,null,null,null,null,null,null,null,null,null,null,null,null,null,null,null,null,null,null,null,null,null,null,null,{"$f":"B8","v":false}]
[null,false,"Project involves work only on sidewalks or curb ramps.",null,null,null,null,null,null,null,null,null,null,null,null,null,null,null,null,null,null,null,null,null,null,null,null,null,null,null,null,null,null,{"$f":"B9","v":false}]
[null,{"$f":"IF(AH10=TRUE, \"☑\", \"☐\")","v":"☐"},"The roadway has a functional classification of local.",null,null,null,null,null,null,null,null,null,null,null,null,null,null,null,null,null,null,null,null,null,null,null,null,null,null,null,null,null,null,{"$f":"IF(IFERROR(VLOOKUP($H$6,'HIDDEN VLookup'!$B$4:$AH$33,6,FALSE),\"\")=\"LOCAL\",TRUE,FALSE)","v":false},"(Referenced from \"Facility Info\" tab.)"]
[null,null,null,null,null,null,null,null,null,null,null,null,null,null,null,null,null,null,null,null,null,null,null,null,null,null,null,null,null,null,null,null,null,{"$f":"OR(AH8=TRUE(),AH9=TRUE(),AH10=TRUE())","v":false},"(If any exemptions are claimed, this flag will return \"true\".)"]
[]
[null,"Existing Roadway Information"]
[]
[null,"Bicycle facilities exist on:",null,null,null,null,null,null,null,null,{"$f":"IFERROR(VLOOKUP($H$6,'HIDDEN VLookup'!$B$4:$AH$33,21,FALSE),\"\")","v":0},null,null,null,"of the facility.",null,null,null,null,"Existing bike lane width:",null,null,null,null,null,null,null,null,{"$f":"IFERROR(VLOOKUP($H$6,'HIDDEN VLookup'!$B$4:$AH$33,23,FALSE),\"\")","v":0},null,"FT",null,null,{"$f":"IF(K15=\"NEITHER SIDE\",TRUE,FALSE)","v":false},"(Returns TRUE if \"NEITHER SIDE\" is selected.)"]
[null,"Existing bicycle facility type: ",null,null,null,null,null,null,null,null,{"$f":"IFERROR(VLOOKUP($H$6,'HIDDEN VLookup'!$B$4:$AH$33,22,FALSE),\"\")","v":0},null,null,null,null,null,null,null,null,null,null,null,null,null,null,null,null,null,null,null,null,null,null,{"$f":"IF(OR(K17>=40,AA19>=10000,AA17>=2,AH20=TRUE),TRUE,FALSE)","v":false},"(Based on the below values, this flag returns \"TRUE\" if a separated facility is required.)"]
[null,"Posted or statutory speed:",null,null,null,null,null,null,null,null,{"$f":"IFERROR(VLOOKUP($H$6,'HIDDEN VLookup'!$B$4:$AJ$33,9,FALSE),\"\")","v":0},null,"MPH",null,null,null,null,null,null,"Number of thru lanes:",null,null,null,null,null,null,{"$f":"IFERROR(VLOOKUP($H$6,'HIDDEN VLookup'!$B$4:$AH$33,12,FALSE),\"\")","v":0},null,"(in each direction)"]
[null,"Target Speed:",null,null,null,null,null,null,null,null,{"$f":"IFERROR(VLOOKUP($H$6,'HIDDEN VLookup'!$B$4:$AJ$33,32,FALSE),\"\")","v":0},null,"MPH",null,null,null,null,null,null,"Travel lane width:",null,null,null,null,null,null,{"$f":"IFERROR(VLOOKUP($H$6,'HIDDEN VLookup'!$B$4:$AH$33,13,FALSE),\"\")","v":0},null,"FT"]
[null,"Design Speed:",null,null,null,null,null,null,null,null,{"$f":"IFERROR(VLOOKUP($H$6,'HIDDEN VLookup'!$B$4:$AJ$33,33,FALSE),\"\")","v":0},null,"MPH",null,null,null,null,null,null,"Facility volume:",null,null,null,null,null,null,{"$f":"IFERROR(VLOOKUP($H$6,'HIDDEN VLookup'!$B$4:$AH$33,7,FALSE),\"\")","v":0},null,null,"VPD"]
[null,{"$f":"IF(AH20=TRUE, \"☑\", \"☐\")","v":"☐"},"The roadway is classified as a corridor with a High Potential for Everyday Biking in the Bike Plan.",null,null,null,null,null,null,null,null,null,null,null,null,null,null,null,null,null,null,null,null,null,null,null,null,null,null,null,null,null,null,{"$f":"IFERROR(VLOOKUP($H$6,'HIDDEN VLookup'!$B$4:$AH$33,25,FALSE),\"\")","v":false},"Potential for Everyday Biking (2022 Update)"]
[]
[]
[null,"Subcriterion: Presence",null,null,null,null,null,null,null,null,null,null,null,null,null,null,null,null,null,null,null,null,null,null,null,null,null,null,null,null,null,{"$f":"IF(AH11=TRUE,\"\",IF(OR(M25=\"NEITHER SIDE\",AND(M25=\"ONLY ONE DIRECTION OF VEHICULAR TRAVEL\",AH24=FALSE)),\"Standard not met.\",\"\"))","v":""},null,null,"(\"Standard not met.\" will be returned if the Subcriterion is not satisfied.)"]
[null,"(If this is a one way road, a one-way facility in the direction of vehicular travel satisfies the requirement for \"each\".)",null,null,null,null,null,null,null,null,null,null,null,null,null,null,null,null,null,null,null,null,null,null,null,null,null,null,null,null,null,null,null,{"$f":"IF(OR(H36=\"SEPARATED BICYCLE LANE (2-WAY)\",H36=\"SHARED USE PATH\",H36=\"SIDE PATH\"),TRUE(),FALSE())","v":false},"(This flag is set if the Type is a bi-directional facility.)"]
[null,"Bicycle facilities are proposed on:",null,null,null,null,null,null,null,null,null,{"$f":"IF(AND(AH8=FALSE,AH9=FALSE,M25=\"\"),\"*\",\"\")","v":"*"},null,null,null,null,null,null,null,null,null,null,null,null,null,"of the facility.",null,null,null,null,null,null,null,{"$f":"IF(M25=\"NEITHER SIDE\",TRUE(),FALSE())","v":false},"(Returns TRUE if \"NEITHER SIDE\" is selected.)"]
[null,null,null,null,null,null,null,null,null,null,null,null,null,{"$f":"IF(AND(AH24=TRUE(),M25=\"ONLY ONE DIRECTION OF VEHICULAR TRAVEL\"),\"For a bi-directional facility, select EACH DIRECTION OF VEHICULAR TRAVEL.\",\"\")","v":""}]
[null,"Justify the proposed bicycle facilities."]
[{"$f":"IF(AND(AH8=FALSE,AH9=FALSE,B28=AI28),IF(M25=\"EACH DIRECTION OF VEHICULAR TRAVEL\",\"\",\"*\"),\"\")","v":"*"},"(Provide qualitative analysis why the Subcriterion cannot be met. Attach additional sheets as necessary.)",null,null,null,null,null,null,null,null,null,null,null,null,null,null,null,null,null,null,null,null,null,null,null,null,null,null,null,null,null,null,null,null,"(Provide qualitative analysis why the Subcriterion cannot be met. Attach additional sheets as necessary.)"]
[]
[]
[]
[]
[]
[null,"Subcriterion: Type",null,null,null,null,null,null,null,null,null,null,null,null,null,null,null,null,null,null,null,null,null,null,null,null,null,null,null,null,null,{"$f":"IF(ISBLANK(H36),\"\",IF(AH11=TRUE,\"\",IF(H36=\"SHARROW\",\"Standard not met.\",IF(AND(AH16=TRUE,AH36=FALSE),\"Standard not met.\",\"\"))))","v":""},null,null,"(\"Standard not met.\" will be returned if the Subcriterion is not satisfied.)"]
[null,null,null,null,null,null,null,null,null,null,null,null,null,null,null,null,null,null,"(Provide the least accommodating bicycle facility proposed on this project.)",null,null,null,null,null,null,null,null,null,null,null,null,null,null,null,"(Bike facilities near project limits that are connecting proposed and existing conditions do not need to be justified.)"]
[null,"Bicycle facility:",null,null,null,null,{"$f":"IF(M25=\"NEITHER SIDE\",\"\",IF(AND(AH8=FALSE,AH9=FALSE,H36=\"\"),\"*\",\"\"))","v":"*"},null,null,null,null,null,null,null,null,null,null,null,null,null,null,null,null,null,null,null,null,null,null,null,null,null,null,{"$f":"IF(OR(H36=\"SEPARATED BIKE LANE (1-WAY)\",H36=\"SEPARATED BIKE LANE (2-WAY)\",H36=\"SHARED USE PATH\",H36=\"SIDE PATH\",H36=\"BUFFERED BIKE LANE\"),TRUE(),FALSE())","v":false},"(This flag is set if the Type is considered to be a separated facility.)"]
[null,false,"Multiple bicycle facility types are present on this project.",null,null,null,null,null,null,null,null,null,null,null,null,null,null,null,null,null,null,null,null,null,null,null,null,null,null,null,null,null,null,{"$f":"B37","v":false}]
[]
[null,{"$f":"IF(AH37=FALSE,\"Justify the proposed type of bicycle facility.\", \"Justify the proposed type of bicycle facility and describe the location of the multiple facility types.\")","v":"Justify the proposed type of bicycle facility."}]
[{"$f":"IF(M25=\"NEITHER SIDE\",\"\",IF(AND(AH8=FALSE,AH9=FALSE,B40=AI40),\"*\",\"\"))","v":"*"},"(Provide qualitative analysis related to why the proposed type is the most appropriate for this project, including when meeting or exceeding the requirements. Example narrative: \"A shared use path was selected over separated bike lanes because...\". If needed, proved a map in the Project Context page showing the location and type of accommodation(s). Attach additional sheets as necessary.)",null,null,null,null,null,null,null,null,null,null,null,null,null,null,null,null,null,null,null,null,null,null,null,null,null,null,null,null,null,null,null,null,"(Provide qualitative analysis related to why the proposed type is the most appropriate for this project, including when meeting or exceeding the requirements. Example narrative: \"A shared use path was selected over separated bike lanes because...\". If needed, proved a map in the Project Context page showing the location and type of accommodation(s). Attach additional sheets as necessary.)"]
[]
[]
[]
[]
[]
[null,"Subcriterion: Width",null,null,null,null,null,null,null,null,null,null,"  ",null,"(If the width varies, provide minimum width.)",null,null,null,null,null,null,null,null,null,null,null,null,null,null,null,null,{"$f":"IF(ISBLANK(S48),\"\",IF(AH11=TRUE,\"\",IF(S48>=G48,\"\",\"Standard not met.\")))","v":""},null,null,"(\"Standard not met.\" will be returned if the Subcriterion is not satisfied.)"]
[null,null,null,null,null,null,null,null,null,null,null,null,null,null,"(Width excludes any buffer areas and should be effective width.)"]
[null,"Minimum:",null,null,null,null,{"$f":"IF(OR(H36=\"SHOULDER BIKE LANE\",H36=\"BUFFERED BIKE LANE\",H36=\"SEPARATED BIKE LANE (1-WAY)\"),5,IF(OR(H36=\"SHARED USE PATH\",H36=\"SIDE PATH\"),10,IF(H36=\"SEPARATED BIKE LANE (2-WAY)\",8,IF(OR(M25=\"NEITHER SIDE\",M25=\"\"),\"\",\"?\"))))","v":""},null,null,"FT",null,null,null,null,"Proposed:",null,null,{"$f":"IF(M25=\"NEITHER SIDE\",\"\",IF(AND(AH8=FALSE,AH9=FALSE,S48=\"\"),\"*\",\"\"))","v":"*"},null,null,null,"FT",null,null,null,null,null,null,null,null,null,null,null,null,"(The minimum width auto populates based on the Type of Bicycle Accommodation selected above.)"]
[]
[null,"Source used for minimum:",null,null,null,null,null,null,null,null,null,"MassDOT Controlling Criteria"]
[]
[null,"Justify the proposed width."]
[{"$f":"IF(M25=\"NEITHER SIDE\",\"\",IF(AND(AH8=FALSE,AH9=FALSE,B53=AI53),\"*\",\"\"))","v":"*"},"(Provide qualitative analysis related to why the proposed width is the most appropriate for this project, including when meeting or exceeding the minimum. Example when exceeding: demand, bicycle destinations nearby, etc. Note that design guides themselves should not be used as justification. Attach additional sheets as necessary.)",null,null,null,null,null,null,null,null,null,null,null,null,null,null,null,null,null,null,null,null,null,null,null,null,null,null,null,null,null,null,null,null,"(Provide qualitative analysis related to why the proposed width is the most appropriate for this project, including when meeting or exceeding the minimum. Example when exceeding: demand, bicycle destinations nearby, etc. Note that design guides themselves should not be used as justification. Attach additional sheets as necessary.)"]
[]
[]
[]
[]
[]
[null,"Based on the preceding responses, the Bicycle Facilities criterion"]
[null,{"$f":"IF(OR(AH8=TRUE,AH9=TRUE,AH10=TRUE),\"is not applicable.\",IF(AH6=TRUE,\"is non-controlling criterion.\",IF(AH5=TRUE,\"\",IF(OR(AF34=\"Standard not met.\",AF23=\"Standard not met.\",AF46=\"Standard not met.\"),\"has been violated.\",\"has been satisfied.\"))))","v":""},null,null,null,null,null,null,null,null,null,null,null,null,null,null,null,null,null,null,null,null,null,null,null,null,null,null,null,null,null,null,null,null,"(This line will change to display \"has been violated\", \"has been satisfied\", or \"is non-controlling criterion\" as appropriate.)"]
[]
[null,{"$f":"IF(B60=\"has been violated.\",\"Provide additional justification for why this criterion cannot be met.\",\"Additional comments may be provided in the box below.\")","v":"Additional comments may be provided in the box below."},null,null,null,null,null,null,null,null,null,null,null,null,null,null,null,null,null,null,null,null,null,null,null,null,null,null,null,null,null,null,null,null,"(This cell changes to note whether the additional justification is a requirement or not.)"]
[{"$f":"IF(AND(B63=AI63,B60=\"has been violated.\"),\"*\",\"\")","v":""},"(If the criterion was violated, provide quantitative analysis and summarize the decision-making process that led to the selection of the proposed cross-section. This should include a discussion of alternatives evaluated to ensure the project meets the intended purpose/need, while minimizing or mitigating associated impacts to the maximum extent feasible.  The evaluation may include an incremental comparison of costs for ROW acquisition, square footage of wetland and/or parkland impacts, building encroachment, construction costs, individual tree impacts, impacts to historically significant properties, etc.  Justification should also include a discussion of the safety benefits for the evaluated alternatives, including a discussion of proposed bicycle accommodation measures through intersections within the project corridor. Attach additional pages as necessary.\n\nNote that preservation of on- or off-street parking areas is not considered an adequate justification, unless a parking study shows that the demand for parking is significant.)",null,null,null,null,null,null,null,null,null,null,null,null,null,null,null,null,null,null,null,null,null,null,null,null,null,null,null,null,null,null,null,null,"(If the criterion was violated, provide quantitative analysis and summarize the decision-making process that led to the selection of the proposed cross-section. This should include a discussion of alternatives evaluated to ensure the project meets the intended purpose/need, while minimizing or mitigating associated impacts to the maximum extent feasible.  The evaluation may include an incremental comparison of costs for ROW acquisition, square footage of wetland and/or parkland impacts, building encroachment, construction costs, individual tree impacts, impacts to historically significant properties, etc.  Justification should also include a discussion of the safety benefits for the evaluated alternatives, including a discussion of proposed bicycle accommodation measures through intersections within the project corridor. Attach additional pages as necessary.\n\nNote that preservation of on- or off-street parking areas is not considered an adequate justification, unless a parking study shows that the demand for parking is significant.)"]
[]
[]
[]
[]
[]
[]
[]
[]
[]
[]
[]
[]
[]
[]
[]
[]
[]
[]
[]
[]
[]
[]
[]
[]
[null,null,null,null,null,null,null,null,null,null,null,null,null,null,null,null,null,null,null,null,null,null,null,null,null,null,null,null,null,null,null,null,{"$f":"'HIDDEN Lists'!$B$1","v":"Workbook updated October 21, 2024"}]

{"sheet":"TRANSIT","index":17,"n_rows":93,"n_cols":35,"rows_kept":93,"cut":false,"hidden":false,"merged":[[2,0,2,32],[4,0,4,32],[3,0,3,32],[0,0,0,32],[1,3,1,5],[1,11,1,32],[51,10,51,11],[51,12,51,13],[13,7,13,31],[14,7,14,31],[16,7,16,12],[16,14,16,19],[26,24,26,27],[5,7,5,23],[30,1,33,31],[43,1,46,31],[30,34,33,64],[43,34,46,64],[55,1,56,31],[57,1,60,31],[57,34,60,64],[67,1,91,31],[67,34,91,64]]}
["MassDOT Design Justification Workbook"]
["Project:",null,null,{"$f":"INSTRUCTIONS!D4","v":"6XXXXX"},null,null,null,"Description:",null,null,null,{"$f":"INSTRUCTIONS!L4","v":"MUNICIPALITY- PROJECT DESCRIPTION"}]
["TRANSIT ACCOMMODATION",null,null,null,null,null,null,null,null,null,null,null,null,null,null,null,null,null,null,null,null,null,null,null,null,null,null,null,null,null,null,null,null,null,"(This Workbook sheet is intended to update automatically based on the Designer's entries.)"]
[{"$f":"IF(B65=\"is not applicable.\",\"Criterion not applicable.\",IF(B65=\"is non-controlling criterion.\",\"Criterion is non-controlling.\",IF(B65=\"has been violated.\",\"Standard not met.\",IF(B65=\"has been satisfied.\",\"Standard met.\",\"\"))))","v":""}]
[{"$f":"IF(A4=\"Criterion not applicable.\",\"\",IF(OR(A6=\"*\",G14=\"*\",G17=\"*\",A22=\"*\",X27=\"*\",A31=\"*\",A44=\"*\",A58=\"*\",J52=\"*\",A68=\"*\",AG6=\"*\"),\"PLEASE FILL OUT ALL FIELDS MARKED WITH *\",\"\"))","v":"PLEASE FILL OUT ALL FIELDS MARKED WITH *"},null,null,null,null,null,null,null,null,null,null,null,null,null,null,null,null,null,null,null,null,null,null,null,null,null,null,null,null,null,null,null,null,{"$f":"IF(OR(A6=\"*\",G14=\"*\",G17=\"*\",A22=\"*\",X27=\"*\",A31=\"*\",A44=\"*\",A58=\"*\",J52=\"*\",AG6=\"*\"),TRUE, FALSE)","v":true}]
[{"$f":"IF($H$6=\"Street Road (Route X) - Segment X\",\"*\",\"\")","v":"*"},"Facility & Segment:",null,null,null,null,null,"Street Road (Route X) - Segment X",null,null,null,null,null,null,null,null,null,null,null,null,null,null,null,null,null,null,null,null,"# of Facilities: ",{"$f":"IFERROR(INDEX('HIDDEN VLookup'!$A$4:$B$33,MATCH($H$6,'HIDDEN VLookup'!$B$4:$B$33,0),1),\"\")","v":1},"of",{"$f":"30-COUNTBLANK('HIDDEN VLookup'!$B$4:$B$33)","v":1},null,{"$f":"IF(INSTRUCTIONS!AM81=1,TRUE,FALSE)","v":false},"(Other types of projects may also be exempt from the need to comply with this criteria - we ask that the Workbook is still completed in these cases.)"]
[null,"(Check the boxes if any of the following apply)"]
[null,"Note: Consider future transit expansions proposed by regional transit authorities or MBTA before checking box.",null,null,null,null,null,null,null,null,null,null,null,null,null,null,null,null,null,null,null,null,null,null,null,null,null,null,null,null,null,null,null,{"$f":"IF(OR(AH9=TRUE,AH10=TRUE,AH12=TRUE),TRUE,FALSE)","v":false},"(Based on the following boxes, this flag will return TRUE if Transit Accommodations is not applicable.)"]
[null,{"$f":"IF(AH9=TRUE, \"☑\", \"☐\")","v":"☐"},"Project is not within the service district of any of the RTAs or of the MBTA.",null,null,null,null,null,null,null,null,null,null,null,null,null,null,null,null,null,null,null,null,null,null,null,null,null,null,null,null,null,null,{"$f":"AI9","v":false},{"$f":"IFERROR(VLOOKUP($H$6,'HIDDEN VLookup'!$B$4:$AH$33,26,FALSE),\"\")","v":false}]
[null,{"$f":"IF(AH10=TRUE, \"☑\", \"☐\")","v":"☐"},"There are no existing or proposed RTA/MBTA transit services within the project limits.",null,null,null,null,null,null,null,null,null,null,null,null,null,null,null,null,null,null,null,null,null,null,null,null,null,null,null,null,null,null,{"$f":"AI10","v":false},{"$f":"IFERROR(VLOOKUP($H$6,'HIDDEN VLookup'!$B$4:$AH$33,27,FALSE),\"\")","v":false}]
[null,{"$f":"IF(AH11=TRUE, \"☑\", \"☐\")","v":"☐"},"There are no bus stops within the project limits.",null,null,null,null,null,null,null,null,null,null,null,null,null,null,null,null,null,null,null,null,null,null,null,null,null,null,null,null,null,null,{"$f":"AI11","v":false},{"$f":"IFERROR(VLOOKUP($H$6,'HIDDEN VLookup'!$B$4:$AH$33,28,FALSE),\"\")","v":false}]
[null,false,"Pedestrians are not legally allowed on the facility.",null,null,null,null,null,null,null,null,null,null,null,null,null,null,null,null,null,null,null,null,null,null,null,null,null,null,null,null,null,null,{"$f":"B12","v":false}]
[]
[null,"Service District:",null,null,null,null,{"$f":"IF(AND(AH9=FALSE,H14=\"\"),\"*\",\"\")","v":"*"},null,null,null,null,null,null,null,null,null,null,null,null,null,null,null,null,null,null,null,null,null,null,null,null,null,null,{"$f":"IF(H14=\"\",TRUE(),FALSE())","v":true},"(Reference the latest service district map on GeoDOT. MBTA is broken out into three districts - core (A), RIDE (B), and municipalities serviced by Commuter Rail (C).)"]
[null,null,null,null,null,null,null,null,null,null,null,null,null,null,null,null,null,null,null,null,null,null,null,null,null,null,null,null,null,null,null,null,null,null,"(There are a few edge cases where there may be overlapping service districts - leave the second dropdown blank if that's not the case.)"]
[]
[null,"Route Number(s):",null,null,null,null,{"$f":"IF(OR(AH9=TRUE,AH10=TRUE),\"\",IF(AND($AH$10=FALSE,H17=\"\"),\"*\",\"\"))","v":"*"},null,null,null,null,null,null,"&",null,null,null,null,null,null,null,null,null,null,null,null,null,null,null,null,null,null,null,null,"(Example: PVTA - 42, 65. FRTA - 11)"]
[]
[]
[null,"Subcriterion: Coordination",null,null,null,null,null,null,null,null,null,null,null,null,null,null,null,null,null,null,null,null,null,null,null,null,null,null,null,null,null,{"$f":"IF(ISBLANK(H14),\"\",IF(AH8=TRUE,\"\",IF(AH22=FALSE,\"Standard not met.\",\"\")))","v":""},null,null,"(\"Standard not met.\" will be returned if the Subcriterion is not satisfied.)"]
[]
[{"$f":"IF(AND(AH8=FALSE,AH22=FALSE),\"*\",\"\")","v":"*"},false,"The Designer will send the 25 Percent Design Plans to the applicable RTA or MBTA",null,null,null,null,null,null,null,null,null,null,null,null,null,null,null,null,null,null,null,null,null,null,null,null,null,null,null,null,null,null,{"$f":"B22","v":false}]
[]
[]
[null,"Subcriterion: Crosswalks",null,null,null,null,null,null,null,null,null,null,null,null,null,null,null,null,null,null,null,null,null,null,null,null,null,null,null,null,null,{"$f":"IF(AH8=TRUE,\"\",IF(Y27=\"ARE NOT\",\"Standard not met.\",\"\"))","v":""},null,null,"(\"Standard not met.\" will be returned if the Subcriterion is not satisfied.)"]
[]
[null,"Crosswalks or other means of facilitating pedestrian access across the road",null,null,null,null,null,null,null,null,null,null,null,null,null,null,null,null,null,null,null,null,null,{"$f":"IF(OR(AH9=TRUE,AH10=TRUE,AH11=TRUE,AH12=TRUE),\"\",IF(Y27=\"\",\"*\",\"\"))","v":"*"},null,null,null,null,"provided"]
[null,"within 250 feet of all bus stops."]
[]
[null,"Justify the proposed value."]
[{"$f":"IF(OR(AH9=TRUE,AH10=TRUE,AH12=TRUE,AH11=TRUE),\"\",IF(Y27=\"ARE\",\"\",IF(B31=AI31,\"*\",\"\")))","v":"*"},"(Provide qualitative analysis why the Subcriterion cannot be met. Attach additional sheets as necessary.)",null,null,null,null,null,null,null,null,null,null,null,null,null,null,null,null,null,null,null,null,null,null,null,null,null,null,null,null,null,null,null,null,"(Provide qualitative analysis why the Subcriterion cannot be met. Attach additional sheets as necessary.)"]
[]
[]
[]
[]
[]
[null,"Subcriterion: Amenities",null,null,null,null,null,null,null,null,null,null,null,null,null,null,null,null,null,null,null,null,null,null,null,null,null,null,null,null,null,{"$f":"IF(AH8=TRUE,\"\",IF(AND(AH40=TRUE,AH41=FALSE),\"Standard not met.\",\"\"))","v":""},null,null,"(\"Standard not met.\" will be returned if the Subcriterion is not satisfied.)"]
[null,{"$f":"IF(AND(AH40=TRUE(),AH11=TRUE()),\"Verify presence of bus stops. This section indicates a bus stop is present, but Facility Info tab notes none are present.\",\"\")","v":""}]
[null,"(Check the boxes if any of the following apply:)"]
[null,false,"There is a bus stop present within the project limits with 100 or more boardings per day.",null,null,null,null,null,null,null,null,null,null,null,null,null,null,null,null,null,null,null,null,null,null,null,null,null,null,null,null,null,null,{"$f":"B40","v":false}]
[null,false,"All bus stops with 100 or more boardings per day have a bench or shelter.",null,null,null,null,null,null,null,null,null,null,null,null,null,null,null,null,null,null,null,null,null,null,null,null,null,null,null,null,null,null,{"$f":"B41","v":false}]
[]
[null,"Justify the proposed value."]
[{"$f":"IF(AND(AH40=TRUE,AH41=TRUE),\"\",IF(AH40=FALSE,\"\",IF(B44=AI44,\"*\",\"\")))","v":""},"(Provide qualitative analysis why the Subcriterion cannot be met. Attach additional sheets as necessary.)",null,null,null,null,null,null,null,null,null,null,null,null,null,null,null,null,null,null,null,null,null,null,null,null,null,null,null,null,null,null,null,null,"(Provide qualitative analysis why the Subcriterion cannot be met. Attach additional sheets as necessary.)"]
[]
[]
[]
[]
[]
[null,"Subcriterion: Transit Priority",null,null,null,null,null,null,null,null,null,null,null,null,null,null,null,null,null,null,null,null,null,null,null,null,null,null,null,null,null,{"$f":"IF(ISBLANK(K52),\"\",IF(AH8=TRUE,\"\",IF(AND(AH54=FALSE,K52<=15),\"Standard not met.\",\"\")))","v":""}]
[]
[null,"Transit route headways:",null,null,null,null,null,null,null,{"$f":"IF(AND(AH9=FALSE,AH10=FALSE,K52=\"\"),\"*\",\"\")","v":"*"},null,null,"mins",null,null,"(Consider ALL buses that use the corridor, not just a single route.)",null,null,null,null,null,null,null,null,null,null,null,null,null,null,null,null,null,null,"(e.g., Shortest time between transit vehicles arriving at a bus stop)"]
[]
[null,false,"Some form of transit priority treatment is provided on the corridor.",null,null,null,null,null,null,null,null,null,null,null,null,null,null,null,null,null,null,null,null,null,null,null,null,null,null,null,null,null,null,{"$f":"B54","v":false},"(The definition of \"transit priority treatment\" is intentionally vague as the needs of each RTA or bus route may necessitate varying treatments.)"]
[]
[null,{"$f":"IF(AND(K52<=15,AH54=FALSE),\"If transit priority is required but not provided, justify.\",\"If transit priority is required, describe the type of transit priority treatments that are provided on the corridor.\")","v":"If transit priority is required but not provided, justify."}]
[]
[{"$f":"IF(OR(K52>15,AH54=TRUE),\"\",IF(AND(AH9=FALSE,AH10=FALSE,B58=AI58),\"*\",\"\"))","v":"*"},"(Provide qualitative analysis why the Subcriterion cannot be met. Attach additional sheets as necessary.)",null,null,null,null,null,null,null,null,null,null,null,null,null,null,null,null,null,null,null,null,null,null,null,null,null,null,null,null,null,null,null,null,"(Provide qualitative analysis why the Subcriterion cannot be met. Attach additional sheets as necessary.)"]
[]
[]
[]
[]
[]
[null,"Based on the preceding responses, the Transit Accommodation criterion"]
[null,{"$f":"IF(AH8=TRUE,\"is not applicable.\",IF(AH6=TRUE,\"is non-controlling criterion.\",IF(AH5=TRUE,\"\",IF(OR(AF20=\"Standard not met.\",AF25=\"Standard not met.\",AF37=\"Standard not met.\",AF50=\"Standard not met.\"),\"has been violated.\",\"has been satisfied.\"))))","v":""},null,null,null,null,null,null,null,null,null,null,null,null,null,null,null,null,null,null,null,null,null,null,null,null,null,null,null,null,null,null,null,null,"(This line will change to display \"has been violated\", \"has been satisfied\", or \"is non-controlling criterion\" as appropriate.)"]
[]
[null,{"$f":"IF(B65=\"has been violated.\",\"Provide additional justification for why this criterion cannot be met.\",\"Additional comments may be provided in the box below.\")","v":"Additional comments may be provided in the box below."},null,null,null,null,null,null,null,null,null,null,null,null,null,null,null,null,null,null,null,null,null,null,null,null,null,null,null,null,null,null,null,null,"(This cell changes to note whether the additional justification is a requirement or not.)"]
[{"$f":"IF(AND(B68=AI68,B65=\"has been violated.\"),\"*\",\"\")","v":""},"(If the criterion was violated, provide quantitative analysis and summarize the decision-making process that led to the selection of the proposed cross-section.  This should include a discussion of alternatives evaluated to ensure the project meets the intended purpose/need, while minimizing or mitigating associated impacts to the maximum extent feasible.  The evaluation may include an incremental comparison of costs for ROW acquisition, square footage of wetland and/or parkland impacts, building encroachment, construction costs, individual tree impacts, impacts to historically significant properties, etc.  Justification should also include a discussion of the safety benefits for the evaluated alternatives. Attach additional pages as necessary.\n\nNote that preservation of on- or off-street parking areas is not considered an adequate justification, unless a parking study shows that the demand for parking is significant.)",null,null,null,null,null,null,null,null,null,null,null,null,null,null,null,null,null,null,null,null,null,null,null,null,null,null,null,null,null,null,null,null,"(If the criterion was violated, provide quantitative analysis and summarize the decision-making process that led to the selection of the proposed cross-section.  This should include a discussion of alternatives evaluated to ensure the project meets the intended purpose/need, while minimizing or mitigating associated impacts to the maximum extent feasible.  The evaluation may include an incremental comparison of costs for ROW acquisition, square footage of wetland and/or parkland impacts, building encroachment, construction costs, individual tree impacts, impacts to historically significant properties, etc.  Justification should also include a discussion of the safety benefits for the evaluated alternatives. Attach additional pages as necessary.\n\nNote that preservation of on- or off-street parking areas is not considered an adequate justification, unless a parking study shows that the demand for parking is significant.)"]
[]
[]
[]
[]
[]
[]
[]
[]
[]
[]
[]
[]
[]
[]
[]
[]
[]
[]
[]
[]
[]
[]
[]
[]
[null,null,null,null,null,null,null,null,null,null,null,null,null,null,null,null,null,null,null,null,null,null,null,null,null,null,null,null,null,null,null,null,{"$f":"'HIDDEN Lists'!$B$1","v":"Workbook updated October 21, 2024"}]

{"sheet":"RAMP","index":18,"n_rows":47,"n_cols":35,"rows_kept":47,"cut":false,"hidden":false,"merged":[[21,34,45,64],[0,0,0,32],[1,3,1,5],[1,11,1,32],[5,7,5,23],[21,1,45,31],[11,10,11,12],[13,10,13,12],[15,10,15,12],[2,0,2,32],[3,0,3,32],[4,0,4,32]]}
["MassDOT Design Justification Workbook"]
["Project:",null,null,{"$f":"INSTRUCTIONS!D4","v":"6XXXXX"},null,null,null,"Description:",null,null,null,{"$f":"INSTRUCTIONS!L4","v":"MUNICIPALITY- PROJECT DESCRIPTION"}]
["RAMP LENGTH",null,null,null,null,null,null,null,null,null,null,null,null,null,null,null,null,null,null,null,null,null,null,null,null,null,null,null,null,null,null,null,null,null,"(This Workbook sheet is intended to update automatically based on the Designer's entries.)"]
[{"$f":"IF(B19=\"is not applicable.\",\"Criterion not applicable.\",IF(B19=\"is non-controlling criterion.\",\"Criterion is non-controlling.\",IF(B19=\"has been violated.\",\"Standard not met.\",IF(B19=\"has been satisfied.\",\"Standard met.\",\"\"))))","v":""}]
[{"$f":"IF(A4=\"Criterion not applicable.\",\"\",IF(OR(A6=\"*\",J14=\"*\",J16=\"*\",AG6=\"*\",A22=\"*\"),\"PLEASE FILL OUT ALL FIELDS MARKED WITH *\",\"\"))","v":"PLEASE FILL OUT ALL FIELDS MARKED WITH *"},null,null,null,null,null,null,null,null,null,null,null,null,null,null,null,null,null,null,null,null,null,null,null,null,null,null,null,null,null,null,null,null,{"$f":"IF(OR(A6=\"*\",J14=\"*\",J16=\"*\",AG6=\"*\"),TRUE, FALSE)","v":true}]
[{"$f":"IF($H$6=\"Street Road (Route X) - Segment X\",\"*\",\"\")","v":"*"},"Facility & Segment:",null,null,null,null,null,"Street Road (Route X) - Segment X",null,null,null,null,null,null,null,null,null,null,null,null,null,null,null,null,null,null,null,null,"# of Facilities: ",{"$f":"IFERROR(INDEX('HIDDEN VLookup'!$A$4:$B$33,MATCH($H$6,'HIDDEN VLookup'!$B$4:$B$33,0),1),\"\")","v":1},"of",{"$f":"30-COUNTBLANK('HIDDEN VLookup'!$B$4:$B$33)","v":1},null,{"$f":"IF(INSTRUCTIONS!AN81=1,TRUE,FALSE)","v":false},"(Other types of projects may also be exempt from the need to comply with this criteria - we ask that the Workbook is still completed in these cases.)"]
[]
[null,"(Check the box if any of the following apply and do not fill out this sheet)",null,null,null,null,null,null,null,null,null,null,null,null,null,null,null,null,null,null,null,null,null,null,null,null,null,null,null,null,null,null,null,{"$f":"IF(OR(AH9=TRUE,AH10=TRUE),TRUE,FALSE)","v":false},"(Based on the following boxes, this flag will return TRUE if Ramp Length is not applicable.)"]
[null,false,"Project does not involve work at an interchange.",null,null,null,null,null,null,null,null,null,null,null,null,null,null,null,null,null,null,null,null,null,null,null,null,null,null,null,null,null,null,{"$f":"B9","v":false}]
[null,false,"Work on the on- or off-ramp does not constitute new construction or major reconstruction/reconfiguration.",null,null,null,null,null,null,null,null,null,null,null,null,null,null,null,null,null,null,null,null,null,null,null,null,null,null,null,null,null,null,{"$f":"B10","v":false}]
[]
[null,"Minimum Ramp Length:",null,null,null,null,null,null,null,null,1000,null,null,"FT"]
[]
[null,"Existing Ramp Length:",null,null,null,null,null,null,null,{"$f":"IF(AND(AH9=FALSE,AH10=FALSE,K14=\"\"),\"*\",\"\")","v":"*"},null,null,null,"FT"]
[]
[null,"Proposed Ramp Length:",null,null,null,null,null,null,null,{"$f":"IF(AND(AH9=FALSE,AH10=FALSE,K16=\"\"),\"*\",\"\")","v":"*"},null,null,null,"FT",null,null,null,null,null,null,null,null,null,null,null,null,null,null,null,null,null,{"$f":"IF(ISBLANK(K16),\"\",IF(AH8=TRUE,\"\",IF(K16<K12,\"Standard not met.\",\"\")))","v":""},null,null,"(\"Standard not met.\" will be returned if the Subcriterion is not satisfied.)"]
[]
[null,"Based on the preceding responses, the Ramp Length criterion"]
[null,{"$f":"IF(OR(AH9=TRUE, AH10=TRUE), \"is not applicable.\", IF(AH6=TRUE,\"is non-controlling criterion.\",IF(AH5=TRUE,\"\",IF(AF16=\"Standard not met.\",\"has been violated.\",\"has been satisfied.\"))))","v":""},null,null,null,null,null,null,null,null,null,null,null,null,null,null,null,null,null,null,null,null,null,null,null,null,null,null,null,null,null,null,null,null,"(This line will change to display \"has been violated\", \"has been satisfied\", or \"is non-controlling criterion\" as appropriate.)"]
[]
[null,{"$f":"IF(B19=\"has been violated.\",\"Provide additional justification for why this criterion cannot be met.\",\"Additional comments may be provided in the box below.\")","v":"Additional comments may be provided in the box below."},null,null,null,null,null,null,null,null,null,null,null,null,null,null,null,null,null,null,null,null,null,null,null,null,null,null,null,null,null,null,null,null,"(This cell changes to note whether the additional justification is a requirement or not.)"]
[{"$f":"IF(AND(B22=AI22,B19=\"has been violated.\"),\"*\",\"\")","v":""},"(If the criterion was violated, provide qualitative and quantitative analysis and summarize the decision-making process that led to the selection of the proposed ramp length.  This should include a discussion of alternatives evaluated to ensure the project meets the intended purpose/need, while minimizing or mitigating associated impacts to the maximum extent feasible.)",null,null,null,null,null,null,null,null,null,null,null,null,null,null,null,null,null,null,null,null,null,null,null,null,null,null,null,null,null,null,null,null,"(If the criterion was violated, provide qualitative and quantitative analysis and summarize the decision-making process that led to the selection of the proposed ramp length.  This should include a discussion of alternatives evaluated to ensure the project meets the intended purpose/need, while minimizing or mitigating associated impacts to the maximum extent feasible.)"]
[]
[]
[]
[]
[]
[]
[]
[]
[]
[]
[]
[]
[]
[]
[]
[]
[]
[]
[]
[]
[]
[]
[]
[]
[null,null,null,null,null,null,null,null,null,null,null,null,null,null,null,null,null,null,null,null,null,null,null,null,null,null,null,null,null,null,null,null,{"$f":"'HIDDEN Lists'!$B$1","v":"Workbook updated October 21, 2024"}]

{"sheet":"DESIGN LOADING","index":19,"n_rows":47,"n_cols":35,"rows_kept":47,"cut":false,"hidden":false,"merged":[[16,34,19,64],[4,0,4,32],[11,10,11,31],[25,1,45,31],[25,34,45,64],[13,10,13,13],[13,28,13,31],[10,10,10,31],[0,0,0,32],[1,3,1,5],[1,11,1,32],[5,7,5,23],[16,1,19,31],[2,0,2,32],[3,0,3,32]]}
["MassDOT Design Justification Workbook"]
["Project:",null,null,{"$f":"INSTRUCTIONS!D4","v":"6XXXXX"},null,null,null,"Description:",null,null,null,{"$f":"INSTRUCTIONS!L4","v":"MUNICIPALITY- PROJECT DESCRIPTION"}]
["DESIGN LOADING STRUCTURAL CAPACITY",null,null,null,null,null,null,null,null,null,null,null,null,null,null,null,null,null,null,null,null,null,null,null,null,null,null,null,null,null,null,null,null,null,"(This Workbook sheet is intended to update automatically based on the Designer's entries.)"]
[{"$f":"IF(B23=\"is not applicable.\",\"Criterion not applicable.\",IF(B23=\"is non-controlling criterion.\",\"Criterion is non-controlling.\",IF(B23=\"has been violated.\",\"Standard not met.\",IF(B23=\"has been satisfied.\",\"Standard met.\",\"\"))))","v":""}]
[{"$f":"IF(A4=\"Criterion not applicable.\",\"\",IF(OR(A6=\"*\",J14=\"*\",AB14=\"*\",J11=\"*\",J12=\"*\",A17=\"*\",A26=\"*\"),\"PLEASE FILL OUT ALL FIELDS MARKED WITH *\",\"\"))","v":"PLEASE FILL OUT ALL FIELDS MARKED WITH *"},null,null,null,null,null,null,null,null,null,null,null,null,null,null,null,null,null,null,null,null,null,null,null,null,null,null,null,null,null,null,null,null,{"$f":"IF(OR(A6=\"*\",J14=\"*\",AB14=\"*\",J11=\"*\",J12=\"*\",A17=\"*\"),TRUE,FALSE)","v":true}]
[{"$f":"IF($H$6=\"Street Road (Route X) - Segment X\",\"*\",\"\")","v":"*"},"Facility & Segment:",null,null,null,null,null,"Street Road (Route X) - Segment X",null,null,null,null,null,null,null,null,null,null,null,null,null,null,null,null,null,null,null,null,"# of Facilities: ",{"$f":"IFERROR(INDEX('HIDDEN VLookup'!$A$4:$B$33,MATCH($H$6,'HIDDEN VLookup'!$B$4:$B$33,0),1),\"\")","v":1},"of",{"$f":"30-COUNTBLANK('HIDDEN VLookup'!$B$4:$B$33)","v":1},null,{"$f":"IF(INSTRUCTIONS!AO81=1,TRUE,FALSE)","v":false},"(Other types of projects may also be exempt from the need to comply with this criteria - we ask that the Workbook is still completed in these cases.)"]
[]
[null,"(Check the box if the following apply and do not fill out this sheet)"]
[null,false,"This facility does not involve work on a bridge.",null,null,null,null,null,null,null,null,null,null,null,null,null,null,null,null,null,null,null,null,null,null,null,null,null,null,null,null,null,null,{"$f":"B9","v":false}]
[]
[null,"Source used:",null,null,null,null,null,null,null,{"$f":"IF(AND(K11=\"\",AH9=FALSE),\"*\",\"\")","v":"*"}]
[null,"Reference Table / Section:",null,null,null,null,null,null,null,{"$f":"IF(AND(K12=\"\",AH9=FALSE),\"*\",\"\")","v":"*"}]
[]
[null,"Minimum Loading:",null,null,null,null,null,null,null,{"$f":"IF(AND(K14=\"\",AH9=FALSE),\"*\",\"\")","v":"*"},null,null,null,null,null,null,null,null,null,null,"Proposed Loading:",null,null,null,null,null,null,{"$f":"IF(AND(AC14=\"\",AH9=FALSE),\"*\",\"\")","v":"*"},null,null,null,null,null,{"$f":"IF(AC14<K14,TRUE,FALSE)","v":false},"(Returns \"TRUE\" if proposed loading is less than the minimum loading.)"]
[null,null,null,null,null,null,null,null,null,null,null,null,null,null,null,null,null,null,null,null,null,null,null,null,null,null,null,null,null,null,null,null,null,{"$f":"IF(AC14=0,TRUE,FALSE)","v":true},"(Returns \"TRUE\" if proposed loading is 0.)"]
[null,"Justify use of this source for the minimum loading if not using a MassDOT design guide."]
[{"$f":"IF(AND(B17=AI17,AH9=FALSE,OR(AH14=TRUE,NOT(K11=\"MassDOT Bridge Manual\"))),\"*\",\"\")","v":"*"},"(If criterion cannot be met, provide qualitative analysis why. Attach additional sheets as necessary.)",null,null,null,null,null,null,null,null,null,null,null,null,null,null,null,null,null,null,null,null,null,null,null,null,null,null,null,null,null,null,null,null,"(If criterion cannot be met, provide qualitative analysis why. Attach additional sheets as necessary.)"]
[]
[]
[]
[]
[null,"Based on the preceding responses, the Design Loading criterion",null,null,null,null,null,null,null,null,null,null,null,null,null,null,null,null,null,null,null,null,null,null,null,null,null,null,null,null,null,{"$f":"IF(ISBLANK(AC14),\"\",IF(AH9=TRUE,\"\",IF(OR(AH14=TRUE,AH15=TRUE),\"Standard not met.\",\"\")))","v":""},null,null,"(\"Standard not met.\" will be returned if the Subcriterion is not satisfied.)"]
[null,{"$f":"IF(AH9=TRUE,\"is not applicable.\",IF(AH6=TRUE,\"is non-controlling criterion.\",IF(AH5=TRUE,\"\",IF(AF22=\"Standard not met.\",\"has been violated.\", \"has been satisfied.\"))))","v":""},null,null,null,null,null,null,null,null,null,null,null,null,null,null,null,null,null,null,null,null,null,null,null,null,null,null,null,null,null,null,null,null,"(This line will change to display \"has been violated\", \"has been satisfied\", or \"is non-controlling criterion\" as appropriate.)"]
[]
[null,{"$f":"IF(B23=\"has been violated.\",\"Provide additional justification for why this criterion cannot be met.\",\"Additional comments may be provided in the box below.\")","v":"Additional comments may be provided in the box below."},null,null,null,null,null,null,null,null,null,null,null,null,null,null,null,null,null,null,null,null,null,null,null,null,null,null,null,null,null,null,null,null,"(This cell changes to note whether the additional justification is a requirement or not.)"]
[{"$f":"IF(AND(B26=AI26,B23=\"has been violated.\"),\"*\",\"\")","v":""},"(Violations of this criterion should be extremely rare. When not met, provide (at a minimum) the following additional justification:\n\n- Verification of safe load-carrying capacity (load rating) for all State unrestricted legal loads or routine permit loads, and in the case of bridges and tunnels on the Interstate, all Federal legal loads.\n\nIf criterion cannot be met, provide quantitative analysis why and summarize the decision-making process that led to the selection of the proposed structural capacity.  This should include a discussion of alternatives evaluated to ensure the project meets the intended purpose/need, while minimizing or mitigating associated impacts to the maximum extent feasible.  The evaluation may include an incremental comparison of costs, design impacts, etc. Attach additional pages as necessary.\n\nReference the latest approved editions with any interims of the MassDOT LRFD Bridge Design Manual.)",null,null,null,null,null,null,null,null,null,null,null,null,null,null,null,null,null,null,null,null,null,null,null,null,null,null,null,null,null,null,null,null,"(Violations of this criterion should be extremely rare. When not met, provide (at a minimum) the following additional justification:\n\n- Verification of safe load-carrying capacity (load rating) for all State unrestricted legal loads or routine permit loads, and in the case of bridges and tunnels on the Interstate, all Federal legal loads.\n\nIf criterion cannot be met, provide quantitative analysis why and summarize the decision-making process that led to the selection of the proposed structural capacity.  This should include a discussion of alternatives evaluated to ensure the project meets the intended purpose/need, while minimizing or mitigating associated impacts to the maximum extent feasible.  The evaluation may include an incremental comparison of costs, design impacts, etc. Attach additional pages as necessary.\n\nReference the latest approved editions with any interims of the MassDOT LRFD Bridge Design Manual.)"]
[]
[]
[]
[]
[]
[]
[]
[]
[]
[]
[]
[]
[]
[]
[]
[]
[]
[]
[]
[]
[null,null,null,null,null,null,null,null,null,null,null,null,null,null,null,null,null,null,null,null,null,null,null,null,null,null,null,null,null,null,null,null,{"$f":"'HIDDEN Lists'!$B$1","v":"Workbook updated October 21, 2024"}]

{"sheet":"LANE WIDTH","index":20,"n_rows":47,"n_cols":35,"rows_kept":47,"cut":false,"hidden":false,"merged":[[23,1,45,31],[23,34,45,64],[0,0,0,32],[1,3,1,5],[1,11,1,32],[5,7,5,23],[2,0,2,32],[3,0,3,32],[7,10,7,31],[10,10,10,12],[11,10,11,12],[10,28,10,30],[14,1,17,31],[4,0,4,32],[14,34,17,64],[8,10,8,31]]}
["MassDOT Design Justification Workbook"]
["Project:",null,null,{"$f":"INSTRUCTIONS!D4","v":"6XXXXX"},null,null,null,"Description:",null,null,null,{"$f":"INSTRUCTIONS!L4","v":"MUNICIPALITY- PROJECT DESCRIPTION"}]
["LANE WIDTH",null,null,null,null,null,null,null,null,null,null,null,null,null,null,null,null,null,null,null,null,null,null,null,null,null,null,null,null,null,null,null,null,null,"(This Workbook sheet is intended to update automatically based on the Designer's entries.)"]
[{"$f":"IF(B21=\"is not applicable.\",\"Criterion not applicable.\",IF(B21=\"is non-controlling criterion.\",\"Criterion is non-controlling.\",IF(B21=\"has been violated.\",\"Standard not met.\",IF(B21=\"has been satisfied.\",\"Standard met.\",\"\"))))","v":""}]
[{"$f":"IF(A4=\"Criterion not applicable.\",\"\",IF(OR(A6=\"*\",J9=\"*\",J11=\"*\",AB11=\"*\",J12=\"*\",J8=\"*\",A15=\"*\",A24=\"*\"),\"PLEASE FILL OUT ALL FIELDS MARKED WITH *\",\"\"))","v":"PLEASE FILL OUT ALL FIELDS MARKED WITH *"},null,null,null,null,null,null,null,null,null,null,null,null,null,null,null,null,null,null,null,null,null,null,null,null,null,null,null,null,null,null,null,null,{"$f":"IF(OR(A6=\"*\",J9=\"*\",J11=\"*\",AB11=\"*\",J12=\"*\",J8=\"*\",A15=\"*\"),TRUE, FALSE)","v":true}]
[{"$f":"IF($H$6=\"Street Road (Route X) - Segment X\",\"*\",\"\")","v":"*"},"Facility & Segment:",null,null,null,null,null,"Street Road (Route X) - Segment X",null,null,null,null,null,null,null,null,null,null,null,null,null,null,null,null,null,null,null,null,"# of Facilities: ",{"$f":"IFERROR(INDEX('HIDDEN VLookup'!$A$4:$B$33,MATCH($H$6,'HIDDEN VLookup'!$B$4:$B$33,0),1),\"\")","v":1},"of",{"$f":"30-COUNTBLANK('HIDDEN VLookup'!$B$4:$B$33)","v":1},null,{"$f":"IF(INSTRUCTIONS!AP81=1,TRUE, FALSE)","v":false},"(Other types of projects may also be exempt from the need to comply with this criteria - we ask that the Workbook is still completed in these cases.)"]
[]
[null,"Source used:",null,null,null,null,null,null,null,{"$f":"IF(K8=\"\",\"*\",\"\")","v":"*"}]
[null,"Reference Table / Section:",null,null,null,null,null,null,null,{"$f":"IF(K9=\"\",\"*\",\"\")","v":"*"}]
[null,"(Lane width for through lanes only.)"]
[null,"Minimum Lane Width:",null,null,null,null,null,null,null,{"$f":"IF(K11=\"\",\"*\",\"\")","v":"*"},null,null,null,"FT",null,null,null,null,null,null,null,null,null,null,null,null,"Proposed Lane Width:",{"$f":"IF(AC11=\"\",\"*\",\"\")","v":"*"},null,null,null,"FT",null,null,"(Lane width for ramps should have their own facility if the design of the ramp is being modified.)"]
[null,"Maximum Lane Width:",null,null,null,null,null,null,null,{"$f":"IF(K12=\"\",\"*\",\"\")","v":"*"},null,null,null,"FT",null,null,null,null,null,null,null,null,null,null,null,null,null,null,null,null,null,null,null,null,"(If width varies, use minimum or maximum width outside of allowable range.)"]
[null,null,null,null,null,null,null,null,null,null,null,null,null,null,null,null,null,null,null,null,null,null,null,null,null,null,null,null,null,null,null,null,null,{"$f":"IF(OR(AC11<K11,AC11>K12), FALSE, TRUE)","v":true},"(Flag is \"FALSE\" if the proposed does not exceed the minimum.)"]
[null,"Justify the proposed lane width."]
[{"$f":"IF(B15=AI15,\"*\",\"\")","v":"*"},"(Provide qualitative analysis why the selected lane width was chosen. Justify use of this source for the lane width if not using a MassDOT design guide. Attach additional sheets as necessary.)",null,null,null,null,null,null,null,null,null,null,null,null,null,null,null,null,null,null,null,null,null,null,null,null,null,null,null,null,null,null,null,null,"(Provide qualitative analysis why the selected lane width was chosen. Justify use of this source for the lane width if not using a MassDOT design guide. Attach additional sheets as necessary.)"]
[]
[]
[]
[]
[null,"Based on the preceding responses, the Lane Width criterion",null,null,null,null,null,null,null,null,null,null,null,null,null,null,null,null,null,null,null,null,null,null,null,null,null,null,null,null,null,{"$f":"IF(ISBLANK(AC11),\"\",IF(AH13=FALSE,\"Standard not met.\",\"\"))","v":""},null,null,"(\"Standard not met.\" will be returned if the Subcriterion is not satisfied.)"]
[null,{"$f":"IF(AH6=TRUE,\"is non-controlling criterion.\",IF(AH5=TRUE,\"\",IF(AF20=\"Standard not met.\",\"has been violated.\",\"has been satisfied.\")))","v":""},null,null,null,null,null,null,null,null,null,null,null,null,null,null,null,null,null,null,null,null,null,null,null,null,null,null,null,null,null,null,null,null,"(This line will change to display \"has been violated\", \"has been satisfied\", or \"is non-controlling criterion\" as appropriate.)"]
[]
[null,{"$f":"IF(B21=\"has been violated.\",\"Provide additional justification for why this criterion cannot be met.\",\"Additional comments may be provided in the box below.\")","v":"Additional comments may be provided in the box below."},null,null,null,null,null,null,null,null,null,null,null,null,null,null,null,null,null,null,null,null,null,null,null,null,null,null,null,null,null,null,null,null,"(This cell changes to note whether the additional justification is a requirement or not.)"]
[{"$f":"IF(AND(B24=AI24,B21=\"has been violated.\"),\"*\",\"\")","v":""},"(If criterion cannot be met, provide quantitative analysis why and summarize the decision-making process that led to the selection of the proposed lane width.  This should include a discussion of alternatives evaluated to ensure the project meets the intended purpose/need, while minimizing or mitigating associated impacts to the maximum extent feasible.  The evaluation may include an incremental comparison of costs, design impacts, etc. Attach additional pages as necessary.)",null,null,null,null,null,null,null,null,null,null,null,null,null,null,null,null,null,null,null,null,null,null,null,null,null,null,null,null,null,null,null,null,"(If criterion cannot be met, provide quantitative analysis why and summarize the decision-making process that led to the selection of the proposed lane width.  This should include a discussion of alternatives evaluated to ensure the project meets the intended purpose/need, while minimizing or mitigating associated impacts to the maximum extent feasible.  The evaluation may include an incremental comparison of costs, design impacts, etc. Attach additional pages as necessary.)"]
[]
[]
[]
[]
[]
[]
[]
[]
[]
[]
[]
[]
[]
[]
[]
[]
[]
[]
[]
[]
[]
[]
[null,null,null,null,null,null,null,null,null,null,null,null,null,null,null,null,null,null,null,null,null,null,null,null,null,null,null,null,null,null,null,null,{"$f":"'HIDDEN Lists'!$B$1","v":"Workbook updated October 21, 2024"}]

{"sheet":"SHOULDER WIDTH","index":21,"n_rows":74,"n_cols":35,"rows_kept":74,"cut":false,"hidden":false,"merged":[[0,0,0,32],[1,3,1,5],[1,11,1,32],[27,10,27,31],[8,10,8,31],[13,10,13,31],[5,7,5,23],[16,1,19,31],[11,28,11,30],[11,12,11,14],[12,12,12,14],[20,1,22,31],[9,10,9,31],[43,1,72,31],[43,34,72,64],[33,34,36,64],[16,34,19,64],[2,0,2,32],[3,0,3,32],[4,0,4,32],[33,1,36,31],[30,11,30,13],[30,28,30,30],[28,10,28,31]]}
["MassDOT Design Justification Workbook"]
["Project:",null,null,{"$f":"INSTRUCTIONS!D4","v":"6XXXXX"},null,null,null,"Description:",null,null,null,{"$f":"INSTRUCTIONS!L4","v":"MUNICIPALITY- PROJECT DESCRIPTION"}]
["SHOULDER WIDTH",null,null,null,null,null,null,null,null,null,null,null,null,null,null,null,null,null,null,null,null,null,null,null,null,null,null,null,null,null,null,null,null,null,"(This Workbook sheet is intended to update automatically based on the Designer's entries.)"]
[{"$f":"IF(B41=\"is not applicable.\",\"Criterion not applicable.\",IF(B41=\"is non-controlling criterion.\",\"Criterion is non-controlling.\",IF(B41=\"has been violated.\",\"Standard not met.\",IF(B41=\"has been satisfied.\",\"Standard met.\",\"\"))))","v":""}]
[{"$f":"IF(A4=\"Criterion not applicable.\",\"\",IF(OR(A6=\"*\",AB12=\"*\",J9=\"*\",J10=\"*\",K31=\"*\",AB31=\"*\",J28=\"*\",J14=\"*\",A17=\"*\",A34=\"*\",L12=\"*\",L13=\"*\",J29=\"*\",A44=\"*\"),\"PLEASE FILL OUT ALL FIELDS MARKED WITH *\",\"\"))","v":"PLEASE FILL OUT ALL FIELDS MARKED WITH *"},null,null,null,null,null,null,null,null,null,null,null,null,null,null,null,null,null,null,null,null,null,null,null,null,null,null,null,null,null,null,null,null,{"$f":"IF(OR(A6=\"*\",AB12=\"*\",J9=\"*\",J10=\"*\",K31=\"*\",AB31=\"*\",J28=\"*\",J14=\"*\",A17=\"*\",A34=\"*\",L12=\"*\",L13=\"*\",J29=\"*\"),TRUE,FALSE)","v":true}]
[{"$f":"IF($H$6=\"Street Road (Route X) - Segment X\",\"*\",\"\")","v":"*"},"Facility & Segment:",null,null,null,null,null,"Street Road (Route X) - Segment X",null,null,null,null,null,null,null,null,null,null,null,null,null,null,null,null,null,null,null,null,"# of Facilities: ",{"$f":"IFERROR(INDEX('HIDDEN VLookup'!$A$4:$B$33,MATCH($H$6,'HIDDEN VLookup'!$B$4:$B$33,0),1),\"\")","v":1},"of",{"$f":"30-COUNTBLANK('HIDDEN VLookup'!$B$4:$B$33)","v":1},null,{"$f":"IF(INSTRUCTIONS!AQ81=1,TRUE,FALSE)","v":false},"(Other types of projects may also be exempt from the need to comply with this criteria - we ask that the Workbook is still completed in these cases.)"]
[]
[null,"Subcriterion: Outside Shoulder",null,null,null,null,null,null,null,null,null,null,null,null,null,null,null,null,null,null,null,null,null,null,null,null,null,null,null,null,null,{"$f":"IF(ISBLANK(AC12),\"\",IF(AH9=FALSE,\"Standard not met.\",\"\"))","v":""},null,null,"(\"Standard not met.\" will be returned if the Subcriterion is not satisfied.)"]
[null,"Source used:",null,null,null,null,null,null,null,{"$f":"IF(K9=\"\",\"*\",\"\")","v":"*"},null,null,null,null,null,null,null,null,null,null,null,null,null,null,null,null,null,null,null,null,null,null,null,{"$f":"IF(OR(AC12<M12,AC12>M13),FALSE,TRUE)","v":true},"(Flag is \"FALSE\" if the proposed exceeds the maximum or does not meet the minimum.)"]
[null,"Reference Table / Section:",null,null,null,null,null,null,null,{"$f":"IF(K10=\"\",\"*\",\"\")","v":"*"}]
[null,"(Shoulder width for through lanes only.)"]
[null,"Min. RT (Outside) Shoulder Width:",null,null,null,null,null,null,null,null,null,{"$f":"IF(M12=\"\",\"*\",\"\")","v":"*"},null,null,null,"FT",null,null,null,null,null,null,null,null,null,null,"Proposed RT (Outside) Shoulder Width:",{"$f":"IF(AC12=\"\",\"*\",\"\")","v":"*"},null,null,null,"FT",null,null,"(If width varies, use minimum or maximum width outside of allowable range.)"]
[null,"Max. RT (Outside) Shoulder Width:",null,null,null,null,null,null,null,null,null,{"$f":"IF(M13=\"\",\"*\",\"\")","v":"*"},null,null,null,"FT",null,null,null,null,null,null,null,null,null,null,null,null,null,null,null,null,null,null,"(shoulder width for ramps should have their own facility if the design of the ramp is being modified.)"]
[null,"Function of shoulder:",null,null,null,null,null,null,null,{"$f":"IF(K14=\"\",\"*\",\"\")","v":"*"},null,null,null,null,null,null,null,null,null,null,null,null,null,null,null,null,null,null,null,null,null,null,null,null,"(Fill in with widest shoulder function from PDDG 5-11)"]
[]
[null,"Justify the proposed outside shoulder width."]
[{"$f":"IF(B17=AI17,\"*\",\"\")","v":"*"},"(Provide qualitative analysis why the selected outside shoulder width was chosen. Justify use of this source for the shoulder width if not using a MassDOT design guide. Attach additional sheets as necessary.)",null,null,null,null,null,null,null,null,null,null,null,null,null,null,null,null,null,null,null,null,null,null,null,null,null,null,null,null,null,null,null,null,"(Provide qualitative analysis why the selected outside shoulder width was chosen. Justify use of this source for the shoulder width if not using a MassDOT design guide. Attach additional sheets as necessary.)"]
[]
[]
[]
[null,"(1) Along the right side of freeways, 10-foot shoulders should be provided. The right shoulder should be increased to 12 feet when truck and bus volumes are greater than 250 per hour.  An additional 2-foot offset from the edge of the shoulder is required to vertical elements over 6-inches in height (such as guardrail)."]
[]
[]
[]
[null,"Subcriterion: Inside Shoulder",null,null,null,null,null,null,null,null,null,null,null,null,null,null,null,null,null,null,null,null,null,null,null,null,null,null,null,null,null,{"$f":"IF(AH27=TRUE,\"\",IF(ISBLANK(AC31),\"\",IF(AH31=FALSE,\"Standard not met.\",\"\")))","v":""},null,null,"(\"Standard not met.\" will be returned if the Subcriterion is not satisfied.)"]
[null,"(Check the box if the following apply and do not fill out this Subcriterion)"]
[null,false,"There are no inside shoulders on this facility.",null,null,null,null,null,null,null,null,null,null,null,null,null,null,null,null,null,null,null,null,null,null,null,null,null,null,null,null,null,null,{"$f":"B27","v":false}]
[null,"Source used:",null,null,null,null,null,null,null,{"$f":"IF(AH27=TRUE,\"\",IF(K28=\"\",\"*\",\"\"))","v":"*"}]
[null,"Reference Table / Section:",null,null,null,null,null,null,null,{"$f":"IF(AH27=TRUE,\"\",IF(K29=\"\",\"*\",\"\"))","v":"*"}]
[]
[null,"Min. LT (Inside) Shoulder Width:",null,null,null,null,null,null,null,null,{"$f":"IF(AH27=TRUE,\"\",IF(L31=\"\",\"*\",\"\"))","v":"*"},null,null,null,"FT",null,null,"Proposed LT (Inside) Shoulder Width:",null,null,null,null,null,null,null,null,null,{"$f":"IF(AH27=TRUE,\"\",IF(AC31=\"\",\"*\",\"\"))","v":"*"},null,null,null,"FT",null,{"$f":"IF(AC31<L31,FALSE,TRUE)","v":true},"(Flag is \"FALSE\" if the proposed does not exceed the minimum.)"]
[]
[null,"Justify the proposed inside shoulder width."]
[{"$f":"IF(AH27=TRUE,\"\",IF(AND(B34=AI34,AH27=FALSE),\"*\",\"\"))","v":"*"},"(Provide qualitative analysis why the selected inside shoulder width was chosen. Justify use of this source for the shoulder width if not using a MassDOT design guide. Attach additional sheets as necessary.)",null,null,null,null,null,null,null,null,null,null,null,null,null,null,null,null,null,null,null,null,null,null,null,null,null,null,null,null,null,null,null,null,"(Provide qualitative analysis why the selected inside shoulder width was chosen. Justify use of this source for the shoulder width if not using a MassDOT design guide. Attach additional sheets as necessary.)"]
[]
[]
[]
[]
[]
[null,"Based on the preceding responses, the Shoulder Width criterion"]
[null,{"$f":"IF(AH6=TRUE,\"is non-controlling criterion.\",IF(AH5=TRUE,\"\",IF(OR(AF25=\"Standard not met.\",AF8=\"Standard not met.\"),\"has been violated.\",\"has been satisfied.\")))","v":""},null,null,null,null,null,null,null,null,null,null,null,null,null,null,null,null,null,null,null,null,null,null,null,null,null,null,null,null,null,null,null,null,"(This line will change to display \"has been violated\", \"has been satisfied\", or \"is non-controlling criterion\" as appropriate.)"]
[]
[null,{"$f":"IF(B41=\"has been violated.\",\"Provide additional justification for why this criterion cannot be met.\",\"Additional comments may be provided in the box below.\")","v":"Additional comments may be provided in the box below."},null,null,null,null,null,null,null,null,null,null,null,null,null,null,null,null,null,null,null,null,null,null,null,null,null,null,null,null,null,null,null,null,"(This cell changes to note whether the additional justification is a requirement or not.)"]
[{"$f":"IF(AND(B44=AI44,B41=\"has been violated.\"),\"*\",\"\")","v":""},"(If criterion cannot be met, provide quantitative analysis why and summarize the decision-making process that led to the selection of the proposed shoulder width.  This should include a discussion of the intended function of the shoulder and the safety and operational advantages of the selected width. Attach additional pages as necessary.)",null,null,null,null,null,null,null,null,null,null,null,null,null,null,null,null,null,null,null,null,null,null,null,null,null,null,null,null,null,null,null,null,"(If criterion cannot be met, provide quantitative analysis why and summarize the decision-making process that led to the selection of the proposed shoulder width.  This should include a discussion of the intended function of the shoulder and the safety and operational advantages of the selected width. Attach additional pages as necessary.)"]
[]
[]
[]
[]
[]
[]
[]
[]
[]
[]
[]
[]
[]
[]
[]
[]
[]
[]
[]
[]
[]
[]
[]
[]
[]
[]
[]
[]
[]
[null,null,null,null,null,null,null,null,null,null,null,null,null,null,null,null,null,null,null,null,null,null,null,null,null,null,null,null,null,null,null,null,{"$f":"'HIDDEN Lists'!$B$1","v":"Workbook updated October 21, 2024"}]

{"sheet":"HORIZONTAL CURVE","index":22,"n_rows":47,"n_cols":35,"rows_kept":47,"cut":false,"hidden":false,"merged":[[0,0,0,32],[1,3,1,5],[1,11,1,32],[25,1,45,31],[25,34,45,64],[2,0,2,32],[3,0,3,32],[4,0,4,32],[5,7,5,23],[16,1,19,31],[16,34,19,64],[12,28,12,30],[12,10,12,12],[10,10,10,31],[9,10,9,31]]}
["MassDOT Design Justification Workbook"]
["Project:",null,null,{"$f":"INSTRUCTIONS!D4","v":"6XXXXX"},null,null,null,"Description:",null,null,null,{"$f":"INSTRUCTIONS!L4","v":"MUNICIPALITY- PROJECT DESCRIPTION"}]
["HORIZONTAL CURVE RADIUS",null,null,null,null,null,null,null,null,null,null,null,null,null,null,null,null,null,null,null,null,null,null,null,null,null,null,null,null,null,null,null,null,null,"(This Workbook sheet is intended to update automatically based on the Designer's entries.)"]
[{"$f":"IF(B23=\"is not applicable.\",\"Criterion not applicable.\",IF(B23=\"is non-controlling criterion.\",\"Criterion is non-controlling.\",IF(B23=\"has been violated.\",\"Standard not met.\",IF(B23=\"has been satisfied.\",\"Standard met.\",\"\"))))","v":"Criterion is non-controlling."}]
[{"$f":"IF(A4=\"Criterion not applicable.\",\"\",IF(OR(A6=\"*\",J13=\"*\",AB13=\"*\",J10=\"*\",J11=\"*\",A17=\"*\",A26=\"*\"),\"PLEASE FILL OUT ALL FIELDS MARKED WITH *\",\"\"))","v":"PLEASE FILL OUT ALL FIELDS MARKED WITH *"},null,null,null,null,null,null,null,null,null,null,null,null,null,null,null,null,null,null,null,null,null,null,null,null,null,null,null,null,null,null,null,null,{"$f":"IF(OR(A6=\"*\",J13=\"*\",AB13=\"*\",J10=\"*\",J11=\"*\",A17=\"*\"),TRUE,FALSE)","v":true}]
[{"$f":"IF($H$6=\"Street Road (Route X) - Segment X\",\"*\",\"\")","v":"*"},"Facility & Segment:",null,null,null,null,null,"Street Road (Route X) - Segment X",null,null,null,null,null,null,null,null,null,null,null,null,null,null,null,null,null,null,null,null,"# of Facilities: ",{"$f":"IFERROR(INDEX('HIDDEN VLookup'!$A$4:$B$33,MATCH($H$6,'HIDDEN VLookup'!$B$4:$B$33,0),1),\"\")","v":1},"of",{"$f":"30-COUNTBLANK('HIDDEN VLookup'!$B$4:$B$33)","v":1},null,{"$f":"IF(INSTRUCTIONS!AS81=1,TRUE,FALSE)","v":false},"(Other types of projects may also be exempt from the need to comply with this criteria - we ask that the Workbook is still completed in these cases.)"]
[null,"(Check the box if the following apply and do not fill out this sheet)",null,null,null,null,null,null,null,null,null,null,null,null,null,null,null,null,null,null,null,null,null,null,null,null,null,null,null,null,null,null,null,{"$f":"IF(ISERROR(VLOOKUP($H$6,'HIDDEN Criteria'!$B$4:$AH$33,32,FALSE)),\"\",VLOOKUP($H$6,'HIDDEN Criteria'!$B$4:$AH$33,32,FALSE))","v":true}]
[null,false,"There are no horizontal curves on this facility.",null,null,null,null,null,null,null,null,null,null,null,null,null,null,null,null,null,null,null,null,null,null,null,null,null,null,null,null,null,null,{"$f":"B8","v":false}]
[]
[null,"Source used:",null,null,null,null,null,null,null,{"$f":"IF(AND(K10=\"\",AH8=FALSE),\"*\",\"\")","v":"*"}]
[null,"Reference Table / Section:",null,null,null,null,null,null,null,{"$f":"IF(AND(K11=\"\",AH8=FALSE),\"*\",\"\")","v":"*"}]
[]
[null,"Min. Radius from Source:",null,null,null,null,null,null,null,{"$f":"IF(AND(K13=\"\",AH8=FALSE),\"*\",\"\")","v":"*"},null,null,null,"FT",null,null,"Proposed Horizontal Curve Radius:",null,null,null,null,null,null,null,null,null,null,{"$f":"IF(AND(AC13=\"\",AH8=FALSE),\"*\",\"\")","v":"*"},null,null,null,"FT",null,{"$f":"IF(AC13<K13,FALSE(),TRUE())","v":true},"(Flag is \"FALSE\" if the proposed does not exceed the minimum.)"]
[null,null,null,null,null,null,null,null,null,null,null,null,null,null,null,null,null,null,null,null,null,null,null,null,null,null,null,null,null,null,null,"(If there are multiple curves, provide the smallest radius used and attach the alignment report.)"]
[]
[null,"Justify the proposed horizontal curve radius."]
[{"$f":"IF(AND(B17=AI17,AH8=FALSE),\"*\",\"\")","v":"*"},"(Provide qualitative analysis why the selected  horizontal curve radius was chosen. Justify use of this source for the shoulder width if not using a MassDOT design guide. Attach additional sheets as necessary.)",null,null,null,null,null,null,null,null,null,null,null,null,null,null,null,null,null,null,null,null,null,null,null,null,null,null,null,null,null,null,null,null,"(Provide qualitative analysis why the selected  horizontal curve radius was chosen. Justify use of this source for the shoulder width if not using a MassDOT design guide. Attach additional sheets as necessary.)"]
[]
[]
[]
[]
[null,"Based on the preceding responses, the Curve Radius criterion",null,null,null,null,null,null,null,null,null,null,null,null,null,null,null,null,null,null,null,null,null,null,null,null,null,null,null,null,null,{"$f":"IF(AH8=TRUE,\"\",IF(ISBLANK(AC13),\"\",IF(AH13=FALSE,\"Standard not met.\",\"\")))","v":""},null,null,"(\"Standard not met.\" will be returned if the Subcriterion is not satisfied.)"]
[null,{"$f":"IF(AH8=TRUE,\"is not applicable.\",IF(AH7=TRUE,\"is non-controlling criterion.\",IF(AH5=TRUE,\"\",IF(AF22=\"Standard not met.\",\"has been violated.\",\"has been satisfied.\"))))","v":"is non-controlling criterion."},null,null,null,null,null,null,null,null,null,null,null,null,null,null,null,null,null,null,null,null,null,null,null,null,null,null,null,null,null,null,null,null,"(This line will change to display \"has been violated\", \"has been satisfied\", or \"is non-controlling criterion\" as appropriate.)"]
[]
[null,{"$f":"IF(B23=\"has been violated.\",\"Provide additional justification for why this criterion cannot be met.\",\"Additional comments may be provided in the box below.\")","v":"Additional comments may be provided in the box below."},null,null,null,null,null,null,null,null,null,null,null,null,null,null,null,null,null,null,null,null,null,null,null,null,null,null,null,null,null,null,null,null,"(This cell changes to note whether the additional justification is a requirement or not.)"]
[{"$f":"IF(AND(B26=AI26,B23=\"has been violated.\"),\"*\",\"\")","v":""},"(If an alignment report is provided, note that here.\n\nFor compound curves, the radius of the tighter curve should be no less than 50% of the radius of the flatter curve.\n\nIf criterion cannot be met, provide quantitative analysis why and summarize the decision-making process that led to the selection of the proposed horizontal curve radius.  This should include a discussion of alternatives evaluated to ensure the project meets the intended purpose/need, while minimizing or mitigating associated impacts to the maximum extent feasible.  The evaluation may include an incremental comparison of costs, design impacts, etc. Attach additional pages as necessary.)",null,null,null,null,null,null,null,null,null,null,null,null,null,null,null,null,null,null,null,null,null,null,null,null,null,null,null,null,null,null,null,null,"(If an alignment report is provided, note that here.\n\nFor compound curves, the radius of the tighter curve should be no less than 50% of the radius of the flatter curve.\n\nIf criterion cannot be met, provide quantitative analysis why and summarize the decision-making process that led to the selection of the proposed horizontal curve radius.  This should include a discussion of alternatives evaluated to ensure the project meets the intended purpose/need, while minimizing or mitigating associated impacts to the maximum extent feasible.  The evaluation may include an incremental comparison of costs, design impacts, etc. Attach additional pages as necessary.)"]
[]
[]
[]
[]
[]
[]
[]
[]
[]
[]
[]
[]
[]
[]
[]
[]
[]
[]
[]
[]
[null,null,null,null,null,null,null,null,null,null,null,null,null,null,null,null,null,null,null,null,null,null,null,null,null,null,null,null,null,null,null,null,{"$f":"'HIDDEN Lists'!$B$1","v":"Workbook updated October 21, 2024"}]

{"sheet":"SUPERELEVATION","index":23,"n_rows":47,"n_cols":35,"rows_kept":47,"cut":false,"hidden":false,"merged":[[0,0,0,32],[1,3,1,5],[1,11,1,32],[5,7,5,23],[13,12,13,14],[10,10,10,31],[4,0,4,32],[3,0,3,32],[11,10,11,31],[17,1,20,31],[17,34,20,64],[2,0,2,32],[26,1,45,31],[26,34,45,64],[13,28,13,30]]}
["MassDOT Design Justification Workbook"]
["Project:",null,null,{"$f":"INSTRUCTIONS!D4","v":"6XXXXX"},null,null,null,"Description:",null,null,null,{"$f":"INSTRUCTIONS!L4","v":"MUNICIPALITY- PROJECT DESCRIPTION"}]
["SUPERELEVATION RATE",null,null,null,null,null,null,null,null,null,null,null,null,null,null,null,null,null,null,null,null,null,null,null,null,null,null,null,null,null,null,null,null,null,"(This Workbook sheet is intended to update automatically based on the Designer's entries.)"]
[{"$f":"IF(B24=\"is not applicable.\",\"Criterion not applicable.\",IF(B24=\"is non-controlling criterion.\",\"Criterion is non-controlling.\",IF(B24=\"has been violated.\",\"Standard not met.\",IF(B24=\"has been satisfied.\",\"Standard met.\",\"\"))))","v":"Criterion is non-controlling."}]
[{"$f":"IF(A4=\"Criterion not applicable.\",\"\",IF(OR(A6=\"*\",L14=\"*\",AB14=\"*\",J11=\"*\",J12=\"*\",A18=\"*\",A27=\"*\"),\"PLEASE FILL OUT ALL FIELDS MARKED WITH *\",\"\"))","v":"PLEASE FILL OUT ALL FIELDS MARKED WITH *"},null,null,null,null,null,null,null,null,null,null,null,null,null,null,null,null,null,null,null,null,null,null,null,null,null,null,null,null,null,null,null,null,{"$f":"IF(OR(A6=\"*\",L14=\"*\",AB14=\"*\",J11=\"*\",J12=\"*\",A18=\"*\"),TRUE,FALSE)","v":true}]
[{"$f":"IF($H$6=\"Street Road (Route X) - Segment X\",\"*\",\"\")","v":"*"},"Facility & Segment:",null,null,null,null,null,"Street Road (Route X) - Segment X",null,null,null,null,null,null,null,null,null,null,null,null,null,null,null,null,null,null,null,null,"# of Facilities: ",{"$f":"IFERROR(INDEX('HIDDEN VLookup'!$A$4:$B$33,MATCH($H$6,'HIDDEN VLookup'!$B$4:$B$33,0),1),\"\")","v":1},"of",{"$f":"30-COUNTBLANK('HIDDEN VLookup'!$B$4:$B$33)","v":1},null,{"$f":"IF(INSTRUCTIONS!AR81=1,TRUE,FALSE)","v":false},"(Other types of projects may also be exempt from the need to comply with this criteria - we ask that the Workbook is still completed in these cases.)"]
[null,null,null,null,null,null,null,null,null,null,null,null,null,null,null,null,null,null,null,null,null,null,null,null,null,null,null,null,null,null,null,null,null,{"$f":"IF(ISERROR(VLOOKUP($H$6,'HIDDEN Criteria'!$B$4:$AH$33,32,FALSE)),\"\",VLOOKUP($H$6,'HIDDEN Criteria'!$B$4:$AH$33,32,FALSE))","v":true},"(EXEMPTIONS: Flag is set to \"TRUE\" if only seven criteria are controlling or \"FALSE\" if all 14 criteria are controlling,  based on responses in Design & Target Speed and Facility Info tabs per E-20-001 Exhibit 4.)"]
[null,"(Check the box if the following apply and do not fill out this sheet)"]
[null,false,"There are no superelevated curves on this facility.",null,null,null,null,null,null,null,null,null,null,null,null,null,null,null,null,null,null,null,null,null,null,null,null,null,null,null,null,null,null,{"$f":"B9","v":false}]
[null,null,null,null,null,null,null,null,null,null,null,null,null,null,null,null,null,null,null,null,null,null,null,null,null,null,null,null,null,null,null,null,null,{"$f":"IF(ISERROR(VLOOKUP($H$6,'HIDDEN Criteria'!$B$4:$AG$33,32,FALSE)),\"\", IF(VLOOKUP($H$6,'HIDDEN Criteria'!$B$4:$AG$33,32,FALSE),FALSE,TRUE))","v":false},"(Flag is \"TRUE\" if criterion is non-controlling based on design speed and functional classification.)"]
[null,"Source used:",null,null,null,null,null,null,null,{"$f":"IF(AND(K11=\"\",AH9=FALSE),\"*\",\"\")","v":"*"},null,null,null,null,null,null,null,null,null,null,null,null,null,null,null,null,null,null,null,null,null,null,null,null,"(Flag is \"TRUE\" if criterion is not applicable, based on "]
[null,"Reference Table / Section:",null,null,null,null,null,null,null,{"$f":"IF(AND(K12=\"\",AH9=FALSE),\"*\",\"\")","v":"*"}]
[]
[null,"Maximum Superelevation Rate:",null,null,null,null,null,null,null,null,null,{"$f":"IF(AND(M14=\"\",AH9=FALSE),\"*\",\"\")","v":"*"},null,null,null,"%",null,null,"Proposed Superelevation Rate:",null,null,null,null,null,null,null,null,{"$f":"IF(AND(AC14=\"\",AH9=FALSE),\"*\",\"\")","v":"*"},null,null,null,"%",null,{"$f":"IF(AC14>M14,FALSE(),TRUE())","v":true},"(Flag is \"FALSE\" if the proposed exceeds the maximum.)"]
[null,null,null,null,null,null,null,null,null,null,null,null,null,null,null,null,null,null,null,null,null,null,null,null,null,null,null,null,null,null,null,"(If there are multiple superelevated curves, provide the largest rate used and attach the alignment report.)"]
[]
[null,"Justify the proposed superelevation rate."]
[{"$f":"IF(AND(B18=AI18,AH9=FALSE),\"*\",\"\")","v":"*"},"(Provide qualitative analysis why the selected superelevation rate was chosen. Justify use of this source for the shoulder width if not using a MassDOT design guide. Attach additional sheets as necessary.)",null,null,null,null,null,null,null,null,null,null,null,null,null,null,null,null,null,null,null,null,null,null,null,null,null,null,null,null,null,null,null,null,"(Provide qualitative analysis why the selected superelevation rate was chosen. Justify use of this source for the shoulder width if not using a MassDOT design guide. Attach additional sheets as necessary.)"]
[]
[]
[]
[]
[null,"Based on the preceding responses, the Superelevation criterion",null,null,null,null,null,null,null,null,null,null,null,null,null,null,null,null,null,null,null,null,null,null,null,null,null,null,null,null,null,{"$f":"IF(AH9=TRUE,\"\",IF(ISBLANK(AC14),\"\",IF(AH14=FALSE,\"Standard not met.\",\"\")))","v":""},null,null,"(\"Standard not met.\" will be returned if the Subcriterion is not satisfied.)"]
[null,{"$f":"IF(AH9=TRUE,\"is not applicable.\",IF(AH7=TRUE,\"is non-controlling criterion.\",IF(AH5=TRUE,\"\",IF(AF23=\"Standard not met.\",\"has been violated.\",\"has been satisfied.\"))))","v":"is non-controlling criterion."},null,null,null,null,null,null,null,null,null,null,null,null,null,null,null,null,null,null,null,null,null,null,null,null,null,null,null,null,null,null,null,null,"(This line will change to display \"has been violated\", \"has been satisfied\", or \"is non-controlling criterion\" as appropriate.)"]
[]
[null,{"$f":"IF(B24=\"has been violated.\",\"Provide additional justification for why this criterion cannot be met.\",\"Additional comments may be provided in the box below.\")","v":"Additional comments may be provided in the box below."},null,null,null,null,null,null,null,null,null,null,null,null,null,null,null,null,null,null,null,null,null,null,null,null,null,null,null,null,null,null,null,null,"(This cell changes to note whether the additional justification is a requirement or not.)"]
[{"$f":"IF(AND(B27=AI27,B24=\"has been violated.\"),\"*\",\"\")","v":""},"(If an alignment report is provided, note that here.\n\nIf criterion cannot be met, provide quantitative analysis why and summarize the decision-making process that led to the selection of the proposed superelevation rate.  This should include a discussion of alternatives evaluated to ensure the project meets the intended purpose/need, while minimizing or mitigating associated impacts to the maximum extent feasible.  The evaluation may include an incremental comparison of costs, design impacts, etc. Attach additional pages as necessary.)",null,null,null,null,null,null,null,null,null,null,null,null,null,null,null,null,null,null,null,null,null,null,null,null,null,null,null,null,null,null,null,null,"(If an alignment report is provided, note that here.\n\nIf criterion cannot be met, provide quantitative analysis why and summarize the decision-making process that led to the selection of the proposed superelevation rate.  This should include a discussion of alternatives evaluated to ensure the project meets the intended purpose/need, while minimizing or mitigating associated impacts to the maximum extent feasible.  The evaluation may include an incremental comparison of costs, design impacts, etc. Attach additional pages as necessary.)"]
[]
[]
[]
[]
[]
[]
[]
[]
[]
[]
[]
[]
[]
[]
[]
[]
[]
[]
[]
[null,null,null,null,null,null,null,null,null,null,null,null,null,null,null,null,null,null,null,null,null,null,null,null,null,null,null,null,null,null,null,null,{"$f":"'HIDDEN Lists'!$B$1","v":"Workbook updated October 21, 2024"}]

{"sheet":"SSD","index":24,"n_rows":70,"n_cols":35,"rows_kept":70,"cut":false,"hidden":false,"merged":[[8,10,8,31],[26,10,26,12],[26,28,26,30],[22,10,22,31],[11,10,11,12],[11,28,11,30],[14,1,17,31],[9,10,9,31],[23,10,23,31],[0,0,0,32],[1,3,1,5],[1,11,1,32],[5,7,5,23],[2,0,2,32],[3,0,3,32],[4,0,4,32],[29,1,32,31],[39,34,68,64],[14,34,17,64],[29,34,32,64],[39,1,68,31],[25,10,25,12]]}
["MassDOT Design Justification Workbook"]
["Project:",null,null,{"$f":"INSTRUCTIONS!D4","v":"6XXXXX"},null,null,null,"Description:",null,null,null,{"$f":"INSTRUCTIONS!L4","v":"MUNICIPALITY- PROJECT DESCRIPTION"}]
["STOPPING SIGHT DISTANCE",null,null,null,null,null,null,null,null,null,null,null,null,null,null,null,null,null,null,null,null,null,null,null,null,null,null,null,null,null,null,null,null,null,"(This Workbook sheet is intended to update automatically based on the Designer's entries.)"]
[{"$f":"IF(B37=\"is not applicable.\",\"Criterion not applicable.\",IF(B37=\"is non-controlling criterion.\",\"Criterion is non-controlling.\",IF(B37=\"has been violated.\",\"Standard not met.\",IF(B37=\"has been satisfied.\",\"Standard met.\",\"\"))))","v":"Criterion is non-controlling."}]
[{"$f":"IF(A4=\"Criterion not applicable.\",\"\",IF(OR(A6=\"*\",J12=\"*\",AB12=\"*\",J9=\"*\",J27=\"*\",AB27=\"*\",J23=\"*\",J24=\"*\",J10=\"*\",A15=\"*\",J26=\"*\",A30=\"*\",A40=\"*\"),\"PLEASE FILL OUT ALL FIELDS MARKED WITH *\",\"\"))","v":"PLEASE FILL OUT ALL FIELDS MARKED WITH *"},null,null,null,null,null,null,null,null,null,null,null,null,null,null,null,null,null,null,null,null,null,null,null,null,null,null,null,null,null,null,null,null,{"$f":"IF(OR(A6=\"*\",J12=\"*\",AB12=\"*\",J9=\"*\",J27=\"*\",AB27=\"*\",J23=\"*\",J24=\"*\",J10=\"*\",A15=\"*\",J26=\"*\",A30=\"*\"),TRUE,FALSE)","v":true}]
[{"$f":"IF($H$6=\"Street Road (Route X) - Segment X\",\"*\",\"\")","v":"*"},"Facility & Segment:",null,null,null,null,null,"Street Road (Route X) - Segment X",null,null,null,null,null,null,null,null,null,null,null,null,null,null,null,null,null,null,null,null,"# of Facilities: ",{"$f":"IFERROR(INDEX('HIDDEN VLookup'!$A$4:$B$33,MATCH($H$6,'HIDDEN VLookup'!$B$4:$B$33,0),1),\"\")","v":1},"of",{"$f":"30-COUNTBLANK('HIDDEN VLookup'!$B$4:$B$33)","v":1},null,{"$f":"IF(INSTRUCTIONS!AT81=1,TRUE,FALSE)","v":false},"(Other types of projects may also be exempt from the need to comply with this criteria - we ask that the Workbook is still completed in these cases.)"]
[null,null,null,null,null,null,null,null,null,null,null,null,null,null,null,null,null,null,null,null,null,null,null,null,null,null,null,null,null,null,null,null,null,{"$f":"IF(ISERROR(VLOOKUP($H$6,'HIDDEN Criteria'!$B$4:$AH$33,32,FALSE)),\"\",VLOOKUP($H$6,'HIDDEN Criteria'!$B$4:$AH$33,32,FALSE))","v":true}]
[null,"Subcriterion: SSD",null,null,null,null,null,null,null,null,null,null,null,null,null,null,null,null,null,null,null,null,null,null,null,null,null,null,null,null,null,{"$f":"IF(ISBLANK(AC12),\"\",IF(AH12=FALSE,\"Standard not met.\",\"\"))","v":""},null,null,"(\"Standard not met.\" will be returned if the Subcriterion is not satisfied.)"]
[null,"Source used for SSD:",null,null,null,null,null,null,null,{"$f":"IF(K9=\"\",\"*\",\"\")","v":"*"}]
[null,"Reference Table/Section:",null,null,null,null,null,null,null,{"$f":"IF(K10=\"\",\"*\",\"\")","v":"*"}]
[null,null,null,null,null,null,null,null,null,null,null,null,null,null,null,null,null,null,null,null,null,null,null,null,null,null,null,null,null,null,null,null,null,null,"(If there are multiple SSD, provide minimum SSD.)"]
[null,"Minimum SSD:",null,null,null,null,null,null,null,{"$f":"IF(K12=\"\",\"*\",\"\")","v":"*"},null,null,null,"FT",null,null,null,null,null,null,null,null,"Proposed SSD:",null,null,null,null,{"$f":"IF(AC12=\"\",\"*\",\"\")","v":"*"},null,null,null,"FT",null,{"$f":"IF(AC12<K12,FALSE(),TRUE())","v":true},"(Flag is \"FALSE\" if the proposed does not exceed the minimum.)"]
[]
[null,"Justify the proposed stopping sight distance."]
[{"$f":"IF(B15=AI15,\"*\",\"\")","v":"*"},"(Provide qualitative analysis why the selected stopping sight distance was chosen. Justify use of this source for the shoulder width if not using a MassDOT design guide. Attach additional sheets as necessary.)",null,null,null,null,null,null,null,null,null,null,null,null,null,null,null,null,null,null,null,null,null,null,null,null,null,null,null,null,null,null,null,null,"(Provide qualitative analysis why the selected stopping sight distance was chosen. Justify use of this source for the shoulder width if not using a MassDOT design guide. Attach additional sheets as necessary.)"]
[]
[]
[]
[]
[]
[null,"Subcriterion: SSD Middle Ordinate (Horizontal Sightline Offset)",null,null,null,null,null,null,null,null,null,null,null,null,null,null,null,null,null,null,null,null,null,null,null,null,null,null,null,null,null,{"$f":"IF(ISBLANK(AC27),\"\",IF(AH22=TRUE,\"\",IF(AH27=FALSE,\"Standard not met.\",\"\")))","v":""},null,null,"(\"Standard not met.\" will be returned if the Subcriterion is not satisfied.)"]
[null,false,"Check this box if this facility does not contains curves.",null,null,null,null,null,null,null,null,null,null,null,null,null,null,null,null,null,null,null,null,null,null,null,null,null,null,null,null,null,null,{"$f":"B22","v":false}]
[null,"Source used for minimum:",null,null,null,null,null,null,null,{"$f":"IF(AND(K23=\"\",AH22=FALSE),\"*\",\"\")","v":"*"}]
[null,"Reference Table/Section",null,null,null,null,null,null,null,{"$f":"IF(AND(AH22=FALSE,K24=\"\"),\"*\",\"\")","v":"*"}]
[null,"(Consider vertical obstructions that may create issues with horizontal sight distance on this facility.)"]
[null,null,null,null,"Curve Radius:",null,null,null,null,{"$f":"IF(AND(K26=\"\",AH22=FALSE),\"*\",\"\")","v":"*"},null,null,null,"FT"]
[null,null,null,null,"Minimum SSD:",null,null,null,null,{"$f":"IF(AND(K27=\"\",AH22=FALSE),\"*\",\"\")","v":"*"},null,null,null,"FT",null,null,null,null,null,null,null,null,"Proposed SSD:",null,null,null,null,{"$f":"IF(AND(AC27=\"\",AH22=FALSE),\"*\",\"\")","v":"*"},null,null,null,"FT",null,{"$f":"IF(AC27<K27,FALSE,TRUE)","v":true},"(Flag is \"FALSE\" if the proposed does not exceed the minimum.)"]
[]
[null,"Justify the use of this source for the stopping sight distance if not using a MassDOT design guide."]
[{"$f":"IF(AND(B30=AI30,AH22=FALSE,OR(NOT(K23=\"MassDOT PDDG\"),AH27=FALSE)),\"*\",\"\")","v":"*"},"(If criterion cannot be met, provide qualitative analysis why. Attach additional sheets as necessary.)",null,null,null,null,null,null,null,null,null,null,null,null,null,null,null,null,null,null,null,null,null,null,null,null,null,null,null,null,null,null,null,null,"(If criterion cannot be met, provide qualitative analysis why. Attach additional sheets as necessary.)"]
[]
[]
[]
[]
[]
[null,"Based on the preceding responses, the SSD criterion"]
[null,{"$f":"IF(AH7=TRUE,\"is non-controlling criterion.\",IF(AH5=TRUE,\"\",IF(OR(AF21=\"Standard not met.\",AF8=\"Standard not met.\"),\"has been violated.\",\"has been satisfied.\")))","v":"is non-controlling criterion."},null,null,null,null,null,null,null,null,null,null,null,null,null,null,null,null,null,null,null,null,null,null,null,null,null,null,null,null,null,null,null,null,"(This line will change to display \"has been violated\", \"has been satisfied\", or \"is non-controlling criterion\" as appropriate.)"]
[]
[null,{"$f":"IF(B37=\"has been violated.\",\"Provide additional justification for why this criterion cannot be met.\",\"Additional comments may be provided in the box below.\")","v":"Additional comments may be provided in the box below."},null,null,null,null,null,null,null,null,null,null,null,null,null,null,null,null,null,null,null,null,null,null,null,null,null,null,null,null,null,null,null,null,"(This cell changes to note whether the additional justification is a requirement or not.)"]
[{"$f":"IF(AND(B40=AI40,B37=\"has been violated.\"),\"*\",\"\")","v":""},"(If criterion cannot be met, provide quantitative analysis why and summarize the decision-making process that led to the selection of the proposed superelevation rate.  This should include a discussion of alternatives evaluated to ensure the project meets the intended purpose/need, while minimizing or mitigating associated impacts to the maximum extent feasible.  The evaluation may include an incremental comparison of costs, design impacts, etc. Attach additional pages as necessary.)",null,null,null,null,null,null,null,null,null,null,null,null,null,null,null,null,null,null,null,null,null,null,null,null,null,null,null,null,null,null,null,null,"(If criterion cannot be met, provide quantitative analysis why and summarize the decision-making process that led to the selection of the proposed superelevation rate.  This should include a discussion of alternatives evaluated to ensure the project meets the intended purpose/need, while minimizing or mitigating associated impacts to the maximum extent feasible.  The evaluation may include an incremental comparison of costs, design impacts, etc. Attach additional pages as necessary.)"]
[]
[]
[]
[]
[]
[]
[]
[]
[]
[]
[]
[]
[]
[]
[]
[]
[]
[]
[]
[]
[]
[]
[]
[]
[]
[]
[]
[]
[]
[null,null,null,null,null,null,null,null,null,null,null,null,null,null,null,null,null,null,null,null,null,null,null,null,null,null,null,null,null,null,null,null,{"$f":"'HIDDEN Lists'!$B$1","v":"Workbook updated October 21, 2024"}]

{"sheet":"MAX GRADE","index":25,"n_rows":47,"n_cols":35,"rows_kept":47,"cut":false,"hidden":false,"merged":[[24,34,45,64],[15,34,18,64],[0,0,0,32],[1,3,1,5],[1,11,1,32],[5,7,5,23],[15,1,18,31],[12,10,12,12],[12,28,12,30],[2,0,2,32],[3,0,3,32],[4,0,4,32],[10,10,10,31],[9,10,9,31],[24,1,45,31]]}
["MassDOT Design Justification Workbook"]
["Project:",null,null,{"$f":"INSTRUCTIONS!D4","v":"6XXXXX"},null,null,null,"Description:",null,null,null,{"$f":"INSTRUCTIONS!L4","v":"MUNICIPALITY- PROJECT DESCRIPTION"}]
["MAXIMUM GRADE",null,null,null,null,null,null,null,null,null,null,null,null,null,null,null,null,null,null,null,null,null,null,null,null,null,null,null,null,null,null,null,null,null,"(This Workbook sheet is intended to update automatically based on the Designer's entries.)"]
[{"$f":"IF(B22=\"is not applicable.\",\"Criterion not applicable.\",IF(B22=\"is non-controlling criterion.\",\"Criterion is non-controlling.\",IF(B22=\"has been violated.\",\"Standard not met.\",IF(B22=\"has been satisfied.\",\"Standard met.\",\"\"))))","v":"Criterion is non-controlling."}]
[{"$f":"IF(A4=\"Criterion not applicable.\",\"\",IF(OR(A6=\"*\",J13=\"*\",AB13=\"*\",J10=\"*\",J11=\"*\",A16=\"*\",A25=\"*\"),\"PLEASE FILL OUT ALL FIELDS MARKED WITH *\",\"\"))","v":"PLEASE FILL OUT ALL FIELDS MARKED WITH *"},null,null,null,null,null,null,null,null,null,null,null,null,null,null,null,null,null,null,null,null,null,null,null,null,null,null,null,null,null,null,null,null,{"$f":"IF(OR(A6=\"*\",J13=\"*\",AB13=\"*\",J10=\"*\",J11=\"*\",A16=\"*\"),TRUE,FALSE)","v":true}]
[{"$f":"IF($H$6=\"Street Road (Route X) - Segment X\",\"*\",\"\")","v":"*"},"Facility & Segment:",null,null,null,null,null,"Street Road (Route X) - Segment X",null,null,null,null,null,null,null,null,null,null,null,null,null,null,null,null,null,null,null,null,"# of Facilities: ",{"$f":"IFERROR(INDEX('HIDDEN VLookup'!$A$4:$B$33,MATCH($H$6,'HIDDEN VLookup'!$B$4:$B$33,0),1),\"\")","v":1},"of",{"$f":"30-COUNTBLANK('HIDDEN VLookup'!$B$4:$B$33)","v":1},null,{"$f":"IF(INSTRUCTIONS!AU81=1,TRUE,FALSE)","v":false},"(Other types of projects may also be exempt from the need to comply with this criteria - we ask that the Workbook is still completed in these cases.)"]
[null,null,null,null,null,null,null,null,null,null,null,null,null,null,null,null,null,null,null,null,null,null,null,null,null,null,null,null,null,null,null,null,null,{"$f":"IF(ISERROR(VLOOKUP($H$6,'HIDDEN Criteria'!$B$4:$AH$33,32,FALSE)),\"\",VLOOKUP($H$6,'HIDDEN Criteria'!$B$4:$AH$33,32,FALSE))","v":true}]
[null,"Fill in information about the proposed grade on this facility."]
[]
[null,"Source used:",null,null,null,null,null,null,null,{"$f":"IF(K10=\"\",\"*\",\"\")","v":"*"}]
[null,"Reference Table / Section:",null,null,null,null,null,null,null,{"$f":"IF(K11=\"\",\"*\",\"\")","v":"*"}]
[null,null,null,null,null,null,null,null,null,null,null,null,null,null,null,null,null,null,null,null,null,null,null,null,null,null,null,null,null,null,null,null,null,null,"(Use table on right to determine if Max Grade complies with the PDDG)"]
[null,"Maximum Grade:",null,null,null,null,null,null,null,{"$f":"IF(K13=\"\",\"*\",\"\")","v":"*"},null,null,null,"%",null,null,null,null,null,null,null,null,null,null,null,null,"Proposed Grade:",{"$f":"IF(AC13=\"\",\"*\",\"\")","v":"*"},null,null,null,"%",null,{"$f":"IF(AC13>K13,FALSE(),TRUE())","v":true},"(Flag is \"FALSE\" if the proposed exceeds the maximum.)"]
[null,null,null,null,null,null,null,null,null,null,null,null,null,null,null,null,null,null,null,null,null,null,null,null,null,null,null,null,null,null,null,"(Where the grade varies, provide the maximum value used.)"]
[null,"Justify the proposed max grade."]
[{"$f":"IF(B16=AI16,\"*\",\"\")","v":"*"},"(Provide qualitative analysis why the selected maximum grade was chosen. Justify use of this source for the shoulder width if not using a MassDOT design guide. Attach additional sheets as necessary.)",null,null,null,null,null,null,null,null,null,null,null,null,null,null,null,null,null,null,null,null,null,null,null,null,null,null,null,null,null,null,null,null,"(Provide qualitative analysis why the selected maximum grade was chosen. Justify use of this source for the shoulder width if not using a MassDOT design guide. Attach additional sheets as necessary.)"]
[]
[]
[]
[]
[null,"Based on the preceding responses, the maximum grade criterion",null,null,null,null,null,null,null,null,null,null,null,null,null,null,null,null,null,null,null,null,null,null,null,null,null,null,null,null,null,{"$f":"IF(ISBLANK(AC13),\"\",IF(AH13=FALSE,\"Standard not met.\",\"\"))","v":""},null,null,"(\"Standard not met.\" will be returned if the Subcriterion is not satisfied.)"]
[null,{"$f":"IF(AH7=TRUE,\"is non-controlling criterion.\",IF(AH5=TRUE,\"\",IF(AF21=\"Standard not met.\",\"has been violated.\",\"has been satisfied.\")))","v":"is non-controlling criterion."},null,null,null,null,null,null,null,null,null,null,null,null,null,null,null,null,null,null,null,null,null,null,null,null,null,null,null,null,null,null,null,null,"(This line will change to display \"has been violated\", \"has been satisfied\", or \"is non-controlling criterion\" as appropriate.)"]
[]
[null,{"$f":"IF(B22=\"has been violated.\",\"Provide additional justification for why this criterion cannot be met.\",\"Additional comments may be provided in the box below.\")","v":"Additional comments may be provided in the box below."},null,null,null,null,null,null,null,null,null,null,null,null,null,null,null,null,null,null,null,null,null,null,null,null,null,null,null,null,null,null,null,null,"(This cell changes to note whether the additional justification is a requirement or not.)"]
[{"$f":"IF(AND(B22=\"has been violated.\",B25=AI25),\"*\",\"\")","v":""},"(If criterion cannot be met, provide quantitative analysis why and summarize the decision-making process that led to the selection of the proposed superelevation rate.  This should include a discussion of alternatives evaluated to ensure the project meets the intended purpose/need, while minimizing or mitigating associated impacts to the maximum extent feasible.  The evaluation may include an incremental comparison of costs, design impacts, etc. Attach additional pages as necessary.)",null,null,null,null,null,null,null,null,null,null,null,null,null,null,null,null,null,null,null,null,null,null,null,null,null,null,null,null,null,null,null,null,"(If criterion cannot be met, provide quantitative analysis why and summarize the decision-making process that led to the selection of the proposed superelevation rate.  This should include a discussion of alternatives evaluated to ensure the project meets the intended purpose/need, while minimizing or mitigating associated impacts to the maximum extent feasible.  The evaluation may include an incremental comparison of costs, design impacts, etc. Attach additional pages as necessary.)"]
[]
[]
[]
[]
[]
[]
[]
[]
[]
[]
[]
[]
[]
[]
[]
[]
[]
[]
[]
[]
[]
[null,null,null,null,null,null,null,null,null,null,null,null,null,null,null,null,null,null,null,null,null,null,null,null,null,null,null,null,null,null,null,null,{"$f":"'HIDDEN Lists'!$B$1","v":"Workbook updated October 21, 2024"}]

{"sheet":"CROSS SLOPE","index":26,"n_rows":47,"n_cols":35,"rows_kept":47,"cut":false,"hidden":false,"merged":[[0,0,0,32],[1,3,1,5],[1,11,1,32],[5,7,5,23],[16,1,19,31],[2,0,2,32],[3,0,3,32],[4,0,4,32],[10,10,10,31],[9,10,9,31],[25,1,45,31],[25,34,45,64],[16,34,19,64],[13,28,13,30],[12,28,12,31],[12,11,12,13],[13,11,13,13]]}
["MassDOT Design Justification Workbook"]
["Project:",null,null,{"$f":"INSTRUCTIONS!D4","v":"6XXXXX"},null,null,null,"Description:",null,null,null,{"$f":"INSTRUCTIONS!L4","v":"MUNICIPALITY- PROJECT DESCRIPTION"}]
["CROSS SLOPE",null,null,null,null,null,null,null,null,null,null,null,null,null,null,null,null,null,null,null,null,null,null,null,null,null,null,null,null,null,null,null,null,null,"(This Workbook sheet is intended to update automatically based on the Designer's entries.)"]
[{"$f":"IF(B23=\"is not applicable.\",\"Criterion not applicable.\",IF(B23=\"is non-controlling criterion.\",\"Criterion is non-controlling.\",IF(B23=\"has been violated.\",\"Standard not met.\",IF(B23=\"has been satisfied.\",\"Standard met.\",\"\"))))","v":"Criterion is non-controlling."}]
[{"$f":"IF(A4=\"Criterion not applicable.\",\"\",IF(OR(A6=\"*\",AB13=\"*\",AB14=\"*\",J10=\"*\",J11=\"*\",A17=\"*\",A26=\"*\"),\"PLEASE FILL OUT ALL FIELDS MARKED WITH *\",\"\"))","v":"PLEASE FILL OUT ALL FIELDS MARKED WITH *"},null,null,null,null,null,null,null,null,null,null,null,null,null,null,null,null,null,null,null,null,null,null,null,null,null,null,null,null,null,null,null,null,{"$f":"IF(OR(A6=\"*\",AB13=\"*\",AB14=\"*\",J10=\"*\",J11=\"*\",A17=\"*\"),TRUE,FALSE)","v":true}]
[{"$f":"IF($H$6=\"Street Road (Route X) - Segment X\",\"*\",\"\")","v":"*"},"Facility & Segment:",null,null,null,null,null,"Street Road (Route X) - Segment X",null,null,null,null,null,null,null,null,null,null,null,null,null,null,null,null,null,null,null,null,"# of Facilities: ",{"$f":"IFERROR(INDEX('HIDDEN VLookup'!$A$4:$B$33,MATCH($H$6,'HIDDEN VLookup'!$B$4:$B$33,0),1),\"\")","v":1},"of",{"$f":"30-COUNTBLANK('HIDDEN VLookup'!$B$4:$B$33)","v":1},null,{"$f":"IF(INSTRUCTIONS!AV81=1,TRUE,FALSE)","v":false},"(Other types of projects may also be exempt from the need to comply with this criteria - we ask that the Workbook is still completed in these cases.)"]
[null,null,null,null,null,null,null,null,null,null,null,null,null,null,null,null,null,null,null,null,null,null,null,null,null,null,null,null,null,null,null,null,null,{"$f":"IF(ISERROR(VLOOKUP($H$6,'HIDDEN Criteria'!$B$4:$AH$33,32,FALSE)),\"\",VLOOKUP($H$6,'HIDDEN Criteria'!$B$4:$AH$33,32,FALSE))","v":true}]
[null,"Fill in information about the proposed roadway cross slope on this facility."]
[]
[null,"Source used:",null,null,null,null,null,null,null,{"$f":"IF(K10=\"\",\"*\",\"\")","v":"*"}]
[null,"Reference Table / Section:",null,null,null,null,null,null,null,{"$f":"IF(K11=\"\",\"*\",\"\")","v":"*"}]
[]
[null,"Maximum Cross Slope (HMA):",null,null,null,null,null,null,null,null,null,2,null,null,"%",null,null,null,null,null,null,null,null,null,null,null,"Proposed surface:",{"$f":"IF(AC13=\"\",\"*\",\"\")","v":"*"}]
[null,"Maximum Cross Slope (Conc):",null,null,null,null,null,null,null,null,null,1.6,null,null,"%",null,null,null,null,null,null,null,null,null,null,null,"Proposed cross slope:",{"$f":"IF(AC14=\"\",\"*\",\"\")","v":"*"},null,null,null,"%",null,{"$f":"IF(OR(AND(AC13=\"HMA\",AC14>L13),AND(AC13=\"CEM CONC\",AC14>L14)),FALSE,TRUE)","v":true},"(Flag is \"FALSE\" if the proposed exceeds the maximum.)"]
[null,null,null,null,null,null,null,null,null,null,null,null,null,null,null,null,null,null,null,null,null,null,null,null,null,null,null,null,null,null,null,null,"(Where the grade varies, provide the maximum value.)"]
[null,"Justify the proposed cross slope."]
[{"$f":"IF(B17=AI17,\"*\",\"\")","v":"*"},"(Provide qualitative analysis why the selected cross slope was chosen. Justify use of this source for the shoulder width if not using a MassDOT design guide. Attach additional sheets as necessary.)",null,null,null,null,null,null,null,null,null,null,null,null,null,null,null,null,null,null,null,null,null,null,null,null,null,null,null,null,null,null,null,null,"(Provide qualitative analysis why the selected cross slope was chosen. Justify use of this source for the shoulder width if not using a MassDOT design guide. Attach additional sheets as necessary.)"]
[]
[]
[]
[]
[null,"Based on the preceding responses, the cross slope criterion",null,null,null,null,null,null,null,null,null,null,null,null,null,null,null,null,null,null,null,null,null,null,null,null,null,null,null,null,null,{"$f":"IF(ISBLANK(AC14),\"\",IF(AH14=FALSE,\"Standard not met.\",\"\"))","v":""},null,null,"(\"Standard not met.\" will be returned if the Subcriterion is not satisfied.)"]
[null,{"$f":"IF(AH7=TRUE,\"is non-controlling criterion.\",IF(AH5=TRUE,\"\",IF(AF22=\"Standard not met.\",\"has been violated.\",\"has been satisfied.\")))","v":"is non-controlling criterion."},null,null,null,null,null,null,null,null,null,null,null,null,null,null,null,null,null,null,null,null,null,null,null,null,null,null,null,null,null,null,null,null,"(This line will change to display \"has been violated\", \"has been satisfied\", or \"is non-controlling criterion\" as appropriate.)"]
[]
[null,{"$f":"IF(B23=\"has been violated.\",\"Provide additional justification for why this criterion cannot be met.\",\"Additional comments may be provided in the box below.\")","v":"Additional comments may be provided in the box below."},null,null,null,null,null,null,null,null,null,null,null,null,null,null,null,null,null,null,null,null,null,null,null,null,null,null,null,null,null,null,null,null,"(This cell changes to note whether the additional justification is a requirement or not.)"]
[{"$f":"IF(AND(B23=\"has been violated.\",B26=AI26),\"*\",\"\")","v":""},"(If criterion cannot be met, provide quantitative analysis why and summarize the decision-making process that led to the selection of the proposed cross slope.  This should include a discussion of alternatives evaluated to ensure the project meets the intended purpose/need, while minimizing or mitigating associated impacts to the maximum extent feasible.  The evaluation may include an incremental comparison of costs, design impacts, etc. Attach additional pages as necessary.)",null,null,null,null,null,null,null,null,null,null,null,null,null,null,null,null,null,null,null,null,null,null,null,null,null,null,null,null,null,null,null,null,"(If criterion cannot be met, provide quantitative analysis why and summarize the decision-making process that led to the selection of the proposed cross slope.  This should include a discussion of alternatives evaluated to ensure the project meets the intended purpose/need, while minimizing or mitigating associated impacts to the maximum extent feasible.  The evaluation may include an incremental comparison of costs, design impacts, etc. Attach additional pages as necessary.)"]
[]
[]
[]
[]
[]
[]
[]
[]
[]
[]
[]
[]
[]
[]
[]
[]
[]
[]
[]
[]
[null,null,null,null,null,null,null,null,null,null,null,null,null,null,null,null,null,null,null,null,null,null,null,null,null,null,null,null,null,null,null,null,{"$f":"'HIDDEN Lists'!$B$1","v":"Workbook updated October 21, 2024"}]

{"sheet":"VERTICAL CLEARANCE","index":27,"n_rows":47,"n_cols":35,"rows_kept":47,"cut":false,"hidden":false,"merged":[[4,0,4,32],[0,0,0,32],[1,3,1,5],[1,11,1,32],[5,7,5,23],[2,0,2,32],[3,0,3,32],[32,1,45,31],[32,34,45,64],[15,18,15,19],[11,1,12,31],[23,1,26,31],[23,34,26,64],[20,11,20,13],[17,11,17,31],[18,11,18,31],[15,16,15,17],[20,28,20,30]]}
["MassDOT Design Justification Workbook"]
["Project:",null,null,{"$f":"INSTRUCTIONS!D4","v":"6XXXXX"},null,null,null,"Description:",null,null,null,{"$f":"INSTRUCTIONS!L4","v":"MUNICIPALITY- PROJECT DESCRIPTION"}]
["VERTICAL CLEARANCE",null,null,null,null,null,null,null,null,null,null,null,null,null,null,null,null,null,null,null,null,null,null,null,null,null,null,null,null,null,null,null,null,null,"(This Workbook sheet is intended to update automatically based on the Designer's entries.)"]
[{"$f":"IF(B30=\"is not applicable.\",\"Criterion not applicable.\",IF(B30=\"is non-controlling criterion.\",\"Criterion is non-controlling.\",IF(B30=\"has been violated.\",\"Standard not met.\",IF(B30=\"has been satisfied.\",\"Standard met.\",\"\"))))","v":"Criterion is non-controlling."}]
[{"$f":"IF(A4=\"Criterion not applicable.\",\"\",IF(OR(A6=\"*\",K21=\"*\",AB21=\"*\",K18=\"*\",K19=\"*\",A24=\"*\",A33=\"*\",P16=\"*\"),\"PLEASE FILL OUT ALL FIELDS MARKED WITH *\",\"\"))","v":"PLEASE FILL OUT ALL FIELDS MARKED WITH *"},null,null,null,null,null,null,null,null,null,null,null,null,null,null,null,null,null,null,null,null,null,null,null,null,null,null,null,null,null,null,null,null,{"$f":"IF(OR(A6=\"*\",K21=\"*\",AB21=\"*\",K18=\"*\",K19=\"*\",A24=\"*\",P16=\"*\"),TRUE,FALSE)","v":true}]
[{"$f":"IF($H$6=\"Street Road (Route X) - Segment X\",\"*\",\"\")","v":"*"},"Facility & Segment:",null,null,null,null,null,"Street Road (Route X) - Segment X",null,null,null,null,null,null,null,null,null,null,null,null,null,null,null,null,null,null,null,null,"# of Facilities: ",{"$f":"IFERROR(INDEX('HIDDEN VLookup'!$A$4:$B$33,MATCH($H$6,'HIDDEN VLookup'!$B$4:$B$33,0),1),\"\")","v":1},"of",{"$f":"30-COUNTBLANK('HIDDEN VLookup'!$B$4:$B$33)","v":1},null,{"$f":"IF(INSTRUCTIONS!AW81=1,TRUE,FALSE)","v":false},"(Other types of projects may also be exempt from the need to comply with this criteria - we ask that the Workbook is still completed in these cases.)"]
[null,null,null,null,null,null,null,null,null,null,null,null,null,null,null,null,null,null,null,null,null,null,null,null,null,null,null,null,null,null,null,null,null,{"$f":"IF(ISERROR(VLOOKUP($H$6,'HIDDEN Criteria'!$B$4:$AH$33,32,FALSE)),\"\",VLOOKUP($H$6,'HIDDEN Criteria'!$B$4:$AH$33,32,FALSE))","v":true},"(This cell references the design speed of the facility to determine if it is controlling or not.)"]
[null,"(Check the box if the following apply and do not fill out this sheet)"]
[null,false,"There are no bridges, tunnels, or structures (sign gantries, mast arms, wires, etc.) in or over this facility.",null,null,null,null,null,null,null,null,null,null,null,null,null,null,null,null,null,null,null,null,null,null,null,null,null,null,null,null,null,null,{"$f":"B9","v":false}]
[]
[null,"Fill in information about the proposed Vertical Clearance on this facility."]
[null,"If the feature underneath the structure is owned or operated by a different jurisdiction or agency (including, but not limited to, any railroads underneath a bridge), include any approvals from the other jurisdiction or agency."]
[]
[]
[]
[null,"Design Speed of the roadway under the bridge:",null,null,null,null,null,null,null,null,null,null,null,null,null,{"$f":"IF(AND(AH9=FALSE,Q16=\"\"),\"*\",\"\")","v":"*"},null,null,"MPH",null,null,null,null,null,null,null,null,null,null,null,null,null,null,{"$f":"IF(Q16<50,TRUE,FALSE)","v":true},"(This cell references the design speed of the roadway under the bridge to determine if it is controlling or not.)"]
[]
[null,"Source used for Vert. Clearance:",null,null,null,null,null,null,null,null,{"$f":"IF(AH9=TRUE,\"\",IF(L18=\"\",\"*\",\"\"))","v":"*"}]
[null,"Reference Table / Section:",null,null,null,null,null,null,null,null,{"$f":"IF(AH9=TRUE,\"\",IF(L19=\"\",\"*\",\"\"))","v":"*"}]
[]
[null,"Minimum Vertical Clearance:",null,null,null,null,null,null,null,null,{"$f":"IF(AH9=TRUE,\"\",IF(L21=\"\",\"*\",\"\"))","v":"*"},null,null,null,"FT",null,null,null,null,null,null,null,null,null,null,null,"Proposed Vertical Clearance:",{"$f":"IF(AH9=TRUE,\"\",IF(AC21=\"\",\"*\",\"\"))","v":"*"},null,null,null,"FT",null,{"$f":"IF(AND(AC21<L21,ISBLANK(AC21)=FALSE),FALSE,TRUE)","v":true},"(If the bridge is not subject to a vertical clearance requirement, put \"0\" for the minimum.)"]
[null,null,null,null,null,null,null,null,null,null,null,null,null,null,null,null,null,null,null,null,null,null,null,null,null,null,null,null,null,null,null,"(If there are multiple structures, provide the lowest value.)"]
[null,"Justify the proposed vertical clearance."]
[{"$f":"IF(AH9=TRUE,\"\",IF(B24=AI24,\"*\",\"\"))","v":"*"},"(Provide qualitative analysis why the selected vertical clearance was chosen. Justify use of this source for the shoulder width if not using a MassDOT design guide. Attach additional sheets as necessary.)",null,null,null,null,null,null,null,null,null,null,null,null,null,null,null,null,null,null,null,null,null,null,null,null,null,null,null,null,null,null,null,null,"(Provide qualitative analysis why the selected vertical clearance was chosen. Justify use of this source for the shoulder width if not using a MassDOT design guide. Attach additional sheets as necessary.)"]
[]
[]
[]
[]
[null,"Based on the preceding responses, the vertical clearance criterion",null,null,null,null,null,null,null,null,null,null,null,null,null,null,null,null,null,null,null,null,null,null,null,null,null,null,null,null,null,{"$f":"IF(AH9=TRUE,\"\",IF(ISBLANK(AC21),\"\",IF(AH21=FALSE,\"Standard not met.\",\"\")))","v":""},null,null,"(\"Standard not met.\" will be returned if the Subcriterion is not satisfied.)"]
[null,{"$f":"IF(AH9=TRUE,\"is not applicable.\",IF(AND(AH7=TRUE,AH16=TRUE),\"is non-controlling criterion.\",IF(AH5=TRUE,\"\",IF(AF29=\"Standard not met.\",\"has been violated.\",\"has been satisfied.\"))))","v":"is non-controlling criterion."},null,null,null,null,null,null,null,null,null,null,null,null,null,null,null,null,null,null,null,null,null,null,null,null,null,null,null,null,null,null,null,null,"(This line will change to display \"has been violated\", \"has been satisfied\", or \"is non-controlling criterion\" as appropriate.)"]
[]
[null,{"$f":"IF(B30=\"has been violated.\",\"Provide additional justification for why this criterion cannot be met.\",\"Additional comments may be provided in the box below.\")","v":"Additional comments may be provided in the box below."},null,null,null,null,null,null,null,null,null,null,null,null,null,null,null,null,null,null,null,null,null,null,null,null,null,null,null,null,null,null,null,null,"(This cell changes to note whether the additional justification is a requirement or not.)"]
[{"$f":"IF(AH9=TRUE,\"\",IF(AND(B30=\"has been violated.\",B33=AI33),\"*\",\"\"))","v":""},"(If criterion cannot be met, provide quantitative analysis why and summarize the decision-making process that led to the selection of the proposed vertical clearance.  This should include a discussion of alternatives evaluated to ensure the project meets the intended purpose/need, while minimizing or mitigating associated impacts to the maximum extent feasible.  The evaluation may include an incremental comparison of costs, design impacts, etc. Attach additional pages as necessary.)",null,null,null,null,null,null,null,null,null,null,null,null,null,null,null,null,null,null,null,null,null,null,null,null,null,null,null,null,null,null,null,null,"(If criterion cannot be met, provide quantitative analysis why and summarize the decision-making process that led to the selection of the proposed vertical clearance.  This should include a discussion of alternatives evaluated to ensure the project meets the intended purpose/need, while minimizing or mitigating associated impacts to the maximum extent feasible.  The evaluation may include an incremental comparison of costs, design impacts, etc. Attach additional pages as necessary.)"]
[]
[]
[]
[]
[]
[]
[]
[]
[]
[]
[]
[]
[]
[null,null,null,null,null,null,null,null,null,null,null,null,null,null,null,null,null,null,null,null,null,null,null,null,null,null,null,null,null,null,null,null,{"$f":"'HIDDEN Lists'!$B$1","v":"Workbook updated October 21, 2024"}]

{"sheet":"ESRI_MAPINFO_SHEET","index":28,"n_rows":0,"n_cols":0,"rows_kept":0,"cut":false,"hidden":true,"merged":[]}